Workbook

Sheet ALL Run Data
A1: Basic Run Info | J1: Flare Design Information | S1: General Flare Vent Gas Data | AA1: Molar Percentage of Components in Flare Vent Gas [mol %] | BD1: Steam Data | BQ1: Air Assist Data | BS1: Volumetric Flow Rates For Each Flare Vent Gas Component In The Combustion Zone (QCZ,i) | CY1: Concentration Of Each Flare Vent Gas Component In The Combustion Zone (XCZ,i) | EE1: Basic Composition Information For Vent Gas (VG) and Combustion Zone Gas (CZ) | EO1: Combustibles in Vent Gas (VGc) Volume Fractions | FU1: Dynamic NHVCZ Calculation and Related Data | GA1: LFLCZ Calculation | GG1: Stoichiometric Ratio (SR) Calculation | GK1: MFR Calculation | GO1: SHORE EQUATION ANALYSIS | GW1: Vent Gas and Center Steam ONLY (vgcs) Component Flow Rates | IB1: Vent Gas and Center Steam ONLY (vgcs) Volume Fractions | JG1: Miscellaneous Information
A2: Test Site | B2: Condition | C2: Run | D2: Reported Combustion Efficiency (CE) [%] | E2: Reported Run Time [minutes] | F2: Reported Visual Smoke Rating | G2: Reported Smoking Flare? | H2: Reported Wind Velocity [mph] | I2: Reported MFR [unitless] | J2: Flare Design Type | K2: Design Capacity [lb/hr] | L2: % Utilized | M2: Turndown Ratio [unitless] | N2: Minimum Steam Rate [lb/hr] | O2: Effective Diameter of Flare Tip [inches] | P2: Effective Diameter of Flare Tip [ft] | Q2: Effective Area of Flare Tip [ft2] | R2: ANY reason to remove from Analysis? | S2: Flare Vent Gas Net Heating Value (NHVVG) [Btu/scf] | T2: Flare Vent Gas Flow Rate (mvg) [lb/hr] | U2: Flare Vent Gas Flow Rate (Qvg) [scf/hr] | V2: Flare Vent Gas Velocity (Vvg) [ft/s] | W2: Flare Vent Gas Velocity w/ Center Steam (Vvg-s) [ft/s] | X2: Flare Vent Gas Molecular Weight (MWvg) [lb/lb-mol] | Y2: Reported Pilot Gas Flow Rate (Qpg) [scf/hr] | Z2: ZERO-OUT Pilot Gas Flow Rate for calculations [scf/hr] | AA2: 1-Butene [mol %] | AB2: 1,2-Butadiene [mol %] | AC2: 1,3-Butadiene (%1,3-B) [mol %] | AD2: Acetylene [mol %] | AE2: Benzene [mol %] | AF2: Carbon Dioxide [mol %] | AG2: Carbon Monoxide [mol %] | AH2: Cis-2-Butene [mol %] | AI2: Cyclopropane [mol %] | AJ2: Ethane [mol %] | AK2: Ethyl Benzene [mol %] | AL2: Ethylene [mol %] | AM2: Hydrogen [mol %] | AN2: Hydrogen Sulfide [mol %] | AO2: Iso-Butane [mol %] | AP2: Iso-Butylene [mol %] | AQ2: Methane [mol %] | AR2: Methyl Acetylene [mol %] | AS2: n-Butane [mol %] | AT2: Nitrogen (%N) [mol %] | AU2: Oxygen [mol %] | AV2: Pentane Plus (C5+) [mol %] | AW2: Propadiene [mol %] | AX2: Propane (%p) [mol %] | AY2: Propylene [mol %] | AZ2: Toluene [mol %] | BA2: Trans-2-Butene [mol %] | BB2: Water [mol %] | BC2: Xylenes [mol %] | BD2: TOTAL Volumetric Steam Rate (Qs) [scf/hr] | BE2: TOTAL Mass Steam Rate (ms) [lb/hr] | BF2: Lower Volumetric Steam Rate (Ql) [scf/hr] | BG2: Lower Mass Steam Rate (ml) [lb/hr] | BH2: Center Volumetric Steam Rate (Qc) [scf/hr] | BI2: Center Mass Steam Rate (mc) [lb/hr] | BJ2: Ring Volumetric Steam Rate (Qr) [scf/hr] | BK2: Ring Mass Steam Rate (mr) [lb/hr] | BL2: Upper Volumetric Steam Rate (Qu) [scf/hr] | BM2: Upper Mass Steam Rate (mu) [lb/hr] | BN2: Steam-to-vent-gas ratio by weight (S/VGwt) [lb steam/ lb vent gas] | BO2: Steam-to-vent-gas ratio by volume (S/VGvol) [scf steam/ scf vent gas] | BP2: Steam-to-hydrocarbon ratio by volume (S/HCvol) [scf steam/ scf HC] | BQ2: Air Assist Flow Rate (mAir) [lb/hr] | BR2: Air Assist Flow Rate (QAir) [scf/hr] | BS2: 1-Butene [scf/hr] | BT2: 1,2-Butadiene [scf/hr] | BU2: 1,3-Butadiene [scf/hr] | BV2: Acetylene [scf/hr] | BW2: Benzene [scf/hr] | BX2: Carbon Dioxide [scf/hr] | BY2: Carbon Monoxide [scf/hr] | BZ2: Cis-2-Butene [scf/hr] | CA2: Cyclopropane [scf/hr] | CB2: Ethane [scf/hr] | CC2: Ethyl Benzene [scf/hr] | CD2: Ethylene [scf/hr] | CE2: Hydrogen [scf/hr] | CF2: Hydrogen Sulfide [scf/hr] | CG2: Iso-Butane [scf/hr] | CH2: Iso-Butylene [scf/hr] | CI2: Methane [scf/hr] | CJ2: Methyl Acetylene [scf/hr] | CK2: n-Butane [scf/hr] | CL2: Nitrogen [scf/hr] | CM2: Oxygen [scf/hr] | CN2: Pentane Plus (C5+) [scf/hr] | CO2: Propadiene [scf/hr] | CP2: Propane [scf/hr] | CQ2: Propylene [scf/hr] | CR2: Toluene [scf/hr] | CS2: Trans-2-Butene [scf/hr] | CT2: Water [scf/hr] | CU2: Xylenes [scf/hr] | CV2: STEAM [scf/hr] | CW2: AIR [scf/hr] | CX2: PILOT GAS [scf/hr] | CY2: 1-Butene [vol frac] | CZ2: 1,2-Butadiene [vol frac] | DA2: 1,3-Butadiene [vol frac] | DB2: Acetylene [vol frac] | DC2: Benzene [vol frac] | DD2: Carbon Dioxide [vol frac] | DE2: Carbon Monoxide [vol frac] | DF2: Cis-2-Butene [vol frac] | DG2: Cyclopropane [vol frac] | DH2: Ethane [vol frac] | DI2: Ethyl Benzene [vol frac] | DJ2: Ethylene [vol frac] | DK2: Hydrogen [vol frac] | DL2: Hydrogen Sulfide [vol frac] | DM2: Iso-Butane [vol frac] | DN2: Iso-Butylene [vol frac] | DO2: Methane [vol frac] | DP2: Methyl Acetylene [vol frac] | DQ2: n-Butane [vol frac] | DR2: Nitrogen [vol frac] | DS2: Oxygen [vol frac] | DT2: Pentane Plus (C5+) [vol frac] | DU2: Propadiene [vol frac] | DV2: Propane [vol frac] | DW2: Propylene [vol frac] | DX2: Toluene [vol frac] | DY2: Trans-2-Butene [vol frac] | DZ2: Water [vol frac] | EA2: Xylenes [vol frac] | EB2: STEAM [vol frac] | EC2: AIR [vol frac] | ED2: PILOT GAS [vol frac] | EE2: VG Olefin Content [%] | EF2: VG Hydrogen Content [%] | EG2: VG VOC Content [%] | EH2: CZ Olefin Content [%] | EI2: CZ Hydrogen Content [%] | EJ2: Ratio of CZ Olefin Content to CZ Hydrogen Content [unitless] | EK2: Combustible Components in the Combustion Zone (CCZ) [vol frac] | EL2: Steam in CZ [vol frac] | EM2: Inert in CZ [vol frac] | EN2: Number of Combustibles in VG | EO2: 1-Butene [vol frac] | EP2: 1,2-Butadiene [vol frac] | EQ2: 1,3-Butadiene [vol frac] | ER2: Acetylene [vol frac] | ES2: Benzene [vol frac] | ET2: Carbon Dioxide [vol frac] | EU2: Carbon Monoxide [vol frac] | EV2: Cis-2-Butene [vol frac] | EW2: Cyclopropane [vol frac] | EX2: Ethane [vol frac] | EY2: Ethyl Benzene [vol frac] | EZ2: Ethylene [vol frac] | FA2: Hydrogen [vol frac] | FB2: Hydrogen Sulfide [vol frac] | FC2: Iso-Butane [vol frac] | FD2: Iso-Butylene [vol frac] | FE2: Methane [vol frac] | FF2: Methyl Acetylene [vol frac] | FG2: n-Butane [vol frac] | FH2: Nitrogen [vol frac] | FI2: Oxygen [vol frac] | FJ2: Pentane Plus (C5+) [vol frac] | FK2: Propadiene [vol frac] | FL2: Propane [vol frac] | FM2: Propylene [vol frac] | FN2: Toluene [vol frac] | FO2: Trans-2-Butene [vol frac] | FP2: Water [vol frac] | FQ2: Xylenes [vol frac] | FR2: STEAM [vol frac] | FS2: AIR [vol frac] | FT2: PILOT GAS [vol frac] | FU2: Net Heating Value of Combustion Zone Gas (NHVCZ) [BTU/scf] | FV2: Unadjusted Lower Flammability Limit of Flare Vent Gas (LFLVG) [vol frac] | FW2: Water and CO2 Full Adjustment Term | FX2: Lower Flammability Limit of Flare Vent Gas Adjusted for Nitrogen Equivalency (LFLVG) [vol frac] | FY2: Net Heating Value of Flare Vent Gas if Diluted to Lower Flammability Limit (NHVVG--LFL) [BTU/scf] | FZ2: Ratio of NHVCZ to NHVVG-LFL (NHVratio) [unitless] | GA2: Lower Flammability Limit of Flare Vent Gas Combustible Only (LFLVG,C) [vol frac] | GB2: Unadjusted Lower Flammability Limit of Combustion Zone Gas (LFLCZ) [vol frac] | GC2: Coefficient of Nitrogen Equivalency of Water Relative to Nitrogen (Ne,H2O) | GD2: Coefficient of Nitrogen Equivalency of Carbon Dioxide Relative to Nitrogen (Ne,CO2) | GE2: Water and CO2 Full Adjustment Term | GF2: Lower Flammability Limit of Combustion Zone Gas Adjusted for Nitrogen Equivalency (LFLCZ) [vol frac] | GG2: Fuel ID | GH2: Theoretical Stoichiometric Mass of Air Needed to Combust the Flare Vent Gas (mStoic) [lb/hr] | GI2: Calculated Ratio of Actual Mass Flow of Total Assist Air to the Theoretical Stoichiometric Mass of Air Needed to Vombust the Flare Vent Gas (mAir / mStoic) (SR) | GJ2: Reported Ratio of Actual Mass Flow of Total Assist Air to the Theoretical Stoichiometric Mass of Air Needed to Vombust the Flare Vent Gas (mAir / mStoic) (SR) | GK2: Flare Vent Gas Flow Rate Including Center Steam (mvg-s) [lb/hr] | GL2: Density of Flare Vent Gas Including Center Steam (pvg-s) [lb/ft3] | GM2: Wind Velocity (Vwind) [ft/s] | GN2: Calculated MFR [unitless] | GO2: Shore Equation Velocity-Jet Periphery (UO/∏/DO) [sec-1] | GP2: Coefficient of Nitrogen Equivalency of Water Relative to Nitrogen (Ne,H2O) | GQ2: Coefficient of Nitrogen Equivalency of Carbon Dioxide Relative to Nitrogen (Ne,CO2) | GR2: Water and CO2 Full Adjustment Term | GS2: Lower Flammability Limit of Flare Vent Gas Including Center Steam Adjusted for Nitrogen Equivalency (LFLvgcs) [vol frac] | GT2: Shore Equation (RAM) [lb flare vent gas including center steam / lb of air] | GU2: Maximum Allowable Flare Vent Gas Velocity Including Center Steam (Vmax) [ft/s] | GV2: Is Vtip > Vmax? | GW2: 1-Butene [scf/hr] | GX2: 1,2-Butadiene [scf/hr] | GY2: 1,3-Butadiene [scf/hr] | GZ2: Acetylene [scf/hr] | HA2: Benzene [scf/hr] | HB2: Carbon Dioxide [scf/hr] | HC2: Carbon Monoxide [scf/hr] | HD2: Cis-2-Butene [scf/hr] | HE2: Cyclopropane [scf/hr] | HF2: Ethane [scf/hr] | HG2: Ethyl Benzene [scf/hr] | HH2: Ethylene [scf/hr] | HI2: Hydrogen [scf/hr] | HJ2: Hydrogen Sulfide [scf/hr] | HK2: Iso-Butane [scf/hr] | HL2: Iso-Butylene [scf/hr] | HM2: Methane [scf/hr] | HN2: Methyl Acetylene [scf/hr] | HO2: n-Butane [scf/hr] | HP2: Nitrogen [scf/hr] | HQ2: Oxygen [scf/hr] | HR2: Pentane Plus (C5+) [scf/hr] | HS2: Propadiene [scf/hr] | HT2: Propane [scf/hr] | HU2: Propylene [scf/hr] | HV2: Toluene [scf/hr] | HW2: Trans-2-Butene [scf/hr] | HX2: Water [scf/hr] | HY2: Xylenes [scf/hr] | HZ2: Center STEAM [scf/hr] | IA2: PILOT GAS [scf/hr] | IB2: 1-Butene [vol frac] | IC2: 1,2-Butadiene [vol frac] | ID2: 1,3-Butadiene [vol frac] | IE2: Acetylene [vol frac] | IF2: Benzene [vol frac] | IG2: Carbon Dioxide [vol frac] | IH2: Carbon Monoxide [vol frac] | II2: Cis-2-Butene [vol frac] | IJ2: Cyclopropane [vol frac] | IK2: Ethane [vol frac] | IL2: Ethyl Benzene [vol frac] | IM2: Ethylene [vol frac] | IN2: Hydrogen [vol frac] | IO2: Hydrogen Sulfide [vol frac] | IP2: Iso-Butane [vol frac] | IQ2: Iso-Butylene [vol frac] | IR2: Methane [vol frac] | IS2: Methyl Acetylene [vol frac] | IT2: n-Butane [vol frac] | IU2: Nitrogen [vol frac] | IV2: Oxygen [vol frac] | IW2: Pentane Plus (C5+) [vol frac] | IX2: Propadiene [vol frac] | IY2: Propane [vol frac] | IZ2: Propylene [vol frac] | JA2: Toluene [vol frac] | JB2: Trans-2-Butene [vol frac] | JC2: Water [vol frac] | JD2: Xylenes [vol frac] | JE2: STEAM [vol frac] | JF2: PILOT GAS [vol frac] | JG2: 1,3-Butadiene Flow [lb/hr] | JH2: Vent Gas Velocity [ft/min] | JI2: Vent Gas Flow Rate [kacf/hr] | JJ2: Total Steam Rate [klb/hr] | JK2: Vent Gas Flow Rate [klb/hr] | JL2: Secondary Field to See if No Assist was Used | JM2: Steam Ratio [lb steam/lb gas] | JN2: Propane Flow Rate [lb/hr] | JO2: Propane in Nitrogen [%] | JP2: Propylene Flow Rate [lb/hr] | JQ2: Propylene Flow Rate [scf/min] | JR2: Nitrogen Flow Rate [lb/hr] | JS2: Nitrogen Flow Rate [scf/min] | JT2: Supplemental NG Flow Rate [lb/hr] | JU2: Methane Flow Rate [scf/min]
A3: EPA-600/2-83-052 | B3: NA | C3: 1 | D3: 99.96% | E3: 14.68333333 | F3: NA | G3: NO | H3: Unknown | I3: NA | J3: =IF(JL3="Air Assist", "Air-Assisted","Steam-Assisted") -> Steam-Assisted | K3: Unknown | L3: Unknown | M3: Unknown | N3: >1000 | O3: 5.86 | P3: =ROUND((O3/12),2) -> 0.49 | Q3: =0.785*((P3)^2) -> 0.19 | R3: NO | S3: 2183 | T3: =JP3+JR3 -> 3138 | U3: =CL3+CQ3 -> 28380 | V3: =JH3/60 -> 42.05 | W3: =IF(BH3="None",V3,((BH3/Q3/60/60)+V3)) -> 42.05 | X3: 42.08 | Y3: 469.6428571 | Z3: 0 | AT3: =(CL3/(CQ3+CL3))*100 -> 0 | AY3: =(CQ3/(CQ3+CL3))*100 -> 100 | BD3: =BE3*379.48/18 -> 49732.96222 | BE3: 2359 | BF3: None | BG3: None | BH3: None | BI3: None | BJ3: None | BK3: None | BL3: =BM3*379.48/18 -> 49732.96222 | BM3: 2359 | BN3: =BE3/T3 -> 0.75 | BO3: =BD3/U3 -> 1.75 | BP3: =BD3/(SUM(BS3:BW3,BY3:CD3,CG3:CK3,CN3:CS3,CU3)) -> 1.75 | CL3: =JS3*60 -> 0 | CQ3: =JQ3*60 -> 28380 | CV3: =BD3 -> 49732.96222 | CX3: =Z3 -> 0 | CY3: =BS3/SUM($BS3:$CX3) -> 0 | CZ3: =BT3/SUM($BS3:$CX3) -> 0 | DA3: =BU3/SUM($BS3:$CX3) -> 0 | DB3: =BV3/SUM($BS3:$CX3) -> 0 | DC3: =BW3/SUM($BS3:$CX3) -> 0 | DD3: =BX3/SUM($BS3:$CX3) -> 0 | DE3: =BY3/SUM($BS3:$CX3) -> 0 | DF3: =BZ3/SUM($BS3:$CX3) -> 0 | DG3: =CA3/SUM($BS3:$CX3) -> 0 | DH3: =CB3/SUM($BS3:$CX3) -> 0 | DI3: =CC3/SUM($BS3:$CX3) -> 0 | DJ3: =CD3/SUM($BS3:$CX3) -> 0 | DK3: =CE3/SUM($BS3:$CX3) -> 0 | DL3: =CF3/SUM($BS3:$CX3) -> 0 | DM3: =CG3/SUM($BS3:$CX3) -> 0 | DN3: =CH3/SUM($BS3:$CX3) -> 0 | DO3: =CI3/SUM($BS3:$CX3) -> 0 | DP3: =CJ3/SUM($BS3:$CX3) -> 0 | DQ3: =CK3/SUM($BS3:$CX3) -> 0 | DR3: =CL3/SUM($BS3:$CX3) -> 0 | DS3: =CM3/SUM($BS3:$CX3) -> 0 | DT3: =CN3/SUM($BS3:$CX3) -> 0 | DU3: =CO3/SUM($BS3:$CX3) -> 0 | DV3: =CP3/SUM($BS3:$CX3) -> 0 | DW3: =CQ3/SUM($BS3:$CX3) -> 0.3633199816 | DX3: =CR3/SUM($BS3:$CX3) -> 0 | DY3: =CS3/SUM($BS3:$CX3) -> 0 | DZ3: =CT3/SUM($BS3:$CX3) -> 0 | EA3: =CU3/SUM($BS3:$CX3) -> 0 | EB3: =CV3/SUM($BS3:$CX3) -> 0.6366800184 | ED3: =CX3/SUM($BS3:$CX3) -> 0 | EE3: =AA3+AB3+AC3+AH3+AL3+AP3+AW3+AY3+BA3 -> 100.00 | EF3: =AM3 -> 0 | EG3: =AA3+AB3+AC3+AD3+AE3+AH3+AI3+AK3+AL3+AO3+AP3+AR3+AS3+AV3+AW3+AX3+AY3+AZ3+BA3+BC3 -> 100.00 | EH3: =100*(CY3+CZ3+DA3+DF3+DJ3+DN3+DU3+DW3+DY3) -> 36.33 | EI3: =100*DK3 -> 0.00 | EJ3: =IF(EI3=0,0,(EH3/EI3)) -> 0 | EK3: =CY3+CZ3+DA3+DB3+DC3+DE3+DF3+DG3+DH3+DI3+DJ3+DK3+DL3+DM3+DN3+DO3+DP3+DQ3+DT3+DU3+DV3+DW3+DX3+DY3+EA3+ED3 -> 0.363 | EL3: =EB3 -> 0.6366800184 | EM3: =DD3+DR3+DS3+DZ3+EB3 -> 0.6366800184 | EN3: =COUNTIF(AA3:AE3,">0")+COUNTIF(AG3:AP3,">0")+COUNTIF(AQ3:AS3,">0")+COUNTIF(AV3:BA3,">0")+IF(BC3>0,1,0) -> 1 | EO3: =BS3/(SUM(BS3:BW3,BY3:CK3,CN3:CS3,CU3)) -> 0 | EP3: =BT3/(SUM(BS3:BW3,BY3:CK3,CN3:CS3,CU3)) -> 0 | EQ3: =BU3/(SUM(BS3:BW3,BY3:CK3,CN3:CS3,CU3)) -> 0 | ER3: =BV3/(SUM(BS3:BW3,BY3:CK3,CN3:CS3,CU3)) -> 0 | ES3: =BW3/(SUM(BS3:BW3,BY3:CK3,CN3:CS3,CU3)) -> 0 | EU3: =BY3/(SUM(BS3:BW3,BY3:CK3,CN3:CS3,CU3)) -> 0 | EV3: =BZ3/(SUM(BS3:BW3,BY3:CK3,CN3:CS3,CU3)) -> 0 | EW3: =CA3/(SUM(BS3:BW3,BY3:CK3,CN3:CS3,CU3)) -> 0 | EX3: =CB3/(SUM(BS3:BW3,BY3:CK3,CN3:CS3,CU3)) -> 0 | EY3: =CC3/(SUM(BS3:BW3,BY3:CK3,CN3:CS3,CU3)) -> 0 | EZ3: =CD3/(SUM(BS3:BW3,BY3:CK3,CN3:CS3,CU3)) -> 0 | FA3: =CE3/(SUM(BS3:BW3,BY3:CK3,CN3:CS3,CU3)) -> 0 | FB3: =CF3/(SUM(BS3:BW3,BY3:CK3,CN3:CS3,CU3)) -> 0 | FC3: =CG3/(SUM(BS3:BW3,BY3:CK3,CN3:CS3,CU3)) -> 0 | FD3: =CH3/(SUM(BS3:BW3,BY3:CK3,CN3:CS3,CU3)) -> 0 | FE3: =CI3/(SUM(BS3:BW3,BY3:CK3,CN3:CS3,CU3)) -> 0 | FF3: =CJ3/(SUM(BS3:BW3,BY3:CK3,CN3:CS3,CU3)) -> 0 | FG3: =CK3/(SUM(BS3:BW3,BY3:CK3,CN3:CS3,CU3)) -> 0 | FJ3: =CN3/(SUM(BS3:BW3,BY3:CK3,CN3:CS3,CU3)) -> 0 | FK3: =CO3/(SUM(BS3:BW3,BY3:CK3,CN3:CS3,CU3)) -> 0 | FL3: =CP3/(SUM(BS3:BW3,BY3:CK3,CN3:CS3,CU3)) -> 0 | FM3: =CQ3/(SUM(BS3:BW3,BY3:CK3,CN3:CS3,CU3)) -> 1 | FN3: =CR3/(SUM(BS3:BW3,BY3:CK3,CN3:CS3,CU3)) -> 0 | FO3: =CS3/(SUM(BS3:BW3,BY3:CK3,CN3:CS3,CU3)) -> 0 | FQ3: =CU3/(SUM(BS3:BW3,BY3:CK3,CN3:CS3,CU3)) -> 0 | FU3: =(U3*S3)/(U3+BD3) -> 793.13 | FV3: =1/((AA3/1.8)+(AB3/2)+(AC3/2)+(AD3/2.5)+(AE3/1.3)+(AG3/12.5)+(AH3/1.7)+(AI3/2.4)+(AJ3/3)+(AK3/1)+(AL3/2.7)+(AM3/4)+(AN3/4)+(AO3/1.8)+(AP3/1.8)+(AQ3/5)+(AR3/1.7)+(AS3/1.8)+(AV3/1.4)+(AW3/2.16)+(AX3/2.1)+(AY3/2.4)+(AZ3/1.2)+(BA3/1.7)+(BC3/1.1)) -> 0.024 | FW3: =((BB3/100)*(GC3-1))+((AF3/100)*(GD3-1)) -> 0.000 | FX3: =1/(((AA3/1.8)+(AB3/2)+(AC3/2)+(AD3/2.5)+(AE3/1.3)+(AG3/12.5)+(AH3/1.7)+(AI3/2.4)+(AJ3/3)+(AK3/1)+(AL3/2.7)+(AM3/4)+(AN3/4)+(AO3/1.8)+(AP3/1.8)+(AQ3/5)+(AR3/1.7)+(AS3/1.8)+(AV3/1.4)+(AW3/2.16)+(AX3/2.1)+(AY3/2.4)+(AZ3/1.2)+(BA3/1.7)+(BC3/1.1))-FW3) -> 0.024 | FY3: =FX3*S3 -> 52.39 | FZ3: =FU3/FY3 -> 15.14 | GA3: =1/((100*EO3/1.8)+(100*EP3/2)+(100*EQ3/2)+(100*ER3/2.5)+(100*ES3/1.3)+(100*EU3/12.5)+(100*EV3/1.7)+(100*EW3/2.4)+(100*EX3/3)+(100*EY3/1)+(100*EZ3/2.7)+(100*FA3/4)+(100*FB3/4)+(100*FC3/1.8)+(100*FD3/1.8)+(100*FE3/5)+(100*FF3/1.7)+(100*FG3/1.8)+(100*FJ3/1.4)+(100*FK3/2.16)+(100*FL3/2.1)+(100*FM3/2.4)+(100*FN3/1.2)+(100*FO3/1.7)+(100*FQ3/1.1)) -> 0.024 | GB3: =1/((100*CY3/1.8)+(100*CZ3/2)+(100*DA3/2)+(100*DB3/2.5)+(100*DC3/1.3)+(100*DE3/12.5)+(100*DF3/1.7)+(100*DG3/2.4)+(100*DH3/3)+(100*DI3/1)+(100*DJ3/2.7)+(100*DK3/4)+(100*DL3/4)+(100*DM3/1.8)+(100*DN3/1.8)+(100*DO3/5)+(100*DP3/1.7)+(100*DQ3/1.8)+(100*DT3/1.4)+(100*DU3/2.16)+(100*DV3/2.1)+(100*DW3/2.4)+(100*DX3/1.2)+(100*DY3/1.7)+(100*EA3/1.1)+(100*ED3/5)) -> 0.066 | GC3: =((CI3*1.87)+(CB3*1.4)+(CP3*1.51)+(CD3*1.68)+(CQ3*1.36)+(CE3*1.35)+((BS3+BT3+BU3+BV3+BW3+BY3+BZ3+CA3+CC3+CF3+CG3+CH3+CJ3+CK3+CN3+CO3+CR3+CS3+CU3)*1.5))/(CI3+CB3+CP3+CD3+CQ3+CE3+BS3+BT3+BU3+BV3+BW3+BY3+BZ3+CA3+CC3+CF3+CG3+CH3+CJ3+CK3+CN3+CO3+CR3+CS3+CU3) -> 1.36 | GD3: =((CI3*2.23)+(CB3*1.87)+(CP3*1.93)+(CD3*1.84)+(CQ3*1.92)+(CE3*1.51)+((BS3+BT3+BU3+BV3+BW3+BY3+BZ3+CA3+CC3+CF3+CG3+CH3+CJ3+CK3+CN3+CO3+CR3+CS3+CU3)*1.87))/(CI3+CB3+CP3+CD3+CQ3+CE3+BS3+BT3+BU3+BV3+BW3+BY3+BZ3+CA3+CC3+CF3+CG3+CH3+CJ3+CK3+CN3+CO3+CR3+CS3+CU3) -> 1.92 | GE3: =((DZ3+EB3)*(GC3-1))+(DD3*(GD3-1)) -> 0.229 | GF3: =1/(((100*CY3/1.8)+(100*CZ3/2)+(100*DA3/2)+(100*DB3/2.5)+(100*DC3/1.3)+(100*DE3/12.5)+(100*DF3/1.7)+(100*DG3/2.4)+(100*DH3/3)+(100*DI3/1)+(100*DJ3/2.7)+(100*DK3/4)+(100*DL3/4)+(100*DM3/1.8)+(100*DN3/1.8)+(100*DO3/5)+(100*DP3/1.7)+(100*DQ3/1.8)+(100*DT3/1.4)+(100*DU3/2.16)+(100*DV3/2.1)+(100*DW3/2.4)+(100*DX3/1.2)+(100*DY3/1.7)+(100*EA3/1.1)+(100*ED3/5))-GE3) -> 0.067 | GK3: =IF(BI3="none",T3,T3+BI3) -> 3138.00 | GL3: =IF(BH3="none",GK3/U3,(GK3/(U3+BH3))) -> 0.11 | GM3: NA | GN3: NA | GO3: =W3/(3.14*P3) -> 27.330 | GP3: =((HM3*1.87)+(HF3*1.4)+(HT3*1.51)+(HH3*1.68)+(HU3*1.36)+(HI3*1.35)+((GW3+GX3+GY3+GZ3+HA3+HC3+HD3+HE3+HG3+HJ3+HK3+HL3+HN3+HO3+HR3+HS3+HV3+HW3+HY3+IA3)*1.5))/(HM3+HF3+HT3+HH3+HU3+HI3+GW3+GX3+GY3+GZ3+HA3+HC3+HD3+HE3+HG3+HJ3+HK3+HL3+HN3+HO3+HR3+HS3+HV3+HW3+HY3+IA3) -> 1.36 | GQ3: =((HM3*2.23)+(HF3*1.87)+(HT3*1.93)+(HH3*1.84)+(HU3*1.92)+(HI3*1.51)+((GW3+GX3+GY3+GZ3+HA3+HC3+HD3+HE3+HG3+HJ3+HK3+HL3+HN3+HO3+HR3+HS3+HV3+HW3+HY3+IA3)*1.5))/(HM3+HF3+HT3+HH3+HU3+HI3+GW3+GX3+GY3+GZ3+HA3+HC3+HD3+HE3+HG3+HJ3+HK3+HL3+HN3+HO3+HR3+HS3+HV3+HW3+HY3+IA3) -> 1.92 | GR3: =((JC3+JE3)*(GP3-1))+(IG3*(GQ3-1)) -> 0.00 | GS3: =1/(((100*IB3/1.8)+(100*IC3/2)+(100*ID3/2)+(100*IE3/2.5)+(100*IF3/1.3)+(100*IH3/12.5)+(100*II3/1.7)+(100*IJ3/2.4)+(100*IK3/3)+(100*IL3/1)+(100*IM3/2.7)+(100*IN3/4)+(100*IO3/4)+(100*IP3/1.8)+(100*IQ3/1.8)+(100*IR3/5)+(100*IS3/1.7)+(100*IT3/1.8)+(100*IW3/1.4)+(100*IX3/2.16)+(100*IY3/2.1)+(100*IZ3/2.4)+(100*JA3/1.2)+(100*JB3/1.7)+(100*JD3/1.1)+(100*JF3/5))-GR3) -> 0.024 | GT3: =((100-(GS3*100))/(GS3*100))*(GL3/0.07492) -> 60.018 | GU3: =((2*3.14)*(SQRT(Q3/3.14)))*((GT3/6.85)^5) -> 79447.392 | GV3: =IF(W3>GU3,"Yes","No") -> No | HP3: 0 | HU3: 28380 | HZ3: =IF(BH3="None",0,BH3) -> 0 | IA3: 0 | IB3: =GW3/(SUM(GW3:IA3)) -> 0 | IC3: =GX3/(SUM(GW3:IA3)) -> 0 | ID3: =GY3/(SUM(GW3:IA3)) -> 0 | IE3: =GZ3/(SUM(GW3:IA3)) -> 0 | IF3: =HA3/(SUM(GW3:IA3)) -> 0 | IG3: =HB3/(SUM(GW3:IA3)) -> 0 | IH3: =HC3/(SUM(GW3:IA3)) -> 0 | II3: =HD3/(SUM(GW3:IA3)) -> 0 | IJ3: =HE3/(SUM(GW3:IA3)) -> 0 | IK3: =HF3/(SUM(GW3:IA3)) -> 0 | IL3: =HG3/(SUM(GW3:IA3)) -> 0 | IM3: =HH3/(SUM(GW3:IA3)) -> 0 | IN3: =HI3/(SUM(GW3:IA3)) -> 0 | IO3: =HJ3/(SUM(GW3:IA3)) -> 0 | IP3: =HK3/(SUM(GW3:IA3)) -> 0 | IQ3: =HL3/(SUM(GW3:IA3)) -> 0 | IR3: =HM3/(SUM(GW3:IA3)) -> 0 | IS3: =HN3/(SUM(GW3:IA3)) -> 0 | IT3: =HO3/(SUM(GW3:IA3)) -> 0 | IU3: =HP3/(SUM(GW3:IA3)) -> 0 | IV3: =HQ3/(SUM(GW3:IA3)) -> 0 | IW3: =HR3/(SUM(GW3:IA3)) -> 0 | IX3: =HS3/(SUM(GW3:IA3)) -> 0 | IY3: =HT3/(SUM(GW3:IA3)) -> 0 | IZ3: =HU3/(SUM(GW3:IA3)) -> 1 | JA3: =HV3/(SUM(GW3:IA3)) -> 0 | JB3: =HW3/(SUM(GW3:IA3)) -> 0 | JC3: =HX3/(SUM(GW3:IA3)) -> 0 | JD3: =HY3/(SUM(GW3:IA3)) -> 0 | JE3: =HZ3/(SUM(GW3:IA3)) -> 0 | JF3: =IA3/(SUM(GW3:IA3)) -> 0 | JH3: 2523 | JL3: =IF(CV3>0,"Steam Assist","No Assist") -> Steam Assist | JP3: 3138 | JQ3: 473 | JR3: 0 | JS3: 0
A4: EPA-600/2-83-052 | B4: NA | C4: 2 | D4: 99.82% | E4: 3.183333333 | F4: NA | G4: NO | H4: Unknown | I4: NA | J4: =IF(JL4="Air Assist", "Air-Assisted","Steam-Assisted") -> Steam-Assisted | K4: Unknown | L4: Unknown | M4: Unknown | N4: >1000 | O4: 5.86 | P4: =ROUND((O4/12),2) -> 0.49 | Q4: 0.19 | R4: Run time < 5 minutes. | S4: 2183 | T4: 3078 | U4: 27840 | V4: 41.25 | W4: 41.25 | X4: 42.08 | Y4: 469.6428571 | Z4: 0 | AT4: 0 | AY4: 100 | BD4: 32972.59556 | BE4: 1564 | BF4: None | BG4: None | BH4: None | BI4: None | BJ4: None | BK4: None | BL4: 32972.59556 | BM4: 1564 | BN4: 0.51 | BO4: =BD4/U4 -> 1.18 | BP4: =BD4/(SUM(BS4:BW4,BY4:CD4,CG4:CK4,CN4:CS4,CU4)) -> 1.18 | CL4: 0 | CQ4: 27840 | CV4: 32972.59556 | CX4: 0 | CY4: 0 | CZ4: 0 | DA4: 0 | DB4: 0 | DC4: 0 | DD4: 0 | DE4: 0 | DF4: 0 | DG4: 0 | DH4: 0 | DI4: 0 | DJ4: 0 | DK4: 0 | DL4: 0 | DM4: 0 | DN4: 0 | DO4: 0 | DP4: 0 | DQ4: 0 | DR4: 0 | DS4: 0 | DT4: 0 | DU4: 0 | DV4: 0 | DW4: 0.4577998973 | DX4: 0 | DY4: 0 | DZ4: 0 | EA4: 0 | EB4: 0.5422001027 | ED4: 0 | EE4: 100.00 | EF4: 0 | EG4: 100.00 | EH4: 45.78 | EI4: 0.00 | EJ4: 0 | EK4: 0.458 | EL4: 0.5422001027 | EM4: 0.5422001027 | EN4: 1 | EO4: =BS4/(SUM(BS4:BW4,BY4:CK4,CN4:CS4,CU4)) -> 0 | EP4: =BT4/(SUM(BS4:BW4,BY4:CK4,CN4:CS4,CU4)) -> 0 | EQ4: =BU4/(SUM(BS4:BW4,BY4:CK4,CN4:CS4,CU4)) -> 0 | ER4: =BV4/(SUM(BS4:BW4,BY4:CK4,CN4:CS4,CU4)) -> 0 | ES4: =BW4/(SUM(BS4:BW4,BY4:CK4,CN4:CS4,CU4)) -> 0 | EU4: =BY4/(SUM(BS4:BW4,BY4:CK4,CN4:CS4,CU4)) -> 0 | EV4: =BZ4/(SUM(BS4:BW4,BY4:CK4,CN4:CS4,CU4)) -> 0 | EW4: =CA4/(SUM(BS4:BW4,BY4:CK4,CN4:CS4,CU4)) -> 0 | EX4: =CB4/(SUM(BS4:BW4,BY4:CK4,CN4:CS4,CU4)) -> 0 | EY4: =CC4/(SUM(BS4:BW4,BY4:CK4,CN4:CS4,CU4)) -> 0 | EZ4: =CD4/(SUM(BS4:BW4,BY4:CK4,CN4:CS4,CU4)) -> 0 | FA4: =CE4/(SUM(BS4:BW4,BY4:CK4,CN4:CS4,CU4)) -> 0 | FB4: =CF4/(SUM(BS4:BW4,BY4:CK4,CN4:CS4,CU4)) -> 0 | FC4: =CG4/(SUM(BS4:BW4,BY4:CK4,CN4:CS4,CU4)) -> 0 | FD4: =CH4/(SUM(BS4:BW4,BY4:CK4,CN4:CS4,CU4)) -> 0 | FE4: =CI4/(SUM(BS4:BW4,BY4:CK4,CN4:CS4,CU4)) -> 0 | FF4: =CJ4/(SUM(BS4:BW4,BY4:CK4,CN4:CS4,CU4)) -> 0 | FG4: =CK4/(SUM(BS4:BW4,BY4:CK4,CN4:CS4,CU4)) -> 0 | FJ4: =CN4/(SUM(BS4:BW4,BY4:CK4,CN4:CS4,CU4)) -> 0 | FK4: =CO4/(SUM(BS4:BW4,BY4:CK4,CN4:CS4,CU4)) -> 0 | FL4: =CP4/(SUM(BS4:BW4,BY4:CK4,CN4:CS4,CU4)) -> 0 | FM4: =CQ4/(SUM(BS4:BW4,BY4:CK4,CN4:CS4,CU4)) -> 1 | FN4: =CR4/(SUM(BS4:BW4,BY4:CK4,CN4:CS4,CU4)) -> 0 | FO4: =CS4/(SUM(BS4:BW4,BY4:CK4,CN4:CS4,CU4)) -> 0 | FQ4: =CU4/(SUM(BS4:BW4,BY4:CK4,CN4:CS4,CU4)) -> 0 | FU4: =(U4*S4)/(U4+BD4) -> 999.38 | FV4: =1/((AA4/1.8)+(AB4/2)+(AC4/2)+(AD4/2.5)+(AE4/1.3)+(AG4/12.5)+(AH4/1.7)+(AI4/2.4)+(AJ4/3)+(AK4/1)+(AL4/2.7)+(AM4/4)+(AN4/4)+(AO4/1.8)+(AP4/1.8)+(AQ4/5)+(AR4/1.7)+(AS4/1.8)+(AV4/1.4)+(AW4/2.16)+(AX4/2.1)+(AY4/2.4)+(AZ4/1.2)+(BA4/1.7)+(BC4/1.1)) -> 0.024 | FW4: =((BB4/100)*(GC4-1))+((AF4/100)*(GD4-1)) -> 0.000 | FX4: =1/(((AA4/1.8)+(AB4/2)+(AC4/2)+(AD4/2.5)+(AE4/1.3)+(AG4/12.5)+(AH4/1.7)+(AI4/2.4)+(AJ4/3)+(AK4/1)+(AL4/2.7)+(AM4/4)+(AN4/4)+(AO4/1.8)+(AP4/1.8)+(AQ4/5)+(AR4/1.7)+(AS4/1.8)+(AV4/1.4)+(AW4/2.16)+(AX4/2.1)+(AY4/2.4)+(AZ4/1.2)+(BA4/1.7)+(BC4/1.1))-FW4) -> 0.024 | FY4: =FX4*S4 -> 52.39 | FZ4: =FU4/FY4 -> 19.07 | GA4: =1/((100*EO4/1.8)+(100*EP4/2)+(100*EQ4/2)+(100*ER4/2.5)+(100*ES4/1.3)+(100*EU4/12.5)+(100*EV4/1.7)+(100*EW4/2.4)+(100*EX4/3)+(100*EY4/1)+(100*EZ4/2.7)+(100*FA4/4)+(100*FB4/4)+(100*FC4/1.8)+(100*FD4/1.8)+(100*FE4/5)+(100*FF4/1.7)+(100*FG4/1.8)+(100*FJ4/1.4)+(100*FK4/2.16)+(100*FL4/2.1)+(100*FM4/2.4)+(100*FN4/1.2)+(100*FO4/1.7)+(100*FQ4/1.1)) -> 0.024 | GB4: =1/((100*CY4/1.8)+(100*CZ4/2)+(100*DA4/2)+(100*DB4/2.5)+(100*DC4/1.3)+(100*DE4/12.5)+(100*DF4/1.7)+(100*DG4/2.4)+(100*DH4/3)+(100*DI4/1)+(100*DJ4/2.7)+(100*DK4/4)+(100*DL4/4)+(100*DM4/1.8)+(100*DN4/1.8)+(100*DO4/5)+(100*DP4/1.7)+(100*DQ4/1.8)+(100*DT4/1.4)+(100*DU4/2.16)+(100*DV4/2.1)+(100*DW4/2.4)+(100*DX4/1.2)+(100*DY4/1.7)+(100*EA4/1.1)+(100*ED4/5)) -> 0.052 | GC4: =((CI4*1.87)+(CB4*1.4)+(CP4*1.51)+(CD4*1.68)+(CQ4*1.36)+(CE4*1.35)+((BS4+BT4+BU4+BV4+BW4+BY4+BZ4+CA4+CC4+CF4+CG4+CH4+CJ4+CK4+CN4+CO4+CR4+CS4+CU4)*1.5))/(CI4+CB4+CP4+CD4+CQ4+CE4+BS4+BT4+BU4+BV4+BW4+BY4+BZ4+CA4+CC4+CF4+CG4+CH4+CJ4+CK4+CN4+CO4+CR4+CS4+CU4) -> 1.36 | GD4: =((CI4*2.23)+(CB4*1.87)+(CP4*1.93)+(CD4*1.84)+(CQ4*1.92)+(CE4*1.51)+((BS4+BT4+BU4+BV4+BW4+BY4+BZ4+CA4+CC4+CF4+CG4+CH4+CJ4+CK4+CN4+CO4+CR4+CS4+CU4)*1.87))/(CI4+CB4+CP4+CD4+CQ4+CE4+BS4+BT4+BU4+BV4+BW4+BY4+BZ4+CA4+CC4+CF4+CG4+CH4+CJ4+CK4+CN4+CO4+CR4+CS4+CU4) -> 1.92 | GE4: 0.195 | GF4: 0.053 | GK4: 3078.00 | GL4: 0.11 | GM4: NA | GN4: NA | GO4: =W4/(3.14*P4) -> 26.810 | GP4: =((HM4*1.87)+(HF4*1.4)+(HT4*1.51)+(HH4*1.68)+(HU4*1.36)+(HI4*1.35)+((GW4+GX4+GY4+GZ4+HA4+HC4+HD4+HE4+HG4+HJ4+HK4+HL4+HN4+HO4+HR4+HS4+HV4+HW4+HY4+IA4)*1.5))/(HM4+HF4+HT4+HH4+HU4+HI4+GW4+GX4+GY4+GZ4+HA4+HC4+HD4+HE4+HG4+HJ4+HK4+HL4+HN4+HO4+HR4+HS4+HV4+HW4+HY4+IA4) -> 1.36 | GQ4: =((HM4*2.23)+(HF4*1.87)+(HT4*1.93)+(HH4*1.84)+(HU4*1.92)+(HI4*1.51)+((GW4+GX4+GY4+GZ4+HA4+HC4+HD4+HE4+HG4+HJ4+HK4+HL4+HN4+HO4+HR4+HS4+HV4+HW4+HY4+IA4)*1.5))/(HM4+HF4+HT4+HH4+HU4+HI4+GW4+GX4+GY4+GZ4+HA4+HC4+HD4+HE4+HG4+HJ4+HK4+HL4+HN4+HO4+HR4+HS4+HV4+HW4+HY4+IA4) -> 1.92 | GR4: 0.00 | GS4: 0.024 | GT4: =((100-(GS4*100))/(GS4*100))*(GL4/0.07492) -> 60.012 | GU4: 79409.750 | GV4: No | HP4: 0 | HU4: 27840 | HZ4: =IF(BH4="None",0,BH4) -> 0 | IA4: 0 | IB4: =GW4/(SUM(GW4:IA4)) -> 0 | IC4: =GX4/(SUM(GW4:IA4)) -> 0 | ID4: =GY4/(SUM(GW4:IA4)) -> 0 | IE4: =GZ4/(SUM(GW4:IA4)) -> 0 | IF4: =HA4/(SUM(GW4:IA4)) -> 0 | IG4: =HB4/(SUM(GW4:IA4)) -> 0 | IH4: =HC4/(SUM(GW4:IA4)) -> 0 | II4: =HD4/(SUM(GW4:IA4)) -> 0 | IJ4: =HE4/(SUM(GW4:IA4)) -> 0 | IK4: =HF4/(SUM(GW4:IA4)) -> 0 | IL4: =HG4/(SUM(GW4:IA4)) -> 0 | IM4: =HH4/(SUM(GW4:IA4)) -> 0 | IN4: =HI4/(SUM(GW4:IA4)) -> 0 | IO4: =HJ4/(SUM(GW4:IA4)) -> 0 | IP4: =HK4/(SUM(GW4:IA4)) -> 0 | IQ4: =HL4/(SUM(GW4:IA4)) -> 0 | IR4: =HM4/(SUM(GW4:IA4)) -> 0 | IS4: =HN4/(SUM(GW4:IA4)) -> 0 | IT4: =HO4/(SUM(GW4:IA4)) -> 0 | IU4: =HP4/(SUM(GW4:IA4)) -> 0 | IV4: =HQ4/(SUM(GW4:IA4)) -> 0 | IW4: =HR4/(SUM(GW4:IA4)) -> 0 | IX4: =HS4/(SUM(GW4:IA4)) -> 0 | IY4: =HT4/(SUM(GW4:IA4)) -> 0 | IZ4: =HU4/(SUM(GW4:IA4)) -> 1 | JA4: =HV4/(SUM(GW4:IA4)) -> 0 | JB4: =HW4/(SUM(GW4:IA4)) -> 0 | JC4: =HX4/(SUM(GW4:IA4)) -> 0 | JD4: =HY4/(SUM(GW4:IA4)) -> 0 | JE4: =HZ4/(SUM(GW4:IA4)) -> 0 | JF4: =IA4/(SUM(GW4:IA4)) -> 0 | JH4: 2475 | JL4: Steam Assist | JP4: 3078 | JQ4: 464 | JR4: 0 | JS4: 0
A5: EPA-600/2-83-052 | B5: NA | C5: 3 | D5: 99.52% | E5: 3.383333333 | F5: NA | G5: YES | H5: Unknown | I5: NA | J5: Steam-Assisted | K5: Unknown | L5: Unknown | M5: Unknown | N5: >1000 | O5: 5.86 | P5: 0.49 | Q5: 0.19 | R5: Smoking flare and run time < 5 minutes. | S5: 2183 | T5: 3027 | U5: 27900 | V5: 40.53333333 | W5: 40.53333333 | X5: 42.08 | Y5: 469.6428571 | Z5: 0 | AT5: 0 | AY5: 100 | BD5: 28566.41111 | BE5: 1355 | BF5: None | BG5: None | BH5: None | BI5: None | BJ5: None | BK5: None | BL5: 28566.41111 | BM5: 1355 | BN5: 0.45 | BO5: 1.02 | BP5: 1.02 | CL5: 0 | CQ5: 27900 | CV5: 28566.41111 | CX5: 0 | CY5: 0 | CZ5: 0 | DA5: 0 | DB5: 0 | DC5: 0 | DD5: 0 | DE5: 0 | DF5: 0 | DG5: 0 | DH5: 0 | DI5: 0 | DJ5: 0 | DK5: 0 | DL5: 0 | DM5: 0 | DN5: 0 | DO5: 0 | DP5: 0 | DQ5: 0 | DR5: 0 | DS5: 0 | DT5: 0 | DU5: 0 | DV5: 0 | DW5: 0.4940990485 | DX5: 0 | DY5: 0 | DZ5: 0 | EA5: 0 | EB5: 0.5059009515 | ED5: 0 | EE5: 100.00 | EF5: 0 | EG5: 100.00 | EH5: 49.41 | EI5: 0.00 | EJ5: 0 | EK5: 0.494 | EL5: 0.5059009515 | EM5: 0.5059009515 | EN5: 1 | EO5: 0 | EP5: 0 | EQ5: 0 | ER5: 0 | ES5: 0 | EU5: 0 | EV5: 0 | EW5: 0 | EX5: 0 | EY5: 0 | EZ5: 0 | FA5: 0 | FB5: 0 | FC5: 0 | FD5: 0 | FE5: 0 | FF5: 0 | FG5: 0 | FJ5: 0 | FK5: 0 | FL5: 0 | FM5: 1 | FN5: 0 | FO5: 0 | FQ5: 0 | FU5: 1078.62 | FV5: 0.024 | FW5: 0.000 | FX5: 0.024 | FY5: 52.39 | FZ5: 20.59 | GA5: 0.024 | GB5: 0.049 | GC5: 1.36 | GD5: 1.92 | GE5: 0.182 | GF5: 0.049 | GK5: 3027.00 | GL5: 0.11 | GM5: NA | GN5: NA | GO5: 26.344 | GP5: 1.36 | GQ5: 1.92 | GR5: 0.00 | GS5: 0.024 | GT5: 58.891 | GU5: 72263.334 | GV5: No | HP5: 0 | HU5: 27900 | HZ5: 0 | IA5: 0 | IB5: 0 | IC5: 0 | ID5: 0 | IE5: 0 | IF5: 0 | IG5: 0 | IH5: 0 | II5: 0 | IJ5: 0 | IK5: 0 | IL5: 0 | IM5: 0 | IN5: 0 | IO5: 0 | IP5: 0 | IQ5: 0 | IR5: 0 | IS5: 0 | IT5: 0 | IU5: 0 | IV5: 0 | IW5: 0 | IX5: 0 | IY5: 0 | IZ5: 1 | JA5: 0 | JB5: 0 | JC5: 0 | JD5: 0 | JE5: 0 | JF5: 0 | JH5: 2432 | JL5: Steam Assist | JP5: 3027 | JQ5: 465 | JR5: 0 | JS5: 0
A6: EPA-600/2-83-052 | B6: NA | C6: 4 | D6: 95.80% | E6: 6.166666667 | F6: NA | G6: YES | H6: Unknown | I6: NA | J6: Steam-Assisted | K6: Unknown | L6: Unknown | M6: Unknown | N6: >1000 | O6: 5.86 | P6: 0.49 | Q6: =0.785*((P6)^2) -> 0.19 | R6: Smoking flare. | S6: 2183 | T6: 1675 | U6: 16980 | V6: 25.15 | W6: 25.15 | X6: 42.08 | Y6: 469.6428571 | Z6: 0 | AT6: 0 | AY6: 100 | BD6: 0 | BE6: 0 | BF6: None | BG6: None | BH6: None | BI6: None | BJ6: None | BK6: None | BL6: 0 | BM6: 0 | BN6: 0.00 | BO6: 0.00 | BP6: 0.00 | CL6: 0 | CQ6: 16980 | CV6: 0 | CX6: 0 | CY6: 0 | CZ6: 0 | DA6: 0 | DB6: 0 | DC6: 0 | DD6: 0 | DE6: 0 | DF6: 0 | DG6: 0 | DH6: 0 | DI6: 0 | DJ6: 0 | DK6: 0 | DL6: 0 | DM6: 0 | DN6: 0 | DO6: 0 | DP6: 0 | DQ6: 0 | DR6: 0 | DS6: 0 | DT6: 0 | DU6: 0 | DV6: 0 | DW6: 1 | DX6: 0 | DY6: 0 | DZ6: 0 | EA6: 0 | EB6: 0 | ED6: 0 | EE6: 100.00 | EF6: 0 | EG6: 100.00 | EH6: 100.00 | EI6: 0.00 | EJ6: 0 | EK6: 1.000 | EL6: 0 | EM6: 0 | EN6: 1 | EO6: 0 | EP6: 0 | EQ6: 0 | ER6: 0 | ES6: 0 | EU6: 0 | EV6: 0 | EW6: 0 | EX6: 0 | EY6: 0 | EZ6: 0 | FA6: 0 | FB6: 0 | FC6: 0 | FD6: 0 | FE6: 0 | FF6: 0 | FG6: 0 | FJ6: 0 | FK6: 0 | FL6: 0 | FM6: 1 | FN6: 0 | FO6: 0 | FQ6: 0 | FU6: 2183.00 | FV6: 0.024 | FW6: 0.000 | FX6: 0.024 | FY6: 52.39 | FZ6: 41.67 | GA6: 0.024 | GB6: 0.024 | GC6: 1.36 | GD6: 1.92 | GE6: 0.000 | GF6: 0.024 | GK6: 1675.00 | GL6: 0.10 | GM6: NA | GN6: NA | GO6: 16.346 | GP6: 1.36 | GQ6: 1.92 | GR6: 0.00 | GS6: 0.024 | GT6: 53.545 | GU6: 44901.674 | GV6: No | HP6: 0 | HU6: 16980 | HZ6: 0 | IA6: 0 | IB6: 0 | IC6: 0 | ID6: 0 | IE6: 0 | IF6: 0 | IG6: 0 | IH6: 0 | II6: 0 | IJ6: 0 | IK6: 0 | IL6: 0 | IM6: 0 | IN6: 0 | IO6: 0 | IP6: 0 | IQ6: 0 | IR6: 0 | IS6: 0 | IT6: 0 | IU6: 0 | IV6: 0 | IW6: 0 | IX6: 0 | IY6: 0 | IZ6: 1 | JA6: 0 | JB6: 0 | JC6: 0 | JD6: 0 | JE6: 0 | JF6: 0 | JH6: 1509 | JL6: No Assist | JP6: 1675 | JQ6: 283 | JR6: 0 | JS6: 0
A7: EPA-600/2-83-052 | B7: NA | C7: 5 | D7: 99.94% | E7: 15.28333333 | F7: NA | G7: NO | H7: Unknown | I7: NA | J7: Steam-Assisted | K7: Unknown | L7: Unknown | M7: Unknown | N7: >1000 | O7: 5.86 | P7: 0.49 | Q7: 0.19 | R7: NO | S7: 2183 | T7: 991 | U7: 8940 | V7: 13.3 | W7: 13.3 | X7: 42.08 | Y7: 469.6428571 | Z7: 0 | AT7: 0 | AY7: 100 | BD7: 32529.86889 | BE7: 1543 | BF7: None | BG7: None | BH7: None | BI7: None | BJ7: None | BK7: None | BL7: 32529.86889 | BM7: 1543 | BN7: 1.56 | BO7: 3.64 | BP7: 3.64 | CL7: 0 | CQ7: 8940 | CV7: 32529.86889 | CX7: 0 | CY7: 0 | CZ7: 0 | DA7: 0 | DB7: 0 | DC7: 0 | DD7: 0 | DE7: 0 | DF7: 0 | DG7: 0 | DH7: 0 | DI7: 0 | DJ7: 0 | DK7: 0 | DL7: 0 | DM7: 0 | DN7: 0 | DO7: 0 | DP7: 0 | DQ7: 0 | DR7: 0 | DS7: 0 | DT7: 0 | DU7: 0 | DV7: 0 | DW7: 0.2155782075 | DX7: 0 | DY7: 0 | DZ7: 0 | EA7: 0 | EB7: 0.7844217925 | ED7: 0 | EE7: 100.00 | EF7: 0 | EG7: 100.00 | EH7: 21.56 | EI7: 0.00 | EJ7: 0 | EK7: 0.216 | EL7: 0.7844217925 | EM7: 0.7844217925 | EN7: 1 | EO7: 0 | EP7: 0 | EQ7: 0 | ER7: 0 | ES7: 0 | EU7: 0 | EV7: 0 | EW7: 0 | EX7: 0 | EY7: 0 | EZ7: 0 | FA7: 0 | FB7: 0 | FC7: 0 | FD7: 0 | FE7: 0 | FF7: 0 | FG7: 0 | FJ7: 0 | FK7: 0 | FL7: 0 | FM7: 1 | FN7: 0 | FO7: 0 | FQ7: 0 | FU7: 470.61 | FV7: 0.024 | FW7: 0.000 | FX7: 0.024 | FY7: 52.39 | FZ7: 8.98 | GA7: 0.024 | GB7: 0.111 | GC7: 1.36 | GD7: 1.92 | GE7: 0.282 | GF7: 0.115 | GK7: 991.00 | GL7: 0.11 | GM7: NA | GN7: NA | GO7: 8.644 | GP7: 1.36 | GQ7: 1.92 | GR7: 0.00 | GS7: 0.024 | GT7: 60.170 | GU7: 80455.842 | GV7: No | HP7: 0 | HU7: 8940 | HZ7: 0 | IA7: 0 | IB7: 0 | IC7: 0 | ID7: 0 | IE7: 0 | IF7: 0 | IG7: 0 | IH7: 0 | II7: 0 | IJ7: 0 | IK7: 0 | IL7: 0 | IM7: 0 | IN7: 0 | IO7: 0 | IP7: 0 | IQ7: 0 | IR7: 0 | IS7: 0 | IT7: 0 | IU7: 0 | IV7: 0 | IW7: 0 | IX7: 0 | IY7: 0 | IZ7: 1 | JA7: 0 | JB7: 0 | JC7: 0 | JD7: 0 | JE7: 0 | JF7: 0 | JH7: 798 | JL7: Steam Assist | JP7: 991 | JQ7: 149 | JR7: 0 | JS7: 0
A8: EPA-600/2-83-052 | B8: NA | C8: 7 | D8: 99.84% | E8: 8.566666667 | F8: NA | G8: YES | H8: Unknown | I8: NA | J8: Steam-Assisted | K8: Unknown | L8: Unknown | M8: Unknown | N8: >1000 | O8: 5.86 | P8: 0.49 | Q8: 0.19 | R8: Smoking flare. | S8: 2183 | T8: 1019 | U8: 9240 | V8: 13.71666667 | W8: 13.71666667 | X8: 42.08 | Y8: 469.6428571 | Z8: 0 | AT8: 0 | AY8: 100 | BD8: 15221.36444 | BE8: 722 | BF8: None | BG8: None | BH8: None | BI8: None | BJ8: None | BK8: None | BL8: 15221.36444 | BM8: 722 | BN8: 0.71 | BO8: 1.65 | BP8: 1.65 | CL8: 0 | CQ8: 9240 | CV8: 15221.36444 | CX8: 0 | CY8: 0 | CZ8: 0 | DA8: 0 | DB8: 0 | DC8: 0 | DD8: 0 | DE8: 0 | DF8: 0 | DG8: 0 | DH8: 0 | DI8: 0 | DJ8: 0 | DK8: 0 | DL8: 0 | DM8: 0 | DN8: 0 | DO8: 0 | DP8: 0 | DQ8: 0 | DR8: 0 | DS8: 0 | DT8: 0 | DU8: 0 | DV8: 0 | DW8: 0.3777385363 | DX8: 0 | DY8: 0 | DZ8: 0 | EA8: 0 | EB8: 0.6222614637 | ED8: 0 | EE8: 100.00 | EF8: 0 | EG8: 100.00 | EH8: 37.77 | EI8: 0.00 | EJ8: 0 | EK8: 0.378 | EL8: 0.6222614637 | EM8: 0.6222614637 | EN8: 1 | EO8: 0 | EP8: 0 | EQ8: 0 | ER8: 0 | ES8: 0 | EU8: 0 | EV8: 0 | EW8: 0 | EX8: 0 | EY8: 0 | EZ8: 0 | FA8: 0 | FB8: 0 | FC8: 0 | FD8: 0 | FE8: 0 | FF8: 0 | FG8: 0 | FJ8: 0 | FK8: 0 | FL8: 0 | FM8: 1 | FN8: 0 | FO8: 0 | FQ8: 0 | FU8: 824.60 | FV8: 0.024 | FW8: 0.000 | FX8: 0.024 | FY8: 52.39 | FZ8: 15.74 | GA8: 0.024 | GB8: 0.064 | GC8: 1.36 | GD8: 1.92 | GE8: 0.224 | GF8: 0.064 | GK8: 1019.00 | GL8: 0.11 | GM8: NA | GN8: NA | GO8: 8.915 | GP8: 1.36 | GQ8: 1.92 | GR8: 0.00 | GS8: 0.024 | GT8: 59.861 | GU8: 78412.982 | GV8: No | HP8: 0 | HU8: 9240 | HZ8: 0 | IA8: 0 | IB8: 0 | IC8: 0 | ID8: 0 | IE8: 0 | IF8: 0 | IG8: 0 | IH8: 0 | II8: 0 | IJ8: 0 | IK8: 0 | IL8: 0 | IM8: 0 | IN8: 0 | IO8: 0 | IP8: 0 | IQ8: 0 | IR8: 0 | IS8: 0 | IT8: 0 | IU8: 0 | IV8: 0 | IW8: 0 | IX8: 0 | IY8: 0 | IZ8: 1 | JA8: 0 | JB8: 0 | JC8: 0 | JD8: 0 | JE8: 0 | JF8: 0 | JH8: 823 | JL8: Steam Assist | JP8: 1019 | JQ8: 154 | JR8: 0 | JS8: 0
A9: EPA-600/2-83-052 | B9: NA | C9: 8 | D9: 98.81% | E9: 6.416666667 | F9: NA | G9: YES | H9: Unknown | I9: NA | J9: Steam-Assisted | K9: Unknown | L9: Unknown | M9: Unknown | N9: >1000 | O9: 5.86 | P9: 0.49 | Q9: 0.19 | R9: Smoking flare. | S9: 2183 | T9: 1044 | U9: 9420 | V9: 13.95 | W9: 13.95 | X9: 42.08 | Y9: 469.6428571 | Z9: 0 | AT9: 0 | AY9: 100 | BD9: 0 | BE9: 0 | BF9: None | BG9: None | BH9: None | BI9: None | BJ9: None | BK9: None | BL9: 0 | BM9: 0 | BN9: 0.00 | BO9: 0.00 | BP9: 0.00 | CL9: 0 | CQ9: 9420 | CV9: 0 | CX9: 0 | CY9: 0 | CZ9: 0 | DA9: 0 | DB9: 0 | DC9: 0 | DD9: 0 | DE9: 0 | DF9: 0 | DG9: 0 | DH9: 0 | DI9: 0 | DJ9: 0 | DK9: 0 | DL9: 0 | DM9: 0 | DN9: 0 | DO9: 0 | DP9: 0 | DQ9: 0 | DR9: 0 | DS9: 0 | DT9: 0 | DU9: 0 | DV9: 0 | DW9: 1 | DX9: 0 | DY9: 0 | DZ9: 0 | EA9: 0 | EB9: 0 | ED9: 0 | EE9: 100.00 | EF9: 0 | EG9: 100.00 | EH9: 100.00 | EI9: 0.00 | EJ9: 0 | EK9: 1.000 | EL9: 0 | EM9: 0 | EN9: 1 | EO9: 0 | EP9: 0 | EQ9: 0 | ER9: 0 | ES9: 0 | EU9: 0 | EV9: 0 | EW9: 0 | EX9: 0 | EY9: 0 | EZ9: 0 | FA9: 0 | FB9: 0 | FC9: 0 | FD9: 0 | FE9: 0 | FF9: 0 | FG9: 0 | FJ9: 0 | FK9: 0 | FL9: 0 | FM9: 1 | FN9: 0 | FO9: 0 | FQ9: 0 | FU9: 2183.00 | FV9: 0.024 | FW9: 0.000 | FX9: 0.024 | FY9: 52.39 | FZ9: 41.67 | GA9: 0.024 | GB9: 0.024 | GC9: 1.36 | GD9: 1.92 | GE9: 0.000 | GF9: 0.024 | GK9: 1044.00 | GL9: 0.11 | GM9: NA | GN9: NA | GO9: 9.067 | GP9: 1.36 | GQ9: 1.92 | GR9: 0.00 | GS9: 0.024 | GT9: 60.158 | GU9: 80375.722 | GV9: No | HP9: 0 | HU9: 9420 | HZ9: 0 | IA9: 0 | IB9: 0 | IC9: 0 | ID9: 0 | IE9: 0 | IF9: 0 | IG9: 0 | IH9: 0 | II9: 0 | IJ9: 0 | IK9: 0 | IL9: 0 | IM9: 0 | IN9: 0 | IO9: 0 | IP9: 0 | IQ9: 0 | IR9: 0 | IS9: 0 | IT9: 0 | IU9: 0 | IV9: 0 | IW9: 0 | IX9: 0 | IY9: 0 | IZ9: 1 | JA9: 0 | JB9: 0 | JC9: 0 | JD9: 0 | JE9: 0 | JF9: 0 | JH9: 837 | JL9: No Assist | JP9: 1044 | JQ9: 157 | JR9: 0 | JS9: 0
A10: EPA-600/2-83-052 | B10: NA | C10: 17 | D10: 99.84% | E10: 6.4 | F10: NA | G10: NO | H10: Unknown | I10: NA | J10: Steam-Assisted | K10: Unknown | L10: Unknown | M10: Unknown | N10: >1000 | O10: 5.86 | P10: 0.49 | Q10: 0.19 | R10: NO | S10: 2183 | T10: 162 | U10: 1470 | V10: 2.183333333 | W10: 2.183333333 | X10: 42.08 | Y10: 469.6428571 | Z10: 0 | AT10: 0 | AY10: 100 | BD10: 3162.333333 | BE10: 150 | BF10: None | BG10: None | BH10: None | BI10: None | BJ10: None | BK10: None | BL10: 3162.333333 | BM10: 150 | BN10: 0.93 | BO10: 2.15 | BP10: 2.15 | CL10: 0 | CQ10: 1470 | CV10: 3162.333333 | CX10: 0 | CY10: 0 | CZ10: 0 | DA10: 0 | DB10: 0 | DC10: 0 | DD10: 0 | DE10: 0 | DF10: 0 | DG10: 0 | DH10: 0 | DI10: 0 | DJ10: 0 | DK10: 0 | DL10: 0 | DM10: 0 | DN10: 0 | DO10: 0 | DP10: 0 | DQ10: 0 | DR10: 0 | DS10: 0 | DT10: 0 | DU10: 0 | DV10: 0 | DW10: 0.3173346765 | DX10: 0 | DY10: 0 | DZ10: 0 | EA10: 0 | EB10: 0.6826653235 | ED10: 0 | EE10: 100.00 | EF10: 0 | EG10: 100.00 | EH10: 31.73 | EI10: 0.00 | EJ10: 0 | EK10: 0.317 | EL10: 0.6826653235 | EM10: 0.6826653235 | EN10: 1 | EO10: 0 | EP10: 0 | EQ10: 0 | ER10: 0 | ES10: 0 | EU10: 0 | EV10: 0 | EW10: 0 | EX10: 0 | EY10: 0 | EZ10: 0 | FA10: 0 | FB10: 0 | FC10: 0 | FD10: 0 | FE10: 0 | FF10: 0 | FG10: 0 | FJ10: 0 | FK10: 0 | FL10: 0 | FM10: 1 | FN10: 0 | FO10: 0 | FQ10: 0 | FU10: 692.74 | FV10: 0.024 | FW10: 0.000 | FX10: 0.024 | FY10: 52.39 | FZ10: 13.22 | GA10: 0.024 | GB10: 0.076 | GC10: 1.36 | GD10: 1.92 | GE10: 0.246 | GF10: 0.077 | GK10: 162.00 | GL10: 0.11 | GM10: NA | GN10: NA | GO10: 1.419 | GP10: 1.36 | GQ10: 1.92 | GR10: 0.00 | GS10: 0.024 | GT10: 59.819 | GU10: 78138.542 | GV10: No | HP10: 0 | HU10: 1470 | HZ10: 0 | IA10: 0 | IB10: 0 | IC10: 0 | ID10: 0 | IE10: 0 | IF10: 0 | IG10: 0 | IH10: 0 | II10: 0 | IJ10: 0 | IK10: 0 | IL10: 0 | IM10: 0 | IN10: 0 | IO10: 0 | IP10: 0 | IQ10: 0 | IR10: 0 | IS10: 0 | IT10: 0 | IU10: 0 | IV10: 0 | IW10: 0 | IX10: 0 | IY10: 0 | IZ10: 1 | JA10: 0 | JB10: 0 | JC10: 0 | JD10: 0 | JE10: 0 | JF10: 0 | JH10: 131 | JL10: Steam Assist | JP10: 162 | JQ10: 24.5 | JR10: 0 | JS10: 0
A11: EPA-600/2-83-052 | B11: NA | C11: 23 | D11: 100.01% | E11: 6.766666667 | F11: NA | G11: NO | H11: Unknown | I11: NA | J11: Steam-Assisted | K11: Unknown | L11: Unknown | M11: Unknown | N11: >1000 | O11: 5.86 | P11: 0.49 | Q11: 0.19 | R11: VG flow < 10 lb/hr. | S11: 267 | T11: 2.581 | U11: 33.3 | V11: 0.04383333333 | W11: 0.04383333333 | X11: 29.75122821 | Y11: 469.6428571 | Z11: 0 | AT11: 87.74774775 | AY11: 12.25225225 | BD11: 0 | BE11: 0 | BF11: None | BG11: None | BH11: None | BI11: None | BJ11: None | BK11: None | BL11: 0 | BM11: 0 | BN11: 0.00 | BO11: 0.00 | BP11: 0.00 | CL11: 29.22 | CQ11: 4.08 | CV11: 0 | CX11: 0 | CY11: 0 | CZ11: 0 | DA11: 0 | DB11: 0 | DC11: 0 | DD11: 0 | DE11: 0 | DF11: 0 | DG11: 0 | DH11: 0 | DI11: 0 | DJ11: 0 | DK11: 0 | DL11: 0 | DM11: 0 | DN11: 0 | DO11: 0 | DP11: 0 | DQ11: 0 | DR11: 0.8774774775 | DS11: 0 | DT11: 0 | DU11: 0 | DV11: 0 | DW11: 0.1225225225 | DX11: 0 | DY11: 0 | DZ11: 0 | EA11: 0 | EB11: 0 | ED11: 0 | EE11: 12.25 | EF11: 0 | EG11: 12.25 | EH11: 12.25 | EI11: 0.00 | EJ11: 0 | EK11: 0.123 | EL11: 0 | EM11: 0.8774774775 | EN11: 1 | EO11: 0 | EP11: 0 | EQ11: 0 | ER11: 0 | ES11: 0 | EU11: 0 | EV11: 0 | EW11: 0 | EX11: 0 | EY11: 0 | EZ11: 0 | FA11: 0 | FB11: 0 | FC11: 0 | FD11: 0 | FE11: 0 | FF11: 0 | FG11: 0 | FJ11: 0 | FK11: 0 | FL11: 0 | FM11: 1 | FN11: 0 | FO11: 0 | FQ11: 0 | FU11: 267.00 | FV11: 0.196 | FW11: 0.000 | FX11: 0.196 | FY11: 52.30 | FZ11: 5.11 | GA11: 0.024 | GB11: 0.196 | GC11: 1.36 | GD11: 1.92 | GE11: 0.000 | GF11: 0.196 | GK11: 2.58 | GL11: 0.08 | GM11: NA | GN11: NA | GO11: 0.028 | GP11: 1.36 | GQ11: 1.92 | GR11: 0.00 | GS11: 0.196 | GT11: 4.247 | GU11: 0.141 | GV11: No | HP11: 29.22 | HU11: 4.08 | HZ11: 0 | IA11: 0 | IB11: 0 | IC11: 0 | ID11: 0 | IE11: 0 | IF11: 0 | IG11: 0 | IH11: 0 | II11: 0 | IJ11: 0 | IK11: 0 | IL11: 0 | IM11: 0 | IN11: 0 | IO11: 0 | IP11: 0 | IQ11: 0 | IR11: 0 | IS11: 0 | IT11: 0 | IU11: 0.8774774775 | IV11: 0 | IW11: 0 | IX11: 0 | IY11: 0 | IZ11: 0.1225225225 | JA11: 0 | JB11: 0 | JC11: 0 | JD11: 0 | JE11: 0 | JF11: 0 | JH11: 2.63 | JL11: No Assist | JP11: 0.451 | JQ11: 0.068 | JR11: 2.13 | JS11: 0.487
A12: EPA-600/2-83-052 | B12: NA | C12: 50 | D12: 99.45% | E12: 10.31666667 | F12: NA | G12: NO | H12: Unknown | I12: NA | J12: Steam-Assisted | K12: Unknown | L12: Unknown | M12: Unknown | N12: >1000 | O12: 5.86 | P12: 0.49 | Q12: 0.19 | R12: NO | S12: 2183 | T12: 162 | U12: 1464 | V12: 2.166666667 | W12: 2.166666667 | X12: 42.08 | Y12: 469.6428571 | Z12: 0 | AT12: 0 | AY12: 100 | BD12: 10498.94667 | BE12: 498 | BF12: None | BG12: None | BH12: None | BI12: None | BJ12: None | BK12: None | BL12: 10498.94667 | BM12: 498 | BN12: 3.07 | BO12: 7.17 | BP12: 7.17 | CL12: 0 | CQ12: 1464 | CV12: 10498.94667 | CX12: 0 | CY12: 0 | CZ12: 0 | DA12: 0 | DB12: 0 | DC12: 0 | DD12: 0 | DE12: 0 | DF12: 0 | DG12: 0 | DH12: 0 | DI12: 0 | DJ12: 0 | DK12: 0 | DL12: 0 | DM12: 0 | DN12: 0 | DO12: 0 | DP12: 0 | DQ12: 0 | DR12: 0 | DS12: 0 | DT12: 0 | DU12: 0 | DV12: 0 | DW12: 0.1223778757 | DX12: 0 | DY12: 0 | DZ12: 0 | EA12: 0 | EB12: 0.8776221243 | ED12: 0 | EE12: 100.00 | EF12: 0 | EG12: 100.00 | EH12: 12.24 | EI12: 0.00 | EJ12: =IF(EI12=0,0,(EH12/EI12)) -> 0 | EK12: 0.122 | EL12: 0.8776221243 | EM12: 0.8776221243 | EN12: 1 | EO12: 0 | EP12: 0 | EQ12: 0 | ER12: 0 | ES12: 0 | EU12: 0 | EV12: 0 | EW12: 0 | EX12: 0 | EY12: 0 | EZ12: 0 | FA12: 0 | FB12: 0 | FC12: 0 | FD12: 0 | FE12: 0 | FF12: 0 | FG12: 0 | FJ12: 0 | FK12: 0 | FL12: 0 | FM12: 1 | FN12: 0 | FO12: 0 | FQ12: 0 | FU12: 267.15 | FV12: 0.024 | FW12: 0.000 | FX12: 0.024 | FY12: 52.39 | FZ12: 5.10 | GA12: 0.024 | GB12: 0.196 | GC12: 1.36 | GD12: 1.92 | GE12: 0.316 | GF12: 0.209 | GK12: 162.00 | GL12: 0.11 | GM12: NA | GN12: NA | GO12: 1.408 | GP12: 1.36 | GQ12: 1.92 | GR12: 0.00 | GS12: 0.024 | GT12: 60.064 | GU12: 79752.921 | GV12: No | HP12: 0 | HU12: 1464 | HZ12: 0 | IA12: 0 | IB12: 0 | IC12: 0 | ID12: 0 | IE12: 0 | IF12: 0 | IG12: 0 | IH12: 0 | II12: 0 | IJ12: 0 | IK12: 0 | IL12: 0 | IM12: 0 | IN12: 0 | IO12: 0 | IP12: 0 | IQ12: 0 | IR12: 0 | IS12: 0 | IT12: 0 | IU12: 0 | IV12: 0 | IW12: 0 | IX12: 0 | IY12: 0 | IZ12: 1 | JA12: 0 | JB12: 0 | JC12: 0 | JD12: 0 | JE12: 0 | JF12: 0 | JH12: 130 | JL12: Steam Assist | JP12: 162 | JQ12: 24.4 | JR12: 0 | JS12: 0
A13: EPA-600/2-83-052 | B13: NA | C13: 51 | D13: 98.66% | E13: 6.866666667 | F13: NA | G13: NO | H13: Unknown | I13: NA | J13: Steam-Assisted | K13: Unknown | L13: Unknown | M13: Unknown | N13: >1000 | O13: 5.86 | P13: 0.49 | Q13: 0.19 | R13: NO | S13: 309 | T13: 1527 | U13: 19500 | V13: 28.88333333 | W13: 28.88333333 | X13: 30.01764509 | Y13: 469.6428571 | Z13: 0 | AT13: 85.84615385 | AY13: 14.15384615 | BD13: 5397.048889 | BE13: 256 | BF13: None | BG13: None | BH13: None | BI13: None | BJ13: None | BK13: None | BL13: 5397.048889 | BM13: 256 | BN13: 0.17 | BO13: 0.28 | BP13: 1.96 | CL13: 16740 | CQ13: 2760 | CV13: 5397.048889 | CX13: 0 | CY13: 0 | CZ13: 0 | DA13: 0 | DB13: 0 | DC13: 0 | DD13: 0 | DE13: 0 | DF13: 0 | DG13: 0 | DH13: 0 | DI13: 0 | DJ13: 0 | DK13: 0 | DL13: 0 | DM13: 0 | DN13: 0 | DO13: 0 | DP13: 0 | DQ13: 0 | DR13: 0.6723688448 | DS13: 0 | DT13: 0 | DU13: 0 | DV13: 0 | DW13: 0.110856512 | DX13: 0 | DY13: 0 | DZ13: 0 | EA13: 0 | EB13: 0.2167746432 | ED13: 0 | EE13: 14.15 | EF13: 0 | EG13: 14.15 | EH13: 11.09 | EI13: 0.00 | EJ13: 0 | EK13: 0.111 | EL13: 0.2167746432 | EM13: 0.889143488 | EN13: 1 | EO13: 0 | EP13: 0 | EQ13: 0 | ER13: 0 | ES13: 0 | EU13: 0 | EV13: 0 | EW13: 0 | EX13: 0 | EY13: 0 | EZ13: 0 | FA13: 0 | FB13: 0 | FC13: 0 | FD13: 0 | FE13: 0 | FF13: 0 | FG13: 0 | FJ13: 0 | FK13: 0 | FL13: 0 | FM13: 1 | FN13: 0 | FO13: 0 | FQ13: 0 | FU13: 242.02 | FV13: 0.170 | FW13: 0.000 | FX13: 0.170 | FY13: 52.40 | FZ13: 4.62 | GA13: 0.024 | GB13: 0.216 | GC13: 1.36 | GD13: 1.92 | GE13: 0.078 | GF13: 0.220 | GK13: 1527.00 | GL13: 0.08 | GM13: NA | GN13: NA | GO13: 18.772 | GP13: 1.36 | GQ13: 1.92 | GR13: 0.00 | GS13: 0.170 | GT13: 5.119 | GU13: 0.359 | GV13: Yes | HP13: 16740 | HU13: 2760 | HZ13: 0 | IA13: 0 | IB13: 0 | IC13: 0 | ID13: 0 | IE13: 0 | IF13: 0 | IG13: 0 | IH13: 0 | II13: 0 | IJ13: 0 | IK13: 0 | IL13: 0 | IM13: 0 | IN13: 0 | IO13: 0 | IP13: 0 | IQ13: 0 | IR13: 0 | IS13: 0 | IT13: 0 | IU13: 0.8584615385 | IV13: 0 | IW13: 0 | IX13: 0 | IY13: 0 | IZ13: 0.1415384615 | JA13: 0 | JB13: 0 | JC13: 0 | JD13: 0 | JE13: 0 | JF13: 0 | JH13: 1733 | JL13: Steam Assist | JP13: 305 | JQ13: 46 | JR13: 1222 | JS13: 279
A14: EPA-600/2-83-052 | B14: NA | C14: 52 | D14: 99.82% | E14: 6.866666667 | F14: NA | G14: NO | H14: Unknown | I14: NA | J14: Steam-Assisted | K14: Unknown | L14: Unknown | M14: Unknown | N14: >1000 | O14: 5.86 | P14: 0.49 | Q14: 0.19 | R14: VG flow < 10 lb/hr. | S14: 268 | T14: 2.592 | U14: 33.252 | V14: 0.04933333333 | W14: 0.04933333333 | X14: 29.74747108 | Y14: 469.6428571 | Z14: 0 | AT14: 88.05485384 | AY14: 11.94514616 | BD14: 4237.526667 | BE14: 201 | BF14: None | BG14: None | BH14: None | BI14: None | BJ14: None | BK14: None | BL14: 4237.526667 | BM14: 201 | BN14: 77.55 | BO14: 127.44 | BP14: 1066.85 | CL14: 29.28 | CQ14: 3.972 | CV14: 4237.526667 | CX14: 0 | CY14: 0 | CZ14: 0 | DA14: 0 | DB14: 0 | DC14: 0 | DD14: 0 | DE14: 0 | DF14: 0 | DG14: 0 | DH14: 0 | DI14: 0 | DJ14: 0 | DK14: 0 | DL14: 0 | DM14: 0 | DN14: 0 | DO14: 0 | DP14: 0 | DQ14: 0 | DR14: 0.006855892633 | DS14: 0 | DT14: 0 | DU14: 0 | DV14: 0 | DW14: 0.0009300411728 | DX14: 0 | DY14: 0 | DZ14: 0 | EA14: 0 | EB14: 0.9922140662 | ED14: 0 | EE14: 11.95 | EF14: 0 | EG14: 11.95 | EH14: 0.09 | EI14: 0.00 | EJ14: 0 | EK14: 0.001 | EL14: 0.9922140662 | EM14: 0.9990699588 | EN14: 1 | EO14: 0 | EP14: 0 | EQ14: 0 | ER14: 0 | ES14: 0 | EU14: 0 | EV14: 0 | EW14: 0 | EX14: 0 | EY14: 0 | EZ14: 0 | FA14: 0 | FB14: 0 | FC14: 0 | FD14: 0 | FE14: 0 | FF14: 0 | FG14: 0 | FJ14: 0 | FK14: 0 | FL14: 0 | FM14: 1 | FN14: 0 | FO14: 0 | FQ14: 0 | FU14: 2.09 | FV14: 0.201 | FW14: 0.000 | FX14: 0.201 | FY14: 53.85 | FZ14: 0.04 | GA14: 0.024 | GB14: 25.805 | GC14: 1.36 | GD14: 1.92 | GE14: 0.357 | GF14: -3.140 | GK14: 2.59 | GL14: 0.08 | GM14: NA | GN14: NA | GO14: 0.032 | GP14: 1.36 | GQ14: 1.92 | GR14: 0.00 | GS14: 0.201 | GT14: 4.138 | GU14: 0.124 | GV14: No | HP14: 29.28 | HU14: 3.972 | HZ14: 0 | IA14: 0 | IB14: 0 | IC14: 0 | ID14: 0 | IE14: 0 | IF14: 0 | IG14: 0 | IH14: 0 | II14: 0 | IJ14: 0 | IK14: 0 | IL14: 0 | IM14: 0 | IN14: 0 | IO14: 0 | IP14: 0 | IQ14: 0 | IR14: 0 | IS14: 0 | IT14: 0 | IU14: 0.8805485384 | IV14: 0 | IW14: 0 | IX14: 0 | IY14: 0 | IZ14: 0.1194514616 | JA14: 0 | JB14: 0 | JC14: 0 | JD14: 0 | JE14: 0 | JF14: 0 | JH14: 2.96 | JL14: Steam Assist | JP14: 0.452 | JQ14: 0.0662 | JR14: 2.14 | JS14: 0.488
A15: EPA-600/2-83-052 | B15: NA | C15: 53 | D15: 99.40% | E15: 4.866666667 | F15: NA | G15: NO | H15: Unknown | I15: NA | J15: Steam-Assisted | K15: Unknown | L15: Unknown | M15: Unknown | N15: >1000 | O15: 5.86 | P15: 0.49 | Q15: 0.19 | R15: VG flow < 10 lb/hr and run time < 5 minutes. | S15: 209 | T15: 1.636 | U15: 21.366 | V15: 0.03166666667 | W15: 0.03166666667 | X15: 29.36964203 | Y15: 469.6428571 | Z15: 0 | AT15: 90.42403819 | AY15: 9.575961808 | BD15: 4237.526667 | BE15: 201 | BF15: None | BG15: None | BH15: None | BI15: None | BJ15: None | BK15: None | BL15: 4237.526667 | BM15: 201 | BN15: 122.86 | BO15: 198.33 | BP15: 2071.13 | CL15: 19.32 | CQ15: 2.046 | CV15: 4237.526667 | CX15: 0 | CY15: 0 | CZ15: 0 | DA15: 0 | DB15: 0 | DC15: 0 | DD15: 0 | DE15: 0 | DF15: 0 | DG15: 0 | DH15: 0 | DI15: 0 | DJ15: 0 | DK15: 0 | DL15: 0 | DM15: 0 | DN15: 0 | DO15: 0 | DP15: 0 | DQ15: 0 | DR15: 0.004536390445 | DS15: 0 | DT15: 0 | DU15: 0 | DV15: 0 | DW15: 0.0004804065658 | DX15: 0 | DY15: 0 | DZ15: 0 | EA15: 0 | EB15: 0.994983203 | ED15: 0 | EE15: 9.58 | EF15: 0 | EG15: 9.58 | EH15: 0.05 | EI15: 0.00 | EJ15: 0 | EK15: 0.000 | EL15: 0.994983203 | EM15: 0.9995195934 | EN15: 1 | EO15: 0 | EP15: 0 | EQ15: 0 | ER15: 0 | ES15: 0 | EU15: 0 | EV15: 0 | EW15: 0 | EX15: 0 | EY15: 0 | EZ15: 0 | FA15: 0 | FB15: 0 | FC15: 0 | FD15: 0 | FE15: 0 | FF15: 0 | FG15: 0 | FJ15: 0 | FK15: 0 | FL15: 0 | FM15: 1 | FN15: 0 | FO15: 0 | FQ15: 0 | FU15: 1.05 | FV15: 0.251 | FW15: 0.000 | FX15: 0.251 | FY15: 52.38 | FZ15: 0.02 | GA15: 0.024 | GB15: 49.958 | GC15: 1.36 | GD15: 1.92 | GE15: 0.358 | GF15: -2.957 | GK15: 1.64 | GL15: 0.08 | GM15: NA | GN15: NA | GO15: 0.021 | GP15: 1.36 | GQ15: 1.92 | GR15: 0.00 | GS15: 0.251 | GT15: 3.056 | GU15: 0.027 | GV15: Yes | HP15: 19.32 | HU15: 2.046 | HZ15: 0 | IA15: 0 | IB15: 0 | IC15: 0 | ID15: 0 | IE15: 0 | IF15: 0 | IG15: 0 | IH15: 0 | II15: 0 | IJ15: 0 | IK15: 0 | IL15: 0 | IM15: 0 | IN15: 0 | IO15: 0 | IP15: 0 | IQ15: 0 | IR15: 0 | IS15: 0 | IT15: 0 | IU15: 0.9042403819 | IV15: 0 | IW15: 0 | IX15: 0 | IY15: 0 | IZ15: 0.09575961808 | JA15: 0 | JB15: 0 | JC15: 0 | JD15: 0 | JE15: 0 | JF15: 0 | JH15: 1.9 | JL15: Steam Assist | JP15: 0.226 | JQ15: 0.0341 | JR15: 1.41 | JS15: 0.322
A16: EPA-600/2-83-052 | B16: NA | C16: 54 | D16: 99.90% | E16: 16.95 | F16: NA | G16: NO | H16: Unknown | I16: NA | J16: Steam-Assisted | K16: Unknown | L16: Unknown | M16: Unknown | N16: >1000 | O16: 5.86 | P16: 0.49 | Q16: 0.19 | R16: VG flow < 10 lb/hr. | S16: 209 | T16: 1.636 | U16: 21.366 | V16: 0.03166666667 | W16: 0.03166666667 | X16: 29.36964203 | Y16: 469.6428571 | Z16: 0 | AT16: 90.42403819 | AY16: 9.575961808 | BD16: 0 | BE16: 0 | BF16: None | BG16: None | BH16: None | BI16: None | BJ16: None | BK16: None | BL16: 0 | BM16: 0 | BN16: 0.00 | BO16: 0.00 | BP16: 0.00 | CL16: 19.32 | CQ16: 2.046 | CV16: 0 | CX16: 0 | CY16: 0 | CZ16: 0 | DA16: 0 | DB16: 0 | DC16: 0 | DD16: 0 | DE16: 0 | DF16: 0 | DG16: 0 | DH16: 0 | DI16: 0 | DJ16: 0 | DK16: 0 | DL16: 0 | DM16: 0 | DN16: 0 | DO16: 0 | DP16: 0 | DQ16: 0 | DR16: 0.9042403819 | DS16: 0 | DT16: 0 | DU16: 0 | DV16: 0 | DW16: 0.09575961808 | DX16: 0 | DY16: 0 | DZ16: 0 | EA16: 0 | EB16: 0 | ED16: 0 | EE16: 9.58 | EF16: 0 | EG16: 9.58 | EH16: 9.58 | EI16: 0.00 | EJ16: 0 | EK16: 0.096 | EL16: 0 | EM16: 0.9042403819 | EN16: 1 | EO16: 0 | EP16: 0 | EQ16: 0 | ER16: 0 | ES16: 0 | EU16: 0 | EV16: 0 | EW16: 0 | EX16: 0 | EY16: 0 | EZ16: 0 | FA16: 0 | FB16: 0 | FC16: 0 | FD16: 0 | FE16: 0 | FF16: 0 | FG16: 0 | FJ16: 0 | FK16: 0 | FL16: 0 | FM16: 1 | FN16: 0 | FO16: 0 | FQ16: 0 | FU16: 209.00 | FV16: 0.251 | FW16: 0.000 | FX16: 0.251 | FY16: 52.38 | FZ16: 3.99 | GA16: 0.024 | GB16: 0.251 | GC16: 1.36 | GD16: 1.92 | GE16: 0.000 | GF16: 0.251 | GK16: 1.64 | GL16: 0.08 | GM16: NA | GN16: NA | GO16: 0.021 | GP16: 1.36 | GQ16: 1.92 | GR16: 0.00 | GS16: 0.251 | GT16: 3.056 | GU16: 0.027 | GV16: Yes | HP16: 19.32 | HU16: 2.046 | HZ16: 0 | IA16: 0 | IB16: 0 | IC16: 0 | ID16: 0 | IE16: 0 | IF16: 0 | IG16: 0 | IH16: 0 | II16: 0 | IJ16: 0 | IK16: 0 | IL16: 0 | IM16: 0 | IN16: 0 | IO16: 0 | IP16: 0 | IQ16: 0 | IR16: 0 | IS16: 0 | IT16: 0 | IU16: 0.9042403819 | IV16: 0 | IW16: 0 | IX16: 0 | IY16: 0 | IZ16: 0.09575961808 | JA16: 0 | JB16: 0 | JC16: 0 | JD16: 0 | JE16: 0 | JF16: 0 | JH16: 1.9 | JL16: No Assist | JP16: 0.226 | JQ16: 0.0341 | JR16: 1.41 | JS16: 0.322
A17: EPA-600/2-83-052 | B17: NA | C17: 55 | D17: 68.95% | E17: 10.21666667 | F17: NA | G17: NO | H17: Unknown | I17: NA | J17: Steam-Assisted | K17: Unknown | L17: Unknown | M17: Unknown | N17: >1000 | O17: 5.86 | P17: 0.49 | Q17: 0.19 | R17: Probe Uncertainty | S17: 2183 | T17: 164 | U17: 1482 | V17: 2.2 | W17: 2.2 | X17: 42.08 | Y17: 469.6428571 | Z17: 0 | AT17: 0 | AY17: 100 | BD17: 23675.33556 | BE17: 1123 | BF17: None | BG17: None | BH17: None | BI17: None | BJ17: None | BK17: None | BL17: 23675.33556 | BM17: 1123 | BN17: 6.85 | BO17: 15.98 | BP17: 15.98 | CL17: 0 | CQ17: 1482 | CV17: 23675.33556 | CX17: 0 | CY17: 0 | CZ17: 0 | DA17: 0 | DB17: 0 | DC17: 0 | DD17: 0 | DE17: 0 | DF17: 0 | DG17: 0 | DH17: 0 | DI17: 0 | DJ17: 0 | DK17: 0 | DL17: 0 | DM17: 0 | DN17: 0 | DO17: 0 | DP17: 0 | DQ17: 0 | DR17: 0 | DS17: 0 | DT17: 0 | DU17: 0 | DV17: 0 | DW17: 0.05890925916 | DX17: 0 | DY17: 0 | DZ17: 0 | EA17: 0 | EB17: 0.9410907408 | ED17: 0 | EE17: 100.00 | EF17: 0 | EG17: 100.00 | EH17: 5.89 | EI17: 0.00 | EJ17: 0 | EK17: 0.059 | EL17: 0.9410907408 | EM17: 0.9410907408 | EN17: 1 | EO17: 0 | EP17: 0 | EQ17: 0 | ER17: 0 | ES17: 0 | EU17: 0 | EV17: 0 | EW17: 0 | EX17: 0 | EY17: 0 | EZ17: 0 | FA17: 0 | FB17: 0 | FC17: 0 | FD17: 0 | FE17: 0 | FF17: 0 | FG17: 0 | FJ17: 0 | FK17: 0 | FL17: 0 | FM17: 1 | FN17: 0 | FO17: 0 | FQ17: 0 | FU17: 128.60 | FV17: 0.024 | FW17: 0.000 | FX17: 0.024 | FY17: 52.39 | FZ17: 2.45 | GA17: 0.024 | GB17: 0.407 | GC17: 1.36 | GD17: 1.92 | GE17: 0.339 | GF17: 0.473 | GK17: 164.00 | GL17: 0.11 | GM17: NA | GN17: NA | GO17: 1.430 | GP17: 1.36 | GQ17: 1.92 | GR17: 0.00 | GS17: 0.024 | GT17: 60.067 | GU17: 79772.854 | GV17: No | HP17: 0 | HU17: 1482 | HZ17: 0 | IA17: 0 | IB17: 0 | IC17: 0 | ID17: 0 | IE17: 0 | IF17: 0 | IG17: 0 | IH17: 0 | II17: 0 | IJ17: 0 | IK17: 0 | IL17: 0 | IM17: 0 | IN17: 0 | IO17: 0 | IP17: 0 | IQ17: 0 | IR17: 0 | IS17: 0 | IT17: 0 | IU17: 0 | IV17: 0 | IW17: 0 | IX17: 0 | IY17: 0 | IZ17: 1 | JA17: 0 | JB17: 0 | JC17: 0 | JD17: 0 | JE17: 0 | JF17: 0 | JH17: 132 | JL17: Steam Assist | JP17: 164 | JQ17: 24.7 | JR17: 0 | JS17: 0
A18: EPA-600/2-83-052 | B18: NA | C18: 56 | D18: 99.70% | E18: 10.13333333 | F18: NA | G18: NO | H18: Unknown | I18: NA | J18: Steam-Assisted | K18: Unknown | L18: Unknown | M18: Unknown | N18: >1000 | O18: 5.86 | P18: 0.49 | Q18: 0.19 | R18: NO | S18: 2183 | T18: 163 | U18: 1470 | V18: 2.183333333 | W18: 2.183333333 | X18: 42.08 | Y18: 469.6428571 | Z18: 0 | AT18: 0 | AY18: 100 | BD18: 11848.20889 | BE18: 562 | BF18: None | BG18: None | BH18: None | BI18: None | BJ18: None | BK18: None | BL18: 11848.20889 | BM18: 562 | BN18: 3.45 | BO18: 8.06 | BP18: 8.06 | CL18: 0 | CQ18: 1470 | CV18: 11848.20889 | CX18: 0 | CY18: 0 | CZ18: 0 | DA18: 0 | DB18: 0 | DC18: 0 | DD18: 0 | DE18: 0 | DF18: 0 | DG18: 0 | DH18: 0 | DI18: 0 | DJ18: 0 | DK18: 0 | DL18: 0 | DM18: 0 | DN18: 0 | DO18: 0 | DP18: 0 | DQ18: 0 | DR18: 0 | DS18: 0 | DT18: 0 | DU18: 0 | DV18: 0 | DW18: 0.1103752023 | DX18: 0 | DY18: 0 | DZ18: 0 | EA18: 0 | EB18: 0.8896247977 | ED18: 0 | EE18: 100.00 | EF18: 0 | EG18: 100.00 | EH18: 11.04 | EI18: 0.00 | EJ18: 0 | EK18: 0.110 | EL18: 0.8896247977 | EM18: 0.8896247977 | EN18: 1 | EO18: 0 | EP18: 0 | EQ18: 0 | ER18: 0 | ES18: 0 | EU18: 0 | EV18: 0 | EW18: 0 | EX18: 0 | EY18: 0 | EZ18: 0 | FA18: 0 | FB18: 0 | FC18: 0 | FD18: 0 | FE18: 0 | FF18: 0 | FG18: 0 | FJ18: 0 | FK18: 0 | FL18: 0 | FM18: 1 | FN18: 0 | FO18: 0 | FQ18: 0 | FU18: 240.95 | FV18: 0.024 | FW18: 0.000 | FX18: 0.024 | FY18: 52.39 | FZ18: 4.60 | GA18: 0.024 | GB18: 0.217 | GC18: 1.36 | GD18: 1.92 | GE18: 0.320 | GF18: 0.234 | GK18: 163.00 | GL18: 0.11 | GM18: NA | GN18: NA | GO18: 1.419 | GP18: 1.36 | GQ18: 1.92 | GR18: 0.00 | GS18: 0.024 | GT18: 60.188 | GU18: 80580.184 | GV18: No | HP18: 0 | HU18: 1470 | HZ18: 0 | IA18: 0 | IB18: 0 | IC18: 0 | ID18: 0 | IE18: 0 | IF18: 0 | IG18: 0 | IH18: 0 | II18: 0 | IJ18: 0 | IK18: 0 | IL18: 0 | IM18: 0 | IN18: 0 | IO18: 0 | IP18: 0 | IQ18: 0 | IR18: 0 | IS18: 0 | IT18: 0 | IU18: 0 | IV18: 0 | IW18: 0 | IX18: 0 | IY18: 0 | IZ18: 1 | JA18: 0 | JB18: 0 | JC18: 0 | JD18: 0 | JE18: 0 | JF18: 0 | JH18: 131 | JL18: Steam Assist | JP18: 163 | JQ18: 24.5 | JR18: 0 | JS18: 0
A19: EPA-600/2-83-052 | B19: NA | C19: 57 | D19: 99.90% | E19: 13.88333333 | F19: NA | G19: NO | H19: Unknown | I19: NA | J19: Steam-Assisted | K19: Unknown | L19: Unknown | M19: Unknown | N19: >1000 | O19: 5.86 | P19: 0.49 | Q19: 0.19 | R19: NO | S19: 294 | T19: 3292 | U19: 42168 | V19: 62.48333333 | W19: 62.48333333 | X19: 29.92472431 | Y19: 469.6428571 | Z19: 0 | AT19: 86.51109846 | AY19: 13.48890154 | BD19: 10393.53556 | BE19: 493 | BF19: None | BG19: None | BH19: None | BI19: None | BJ19: None | BK19: None | BL19: 10393.53556 | BM19: 493 | BN19: 0.15 | BO19: 0.25 | BP19: 1.83 | CL19: 36480 | CQ19: 5688 | CV19: 10393.53556 | CX19: 0 | CY19: 0 | CZ19: 0 | DA19: 0 | DB19: 0 | DC19: 0 | DD19: 0 | DE19: 0 | DF19: 0 | DG19: 0 | DH19: 0 | DI19: 0 | DJ19: 0 | DK19: 0 | DL19: 0 | DM19: 0 | DN19: 0 | DO19: 0 | DP19: 0 | DQ19: 0 | DR19: 0.6940436503 | DS19: 0 | DT19: 0 | DU19: 0 | DV19: 0 | DW19: 0.1082160165 | DX19: 0 | DY19: 0 | DZ19: 0 | EA19: 0 | EB19: 0.1977403332 | ED19: 0 | EE19: 13.49 | EF19: 0 | EG19: 13.49 | EH19: 10.82 | EI19: 0.00 | EJ19: 0 | EK19: 0.108 | EL19: 0.1977403332 | EM19: 0.8917839835 | EN19: 1 | EO19: 0 | EP19: 0 | EQ19: 0 | ER19: 0 | ES19: 0 | EU19: 0 | EV19: 0 | EW19: 0 | EX19: 0 | EY19: 0 | EZ19: 0 | FA19: 0 | FB19: 0 | FC19: 0 | FD19: 0 | FE19: 0 | FF19: 0 | FG19: 0 | FJ19: 0 | FK19: 0 | FL19: 0 | FM19: 1 | FN19: 0 | FO19: 0 | FQ19: 0 | FU19: 235.86 | FV19: 0.178 | FW19: 0.000 | FX19: 0.178 | FY19: 52.31 | FZ19: 4.51 | GA19: 0.024 | GB19: 0.222 | GC19: 1.36 | GD19: 1.92 | GE19: 0.071 | GF19: 0.225 | GK19: 3292.00 | GL19: 0.08 | GM19: NA | GN19: NA | GO19: 40.611 | GP19: 1.36 | GQ19: 1.92 | GR19: 0.00 | GS19: 0.178 | GT19: 4.815 | GU19: 0.264 | GV19: Yes | HP19: 36480 | HU19: 5688 | HZ19: 0 | IA19: 0 | IB19: 0 | IC19: 0 | ID19: 0 | IE19: 0 | IF19: 0 | IG19: 0 | IH19: 0 | II19: 0 | IJ19: 0 | IK19: 0 | IL19: 0 | IM19: 0 | IN19: 0 | IO19: 0 | IP19: 0 | IQ19: 0 | IR19: 0 | IS19: 0 | IT19: 0 | IU19: 0.8651109846 | IV19: 0 | IW19: 0 | IX19: 0 | IY19: 0 | IZ19: 0.1348890154 | JA19: 0 | JB19: 0 | JC19: 0 | JD19: 0 | JE19: 0 | JF19: 0 | JH19: 3749 | JL19: Steam Assist | JP19: 629 | JQ19: 94.8 | JR19: 2663 | JS19: 608
A20: EPA-600/2-83-052 | B20: NA | C20: 60 | D20: 99.92% | E20: 11.41666667 | F20: NA | G20: NO | H20: Unknown | I20: NA | J20: Steam-Assisted | K20: Unknown | L20: Unknown | M20: Unknown | N20: >1000 | O20: 5.86 | P20: 0.49 | Q20: 0.19 | R20: NO | S20: 298 | T20: 1537 | U20: 20040 | V20: 29.68333333 | W20: 29.68333333 | X20: 29.36747267 | Y20: 469.6428571 | Z20: 0 | AT20: 90.41916168 | AY20: 9.580838323 | BD20: 0 | BE20: 0 | BF20: None | BG20: None | BH20: None | BI20: None | BJ20: None | BK20: None | BL20: 0 | BM20: 0 | BN20: 0.00 | BO20: 0.00 | BP20: 0.00 | CL20: 18120 | CQ20: 1920 | CV20: 0 | CX20: 0 | CY20: 0 | CZ20: 0 | DA20: 0 | DB20: 0 | DC20: 0 | DD20: 0 | DE20: 0 | DF20: 0 | DG20: 0 | DH20: 0 | DI20: 0 | DJ20: 0 | DK20: 0 | DL20: 0 | DM20: 0 | DN20: 0 | DO20: 0 | DP20: 0 | DQ20: 0 | DR20: 0.9041916168 | DS20: 0 | DT20: 0 | DU20: 0 | DV20: 0 | DW20: 0.09580838323 | DX20: 0 | DY20: 0 | DZ20: 0 | EA20: 0 | EB20: 0 | ED20: 0 | EE20: 9.58 | EF20: 0 | EG20: 9.58 | EH20: 9.58 | EI20: 0.00 | EJ20: 0 | EK20: 0.096 | EL20: 0 | EM20: 0.9041916168 | EN20: 1 | EO20: 0 | EP20: 0 | EQ20: 0 | ER20: 0 | ES20: 0 | EU20: 0 | EV20: 0 | EW20: 0 | EX20: 0 | EY20: 0 | EZ20: 0 | FA20: 0 | FB20: 0 | FC20: 0 | FD20: 0 | FE20: 0 | FF20: 0 | FG20: 0 | FJ20: 0 | FK20: 0 | FL20: 0 | FM20: 1 | FN20: 0 | FO20: 0 | FQ20: 0 | FU20: 298.00 | FV20: 0.251 | FW20: 0.000 | FX20: 0.251 | FY20: 74.65 | FZ20: 3.99 | GA20: 0.024 | GB20: 0.251 | GC20: 1.36 | GD20: 1.92 | GE20: 0.000 | GF20: 0.251 | GK20: 1537.00 | GL20: 0.08 | GM20: NA | GN20: NA | GO20: 19.292 | GP20: 1.36 | GQ20: 1.92 | GR20: 0.00 | GS20: 0.251 | GT20: 3.063 | GU20: 0.028 | GV20: Yes | HP20: 18120 | HU20: 1920 | HZ20: 0 | IA20: 0 | IB20: 0 | IC20: 0 | ID20: 0 | IE20: 0 | IF20: 0 | IG20: 0 | IH20: 0 | II20: 0 | IJ20: 0 | IK20: 0 | IL20: 0 | IM20: 0 | IN20: 0 | IO20: 0 | IP20: 0 | IQ20: 0 | IR20: 0 | IS20: 0 | IT20: 0 | IU20: 0.9041916168 | IV20: 0 | IW20: 0 | IX20: 0 | IY20: 0 | IZ20: 0.09580838323 | JA20: 0 | JB20: 0 | JC20: 0 | JD20: 0 | JE20: 0 | JF20: 0 | JH20: 1781 | JL20: No Assist | JP20: 212 | JQ20: 32 | JR20: 1325 | JS20: 302
A21: EPA-600/2-83-052 | B21: NA | C21: 61 | D21: 82.18% | E21: 11.48333333 | F21: NA | G21: NO | H21: Unknown | I21: NA | J21: Steam-Assisted | K21: Unknown | L21: Unknown | M21: Unknown | N21: >1000 | O21: 5.86 | P21: 0.49 | Q21: 0.19 | R21: NO | S21: 2183 | T21: 166 | U21: 1500 | V21: 2.216666667 | W21: 2.216666667 | X21: 42.08 | Y21: 469.6428571 | Z21: 0 | AT21: 0 | AY21: 100 | BD21: 19838.37111 | BE21: 941 | BF21: None | BG21: None | BH21: None | BI21: None | BJ21: None | BK21: None | BL21: 19838.37111 | BM21: 941 | BN21: 5.67 | BO21: 13.23 | BP21: 13.23 | CL21: 0 | CQ21: 1500 | CV21: 19838.37111 | CX21: 0 | CY21: 0 | CZ21: 0 | DA21: 0 | DB21: 0 | DC21: 0 | DD21: 0 | DE21: 0 | DF21: 0 | DG21: 0 | DH21: 0 | DI21: 0 | DJ21: 0 | DK21: 0 | DL21: 0 | DM21: 0 | DN21: 0 | DO21: 0 | DP21: 0 | DQ21: 0 | DR21: 0 | DS21: 0 | DT21: 0 | DU21: 0 | DV21: 0 | DW21: 0.07029589992 | DX21: 0 | DY21: 0 | DZ21: 0 | EA21: 0 | EB21: 0.9297041001 | ED21: 0 | EE21: 100.00 | EF21: 0 | EG21: 100.00 | EH21: 7.03 | EI21: 0.00 | EJ21: 0 | EK21: 0.070 | EL21: 0.9297041001 | EM21: 0.9297041001 | EN21: 1 | EO21: 0 | EP21: 0 | EQ21: 0 | ER21: 0 | ES21: 0 | EU21: 0 | EV21: 0 | EW21: 0 | EX21: 0 | EY21: 0 | EZ21: 0 | FA21: 0 | FB21: 0 | FC21: 0 | FD21: 0 | FE21: 0 | FF21: 0 | FG21: 0 | FJ21: 0 | FK21: 0 | FL21: 0 | FM21: 1 | FN21: 0 | FO21: 0 | FQ21: 0 | FU21: 153.46 | FV21: 0.024 | FW21: 0.000 | FX21: 0.024 | FY21: 52.39 | FZ21: 2.93 | GA21: 0.024 | GB21: 0.341 | GC21: 1.36 | GD21: 1.92 | GE21: 0.335 | GF21: 0.385 | GK21: 166.00 | GL21: 0.11 | GM21: NA | GN21: NA | GO21: 1.441 | GP21: 1.36 | GQ21: 1.92 | GR21: 0.00 | GS21: 0.024 | GT21: 60.070 | GU21: 79792.313 | GV21: No | HP21: 0 | HU21: 1500 | HZ21: 0 | IA21: 0 | IB21: 0 | IC21: 0 | ID21: 0 | IE21: 0 | IF21: 0 | IG21: 0 | IH21: 0 | II21: 0 | IJ21: 0 | IK21: 0 | IL21: 0 | IM21: 0 | IN21: 0 | IO21: 0 | IP21: 0 | IQ21: 0 | IR21: 0 | IS21: 0 | IT21: 0 | IU21: 0 | IV21: 0 | IW21: 0 | IX21: 0 | IY21: 0 | IZ21: 1 | JA21: 0 | JB21: 0 | JC21: 0 | JD21: 0 | JE21: 0 | JF21: 0 | JH21: 133 | JL21: Steam Assist | JP21: 166 | JQ21: 25 | JR21: 0 | JS21: 0
A22: EPA-600/2-83-052 | B22: NA | C22: 67 | D22: See pg 28 | E22: 19.7 | F22: NA | G22: NO | H22: Unknown | I22: NA | J22: Steam-Assisted | K22: Unknown | L22: Unknown | M22: Unknown | N22: >1000 | O22: 5.86 | P22: 0.49 | Q22: 0.19 | R22: Probe in Flame | S22: 2183 | T22: 980 | U22: 8880 | V22: 13.15 | W22: 13.15 | X22: 42.08 | Y22: 469.6428571 | Z22: 0 | AT22: 0 | AY22: 100 | BD22: 14989.46 | BE22: 711 | BF22: None | BG22: None | BH22: None | BI22: None | BJ22: None | BK22: None | BL22: 14989.46 | BM22: 711 | BN22: 0.73 | BO22: 1.69 | BP22: 1.69 | CL22: 0 | CQ22: 8880 | CV22: 14989.46 | CX22: 0 | CY22: 0 | CZ22: 0 | DA22: 0 | DB22: 0 | DC22: 0 | DD22: 0 | DE22: 0 | DF22: 0 | DG22: 0 | DH22: 0 | DI22: 0 | DJ22: 0 | DK22: 0 | DL22: 0 | DM22: 0 | DN22: 0 | DO22: 0 | DP22: 0 | DQ22: 0 | DR22: 0 | DS22: 0 | DT22: 0 | DU22: 0 | DV22: 0 | DW22: 0.3720234978 | DX22: 0 | DY22: 0 | DZ22: 0 | EA22: 0 | EB22: 0.6279765022 | ED22: 0 | EE22: 100.00 | EF22: 0 | EG22: 100.00 | EH22: 37.20 | EI22: 0.00 | EJ22: =IF(EI22=0,0,(EH22/EI22)) -> 0 | EK22: 0.372 | EL22: 0.6279765022 | EM22: 0.6279765022 | EN22: 1 | EO22: 0 | EP22: 0 | EQ22: 0 | ER22: 0 | ES22: 0 | EU22: 0 | EV22: 0 | EW22: 0 | EX22: 0 | EY22: 0 | EZ22: 0 | FA22: 0 | FB22: 0 | FC22: 0 | FD22: 0 | FE22: 0 | FF22: 0 | FG22: 0 | FJ22: 0 | FK22: 0 | FL22: 0 | FM22: 1 | FN22: 0 | FO22: 0 | FQ22: 0 | FU22: 812.13 | FV22: 0.024 | FW22: 0.000 | FX22: 0.024 | FY22: 52.39 | FZ22: 15.50 | GA22: 0.024 | GB22: 0.065 | GC22: 1.36 | GD22: 1.92 | GE22: 0.226 | GF22: 0.065 | GK22: 980.00 | GL22: 0.11 | GM22: NA | GN22: NA | GO22: 8.547 | GP22: 1.36 | GQ22: 1.92 | GR22: 0.00 | GS22: 0.024 | GT22: 59.904 | GU22: 78694.151 | GV22: No | HP22: 0 | HU22: 8880 | HZ22: 0 | IA22: 0 | IB22: 0 | IC22: 0 | ID22: 0 | IE22: 0 | IF22: 0 | IG22: 0 | IH22: 0 | II22: 0 | IJ22: 0 | IK22: 0 | IL22: 0 | IM22: 0 | IN22: 0 | IO22: 0 | IP22: 0 | IQ22: 0 | IR22: 0 | IS22: 0 | IT22: 0 | IU22: 0 | IV22: 0 | IW22: 0 | IX22: 0 | IY22: 0 | IZ22: 1 | JA22: 0 | JB22: 0 | JC22: 0 | JD22: 0 | JE22: 0 | JF22: 0 | JH22: 789 | JL22: Steam Assist | JP22: 980 | JQ22: 148 | JR22: 0 | JS22: 0
A23: EPA-600/2-83-052 | B23: NA | C23: 11a | D23: 99.53% | E23: 7.266666667 | F23: NA | G23: NO | H23: Unknown | I23: NA | J23: Steam-Assisted | K23: Unknown | L23: Unknown | M23: Unknown | N23: >1000 | O23: 5.86 | P23: 0.49 | Q23: 0.19 | R23: NO | S23: 305 | T23: 3101 | U23: 45612 | V23: 58.66666667 | W23: 58.66666667 | X23: 30.00971148 | Y23: 469.6428571 | Z23: 0 | AT23: 87.87161273 | AY23: 12.12838727 | BD23: 0 | BE23: 0 | BF23: None | BG23: None | BH23: None | BI23: None | BJ23: None | BK23: None | BL23: 0 | BM23: 0 | BN23: 0.00 | BO23: 0.00 | BP23: 0.00 | CL23: 40080 | CQ23: 5532 | CV23: 0 | CX23: 0 | CY23: 0 | CZ23: 0 | DA23: 0 | DB23: 0 | DC23: 0 | DD23: 0 | DE23: 0 | DF23: 0 | DG23: 0 | DH23: 0 | DI23: 0 | DJ23: 0 | DK23: 0 | DL23: 0 | DM23: 0 | DN23: 0 | DO23: 0 | DP23: 0 | DQ23: 0 | DR23: 0.8787161273 | DS23: 0 | DT23: 0 | DU23: 0 | DV23: 0 | DW23: 0.1212838727 | DX23: 0 | DY23: 0 | DZ23: 0 | EA23: 0 | EB23: 0 | ED23: 0 | EE23: 12.13 | EF23: 0 | EG23: 12.13 | EH23: 12.13 | EI23: 0.00 | EJ23: 0 | EK23: 0.121 | EL23: 0 | EM23: 0.8787161273 | EN23: 1 | EO23: 0 | EP23: 0 | EQ23: 0 | ER23: 0 | ES23: 0 | EU23: 0 | EV23: 0 | EW23: 0 | EX23: 0 | EY23: 0 | EZ23: 0 | FA23: 0 | FB23: 0 | FC23: 0 | FD23: 0 | FE23: 0 | FF23: 0 | FG23: 0 | FJ23: 0 | FK23: 0 | FL23: 0 | FM23: 1 | FN23: 0 | FO23: 0 | FQ23: 0 | FU23: 305.00 | FV23: 0.198 | FW23: 0.000 | FX23: 0.198 | FY23: 60.35 | FZ23: 5.05 | GA23: 0.024 | GB23: 0.198 | GC23: 1.36 | GD23: 1.92 | GE23: 0.000 | GF23: 0.198 | GK23: 3101.00 | GL23: 0.07 | GM23: NA | GN23: NA | GO23: 38.130 | GP23: 1.36 | GQ23: 1.92 | GR23: 0.00 | GS23: 0.198 | GT23: 3.678 | GU23: 0.069 | GV23: Yes | HP23: 40080 | HU23: 5532 | HZ23: 0 | IA23: 0 | IB23: 0 | IC23: 0 | ID23: 0 | IE23: 0 | IF23: 0 | IG23: 0 | IH23: 0 | II23: 0 | IJ23: 0 | IK23: 0 | IL23: 0 | IM23: 0 | IN23: 0 | IO23: 0 | IP23: 0 | IQ23: 0 | IR23: 0 | IS23: 0 | IT23: 0 | IU23: 0.8787161273 | IV23: 0 | IW23: 0 | IX23: 0 | IY23: 0 | IZ23: 0.1212838727 | JA23: 0 | JB23: 0 | JC23: 0 | JD23: 0 | JE23: 0 | JF23: 0 | JH23: 3520 | JL23: No Assist | JP23: 612 | JQ23: 92.2 | JR23: 2489 | JS23: 668
A24: EPA-600/2-83-052 | B24: NA | C24: 11b | D24: 99.86% | E24: 7.266666667 | F24: NA | G24: NO | H24: Unknown | I24: NA | J24: Steam-Assisted | K24: Unknown | L24: Unknown | M24: Unknown | N24: >1000 | O24: 5.86 | P24: 0.49 | Q24: 0.19 | R24: NO | S24: 342 | T24: 2833 | U24: 35934 | V24: 53.25 | W24: 53.25 | X24: 30.23609891 | Y24: 469.6428571 | Z24: 0 | AT24: 84.32125564 | AY24: 15.67874436 | BD24: 0 | BE24: 0 | BF24: None | BG24: None | BH24: None | BI24: None | BJ24: None | BK24: None | BL24: 0 | BM24: 0 | BN24: 0.00 | BO24: 0.00 | BP24: 0.00 | CL24: 30300 | CQ24: 5634 | CV24: 0 | CX24: 0 | CY24: 0 | CZ24: 0 | DA24: 0 | DB24: 0 | DC24: 0 | DD24: 0 | DE24: 0 | DF24: 0 | DG24: 0 | DH24: 0 | DI24: 0 | DJ24: 0 | DK24: 0 | DL24: 0 | DM24: 0 | DN24: 0 | DO24: 0 | DP24: 0 | DQ24: 0 | DR24: 0.8432125564 | DS24: 0 | DT24: 0 | DU24: 0 | DV24: 0 | DW24: 0.1567874436 | DX24: 0 | DY24: 0 | DZ24: 0 | EA24: 0 | EB24: 0 | ED24: 0 | EE24: 15.68 | EF24: 0 | EG24: 15.68 | EH24: 15.68 | EI24: 0.00 | EJ24: 0 | EK24: 0.157 | EL24: 0 | EM24: 0.8432125564 | EN24: 1 | EO24: 0 | EP24: 0 | EQ24: 0 | ER24: 0 | ES24: 0 | EU24: 0 | EV24: 0 | EW24: 0 | EX24: 0 | EY24: 0 | EZ24: 0 | FA24: 0 | FB24: 0 | FC24: 0 | FD24: 0 | FE24: 0 | FF24: 0 | FG24: 0 | FJ24: 0 | FK24: 0 | FL24: 0 | FM24: 1 | FN24: 0 | FO24: 0 | FQ24: 0 | FU24: 342.00 | FV24: 0.153 | FW24: 0.000 | FX24: 0.153 | FY24: 52.35 | FZ24: 6.53 | GA24: 0.024 | GB24: 0.153 | GC24: 1.36 | GD24: 1.92 | GE24: 0.000 | GF24: 0.153 | GK24: 2833.00 | GL24: 0.08 | GM24: NA | GN24: NA | GO24: 34.609 | GP24: 1.36 | GQ24: 1.92 | GR24: 0.00 | GS24: 0.153 | GT24: 5.822 | GU24: 0.683 | GV24: Yes | HP24: 30300 | HU24: 5634 | HZ24: 0 | IA24: 0 | IB24: 0 | IC24: 0 | ID24: 0 | IE24: 0 | IF24: 0 | IG24: 0 | IH24: 0 | II24: 0 | IJ24: 0 | IK24: 0 | IL24: 0 | IM24: 0 | IN24: 0 | IO24: 0 | IP24: 0 | IQ24: 0 | IR24: 0 | IS24: 0 | IT24: 0 | IU24: 0.8432125564 | IV24: 0 | IW24: 0 | IX24: 0 | IY24: 0 | IZ24: 0.1567874436 | JA24: 0 | JB24: 0 | JC24: 0 | JD24: 0 | JE24: 0 | JF24: 0 | JH24: 3195 | JL24: No Assist | JP24: 623 | JQ24: 93.9 | JR24: 2210 | JS24: 505
A25: EPA-600/2-83-052 | B25: NA | C25: 11c | D25: 99.82% | E25: 7.266666667 | F25: NA | G25: NO | H25: Unknown | I25: NA | J25: Steam-Assisted | K25: Unknown | L25: Unknown | M25: Unknown | N25: >1000 | O25: 5.86 | P25: 0.49 | Q25: 0.19 | R25: NO | S25: 364 | T25: 2644 | U25: 33348 | V25: 49.41666667 | W25: 49.41666667 | X25: 30.37938299 | Y25: 469.6428571 | Z25: 0 | AT25: 83.30334653 | AY25: 16.69665347 | BD25: 0 | BE25: 0 | BF25: None | BG25: None | BH25: None | BI25: None | BJ25: None | BK25: None | BL25: 0 | BM25: 0 | BN25: 0.00 | BO25: 0.00 | BP25: 0.00 | CL25: 27780 | CQ25: 5568 | CV25: 0 | CX25: 0 | CY25: 0 | CZ25: 0 | DA25: 0 | DB25: 0 | DC25: 0 | DD25: 0 | DE25: 0 | DF25: 0 | DG25: 0 | DH25: 0 | DI25: 0 | DJ25: 0 | DK25: 0 | DL25: 0 | DM25: 0 | DN25: 0 | DO25: 0 | DP25: 0 | DQ25: 0 | DR25: 0.8330334653 | DS25: 0 | DT25: 0 | DU25: 0 | DV25: 0 | DW25: 0.1669665347 | DX25: 0 | DY25: 0 | DZ25: 0 | EA25: 0 | EB25: 0 | ED25: 0 | EE25: 16.70 | EF25: 0 | EG25: 16.70 | EH25: 16.70 | EI25: 0.00 | EJ25: 0 | EK25: 0.167 | EL25: 0 | EM25: 0.8330334653 | EN25: 1 | EO25: 0 | EP25: 0 | EQ25: 0 | ER25: 0 | ES25: 0 | EU25: 0 | EV25: 0 | EW25: 0 | EX25: 0 | EY25: 0 | EZ25: 0 | FA25: 0 | FB25: 0 | FC25: 0 | FD25: 0 | FE25: 0 | FF25: 0 | FG25: 0 | FJ25: 0 | FK25: 0 | FL25: 0 | FM25: 1 | FN25: 0 | FO25: 0 | FQ25: 0 | FU25: 364.00 | FV25: 0.144 | FW25: 0.000 | FX25: 0.144 | FY25: 52.32 | FZ25: 6.96 | GA25: 0.024 | GB25: 0.144 | GC25: 1.36 | GD25: 1.92 | GE25: 0.000 | GF25: 0.144 | GK25: 2644.00 | GL25: 0.08 | GM25: NA | GN25: NA | GO25: 32.118 | GP25: 1.36 | GQ25: 1.92 | GR25: 0.00 | GS25: 0.144 | GT25: 6.304 | GU25: 1.016 | GV25: Yes | HP25: 27780 | HU25: 5568 | HZ25: 0 | IA25: 0 | IB25: 0 | IC25: 0 | ID25: 0 | IE25: 0 | IF25: 0 | IG25: 0 | IH25: 0 | II25: 0 | IJ25: 0 | IK25: 0 | IL25: 0 | IM25: 0 | IN25: 0 | IO25: 0 | IP25: 0 | IQ25: 0 | IR25: 0 | IS25: 0 | IT25: 0 | IU25: 0.8330334653 | IV25: 0 | IW25: 0 | IX25: 0 | IY25: 0 | IZ25: 0.1669665347 | JA25: 0 | JB25: 0 | JC25: 0 | JD25: 0 | JE25: 0 | JF25: 0 | JH25: 2965 | JL25: No Assist | JP25: 616 | JQ25: 92.8 | JR25: 2028 | JS25: 463
A26: EPA-600/2-83-052 | B26: NA | C26: 16a | D26: 99.74% | E26: 9.65 | F26: NA | G26: NO | H26: Unknown | I26: NA | J26: Steam-Assisted | K26: Unknown | L26: Unknown | M26: Unknown | N26: >1000 | O26: 5.86 | P26: 0.49 | Q26: 0.19 | R26: NO | S26: 339 | T26: 1511 | U26: 19176 | V26: 28.45 | W26: 28.45 | X26: 30.21242641 | Y26: 469.6428571 | Z26: 0 | AT26: 84.48060075 | AY26: 15.51939925 | BD26: 0 | BE26: 0 | BF26: None | BG26: None | BH26: None | BI26: None | BJ26: None | BK26: None | BL26: 0 | BM26: 0 | BN26: 0.00 | BO26: 0.00 | BP26: 0.00 | CL26: 16200 | CQ26: 2976 | CV26: 0 | CX26: 0 | CY26: 0 | CZ26: 0 | DA26: 0 | DB26: 0 | DC26: 0 | DD26: 0 | DE26: 0 | DF26: 0 | DG26: 0 | DH26: 0 | DI26: 0 | DJ26: 0 | DK26: 0 | DL26: 0 | DM26: 0 | DN26: 0 | DO26: 0 | DP26: 0 | DQ26: 0 | DR26: 0.8448060075 | DS26: 0 | DT26: 0 | DU26: 0 | DV26: 0 | DW26: 0.1551939925 | DX26: 0 | DY26: 0 | DZ26: 0 | EA26: 0 | EB26: 0 | ED26: 0 | EE26: 15.52 | EF26: 0 | EG26: 15.52 | EH26: 15.52 | EI26: 0.00 | EJ26: 0 | EK26: 0.155 | EL26: 0 | EM26: 0.8448060075 | EN26: 1 | EO26: 0 | EP26: 0 | EQ26: 0 | ER26: 0 | ES26: 0 | EU26: 0 | EV26: 0 | EW26: 0 | EX26: 0 | EY26: 0 | EZ26: 0 | FA26: 0 | FB26: 0 | FC26: 0 | FD26: 0 | FE26: 0 | FF26: 0 | FG26: 0 | FJ26: 0 | FK26: 0 | FL26: 0 | FM26: 1 | FN26: 0 | FO26: 0 | FQ26: 0 | FU26: 339.00 | FV26: 0.155 | FW26: 0.000 | FX26: 0.155 | FY26: 52.42 | FZ26: 6.47 | GA26: 0.024 | GB26: 0.155 | GC26: 1.36 | GD26: 1.92 | GE26: 0.000 | GF26: 0.155 | GK26: 1511.00 | GL26: 0.08 | GM26: NA | GN26: NA | GO26: 18.491 | GP26: 1.36 | GQ26: 1.92 | GR26: 0.00 | GS26: 0.155 | GT26: 5.749 | GU26: 0.641 | GV26: Yes | HP26: 16200 | HU26: 2976 | HZ26: 0 | IA26: 0 | IB26: 0 | IC26: 0 | ID26: 0 | IE26: 0 | IF26: 0 | IG26: 0 | IH26: 0 | II26: 0 | IJ26: 0 | IK26: 0 | IL26: 0 | IM26: 0 | IN26: 0 | IO26: 0 | IP26: 0 | IQ26: 0 | IR26: 0 | IS26: 0 | IT26: 0 | IU26: 0.8448060075 | IV26: 0 | IW26: 0 | IX26: 0 | IY26: 0 | IZ26: 0.1551939925 | JA26: 0 | JB26: 0 | JC26: 0 | JD26: 0 | JE26: 0 | JF26: 0 | JH26: 1707 | JL26: No Assist | JP26: 329 | JQ26: 49.6 | JR26: 1182 | JS26: 270
A27: EPA-600/2-83-052 | B27: NA | C27: 16b | D27: 99.75% | E27: 9.65 | F27: NA | G27: NO | H27: Unknown | I27: NA | J27: Steam-Assisted | K27: Unknown | L27: Unknown | M27: Unknown | N27: >1000 | O27: 5.86 | P27: 0.49 | Q27: 0.19 | R27: NO | S27: 405 | T27: 1210 | U27: 14832 | V27: 22.4 | W27: 22.4 | X27: 30.66504901 | Y27: 469.6428571 | Z27: 0 | AT27: 82.92880259 | AY27: 17.07119741 | BD27: 0 | BE27: 0 | BF27: None | BG27: None | BH27: None | BI27: None | BJ27: None | BK27: None | BL27: 0 | BM27: 0 | BN27: 0.00 | BO27: 0.00 | BP27: 0.00 | CL27: 12300 | CQ27: 2532 | CV27: 0 | CX27: 0 | CY27: 0 | CZ27: 0 | DA27: 0 | DB27: 0 | DC27: 0 | DD27: 0 | DE27: 0 | DF27: 0 | DG27: 0 | DH27: 0 | DI27: 0 | DJ27: 0 | DK27: 0 | DL27: 0 | DM27: 0 | DN27: 0 | DO27: 0 | DP27: 0 | DQ27: 0 | DR27: 0.8292880259 | DS27: 0 | DT27: 0 | DU27: 0 | DV27: 0 | DW27: 0.1707119741 | DX27: 0 | DY27: 0 | DZ27: 0 | EA27: 0 | EB27: 0 | ED27: 0 | EE27: 17.07 | EF27: 0 | EG27: 17.07 | EH27: 17.07 | EI27: 0.00 | EJ27: 0 | EK27: 0.171 | EL27: 0 | EM27: 0.8292880259 | EN27: 1 | EO27: 0 | EP27: 0 | EQ27: 0 | ER27: 0 | ES27: 0 | EU27: 0 | EV27: 0 | EW27: 0 | EX27: 0 | EY27: 0 | EZ27: 0 | FA27: 0 | FB27: 0 | FC27: 0 | FD27: 0 | FE27: 0 | FF27: 0 | FG27: 0 | FJ27: 0 | FK27: 0 | FL27: 0 | FM27: 1 | FN27: 0 | FO27: 0 | FQ27: 0 | FU27: 405.00 | FV27: 0.141 | FW27: 0.000 | FX27: 0.141 | FY27: 56.94 | FZ27: 7.11 | GA27: 0.024 | GB27: 0.141 | GC27: 1.36 | GD27: 1.92 | GE27: 0.000 | GF27: 0.141 | GK27: 1210.00 | GL27: 0.08 | GM27: NA | GN27: NA | GO27: 14.559 | GP27: 1.36 | GQ27: 1.92 | GR27: 0.00 | GS27: 0.141 | GT27: 6.656 | GU27: 1.333 | GV27: Yes | HP27: 12300 | HU27: 2532 | HZ27: 0 | IA27: 0 | IB27: 0 | IC27: 0 | ID27: 0 | IE27: 0 | IF27: 0 | IG27: 0 | IH27: 0 | II27: 0 | IJ27: 0 | IK27: 0 | IL27: 0 | IM27: 0 | IN27: 0 | IO27: 0 | IP27: 0 | IQ27: 0 | IR27: 0 | IS27: 0 | IT27: 0 | IU27: 0.8292880259 | IV27: 0 | IW27: 0 | IX27: 0 | IY27: 0 | IZ27: 0.1707119741 | JA27: 0 | JB27: 0 | JC27: 0 | JD27: 0 | JE27: 0 | JF27: 0 | JH27: 1344 | JL27: No Assist | JP27: 313 | JQ27: 42.2 | JR27: 897 | JS27: 205
A28: EPA-600/2-83-052 | B28: NA | C28: 16c | D28: 99.74% | E28: 9.65 | F28: NA | G28: YES | H28: Unknown | I28: NA | J28: Steam-Assisted | K28: Unknown | L28: Unknown | M28: Unknown | N28: >1000 | O28: 5.86 | P28: 0.49 | Q28: 0.19 | R28: Smoking flare. | S28: 519 | T28: 957 | U28: 11652 | V28: 17.21666667 | W28: 17.21666667 | X28: 31.37827477 | Y28: 469.6428571 | Z28: 0 | AT28: 76.21009269 | AY28: 23.78990731 | BD28: 0 | BE28: 0 | BF28: None | BG28: None | BH28: None | BI28: None | BJ28: None | BK28: None | BL28: 0 | BM28: 0 | BN28: 0.00 | BO28: 0.00 | BP28: 0.00 | CL28: 8880 | CQ28: 2772 | CV28: 0 | CX28: 0 | CY28: 0 | CZ28: 0 | DA28: 0 | DB28: 0 | DC28: 0 | DD28: 0 | DE28: 0 | DF28: 0 | DG28: 0 | DH28: 0 | DI28: 0 | DJ28: 0 | DK28: 0 | DL28: 0 | DM28: 0 | DN28: 0 | DO28: 0 | DP28: 0 | DQ28: 0 | DR28: 0.7621009269 | DS28: 0 | DT28: 0 | DU28: 0 | DV28: 0 | DW28: 0.2378990731 | DX28: 0 | DY28: 0 | DZ28: 0 | EA28: 0 | EB28: 0 | ED28: 0 | EE28: 23.79 | EF28: 0 | EG28: 23.79 | EH28: 23.79 | EI28: 0.00 | EJ28: 0 | EK28: 0.238 | EL28: 0 | EM28: 0.7621009269 | EN28: 1 | EO28: 0 | EP28: 0 | EQ28: 0 | ER28: 0 | ES28: 0 | EU28: 0 | EV28: 0 | EW28: 0 | EX28: 0 | EY28: 0 | EZ28: 0 | FA28: 0 | FB28: 0 | FC28: 0 | FD28: 0 | FE28: 0 | FF28: 0 | FG28: 0 | FJ28: 0 | FK28: 0 | FL28: 0 | FM28: 1 | FN28: 0 | FO28: 0 | FQ28: 0 | FU28: 519.00 | FV28: 0.101 | FW28: 0.000 | FX28: 0.101 | FY28: 52.36 | FZ28: 9.91 | GA28: 0.024 | GB28: 0.101 | GC28: 1.36 | GD28: 1.92 | GE28: 0.000 | GF28: 0.101 | GK28: 957.00 | GL28: 0.08 | GM28: NA | GN28: NA | GO28: 11.190 | GP28: 1.36 | GQ28: 1.92 | GR28: 0.00 | GS28: 0.101 | GT28: 9.770 | GU28: 9.083 | GV28: Yes | HP28: 8880 | HU28: 2772 | HZ28: 0 | IA28: 0 | IB28: 0 | IC28: 0 | ID28: 0 | IE28: 0 | IF28: 0 | IG28: 0 | IH28: 0 | II28: 0 | IJ28: 0 | IK28: 0 | IL28: 0 | IM28: 0 | IN28: 0 | IO28: 0 | IP28: 0 | IQ28: 0 | IR28: 0 | IS28: 0 | IT28: 0 | IU28: 0.7621009269 | IV28: 0 | IW28: 0 | IX28: 0 | IY28: 0 | IZ28: 0.2378990731 | JA28: 0 | JB28: 0 | JC28: 0 | JD28: 0 | JE28: 0 | JF28: 0 | JH28: 1033 | JL28: No Assist | JP28: 307 | JQ28: 46.2 | JR28: 650 | JS28: 148
A29: EPA-600/2-83-052 | B29: NA | C29: 16d | D29: 99.78% | E29: 9.65 | F29: NA | G29: YES | H29: Unknown | I29: NA | J29: Steam-Assisted | K29: Unknown | L29: Unknown | M29: Unknown | N29: >1000 | O29: 5.86 | P29: 0.49 | Q29: 0.19 | R29: Smoking flare. | S29: 634 | T29: 803 | U29: 9558 | V29: 10.75 | W29: 10.75 | X29: 32.11815052 | Y29: 469.6428571 | Z29: 0 | AT29: 70.93534212 | AY29: 29.06465788 | BD29: 0 | BE29: 0 | BF29: None | BG29: None | BH29: None | BI29: None | BJ29: None | BK29: None | BL29: 0 | BM29: 0 | BN29: 0.00 | BO29: 0.00 | BP29: 0.00 | CL29: 6780 | CQ29: 2778 | CV29: 0 | CX29: 0 | CY29: 0 | CZ29: 0 | DA29: 0 | DB29: 0 | DC29: 0 | DD29: 0 | DE29: 0 | DF29: 0 | DG29: 0 | DH29: 0 | DI29: 0 | DJ29: 0 | DK29: 0 | DL29: 0 | DM29: 0 | DN29: 0 | DO29: 0 | DP29: 0 | DQ29: 0 | DR29: 0.7093534212 | DS29: 0 | DT29: 0 | DU29: 0 | DV29: 0 | DW29: 0.2906465788 | DX29: 0 | DY29: 0 | DZ29: 0 | EA29: 0 | EB29: 0 | ED29: 0 | EE29: 29.06 | EF29: 0 | EG29: 29.06 | EH29: 29.06 | EI29: 0.00 | EJ29: 0 | EK29: 0.291 | EL29: 0 | EM29: 0.7093534212 | EN29: 1 | EO29: 0 | EP29: 0 | EQ29: 0 | ER29: 0 | ES29: 0 | EU29: 0 | EV29: 0 | EW29: 0 | EX29: 0 | EY29: 0 | EZ29: 0 | FA29: 0 | FB29: 0 | FC29: 0 | FD29: 0 | FE29: 0 | FF29: 0 | FG29: 0 | FJ29: 0 | FK29: 0 | FL29: 0 | FM29: 1 | FN29: 0 | FO29: 0 | FQ29: 0 | FU29: 634.00 | FV29: 0.083 | FW29: 0.000 | FX29: 0.083 | FY29: 52.35 | FZ29: 12.11 | GA29: 0.024 | GB29: 0.083 | GC29: 1.36 | GD29: 1.92 | GE29: 0.000 | GF29: 0.083 | GK29: 803.00 | GL29: 0.08 | GM29: NA | GN29: NA | GO29: 6.987 | GP29: 1.36 | GQ29: 1.92 | GR29: 0.00 | GS29: 0.083 | GT29: 12.459 | GU29: 30.623 | GV29: No | HP29: 6780 | HU29: 2778 | HZ29: 0 | IA29: 0 | IB29: 0 | IC29: 0 | ID29: 0 | IE29: 0 | IF29: 0 | IG29: 0 | IH29: 0 | II29: 0 | IJ29: 0 | IK29: 0 | IL29: 0 | IM29: 0 | IN29: 0 | IO29: 0 | IP29: 0 | IQ29: 0 | IR29: 0 | IS29: 0 | IT29: 0 | IU29: 0.7093534212 | IV29: 0 | IW29: 0 | IX29: 0 | IY29: 0 | IZ29: 0.2906465788 | JA29: 0 | JB29: 0 | JC29: 0 | JD29: 0 | JE29: 0 | JF29: 0 | JH29: 645 | JL29: No Assist | JP29: 307 | JQ29: 46.3 | JR29: 496 | JS29: 113
A30: EPA-600/2-83-052 | B30: NA | C30: 59a | D30: 95.11% | E30: 14.98333333 | F30: NA | G30: NO | H30: Unknown | I30: NA | J30: Steam-Assisted | K30: Unknown | L30: Unknown | M30: Unknown | N30: >1000 | O30: 5.86 | P30: 0.49 | Q30: 0.19 | R30: NO | S30: 192 | T30: 2706 | U30: 35460 | V30: 52.53333333 | W30: 52.53333333 | X30: 29.26045553 | Y30: 469.6428571 | Z30: 0 | AT30: 91.20135364 | AY30: 8.798646362 | BD30: 0 | BE30: 0 | BF30: None | BG30: None | BH30: None | BI30: None | BJ30: None | BK30: None | BL30: 0 | BM30: 0 | BN30: 0.00 | BO30: 0.00 | BP30: 0.00 | CL30: 32340 | CQ30: 3120 | CV30: 0 | CX30: 0 | CY30: 0 | CZ30: 0 | DA30: 0 | DB30: 0 | DC30: 0 | DD30: 0 | DE30: 0 | DF30: 0 | DG30: 0 | DH30: 0 | DI30: 0 | DJ30: 0 | DK30: 0 | DL30: 0 | DM30: 0 | DN30: 0 | DO30: 0 | DP30: 0 | DQ30: 0 | DR30: 0.9120135364 | DS30: 0 | DT30: 0 | DU30: 0 | DV30: 0 | DW30: 0.08798646362 | DX30: 0 | DY30: 0 | DZ30: 0 | EA30: 0 | EB30: 0 | ED30: 0 | EE30: 8.80 | EF30: 0 | EG30: 8.80 | EH30: 8.80 | EI30: 0.00 | EJ30: =IF(EI30=0,0,(EH30/EI30)) -> 0 | EK30: 0.088 | EL30: 0 | EM30: 0.9120135364 | EN30: 1 | EO30: 0 | EP30: 0 | EQ30: 0 | ER30: 0 | ES30: 0 | EU30: 0 | EV30: 0 | EW30: 0 | EX30: 0 | EY30: 0 | EZ30: 0 | FA30: 0 | FB30: 0 | FC30: 0 | FD30: 0 | FE30: 0 | FF30: 0 | FG30: 0 | FJ30: 0 | FK30: 0 | FL30: 0 | FM30: 1 | FN30: 0 | FO30: 0 | FQ30: 0 | FU30: 192.00 | FV30: 0.273 | FW30: 0.000 | FX30: 0.273 | FY30: 52.37 | FZ30: 3.67 | GA30: 0.024 | GB30: 0.273 | GC30: 1.36 | GD30: 1.92 | GE30: 0.000 | GF30: 0.273 | GK30: 2706.00 | GL30: 0.08 | GM30: NA | GN30: NA | GO30: 34.144 | GP30: 1.36 | GQ30: 1.92 | GR30: 0.00 | GS30: 0.273 | GT30: 2.716 | GU30: 0.015 | GV30: Yes | HP30: 32340 | HU30: 3120 | HZ30: 0 | IA30: 0 | IB30: 0 | IC30: 0 | ID30: 0 | IE30: 0 | IF30: 0 | IG30: 0 | IH30: 0 | II30: 0 | IJ30: 0 | IK30: 0 | IL30: 0 | IM30: 0 | IN30: 0 | IO30: 0 | IP30: 0 | IQ30: 0 | IR30: 0 | IS30: 0 | IT30: 0 | IU30: 0.9120135364 | IV30: 0 | IW30: 0 | IX30: 0 | IY30: 0 | IZ30: 0.08798646362 | JA30: 0 | JB30: 0 | JC30: 0 | JD30: 0 | JE30: 0 | JF30: 0 | JH30: 3152 | JL30: No Assist | JP30: 345 | JQ30: 52 | JR30: 2361 | JS30: 539
A31: EPA-600/2-83-052 | B31: NA | C31: 59b | D31: 99.32% | E31: 14.98333333 | F31: NA | G31: NO | H31: Unknown | I31: NA | J31: Steam-Assisted | K31: Unknown | L31: Unknown | M31: Unknown | N31: >1000 | O31: 5.86 | P31: 0.49 | Q31: 0.19 | R31: NO | S31: 232 | T31: 2292 | U31: 29742 | V31: 44.05 | W31: 44.05 | X31: 29.5203116 | Y31: 469.6428571 | Z31: 0 | AT31: 89.3685697 | AY31: 10.6314303 | BD31: 0 | BE31: 0 | BF31: None | BG31: None | BH31: None | BI31: None | BJ31: None | BK31: None | BL31: 0 | BM31: 0 | BN31: 0.00 | BO31: 0.00 | BP31: 0.00 | CL31: 26580 | CQ31: 3162 | CV31: 0 | CX31: 0 | CY31: 0 | CZ31: 0 | DA31: 0 | DB31: 0 | DC31: 0 | DD31: 0 | DE31: 0 | DF31: 0 | DG31: 0 | DH31: 0 | DI31: 0 | DJ31: 0 | DK31: 0 | DL31: 0 | DM31: 0 | DN31: 0 | DO31: 0 | DP31: 0 | DQ31: 0 | DR31: 0.893685697 | DS31: 0 | DT31: 0 | DU31: 0 | DV31: 0 | DW31: 0.106314303 | DX31: 0 | DY31: 0 | DZ31: 0 | EA31: 0 | EB31: 0 | ED31: 0 | EE31: 10.63 | EF31: 0 | EG31: 10.63 | EH31: 10.63 | EI31: 0.00 | EJ31: =IF(EI31=0,0,(EH31/EI31)) -> 0 | EK31: 0.106 | EL31: 0 | EM31: 0.893685697 | EN31: 1 | EO31: 0 | EP31: 0 | EQ31: 0 | ER31: 0 | ES31: 0 | EU31: 0 | EV31: 0 | EW31: 0 | EX31: 0 | EY31: 0 | EZ31: 0 | FA31: 0 | FB31: 0 | FC31: 0 | FD31: 0 | FE31: 0 | FF31: 0 | FG31: 0 | FJ31: 0 | FK31: 0 | FL31: 0 | FM31: 1 | FN31: 0 | FO31: 0 | FQ31: 0 | FU31: 232.00 | FV31: 0.226 | FW31: 0.000 | FX31: 0.226 | FY31: 52.37 | FZ31: 4.43 | GA31: 0.024 | GB31: 0.226 | GC31: 1.36 | GD31: 1.92 | GE31: 0.000 | GF31: 0.226 | GK31: 2292.00 | GL31: 0.08 | GM31: NA | GN31: NA | GO31: 28.630 | GP31: 1.36 | GQ31: 1.92 | GR31: 0.00 | GS31: 0.226 | GT31: 3.528 | GU31: 0.056 | GV31: Yes | HP31: 26580 | HU31: 3162 | HZ31: 0 | IA31: 0 | IB31: 0 | IC31: 0 | ID31: 0 | IE31: 0 | IF31: 0 | IG31: 0 | IH31: 0 | II31: 0 | IJ31: 0 | IK31: 0 | IL31: 0 | IM31: 0 | IN31: 0 | IO31: 0 | IP31: 0 | IQ31: 0 | IR31: 0 | IS31: 0 | IT31: 0 | IU31: 0.893685697 | IV31: 0 | IW31: 0 | IX31: 0 | IY31: 0 | IZ31: 0.106314303 | JA31: 0 | JB31: 0 | JC31: 0 | JD31: 0 | JE31: 0 | JF31: 0 | JH31: 2643 | JL31: No Assist | JP31: 350 | JQ31: 52.7 | JR31: 1942 | JS31: 443
A32: EPA-600/2-84-095 | B32: NA | C32: 1 | D32: 99.49% | E32: 20 | F32: NA | H32: NA | I32: NA | J32: Steam-Assisted | K32: Unknown | L32: Unknown | M32: Unknown | N32: >1000 | R32: Test 2-84-095 does not provide enough VG flow info. | S32: 1311 | V32: 0.5 | Y32: 0 | Z32: 0 | GK32: NA | GL32: NA | GM32: NA | GN32: NA | HZ32: 0 | JL32: No Assist | JM32: 0 | JO32: 55.8
A33: EPA-600/2-84-095 | B33: NA | C33: 2 | D33: 98.37% | E33: 20 | F33: NA | H33: NA | I33: NA | J33: Steam-Assisted | K33: Unknown | L33: Unknown | M33: Unknown | N33: >1000 | R33: Test 2-84-095 does not provide enough VG flow info. | S33: 1311 | V33: 0.5 | Y33: 0 | Z33: 0 | GK33: NA | GL33: NA | GM33: NA | GN33: NA | HZ33: 0 | JL33: No Assist | JM33: 0 | JO33: 55.8
A34: EPA-600/2-84-095 | B34: NA | C34: 3 | D34: 98.77% | E34: 20 | F34: NA | H34: NA | I34: NA | J34: Steam-Assisted | K34: Unknown | L34: Unknown | M34: Unknown | N34: >1000 | R34: Test 2-84-095 does not provide enough VG flow info. | S34: 1309 | V34: 0.5 | Y34: 0 | Z34: 0 | GK34: NA | GL34: NA | GM34: NA | GN34: NA | HZ34: 0 | JL34: No Assist | JM34: 0 | JO34: 55.7
A35: EPA-600/2-84-095 | B35: NA | C35: 4 | D35: 99.06% | E35: 20 | F35: NA | H35: NA | I35: NA | J35: Steam-Assisted | K35: Unknown | L35: Unknown | M35: Unknown | N35: >1000 | R35: Test 2-84-095 does not provide enough VG flow info. | S35: 1311 | V35: 0.5 | Y35: 0 | Z35: 0 | GK35: NA | GL35: NA | GM35: NA | GN35: NA | HZ35: 0 | JL35: No Assist | JM35: 0 | JO35: 55.8
A36: EPA-600/2-84-095 | B36: NA | C36: 5 | D36: 99.54% | E36: 20 | F36: NA | H36: NA | I36: NA | J36: Steam-Assisted | K36: Unknown | L36: Unknown | M36: Unknown | N36: >1000 | R36: Test 2-84-095 does not provide enough VG flow info. | S36: 1318 | V36: 2 | Y36: 0 | Z36: 0 | GK36: NA | GL36: NA | GM36: NA | GN36: NA | HZ36: 0 | JL36: No Assist | JM36: 0 | JO36: 56.1
A37: EPA-600/2-84-095 | B37: NA | C37: 6 | D37: 94.24% | E37: 20 | F37: NA | H37: NA | I37: NA | J37: Steam-Assisted | K37: Unknown | L37: Unknown | M37: Unknown | N37: >1000 | R37: Test 2-84-095 does not provide enough VG flow info. | S37: 1314 | V37: 2 | Y37: 0 | Z37: 0 | GK37: NA | GL37: NA | GM37: NA | GN37: NA | HZ37: 0 | JL37: No Assist | JM37: 0 | JO37: 55.9
A38: EPA-600/2-84-095 | B38: NA | C38: 7 | D38: 99.64% | E38: 20 | F38: NA | H38: NA | I38: NA | J38: Steam-Assisted | K38: Unknown | L38: Unknown | M38: Unknown | N38: >1000 | R38: Test 2-84-095 does not provide enough VG flow info. | S38: 1314 | V38: 2 | Y38: 0 | Z38: 0 | GK38: NA | GL38: NA | GM38: NA | GN38: NA | HZ38: 0 | JL38: No Assist | JM38: 0 | JO38: 55.9
A39: EPA-600/2-84-095 | B39: NA | C39: 8 | D39: 98.95% | E39: 20 | F39: NA | H39: NA | I39: NA | J39: Steam-Assisted | K39: Unknown | L39: Unknown | M39: Unknown | N39: >1000 | R39: Test 2-84-095 does not provide enough VG flow info. | S39: 1314 | V39: 2 | Y39: 0 | Z39: 0 | GK39: NA | GL39: NA | GM39: NA | GN39: NA | HZ39: 0 | JL39: No Assist | JM39: 0 | JO39: 55.9
A40: EPA-600/2-84-095 | B40: NA | C40: 9 | D40: 99.74% | E40: 20 | F40: NA | H40: NA | I40: NA | J40: Steam-Assisted | K40: Unknown | L40: Unknown | M40: Unknown | N40: >1000 | R40: Test 2-84-095 does not provide enough VG flow info. | S40: 1325 | V40: 9.9 | Y40: 0 | Z40: 0 | GK40: NA | GL40: NA | GM40: NA | GN40: NA | HZ40: 0 | JL40: No Assist | JM40: 0 | JO40: 56.4
A41: EPA-600/2-84-095 | B41: NA | C41: 10 | D41: 98.69% | E41: 20 | F41: NA | H41: NA | I41: NA | J41: Steam-Assisted | K41: Unknown | L41: Unknown | M41: Unknown | N41: >1000 | R41: Test 2-84-095 does not provide enough VG flow info. | S41: 1316 | V41: 10 | Y41: 0 | Z41: 0 | GK41: NA | GL41: NA | GM41: NA | GN41: NA | HZ41: 0 | JL41: No Assist | JM41: 0 | JO41: 56
A42: EPA-600/2-84-095 | B42: NA | C42: 11 | D42: 95.66% | E42: 20 | F42: NA | H42: NA | I42: NA | J42: Steam-Assisted | K42: Unknown | L42: Unknown | M42: Unknown | N42: >1000 | R42: Test 2-84-095 does not provide enough VG flow info. | S42: 1323 | V42: 10 | Y42: 0 | Z42: 0 | GK42: NA | GL42: NA | GM42: NA | GN42: NA | HZ42: 0 | JL42: No Assist | JM42: 0 | JO42: 56.3
A43: EPA-600/2-84-095 | B43: NA | C43: 12 | D43: 98.78% | E43: 20 | F43: NA | H43: NA | I43: NA | J43: Steam-Assisted | K43: Unknown | L43: Unknown | M43: Unknown | N43: >1000 | R43: Test 2-84-095 does not provide enough VG flow info. | S43: 1323 | V43: 10 | Y43: 0 | Z43: 0 | GK43: NA | GL43: NA | GM43: NA | GN43: NA | HZ43: 0 | JL43: No Assist | JM43: 0 | JO43: 56.3
A44: EPA-600/2-84-095 | B44: NA | C44: 13 | D44: 90.19% | E44: 20 | F44: NA | H44: NA | I44: NA | J44: Steam-Assisted | K44: Unknown | L44: Unknown | M44: Unknown | N44: >1000 | R44: Test 2-84-095 does not provide enough VG flow info. | S44: 273 | V44: 0.5 | Y44: 0 | Z44: 0 | GK44: NA | GL44: NA | GM44: NA | GN44: NA | HZ44: 0 | JL44: No Assist | JM44: 0 | JO44: 11.6
A45: EPA-600/2-84-095 | B45: NA | C45: 16 | D45: 99.83% | E45: 20 | F45: NA | H45: NA | I45: NA | J45: Steam-Assisted | K45: Unknown | L45: Unknown | M45: Unknown | N45: >1000 | R45: Test 2-84-095 does not provide enough VG flow info. | S45: 1323 | V45: 10 | Y45: 0 | Z45: 0 | GK45: NA | GL45: NA | GM45: NA | GN45: NA | HZ45: 0 | JL45: No Assist | JM45: 0.142 | JO45: 56.3
A46: EPA-600/2-84-095 | B46: NA | C46: 17 | D46: 99.96% | E46: 20 | F46: NA | H46: NA | I46: NA | J46: Steam-Assisted | K46: Unknown | L46: Unknown | M46: Unknown | N46: >1000 | R46: Test 2-84-095 does not provide enough VG flow info. | S46: 1323 | V46: 10 | Y46: 0 | Z46: 0 | GK46: NA | GL46: NA | GM46: NA | GN46: NA | HZ46: 0 | JL46: No Assist | JM46: 0.3 | JO46: 56.3
A47: EPA-600/2-84-095 | B47: NA | C47: 18 | D47: 99.89% | E47: 20 | F47: NA | H47: NA | I47: NA | J47: Steam-Assisted | K47: Unknown | L47: Unknown | M47: Unknown | N47: >1000 | R47: Test 2-84-095 does not provide enough VG flow info. | S47: 1321 | V47: 10 | Y47: 0 | Z47: 0 | GK47: NA | GL47: NA | GM47: NA | GN47: NA | HZ47: 0 | JL47: No Assist | JM47: 0.5 | JO47: 56.2
A48: EPA-600/2-84-095 | B48: NA | C48: 19 | D48: 98.94% | E48: 20 | F48: NA | H48: NA | I48: NA | J48: Steam-Assisted | K48: Unknown | L48: Unknown | M48: Unknown | N48: >1000 | R48: Test 2-84-095 does not provide enough VG flow info. | S48: 1323 | V48: 10 | Y48: 0 | Z48: 0 | GK48: NA | GL48: NA | GM48: NA | GN48: NA | HZ48: 0 | JL48: No Assist | JM48: 1 | JO48: 56.3
A49: EPA-600/2-84-095 | B49: NA | C49: 20 | D49: 99.12% | E49: 20 | F49: NA | H49: NA | I49: NA | J49: Steam-Assisted | K49: Unknown | L49: Unknown | M49: Unknown | N49: >1000 | R49: Test 2-84-095 does not provide enough VG flow info. | S49: 620 | V49: 12 | Y49: 0 | Z49: 0 | GK49: NA | GL49: NA | GM49: NA | GN49: NA | HZ49: 0 | JL49: No Assist | JM49: 0 | JO49: 26.4
A50: EPA-600/2-84-095 | B50: NA | C50: 21 | D50: 99.29% | E50: 20 | F50: NA | H50: NA | I50: NA | J50: Steam-Assisted | K50: Unknown | L50: Unknown | M50: Unknown | N50: >1000 | R50: Test 2-84-095 does not provide enough VG flow info. | S50: 343 | V50: 2.1 | Y50: 0 | Z50: 0 | GK50: NA | GL50: NA | GM50: NA | GN50: NA | HZ50: 0 | JL50: No Assist | JM50: 0 | JO50: 14.6
A51: EPA-600/2-84-095 | B51: NA | C51: 22 | D51: 99.60% | E51: 20 | F51: NA | H51: NA | I51: NA | J51: Steam-Assisted | K51: Unknown | L51: Unknown | M51: Unknown | N51: >1000 | R51: Test 2-84-095 does not provide enough VG flow info. | S51: 1293 | V51: 1 | Y51: 0 | Z51: 0 | GK51: NA | GL51: NA | GM51: NA | GN51: NA | HZ51: 0 | JL51: No Assist | JM51: 0 | JO51: 55
A52: EPA-600/2-84-095 | B52: NA | C52: 23 | D52: 99.81% | E52: 20 | F52: NA | H52: NA | I52: NA | J52: Steam-Assisted | K52: Unknown | L52: Unknown | M52: Unknown | N52: >1000 | R52: Test 2-84-095 does not provide enough VG flow info. | S52: 1314 | V52: 2.8 | Y52: 0 | Z52: 0 | GK52: NA | GL52: NA | GM52: NA | GN52: NA | HZ52: 0 | JL52: No Assist | JM52: 0 | JO52: 55.9
A53: EPA-600/2-84-095 | B53: NA | C53: 24 | D53: 99.81% | E53: 20 | F53: NA | H53: NA | I53: NA | J53: Steam-Assisted | K53: Unknown | L53: Unknown | M53: Unknown | N53: >1000 | R53: Test 2-84-095 does not provide enough VG flow info. | S53: 1314 | V53: 2.8 | Y53: 0 | Z53: 0 | GK53: NA | GL53: NA | GM53: NA | GN53: NA | HZ53: 0 | JL53: No Assist | JM53: 0 | JO53: 55.9
A54: EPA-600/2-84-095 | B54: NA | C54: 25 | D54: 99.75% | E54: 20 | F54: NA | H54: NA | I54: NA | J54: Steam-Assisted | K54: Unknown | L54: Unknown | M54: Unknown | N54: >1000 | R54: Test 2-84-095 does not provide enough VG flow info. | S54: 1314 | V54: 2.8 | Y54: 0 | Z54: 0 | GK54: NA | GL54: NA | GM54: NA | GN54: NA | HZ54: 0 | JL54: No Assist | JM54: 0 | JO54: 55.9
A55: EPA-600/2-84-095 | B55: NA | C55: 26 | D55: 99.76% | E55: 20 | F55: NA | H55: NA | I55: NA | J55: Steam-Assisted | K55: Unknown | L55: Unknown | M55: Unknown | N55: >1000 | R55: Test 2-84-095 does not provide enough VG flow info. | S55: 1314 | V55: 2.8 | Y55: 0 | Z55: 0 | GK55: NA | GL55: NA | GM55: NA | GN55: NA | HZ55: 0 | JL55: No Assist | JM55: 0 | JO55: 55.9
A56: EPA-600/2-84-095 | B56: NA | C56: 27 | D56: 99.92% | E56: 20 | F56: NA | H56: NA | I56: NA | J56: Steam-Assisted | K56: Unknown | L56: Unknown | M56: Unknown | N56: >1000 | R56: Test 2-84-095 does not provide enough VG flow info. | S56: 1314 | V56: 2.8 | Y56: 0 | Z56: 0 | GK56: NA | GL56: NA | GM56: NA | GN56: NA | HZ56: 0 | JL56: No Assist | JM56: 0.316 | JO56: 55.9
A57: EPA-600/2-84-095 | B57: NA | C57: 28 | D57: 94.15% | E57: 20 | F57: NA | H57: NA | I57: NA | J57: Steam-Assisted | K57: Unknown | L57: Unknown | M57: Unknown | N57: >1000 | R57: Test 2-84-095 does not provide enough VG flow info. | S57: 1318 | V57: 2.9 | Y57: 0 | Z57: 0 | GK57: NA | GL57: NA | GM57: NA | GN57: NA | HZ57: 0 | JL57: No Assist | JM57: 0 | JO57: 56.1
A58: EPA-600/2-84-095 | B58: NA | C58: 29 | D58: 99.56% | E58: 20 | F58: NA | H58: NA | I58: NA | J58: Steam-Assisted | K58: Unknown | L58: Unknown | M58: Unknown | N58: >1000 | R58: Test 2-84-095 does not provide enough VG flow info. | S58: 1318 | V58: 2.9 | Y58: 0 | Z58: 0 | GK58: NA | GL58: NA | GM58: NA | GN58: NA | HZ58: 0 | JL58: No Assist | JM58: 0 | JO58: 56.1
A59: EPA-600/2-84-095 | B59: NA | C59: 30 | D59: 98.47% | E59: 20 | F59: NA | H59: NA | I59: NA | J59: Steam-Assisted | K59: Unknown | L59: Unknown | M59: Unknown | N59: >1000 | R59: Test 2-84-095 does not provide enough VG flow info. | S59: 1323 | V59: 2.9 | Y59: 0 | Z59: 0 | GK59: NA | GL59: NA | GM59: NA | GN59: NA | HZ59: 0 | JL59: No Assist | JM59: 0 | JO59: 56.3
A60: EPA-600/2-84-095 | B60: NA | C60: 31 | D60: 98.90% | E60: 20 | F60: NA | H60: NA | I60: NA | J60: Steam-Assisted | K60: Unknown | L60: Unknown | M60: Unknown | N60: >1000 | R60: Test 2-84-095 does not provide enough VG flow info. | S60: 1316 | V60: 10.1 | Y60: 0 | Z60: 0 | GK60: NA | GL60: NA | GM60: NA | GN60: NA | HZ60: 0 | JL60: No Assist | JM60: 0 | JO60: 56
A61: EPA-600/2-84-095 | B61: NA | C61: 32 | D61: 99.89% | E61: 20 | F61: NA | H61: NA | I61: NA | J61: Steam-Assisted | K61: Unknown | L61: Unknown | M61: Unknown | N61: >1000 | R61: Test 2-84-095 does not provide enough VG flow info. | S61: 1316 | V61: 2.9 | Y61: 0 | Z61: 0 | GK61: NA | GL61: NA | GM61: NA | GN61: NA | HZ61: 0 | JL61: No Assist | JM61: 0.563 | JO61: 56
A62: EPA-600/2-84-095 | B62: NA | C62: 33 | D62: 96.35% | E62: 20 | F62: NA | H62: NA | I62: NA | J62: Steam-Assisted | K62: Unknown | L62: Unknown | M62: Unknown | N62: >1000 | R62: Test 2-84-095 does not provide enough VG flow info. | S62: 338 | V62: 1.1 | Y62: 0 | Z62: 0 | GK62: NA | GL62: NA | GM62: NA | GN62: NA | HZ62: 0 | JL62: No Assist | JM62: 0 | JO62: 14.4
A63: EPA-600/2-84-095 | B63: NA | C63: 34 | D63: 98.93% | E63: 20 | F63: NA | H63: NA | I63: NA | J63: Steam-Assisted | K63: Unknown | L63: Unknown | M63: Unknown | N63: >1000 | R63: Test 2-84-095 does not provide enough VG flow info. | S63: 414 | V63: 3.1 | Y63: 0 | Z63: 0 | GK63: NA | GL63: NA | GM63: NA | GN63: NA | HZ63: 0 | JL63: No Assist | JM63: 0 | JO63: 17.6
A64: EPA-600/2-84-095 | B64: NA | C64: 35 | D64: 86.93% | E64: 20 | F64: NA | H64: NA | I64: NA | J64: Steam-Assisted | K64: Unknown | L64: Unknown | M64: Unknown | N64: >1000 | R64: Test 2-84-095 does not provide enough VG flow info. | S64: 451 | V64: 3.1 | Y64: 0 | Z64: 0 | GK64: NA | GL64: NA | GM64: NA | GN64: NA | HZ64: 0 | JL64: No Assist | JM64: 0 | JO64: 19.2
A65: EPA-600/2-84-095 | B65: NA | C65: 36 | D65: 98.06% | E65: 20 | F65: NA | H65: NA | I65: NA | J65: Steam-Assisted | K65: Unknown | L65: Unknown | M65: Unknown | N65: >1000 | R65: Test 2-84-095 does not provide enough VG flow info. | S65: 454 | V65: 3.1 | Y65: 0 | Z65: 0 | GK65: NA | GL65: NA | GM65: NA | GN65: NA | HZ65: 0 | JL65: No Assist | JM65: 0 | JO65: 19.3
A66: EPA-600/2-84-095 | B66: NA | C66: 37 | D66: 92.24% | E66: 20 | F66: NA | H66: NA | I66: NA | J66: Steam-Assisted | K66: Unknown | L66: Unknown | M66: Unknown | N66: >1000 | R66: Test 2-84-095 does not provide enough VG flow info. | S66: 451 | V66: 3.1 | Y66: 0 | Z66: 0 | GK66: NA | GL66: NA | GM66: NA | GN66: NA | HZ66: 0 | JL66: No Assist | JM66: 0 | JO66: 19.2
A67: EPA-600/2-84-095 | B67: NA | C67: 38 | D67: 98.76% | E67: 20 | F67: NA | H67: NA | I67: NA | J67: Steam-Assisted | K67: Unknown | L67: Unknown | M67: Unknown | N67: >1000 | R67: Test 2-84-095 does not provide enough VG flow info. | S67: 613 | V67: 11.7 | Y67: 0 | Z67: 0 | FW67: =((BB67/100)*(GC67-1))+((AF67/100)*(GD67-1)) ->  | FX67: =1/(((AA67/1.8)+(AB67/2)+(AC67/2)+(AD67/2.5)+(AE67/1.3)+(AG67/12.5)+(AH67/1.7)+(AI67/2.4)+(AJ67/3)+(AK67/1)+(AL67/2.7)+(AM67/4)+(AN67/4)+(AO67/1.8)+(AP67/1.8)+(AQ67/5)+(AR67/1.7)+(AS67/1.8)+(AV67/1.4)+(AW67/2.16)+(AX67/2.1)+(AY67/2.4)+(AZ67/1.2)+(BA67/1.7)+(BC67/1.1))-FW67) ->  | GE67: =((DZ67+EB67)*(GC67-1))+(DD67*(GD67-1)) ->  | GF67: =1/(((100*CY67/1.8)+(100*CZ67/2)+(100*DA67/2)+(100*DB67/2.5)+(100*DC67/1.3)+(100*DE67/12.5)+(100*DF67/1.7)+(100*DG67/2.4)+(100*DH67/3)+(100*DI67/1)+(100*DJ67/2.7)+(100*DK67/4)+(100*DL67/4)+(100*DM67/1.8)+(100*DN67/1.8)+(100*DO67/5)+(100*DP67/1.7)+(100*DQ67/1.8)+(100*DT67/1.4)+(100*DU67/2.16)+(100*DV67/2.1)+(100*DW67/2.4)+(100*DX67/1.2)+(100*DY67/1.7)+(100*EA67/1.1)+(100*ED67/5))-GE67) ->  | GK67: NA | GL67: NA | GM67: NA | GN67: NA | GR67: =((JC67+JE67)*(GP67-1))+(IG67*(GQ67-1)) ->  | GS67: =1/(((100*IB67/1.8)+(100*IC67/2)+(100*ID67/2)+(100*IE67/2.5)+(100*IF67/1.3)+(100*IH67/12.5)+(100*II67/1.7)+(100*IJ67/2.4)+(100*IK67/3)+(100*IL67/1)+(100*IM67/2.7)+(100*IN67/4)+(100*IO67/4)+(100*IP67/1.8)+(100*IQ67/1.8)+(100*IR67/5)+(100*IS67/1.7)+(100*IT67/1.8)+(100*IW67/1.4)+(100*IX67/2.16)+(100*IY67/2.1)+(100*IZ67/2.4)+(100*JA67/1.2)+(100*JB67/1.7)+(100*JD67/1.1)+(100*JF67/5))-GR67) ->  | GU67: =((2*3.14)*(SQRT(Q67/3.14)))*((GT67/6.85)^5) ->  | GV67: =IF(W67>GU67,"Yes","No") ->  | HZ67: 0 | JL67: =IF(CV67>0,"Steam Assist","No Assist") -> No Assist | JM67: 0 | JO67: 26.1
A68: EPA-600/2-84-095 | B68: NA | C68: 39 | D68: 99.29% | E68: 20 | F68: NA | H68: NA | I68: NA | J68: =IF(JL68="Air Assist", "Air-Assisted","Steam-Assisted") -> Steam-Assisted | K68: Unknown | L68: Unknown | M68: Unknown | N68: >1000 | R68: Test 2-84-095 does not provide enough VG flow info. | S68: 1309 | V68: 0.2 | Y68: 0 | Z68: 0 | EO68: =BS68/(SUM(BS68:BW68,BY68:CK68,CN68:CS68,CU68)) ->  | EP68: =BT68/(SUM(BS68:BW68,BY68:CK68,CN68:CS68,CU68)) ->  | EQ68: =BU68/(SUM(BS68:BW68,BY68:CK68,CN68:CS68,CU68)) ->  | ER68: =BV68/(SUM(BS68:BW68,BY68:CK68,CN68:CS68,CU68)) ->  | ES68: =BW68/(SUM(BS68:BW68,BY68:CK68,CN68:CS68,CU68)) ->  | EU68: =BY68/(SUM(BS68:BW68,BY68:CK68,CN68:CS68,CU68)) ->  | EV68: =BZ68/(SUM(BS68:BW68,BY68:CK68,CN68:CS68,CU68)) ->  | EW68: =CA68/(SUM(BS68:BW68,BY68:CK68,CN68:CS68,CU68)) ->  | EX68: =CB68/(SUM(BS68:BW68,BY68:CK68,CN68:CS68,CU68)) ->  | EY68: =CC68/(SUM(BS68:BW68,BY68:CK68,CN68:CS68,CU68)) ->  | EZ68: =CD68/(SUM(BS68:BW68,BY68:CK68,CN68:CS68,CU68)) ->  | FA68: =CE68/(SUM(BS68:BW68,BY68:CK68,CN68:CS68,CU68)) ->  | FB68: =CF68/(SUM(BS68:BW68,BY68:CK68,CN68:CS68,CU68)) ->  | FC68: =CG68/(SUM(BS68:BW68,BY68:CK68,CN68:CS68,CU68)) ->  | FD68: =CH68/(SUM(BS68:BW68,BY68:CK68,CN68:CS68,CU68)) ->  | FE68: =CI68/(SUM(BS68:BW68,BY68:CK68,CN68:CS68,CU68)) ->  | FF68: =CJ68/(SUM(BS68:BW68,BY68:CK68,CN68:CS68,CU68)) ->  | FG68: =CK68/(SUM(BS68:BW68,BY68:CK68,CN68:CS68,CU68)) ->  | FJ68: =CN68/(SUM(BS68:BW68,BY68:CK68,CN68:CS68,CU68)) ->  | FK68: =CO68/(SUM(BS68:BW68,BY68:CK68,CN68:CS68,CU68)) ->  | FL68: =CP68/(SUM(BS68:BW68,BY68:CK68,CN68:CS68,CU68)) ->  | FM68: =CQ68/(SUM(BS68:BW68,BY68:CK68,CN68:CS68,CU68)) ->  | FN68: =CR68/(SUM(BS68:BW68,BY68:CK68,CN68:CS68,CU68)) ->  | FO68: =CS68/(SUM(BS68:BW68,BY68:CK68,CN68:CS68,CU68)) ->  | FQ68: =CU68/(SUM(BS68:BW68,BY68:CK68,CN68:CS68,CU68)) ->  | FU68: =(U68*S68)/(U68+BD68) ->  | FV68: =1/((AA68/1.8)+(AB68/2)+(AC68/2)+(AD68/2.5)+(AE68/1.3)+(AG68/12.5)+(AH68/1.7)+(AI68/2.4)+(AJ68/3)+(AK68/1)+(AL68/2.7)+(AM68/4)+(AN68/4)+(AO68/1.8)+(AP68/1.8)+(AQ68/5)+(AR68/1.7)+(AS68/1.8)+(AV68/1.4)+(AW68/2.16)+(AX68/2.1)+(AY68/2.4)+(AZ68/1.2)+(BA68/1.7)+(BC68/1.1)) ->  | FY68: =FX68*S68 ->  | FZ68: =FU68/FY68 ->  | GA68: =1/((100*EO68/1.8)+(100*EP68/2)+(100*EQ68/2)+(100*ER68/2.5)+(100*ES68/1.3)+(100*EU68/12.5)+(100*EV68/1.7)+(100*EW68/2.4)+(100*EX68/3)+(100*EY68/1)+(100*EZ68/2.7)+(100*FA68/4)+(100*FB68/4)+(100*FC68/1.8)+(100*FD68/1.8)+(100*FE68/5)+(100*FF68/1.7)+(100*FG68/1.8)+(100*FJ68/1.4)+(100*FK68/2.16)+(100*FL68/2.1)+(100*FM68/2.4)+(100*FN68/1.2)+(100*FO68/1.7)+(100*FQ68/1.1)) ->  | GB68: =1/((100*CY68/1.8)+(100*CZ68/2)+(100*DA68/2)+(100*DB68/2.5)+(100*DC68/1.3)+(100*DE68/12.5)+(100*DF68/1.7)+(100*DG68/2.4)+(100*DH68/3)+(100*DI68/1)+(100*DJ68/2.7)+(100*DK68/4)+(100*DL68/4)+(100*DM68/1.8)+(100*DN68/1.8)+(100*DO68/5)+(100*DP68/1.7)+(100*DQ68/1.8)+(100*DT68/1.4)+(100*DU68/2.16)+(100*DV68/2.1)+(100*DW68/2.4)+(100*DX68/1.2)+(100*DY68/1.7)+(100*EA68/1.1)+(100*ED68/5)) ->  | GC68: =((CI68*1.87)+(CB68*1.4)+(CP68*1.51)+(CD68*1.68)+(CQ68*1.36)+(CE68*1.35)+((BS68+BT68+BU68+BV68+BW68+BY68+BZ68+CA68+CC68+CF68+CG68+CH68+CJ68+CK68+CN68+CO68+CR68+CS68+CU68)*1.5))/(CI68+CB68+CP68+CD68+CQ68+CE68+BS68+BT68+BU68+BV68+BW68+BY68+BZ68+CA68+CC68+CF68+CG68+CH68+CJ68+CK68+CN68+CO68+CR68+CS68+CU68) ->  | GD68: =((CI68*2.23)+(CB68*1.87)+(CP68*1.93)+(CD68*1.84)+(CQ68*1.92)+(CE68*1.51)+((BS68+BT68+BU68+BV68+BW68+BY68+BZ68+CA68+CC68+CF68+CG68+CH68+CJ68+CK68+CN68+CO68+CR68+CS68+CU68)*1.87))/(CI68+CB68+CP68+CD68+CQ68+CE68+BS68+BT68+BU68+BV68+BW68+BY68+BZ68+CA68+CC68+CF68+CG68+CH68+CJ68+CK68+CN68+CO68+CR68+CS68+CU68) ->  | GK68: NA | GL68: NA | GM68: NA | GN68: NA | GO68: =W68/(3.14*P68) ->  | GP68: =((HM68*1.87)+(HF68*1.4)+(HT68*1.51)+(HH68*1.68)+(HU68*1.36)+(HI68*1.35)+((GW68+GX68+GY68+GZ68+HA68+HC68+HD68+HE68+HG68+HJ68+HK68+HL68+HN68+HO68+HR68+HS68+HV68+HW68+HY68+IA68)*1.5))/(HM68+HF68+HT68+HH68+HU68+HI68+GW68+GX68+GY68+GZ68+HA68+HC68+HD68+HE68+HG68+HJ68+HK68+HL68+HN68+HO68+HR68+HS68+HV68+HW68+HY68+IA68) ->  | GQ68: =((HM68*2.23)+(HF68*1.87)+(HT68*1.93)+(HH68*1.84)+(HU68*1.92)+(HI68*1.51)+((GW68+GX68+GY68+GZ68+HA68+HC68+HD68+HE68+HG68+HJ68+HK68+HL68+HN68+HO68+HR68+HS68+HV68+HW68+HY68+IA68)*1.5))/(HM68+HF68+HT68+HH68+HU68+HI68+GW68+GX68+GY68+GZ68+HA68+HC68+HD68+HE68+HG68+HJ68+HK68+HL68+HN68+HO68+HR68+HS68+HV68+HW68+HY68+IA68) ->  | GT68: =((100-(GS68*100))/(GS68*100))*(GL68/0.07492) ->  | HZ68: =IF(BH68="None",0,BH68) -> 0 | IB68: =GW68/(SUM(GW68:IA68)) ->  | IC68: =GX68/(SUM(GW68:IA68)) ->  | ID68: =GY68/(SUM(GW68:IA68)) ->  | IE68: =GZ68/(SUM(GW68:IA68)) ->  | IF68: =HA68/(SUM(GW68:IA68)) ->  | IG68: =HB68/(SUM(GW68:IA68)) ->  | IH68: =HC68/(SUM(GW68:IA68)) ->  | II68: =HD68/(SUM(GW68:IA68)) ->  | IJ68: =HE68/(SUM(GW68:IA68)) ->  | IK68: =HF68/(SUM(GW68:IA68)) ->  | IL68: =HG68/(SUM(GW68:IA68)) ->  | IM68: =HH68/(SUM(GW68:IA68)) ->  | IN68: =HI68/(SUM(GW68:IA68)) ->  | IO68: =HJ68/(SUM(GW68:IA68)) ->  | IP68: =HK68/(SUM(GW68:IA68)) ->  | IQ68: =HL68/(SUM(GW68:IA68)) ->  | IR68: =HM68/(SUM(GW68:IA68)) ->  | IS68: =HN68/(SUM(GW68:IA68)) ->  | IT68: =HO68/(SUM(GW68:IA68)) ->  | IU68: =HP68/(SUM(GW68:IA68)) ->  | IV68: =HQ68/(SUM(GW68:IA68)) ->  | IW68: =HR68/(SUM(GW68:IA68)) ->  | IX68: =HS68/(SUM(GW68:IA68)) ->  | IY68: =HT68/(SUM(GW68:IA68)) ->  | IZ68: =HU68/(SUM(GW68:IA68)) ->  | JA68: =HV68/(SUM(GW68:IA68)) ->  | JB68: =HW68/(SUM(GW68:IA68)) ->  | JC68: =HX68/(SUM(GW68:IA68)) ->  | JD68: =HY68/(SUM(GW68:IA68)) ->  | JE68: =HZ68/(SUM(GW68:IA68)) ->  | JF68: =IA68/(SUM(GW68:IA68)) ->  | JL68: No Assist | JM68: 0 | JO68: 55.7
A69: EPA-600/2-84-095 | B69: NA | C69: 40 | D69: 99.24% | E69: 20 | F69: NA | H69: NA | I69: NA | J69: Steam-Assisted | K69: Unknown | L69: Unknown | M69: Unknown | N69: >1000 | R69: Test 2-84-095 does not provide enough VG flow info. | S69: 1323 | V69: 2 | Y69: 0 | Z69: 0 | GK69: NA | GL69: NA | GM69: NA | GN69: NA | HZ69: 0 | JL69: No Assist | JM69: 0 | JO69: 56.3
A70: EPA-600/2-84-095 | B70: NA | C70: 41 | D70: 99.50% | E70: 20 | F70: NA | H70: NA | I70: NA | J70: Steam-Assisted | K70: Unknown | L70: Unknown | M70: Unknown | N70: >1000 | R70: Test 2-84-095 does not provide enough VG flow info. | S70: 1314 | V70: 4.1 | Y70: 0 | Z70: 0 | GK70: NA | GL70: NA | GM70: NA | GN70: NA | HZ70: 0 | JL70: No Assist | JM70: 0 | JO70: 55.9
A71: EPA-600/2-84-095 | B71: NA | C71: 42 | D71: 99.48% | E71: 20 | F71: NA | H71: NA | I71: NA | J71: Steam-Assisted | K71: Unknown | L71: Unknown | M71: Unknown | N71: >1000 | R71: Test 2-84-095 does not provide enough VG flow info. | S71: 1314 | V71: 4 | Y71: 0 | Z71: 0 | GK71: NA | GL71: NA | GM71: NA | GN71: NA | HZ71: 0 | JL71: No Assist | JM71: 0 | JO71: 55.9
A72: EPA-600/2-84-095 | B72: NA | C72: 43 | D72: 99.50% | E72: 20 | F72: NA | H72: NA | I72: NA | J72: Steam-Assisted | K72: Unknown | L72: Unknown | M72: Unknown | N72: >1000 | R72: Test 2-84-095 does not provide enough VG flow info. | S72: 1318 | V72: 4.1 | Y72: 0 | Z72: 0 | GK72: NA | GL72: NA | GM72: NA | GN72: NA | HZ72: 0 | JL72: No Assist | JM72: 0 | JO72: 56.1
A73: EPA-600/2-84-095 | B73: NA | C73: 44 | D73: 99.73% | E73: 20 | F73: NA | H73: NA | I73: NA | J73: Steam-Assisted | K73: Unknown | L73: Unknown | M73: Unknown | N73: >1000 | R73: Test 2-84-095 does not provide enough VG flow info. | S73: 378 | V73: 2.1 | Y73: 0 | Z73: 0 | GK73: NA | GL73: NA | GM73: NA | GN73: NA | HZ73: 0 | JL73: No Assist | JM73: 0 | JO73: 16.1
A74: EPA-600/2-84-095 | B74: NA | C74: 45 | D74: 99.91% | E74: 20 | F74: NA | H74: NA | I74: NA | J74: Steam-Assisted | K74: Unknown | L74: Unknown | M74: Unknown | N74: >1000 | R74: Test 2-84-095 does not provide enough VG flow info. | S74: 980 | V74: 0.2 | Y74: 0 | Z74: 0 | GK74: NA | GL74: NA | GM74: NA | GN74: NA | HZ74: 0 | JL74: No Assist | JM74: 0 | JO74: 0
A75: EPA-600/2-84-095 | B75: NA | C75: 46 | D75: 98.62% | E75: 20 | F75: NA | H75: NA | I75: NA | J75: Steam-Assisted | K75: Unknown | L75: Unknown | M75: Unknown | N75: >1000 | R75: Test 2-84-095 does not provide enough VG flow info. | S75: 451 | V75: 0.2 | Y75: 0 | Z75: 0 | GK75: NA | GL75: NA | GM75: NA | GN75: NA | HZ75: 0 | JL75: No Assist | JM75: 0 | JO75: 19.2
A76: EPA-600/2-84-095 | B76: NA | C76: 47 | D76: 94.89% | E76: 20 | F76: NA | H76: NA | I76: NA | J76: Steam-Assisted | K76: Unknown | L76: Unknown | M76: Unknown | N76: >1000 | R76: Test 2-84-095 does not provide enough VG flow info. | S76: 385 | V76: 4.1 | Y76: 0 | Z76: 0 | GK76: NA | GL76: NA | GM76: NA | GN76: NA | HZ76: 0 | JL76: No Assist | JM76: 0 | JO76: 16.4
A77: EPA-600/2-84-095 | B77: NA | C77: 48 | D77: 96.71% | E77: 20 | F77: NA | H77: NA | I77: NA | J77: Steam-Assisted | K77: Unknown | L77: Unknown | M77: Unknown | N77: >1000 | R77: Test 2-84-095 does not provide enough VG flow info. | S77: 390 | V77: 4.2 | Y77: 0 | Z77: 0 | GK77: NA | GL77: NA | GM77: NA | GN77: NA | HZ77: 0 | JL77: No Assist | JM77: 0 | JO77: 16.6
A78: EPA-600/2-84-095 | B78: NA | C78: 49 | D78: 99.73% | E78: 20 | F78: NA | H78: NA | I78: NA | J78: Steam-Assisted | K78: Unknown | L78: Unknown | M78: Unknown | N78: >1000 | R78: Test 2-84-095 does not provide enough VG flow info. | S78: 385 | V78: 4.2 | Y78: 0 | Z78: 0 | GK78: NA | GL78: NA | GM78: NA | GN78: NA | HZ78: 0 | JL78: No Assist | JM78: 0 | JO78: 16.4
A79: EPA-600/2-84-095 | B79: NA | C79: 50 | D79: 99.32% | E79: 20 | F79: NA | H79: NA | I79: NA | J79: Steam-Assisted | K79: Unknown | L79: Unknown | M79: Unknown | N79: >1000 | R79: Test 2-84-095 does not provide enough VG flow info. | S79: 1323 | V79: 4 | Y79: 0 | Z79: 0 | GK79: NA | GL79: NA | GM79: NA | GN79: NA | HZ79: 0 | JL79: No Assist | JM79: 0.457 | JO79: 56.3
A80: EPA-600/2-84-095 | B80: NA | C80: 51 | D80: 91.81% | E80: 20 | F80: NA | H80: NA | I80: NA | J80: Steam-Assisted | K80: Unknown | L80: Unknown | M80: Unknown | N80: >1000 | R80: Test 2-84-095 does not provide enough VG flow info. | S80: 362 | V80: 2.1 | Y80: 0 | Z80: 0 | GK80: NA | GL80: NA | GM80: NA | GN80: NA | HZ80: 0 | JL80: No Assist | JM80: 0 | JO80: 15.4
A81: EPA-600/2-84-095 | B81: NA | C81: 52 | D81: 98.09% | E81: 20 | F81: NA | H81: NA | I81: NA | J81: Steam-Assisted | K81: Unknown | L81: Unknown | M81: Unknown | N81: >1000 | R81: Test 2-84-095 does not provide enough VG flow info. | S81: 376 | V81: 2.1 | Y81: 0 | Z81: 0 | GK81: NA | GL81: NA | GM81: NA | GN81: NA | HZ81: 0 | JL81: No Assist | JM81: 0 | JO81: 16
A82: EPA-600/2-84-095 | B82: NA | C82: 53 | D82: 99.28% | E82: 20 | F82: NA | H82: NA | I82: NA | J82: Steam-Assisted | K82: Unknown | L82: Unknown | M82: Unknown | N82: >1000 | R82: Test 2-84-095 does not provide enough VG flow info. | S82: 1309 | V82: 0.65 | Y82: 0 | Z82: 0 | GK82: NA | GL82: NA | GM82: NA | GN82: NA | HZ82: 0 | JL82: No Assist | JM82: 0 | JO82: 55.7
A83: EPA-600/2-84-095 | B83: NA | C83: 54 | D83: 99.08% | E83: 20 | F83: NA | H83: NA | I83: NA | J83: Steam-Assisted | K83: Unknown | L83: Unknown | M83: Unknown | N83: >1000 | R83: Test 2-84-095 does not provide enough VG flow info. | S83: 1316 | V83: 6.5 | Y83: 0 | Z83: 0 | GK83: NA | GL83: NA | GM83: NA | GN83: NA | HZ83: 0 | JL83: No Assist | JM83: 0 | JO83: 56
A84: EPA-600/2-84-095 | B84: NA | C84: 55 | D84: 99.65% | E84: 20 | F84: NA | H84: NA | I84: NA | J84: Steam-Assisted | K84: Unknown | L84: Unknown | M84: Unknown | N84: >1000 | R84: Test 2-84-095 does not provide enough VG flow info. | S84: 1328 | V84: 13.3 | Y84: 0 | Z84: 0 | GK84: NA | GL84: NA | GM84: NA | GN84: NA | HZ84: 0 | JL84: No Assist | JM84: 0 | JO84: 56.5
A85: EPA-600/2-84-095 | B85: NA | C85: 56 | D85: 99.28% | E85: 20 | F85: NA | H85: NA | I85: NA | J85: Steam-Assisted | K85: Unknown | L85: Unknown | M85: Unknown | N85: >1000 | R85: Test 2-84-095 does not provide enough VG flow info. | S85: 1316 | V85: 13 | Y85: 0 | Z85: 0 | GK85: NA | GL85: NA | GM85: NA | GN85: NA | HZ85: 0 | JL85: No Assist | JM85: 0 | JO85: 56
A86: EPA-600/2-84-095 | B86: NA | C86: 57 | D86: 98.18% | E86: 20 | F86: NA | H86: NA | I86: NA | J86: Steam-Assisted | K86: Unknown | L86: Unknown | M86: Unknown | N86: >1000 | R86: Test 2-84-095 does not provide enough VG flow info. | S86: 1316 | V86: 13 | Y86: 0 | Z86: 0 | GK86: NA | GL86: NA | GM86: NA | GN86: NA | HZ86: 0 | JL86: No Assist | JM86: 0 | JO86: 56
A87: EPA-600/2-84-095 | B87: NA | C87: 58 | D87: 99.52% | E87: 20 | F87: NA | H87: NA | I87: NA | J87: Steam-Assisted | K87: Unknown | L87: Unknown | M87: Unknown | N87: >1000 | R87: Test 2-84-095 does not provide enough VG flow info. | S87: 371 | V87: 6.8 | Y87: 0 | Z87: 0 | GK87: NA | GL87: NA | GM87: NA | GN87: NA | HZ87: 0 | JL87: No Assist | JM87: 0 | JO87: 15.8
A88: EPA-600/2-84-095 | B88: NA | C88: 59 | D88: 99.55% | E88: 20 | F88: NA | H88: NA | I88: NA | J88: Steam-Assisted | K88: Unknown | L88: Unknown | M88: Unknown | N88: >1000 | R88: Test 2-84-095 does not provide enough VG flow info. | S88: 1314 | V88: 13 | Y88: 0 | Z88: 0 | GK88: NA | GL88: NA | GM88: NA | GN88: NA | HZ88: 0 | JL88: No Assist | JM88: 0.456 | JO88: 55.9
A89: EPA-600/2-84-095 | B89: NA | C89: 60 | D89: 91.16% | E89: 20 | F89: NA | H89: NA | I89: NA | J89: Steam-Assisted | K89: Unknown | L89: Unknown | M89: Unknown | N89: >1000 | R89: Test 2-84-095 does not provide enough VG flow info. | S89: 522 | V89: 14.63 | Y89: 0 | Z89: 0 | GK89: NA | GL89: NA | GM89: NA | GN89: NA | HZ89: 0 | JL89: No Assist | JM89: 0 | JO89: 22.2
A90: EPA-600/2-84-095 | B90: NA | C90: 61 | D90: 99.50% | E90: 20 | F90: NA | H90: NA | I90: NA | J90: Steam-Assisted | K90: Unknown | L90: Unknown | M90: Unknown | N90: >1000 | R90: Test 2-84-095 does not provide enough VG flow info. | S90: 458 | V90: 0.65 | Y90: 0 | Z90: 0 | GK90: NA | GL90: NA | GM90: NA | GN90: NA | HZ90: 0 | JL90: No Assist | JM90: 0 | JO90: 19.5
A91: EPA-600/2-84-095 | B91: NA | C91: 62 | D91: 99.12% | E91: 20 | F91: NA | H91: NA | I91: NA | J91: Steam-Assisted | K91: Unknown | L91: Unknown | M91: Unknown | N91: >1000 | R91: Test 2-84-095 does not provide enough VG flow info. | S91: 1269 | V91: 2 | Y91: 0 | Z91: 0 | GK91: NA | GL91: NA | GM91: NA | GN91: NA | HZ91: 0 | JL91: No Assist | JM91: 0 | JO91: 54
A92: EPA-600/2-84-095 | B92: NA | C92: 63 | D92: 99.37% | E92: 20 | F92: NA | H92: NA | I92: NA | J92: Steam-Assisted | K92: Unknown | L92: Unknown | M92: Unknown | N92: >1000 | R92: Test 2-84-095 does not provide enough VG flow info. | S92: 1318 | V92: 4.3 | Y92: 0 | Z92: 0 | GK92: NA | GL92: NA | GM92: NA | GN92: NA | HZ92: 0 | JL92: No Assist | JM92: 0 | JO92: 56.1
A93: EPA-600/2-84-095 | B93: NA | C93: 64 | D93: 98.49% | E93: 20 | F93: NA | H93: NA | I93: NA | J93: Steam-Assisted | K93: Unknown | L93: Unknown | M93: Unknown | N93: >1000 | R93: Test 2-84-095 does not provide enough VG flow info. | S93: 392 | V93: 4.5 | Y93: 0 | Z93: 0 | GK93: NA | GL93: NA | GM93: NA | GN93: NA | HZ93: 0 | JL93: No Assist | JM93: 0 | JO93: 16.7
A94: EPA-600/2-84-095 | B94: NA | C94: 65 | D94: 99.85% | E94: 20 | F94: NA | H94: NA | I94: NA | J94: Steam-Assisted | K94: Unknown | L94: Unknown | M94: Unknown | N94: >1000 | R94: Test 2-84-095 does not provide enough VG flow info. | S94: 1318 | V94: 4.3 | Y94: 0 | Z94: 0 | GK94: NA | GL94: NA | GM94: NA | GN94: NA | HZ94: 0 | JL94: No Assist | JM94: 0.511 | JO94: 56.1
A95: EPA-600/2-84-095 | B95: NA | C95: 66 | D95: 99.63% | E95: 20 | F95: NA | H95: NA | I95: NA | J95: Steam-Assisted | K95: Unknown | L95: Unknown | M95: Unknown | N95: >1000 | R95: Test 2-84-095 does not provide enough VG flow info. | S95: 1316 | V95: 4.3 | Y95: 0 | Z95: 0 | GK95: NA | GL95: NA | GM95: NA | GN95: NA | HZ95: 0 | JL95: No Assist | JM95: 0 | JO95: 56
A96: EPA-600/2-84-095 | B96: NA | C96: 67 | D96: 99.61% | E96: 20 | F96: NA | H96: NA | I96: NA | J96: Steam-Assisted | K96: Unknown | L96: Unknown | M96: Unknown | N96: >1000 | R96: Test 2-84-095 does not provide enough VG flow info. | S96: 1316 | V96: 4.3 | Y96: 0 | Z96: 0 | GK96: NA | GL96: NA | GM96: NA | GN96: NA | HZ96: 0 | JL96: No Assist | JM96: 0 | JO96: 56
A97: EPA-600/2-84-095 | B97: NA | C97: 68 | D97: 99.78% | E97: 20 | F97: NA | H97: NA | I97: NA | J97: Steam-Assisted | K97: Unknown | L97: Unknown | M97: Unknown | N97: >1000 | R97: Test 2-84-095 does not provide enough VG flow info. | S97: 1309 | V97: 0.22 | Y97: 0 | Z97: 0 | GK97: NA | GL97: NA | GM97: NA | GN97: NA | HZ97: 0 | JL97: No Assist | JM97: 0 | JO97: 55.7
A98: EPA-600/2-84-095 | B98: NA | C98: 69 | D98: 97.11% | E98: 20 | F98: NA | H98: NA | I98: NA | J98: Steam-Assisted | K98: Unknown | L98: Unknown | M98: Unknown | N98: >1000 | R98: Test 2-84-095 does not provide enough VG flow info. | S98: 336 | V98: 3 | Y98: 0 | Z98: 0 | GK98: NA | GL98: NA | GM98: NA | GN98: NA | HZ98: 0 | JL98: No Assist | JM98: 0 | JO98: 14.3
A99: EPA-600/2-84-095 | B99: NA | C99: 70 | D99: 99.14% | E99: 20 | F99: NA | H99: NA | I99: NA | J99: Steam-Assisted | K99: Unknown | L99: Unknown | M99: Unknown | N99: >1000 | R99: Test 2-84-095 does not provide enough VG flow info. | S99: 287 | V99: 1 | Y99: 0 | Z99: 0 | GK99: NA | GL99: NA | GM99: NA | GN99: NA | HZ99: 0 | JL99: No Assist | JM99: 0 | JO99: 12.2
A100: EPA-600/2-84-095 | B100: NA | C100: 71 | D100: 99.36% | E100: 20 | F100: NA | H100: NA | I100: NA | J100: Steam-Assisted | K100: Unknown | L100: Unknown | M100: Unknown | N100: >1000 | R100: Test 2-84-095 does not provide enough VG flow info. | S100: 343 | V100: 10.3 | Y100: 0 | Z100: 0 | GK100: NA | GL100: NA | GM100: NA | GN100: NA | HZ100: 0 | JL100: No Assist | JM100: 0 | JO100: 14.6
A101: EPA-600/2-84-095 | B101: NA | C101: 72 | D101: 93.49% | E101: 20 | F101: NA | H101: NA | I101: NA | J101: Steam-Assisted | K101: Unknown | L101: Unknown | M101: Unknown | N101: >1000 | R101: Test 2-84-095 does not provide enough VG flow info. | S101: 345 | V101: 2.9 | Y101: 0 | Z101: 0 | GK101: NA | GL101: NA | GM101: NA | GN101: NA | HZ101: 0 | JL101: No Assist | JM101: 0 | JO101: 14.7
A102: EPA-600/2-84-095 | B102: NA | C102: 73 | D102: 97.97% | E102: 20 | F102: NA | H102: NA | I102: NA | J102: Steam-Assisted | K102: Unknown | L102: Unknown | M102: Unknown | N102: >1000 | R102: Test 2-84-095 does not provide enough VG flow info. | S102: 291 | V102: 1 | Y102: 0 | Z102: 0 | GK102: NA | GL102: NA | GM102: NA | GN102: NA | HZ102: 0 | JL102: No Assist | JM102: 0 | JO102: 12.4
A103: EPA-600/2-84-095 | B103: NA | C103: 74 | D103: 99.02% | E103: 20 | F103: NA | H103: NA | I103: NA | J103: Steam-Assisted | K103: Unknown | L103: Unknown | M103: Unknown | N103: >1000 | R103: Test 2-84-095 does not provide enough VG flow info. | S103: 350 | V103: 2.9 | Y103: 0 | Z103: 0 | GK103: NA | GL103: NA | GM103: NA | GN103: NA | HZ103: 0 | JL103: No Assist | JM103: 0 | JO103: 14.9
A104: EPA-600/2-84-095 | B104: NA | C104: 75 | D104: 99.66% | E104: 20 | F104: NA | H104: NA | I104: NA | J104: Steam-Assisted | K104: Unknown | L104: Unknown | M104: Unknown | N104: >1000 | R104: Test 2-84-095 does not provide enough VG flow info. | S104: 1321 | V104: 2.9 | Y104: 0 | Z104: 0 | GK104: NA | GL104: NA | GM104: NA | GN104: NA | HZ104: 0 | JL104: No Assist | JM104: 0 | JO104: 56.2
A105: EPA-600/2-84-095 | B105: NA | C105: 76 | D105: 99.54% | E105: 20 | F105: NA | H105: NA | I105: NA | J105: Steam-Assisted | K105: Unknown | L105: Unknown | M105: Unknown | N105: >1000 | R105: Test 2-84-095 does not provide enough VG flow info. | S105: 1311 | V105: 1 | Y105: 0 | Z105: 0 | GK105: NA | GL105: NA | GM105: NA | GN105: NA | HZ105: 0 | JL105: No Assist | JM105: 0 | JO105: 55.8
A106: EPA-600/2-84-095 | B106: NA | C106: 77 | D106: 95.11% | E106: 20 | F106: NA | H106: NA | I106: NA | J106: Steam-Assisted | K106: Unknown | L106: Unknown | M106: Unknown | N106: >1000 | R106: Test 2-84-095 does not provide enough VG flow info. | S106: 1316 | V106: 39.6 | Y106: 0 | Z106: 0 | GK106: NA | GL106: NA | GM106: NA | GN106: NA | HZ106: 0 | JL106: No Assist | JM106: 0 | JO106: 56
A107: EPA-600/2-84-095 | B107: NA | C107: 78 | D107: 98.40% | E107: 20 | F107: NA | H107: NA | I107: NA | J107: Steam-Assisted | K107: Unknown | L107: Unknown | M107: Unknown | N107: >1000 | R107: Test 2-84-095 does not provide enough VG flow info. | S107: 1325 | V107: 80 | Y107: 0 | Z107: 0 | GK107: NA | GL107: NA | GM107: NA | GN107: NA | HZ107: 0 | JL107: No Assist | JM107: 0 | JO107: 56.4
A108: EPA-600/2-84-095 | B108: NA | C108: 79 | D108: 99.66% | E108: 20 | F108: NA | H108: NA | I108: NA | J108: Steam-Assisted | K108: Unknown | L108: Unknown | M108: Unknown | N108: >1000 | R108: Test 2-84-095 does not provide enough VG flow info. | S108: 1307 | V108: 118.5 | Y108: 0 | Z108: 0 | GK108: NA | GL108: NA | GM108: NA | GN108: NA | HZ108: 0 | JL108: No Assist | JM108: 0.058 | JO108: 55.6
A109: EPA-600/2-84-095 | B109: NA | C109: 80 | D109: 99.20% | E109: 20 | F109: NA | H109: NA | I109: NA | J109: Steam-Assisted | K109: Unknown | L109: Unknown | M109: Unknown | N109: >1000 | R109: Test 2-84-095 does not provide enough VG flow info. | S109: 1255 | V109: 420.5 | Y109: 0 | Z109: 0 | GK109: NA | GL109: NA | GM109: NA | GN109: NA | HZ109: 0 | JL109: No Assist | JM109: 0.015 | JO109: 53.4
A110: EPA-600/2-84-095 | B110: NA | C110: 81 | D110: 97.27% | E110: 20 | F110: NA | H110: NA | I110: NA | J110: Steam-Assisted | K110: Unknown | L110: Unknown | M110: Unknown | N110: >1000 | R110: Test 2-84-095 does not provide enough VG flow info. | S110: 837 | V110: 67 | Y110: 0 | Z110: 0 | GK110: NA | GL110: NA | GM110: NA | GN110: NA | HZ110: 0 | JL110: No Assist | JM110: 0.149 | JO110: 35.6
A111: EPA-600/2-84-095 | B111: NA | C111: 82 | D111: 99.33% | E111: 20 | F111: NA | H111: NA | I111: NA | J111: Steam-Assisted | K111: Unknown | L111: Unknown | M111: Unknown | N111: >1000 | R111: Test 2-84-095 does not provide enough VG flow info. | S111: 1107 | V111: 248.3 | Y111: 0 | Z111: 0 | GK111: NA | GL111: NA | GM111: NA | GN111: NA | HZ111: 0 | JL111: No Assist | JM111: 0.031 | JO111: 47.1
A112: EPA-600/2-84-095 | B112: NA | C112: 83 | D112: 99.87% | E112: 20 | F112: NA | H112: NA | I112: NA | J112: Steam-Assisted | K112: Unknown | L112: Unknown | M112: Unknown | N112: >1000 | R112: Test 2-84-095 does not provide enough VG flow info. | S112: 2350 | V112: 144.5 | Y112: 0 | Z112: 0 | GK112: NA | GL112: NA | GM112: NA | GN112: NA | HZ112: 0 | JL112: No Assist | JM112: 0.131 | JO112: 100
A113: EPA-600/2-84-095 | B113: NA | C113: 84 | D113: 99.54% | E113: 20 | F113: NA | H113: NA | I113: NA | J113: Steam-Assisted | K113: Unknown | L113: Unknown | M113: Unknown | N113: >1000 | R113: Test 2-84-095 does not provide enough VG flow info. | S113: 1276 | V113: 2.9 | Y113: 0 | Z113: 0 | GK113: NA | GL113: NA | GM113: NA | GN113: NA | HZ113: 0 | JL113: No Assist | JM113: 0 | JO113: 54.3
A114: EPA-600/2-84-095 | B114: NA | C114: 85 | D114: 99.65% | E114: 20 | F114: NA | H114: NA | I114: NA | J114: Steam-Assisted | K114: Unknown | L114: Unknown | M114: Unknown | N114: >1000 | R114: Test 2-84-095 does not provide enough VG flow info. | S114: 1316 | V114: 6 | Y114: 0 | Z114: 0 | GK114: NA | GL114: NA | GM114: NA | GN114: NA | HZ114: 0 | JL114: No Assist | JM114: 0 | JO114: 56
A115: EPA-600/2-84-095 | B115: NA | C115: 86 | D115: 99.48% | E115: 20 | F115: NA | H115: NA | I115: NA | J115: Steam-Assisted | K115: Unknown | L115: Unknown | M115: Unknown | N115: >1000 | R115: Test 2-84-095 does not provide enough VG flow info. | S115: 1314 | V115: 0.3 | Y115: 0 | Z115: 0 | GK115: NA | GL115: NA | GM115: NA | GN115: NA | HZ115: 0 | JL115: No Assist | JM115: 0 | JO115: 55.9
A116: EPA-600/2-84-095 | B116: NA | C116: 87 | D116: 99.58% | E116: 20 | F116: NA | H116: NA | I116: NA | J116: Steam-Assisted | K116: Unknown | L116: Unknown | M116: Unknown | N116: >1000 | R116: Test 2-84-095 does not provide enough VG flow info. | S116: 1314 | V116: 6 | Y116: 0 | Z116: 0 | GK116: NA | GL116: NA | GM116: NA | GN116: NA | HZ116: 0 | JL116: No Assist | JM116: 0 | JO116: 55.9
A117: EPA-600/2-84-095 | B117: NA | C117: 88 | D117: 99.21% | E117: 20 | F117: NA | H117: NA | I117: NA | J117: Steam-Assisted | K117: Unknown | L117: Unknown | M117: Unknown | N117: >1000 | R117: Test 2-84-095 does not provide enough VG flow info. | S117: 317 | V117: 3 | Y117: 0 | Z117: 0 | GK117: NA | GL117: NA | GM117: NA | GN117: NA | HZ117: 0 | JL117: No Assist | JM117: 0 | JO117: 13.5
A118: EPA-600/2-84-095 | B118: NA | C118: 89 | D118: 99.72% | E118: 20 | F118: NA | H118: NA | I118: NA | J118: Steam-Assisted | K118: Unknown | L118: Unknown | M118: Unknown | N118: >1000 | R118: Test 2-84-095 does not provide enough VG flow info. | S118: 303 | V118: 6.2 | Y118: 0 | Z118: 0 | GK118: NA | GL118: NA | GM118: NA | GN118: NA | HZ118: 0 | JL118: No Assist | JM118: 0 | JO118: 12.9
A119: EPA-600/2-84-095 | B119: NA | C119: 90 | D119: 99.59% | E119: 20 | F119: NA | H119: NA | I119: NA | J119: Steam-Assisted | K119: Unknown | L119: Unknown | M119: Unknown | N119: >1000 | R119: Test 2-84-095 does not provide enough VG flow info. | S119: 315 | V119: 0.3 | Y119: 0 | Z119: 0 | GK119: NA | GL119: NA | GM119: NA | GN119: NA | HZ119: 0 | JL119: No Assist | JM119: 0 | JO119: 13.4
A120: EPA-600/2-84-095 | B120: NA | C120: 91 | D120: 99.84% | E120: 20 | F120: NA | H120: NA | I120: NA | J120: Steam-Assisted | K120: Unknown | L120: Unknown | M120: Unknown | N120: >1000 | R120: Test 2-84-095 does not provide enough VG flow info. | S120: 1311 | V120: 5.9 | Y120: 0 | Z120: 0 | GK120: NA | GL120: NA | GM120: NA | GN120: NA | HZ120: 0 | JL120: No Assist | JM120: 0.441 | JO120: 55.8
A121: EPA-600/2-84-095 | B121: NA | C121: 92 | D121: 99.60% | E121: 20 | F121: NA | H121: NA | I121: NA | J121: Steam-Assisted | K121: Unknown | L121: Unknown | M121: Unknown | N121: >1000 | R121: Test 2-84-095 does not provide enough VG flow info. | S121: 2350 | V121: 171.4 | Y121: 0 | Z121: 0 | GK121: NA | GL121: NA | GM121: NA | GN121: NA | HZ121: 0 | JL121: No Assist | JM121: 0.06 | JO121: 100
A122: EPA-600/2-84-095 | B122: NA | C122: 93 | D122: 99.74% | E122: 20 | F122: NA | H122: NA | I122: NA | J122: Steam-Assisted | K122: Unknown | L122: Unknown | M122: Unknown | N122: >1000 | R122: Test 2-84-095 does not provide enough VG flow info. | S122: 2348 | V122: 84.7 | Y122: 0 | Z122: 0 | GK122: NA | GL122: NA | GM122: NA | GN122: NA | HZ122: 0 | JL122: No Assist | JM122: 0.122 | JO122: 99.9
A123: EPA-600/2-84-095 | B123: NA | C123: 94 | D123: 99.83% | E123: 20 | F123: NA | H123: NA | I123: NA | J123: Steam-Assisted | K123: Unknown | L123: Unknown | M123: Unknown | N123: >1000 | R123: Test 2-84-095 does not provide enough VG flow info. | S123: 2350 | V123: 171.4 | Y123: 0 | Z123: 0 | GK123: NA | GL123: NA | GM123: NA | GN123: NA | HZ123: 0 | JL123: No Assist | JM123: 0.061 | JO123: 100
A124: EPA-600/2-84-095 | B124: NA | C124: 95 | D124: 99.87% | E124: 20 | F124: NA | H124: NA | I124: NA | J124: Steam-Assisted | K124: Unknown | L124: Unknown | M124: Unknown | N124: >1000 | R124: Test 2-84-095 does not provide enough VG flow info. | S124: 792 | V124: 114.8 | Y124: 0 | Z124: 0 | GK124: NA | GL124: NA | GM124: NA | GN124: NA | HZ124: 0 | JL124: No Assist | JM124: 0.087 | JO124: 33.7
A125: EPA-600/2-84-095 | B125: NA | C125: 96 | D125: 99.85% | E125: 20 | F125: NA | H125: NA | I125: NA | J125: Steam-Assisted | K125: Unknown | L125: Unknown | M125: Unknown | N125: >1000 | R125: Test 2-84-095 does not provide enough VG flow info. | S125: 1043 | V125: 274.1 | Y125: 0 | Z125: 0 | GK125: NA | GL125: NA | GM125: NA | GN125: NA | HZ125: 0 | JL125: No Assist | JM125: 0.028 | JO125: 44.4
... 156 more rows

Sheet Removed Data
A1: Basic Run Info | J1: Flare Design Information | S1: General Flare Vent Gas Data | AA1: Molar Percentage of Components in Flare Vent Gas [mol %] | BD1: Steam Data | BQ1: Air Assist Data | BS1: Volumetric Flow Rates For Each Flare Vent Gas Component In The Combustion Zone (QCZ,i) | CY1: Concentration Of Each Flare Vent Gas Component In The Combustion Zone (XCZ,i) | EE1: Basic Composition Information For Vent Gas (VG) and Combustion Zone Gas (CZ) | EO1: Combustibles in Vent Gas (VGc) Volume Fractions | FU1: Dynamic NHVCZ Calculation and Related Data | GA1: LFLCZ Calculation | GG1: Stoichiometric Ratio (SR) Calculation | GK1: MFR Calculation | GO1: SHORE EQUATION ANALYSIS | GW1: Vent Gas and Center Steam ONLY (vgcs) Component Flowrates | IB1: Vent Gas and Center Steam ONLY (vgcs) Volume Fractions | JG1: Miscellaneous Information
A2: Test Site | B2: Condition | C2: Run | D2: Reported Combustion Efficiency (CE) [%] | E2: Reported Run Time [minutes] | F2: Reported Visual Smoke Rating | G2: Reported Smoking Flare? | H2: Reported Wind Velocity [mph] | I2: Reported MFR [unitless] | J2: Flare Design Type | K2: Design Capacity [lb/hr] | L2: % Utilized | M2: Turndown Ratio [unitless] | N2: Minimum Steam Rate [lb/hr] | O2: Effective Diameter of Flare Tip [inches] | P2: Effective Diameter of Flare Tip [ft] | Q2: Effective Area of Flare Tip [ft2] | R2: ANY reason to remove from Analysis? | S2: Flare Vent Gas Net Heating Value (NHVVG) [Btu/scf] | T2: Flare Vent Gas Flow Rate (mvg) [lb/hr] | U2: Flare Vent Gas Flow Rate (Qvg) [scf/hr] | V2: Flare Vent Gas Velocity (Vvg) [ft/s] | W2: Flare Vent Gas Velocity w/ Center Steam (Vvg-s) [ft/s] | X2: Flare Vent Gas Molecular Weight (MWvg) [lb/lb-mol] | Y2: Reported Pilot Gas Flow Rate (Qpg) [scf/hr] | Z2: ZERO-OUT Pilot Gas Flow Rate for calculations [scf/hr] | AA2: 1-Butene [mol %] | AB2: 1,2-Butadiene [mol %] | AC2: 1,3-Butadiene (%1,3-B) [mol %] | AD2: Acetylene [mol %] | AE2: Benzene [mol %] | AF2: Carbon Dioxide [mol %] | AG2: Carbon Monoxide [mol %] | AH2: Cis-2-Butene [mol %] | AI2: Cyclopropane [mol %] | AJ2: Ethane [mol %] | AK2: Ethyl Benzene [mol %] | AL2: Ethylene [mol %] | AM2: Hydrogen [mol %] | AN2: Hydrogen Sulfide [mol %] | AO2: Iso-Butane [mol %] | AP2: Iso-Butylene [mol %] | AQ2: Methane [mol %] | AR2: Methyl Acetylene [mol %] | AS2: n-Butane [mol %] | AT2: Nitrogen (%N) [mol %] | AU2: Oxygen [mol %] | AV2: Pentane Plus (C5+) [mol %] | AW2: Propadiene [mol %] | AX2: Propane (%p) [mol %] | AY2: Propylene [mol %] | AZ2: Toluene [mol %] | BA2: Trans-2-Butene [mol %] | BB2: Water [mol %] | BC2: Xylenes [mol %] | BD2: TOTAL Volumetric Steam Rate (Qs) [scf/hr] | BE2: TOTAL Mass Steam Rate (ms) [lb/hr] | BF2: Lower Volumetric Steam Rate (Ql) [scf/hr] | BG2: Lower Mass Steam Rate (ml) [lb/hr] | BH2: Center Volumetric Steam Rate (Qc) [scf/hr] | BI2: Center Mass Steam Rate (mc) [lb/hr] | BJ2: Ring Volumetric Steam Rate (Qr) [scf/hr] | BK2: Ring Mass Steam Rate (mr) [lb/hr] | BL2: Upper Volumetric Steam Rate (Qu) [scf/hr] | BM2: Upper Mass Steam Rate (mu) [lb/hr] | BN2: Steam-to-vent-gas ratio by weight (S/VGwt) [lb steam/ lb vent gas] | BO2: Steam-to-vent-gas ratio by volume (S/VGvol) [scf steam/ scf vent gas] | BP2: Steam-to-hydrocarbon ratio by volume (S/HCvol) [scf steam/ scf HC] | BQ2: Air Assist Flow Rate (mAir) [lb/hr] | BR2: Air Assist Flow Rate (QAir) [scf/hr] | BS2: 1-Butene [scf/hr] | BT2: 1,2-Butadiene [scf/hr] | BU2: 1,3-Butadiene [scf/hr] | BV2: Acetylene [scf/hr] | BW2: Benzene [scf/hr] | BX2: Carbon Dioxide [scf/hr] | BY2: Carbon Monoxide [scf/hr] | BZ2: Cis-2-Butene [scf/hr] | CA2: Cyclopropane [scf/hr] | CB2: Ethane [scf/hr] | CC2: Ethyl Benzene [scf/hr] | CD2: Ethylene [scf/hr] | CE2: Hydrogen [scf/hr] | CF2: Hydrogen Sulfide [scf/hr] | CG2: Iso-Butane [scf/hr] | CH2: Iso-Butylene [scf/hr] | CI2: Methane [scf/hr] | CJ2: Methyl Acetylene [scf/hr] | CK2: n-Butane [scf/hr] | CL2: Nitrogen [scf/hr] | CM2: Oxygen [scf/hr] | CN2: Pentane Plus (C5+) [scf/hr] | CO2: Propadiene [scf/hr] | CP2: Propane [scf/hr] | CQ2: Propylene [scf/hr] | CR2: Toluene [scf/hr] | CS2: Trans-2-Butene [scf/hr] | CT2: Water [scf/hr] | CU2: Xylenes [scf/hr] | CV2: STEAM [scf/hr] | CW2: AIR [scf/hr] | CX2: PILOT GAS [scf/hr] | CY2: 1-Butene [vol frac] | CZ2: 1,2-Butadiene [vol frac] | DA2: 1,3-Butadiene [vol frac] | DB2: Acetylene [vol frac] | DC2: Benzene [vol frac] | DD2: Carbon Dioxide [vol frac] | DE2: Carbon Monoxide [vol frac] | DF2: Cis-2-Butene [vol frac] | DG2: Cyclopropane [vol frac] | DH2: Ethane [vol frac] | DI2: Ethyl Benzene [vol frac] | DJ2: Ethylene [vol frac] | DK2: Hydrogen [vol frac] | DL2: Hydrogen Sulfide [vol frac] | DM2: Iso-Butane [vol frac] | DN2: Iso-Butylene [vol frac] | DO2: Methane [vol frac] | DP2: Methyl Acetylene [vol frac] | DQ2: n-Butane [vol frac] | DR2: Nitrogen [vol frac] | DS2: Oxygen [vol frac] | DT2: Pentane Plus (C5+) [vol frac] | DU2: Propadiene [vol frac] | DV2: Propane [vol frac] | DW2: Propylene [vol frac] | DX2: Toluene [vol frac] | DY2: Trans-2-Butene [vol frac] | DZ2: Water [vol frac] | EA2: Xylenes [vol frac] | EB2: STEAM [vol frac] | EC2: AIR [vol frac] | ED2: PILOT GAS [vol frac] | EE2: VG Olefin Content [%] | EF2: VG Hydrogen Content [%] | EG2: VG VOC Content [%] | EH2: CZ Olefin Content [%] | EI2: CZ Hydrogen Content [%] | EJ2: Ratio of CZ Olefin Content to CZ Hydrogen Content [unitless] | EK2: Combustible Components in the Combustion Zone (CCZ) [vol frac] | EL2: Steam in CZ [vol frac] | EM2: Inert in CZ [vol frac] | EN2: Number of Combustibles in VG | EO2: 1-Butene [vol frac] | EP2: 1,2-Butadiene [vol frac] | EQ2: 1,3-Butadiene [vol frac] | ER2: Acetylene [vol frac] | ES2: Benzene [vol frac] | ET2: Carbon Dioxide [vol frac] | EU2: Carbon Monoxide [vol frac] | EV2: Cis-2-Butene [vol frac] | EW2: Cyclopropane [vol frac] | EX2: Ethane [vol frac] | EY2: Ethyl Benzene [vol frac] | EZ2: Ethylene [vol frac] | FA2: Hydrogen [vol frac] | FB2: Hydrogen Sulfide [vol frac] | FC2: Iso-Butane [vol frac] | FD2: Iso-Butylene [vol frac] | FE2: Methane [vol frac] | FF2: Methyl Acetylene [vol frac] | FG2: n-Butane [vol frac] | FH2: Nitrogen [vol frac] | FI2: Oxygen [vol frac] | FJ2: Pentane Plus (C5+) [vol frac] | FK2: Propadiene [vol frac] | FL2: Propane [vol frac] | FM2: Propylene [vol frac] | FN2: Toluene [vol frac] | FO2: Trans-2-Butene [vol frac] | FP2: Water [vol frac] | FQ2: Xylenes [vol frac] | FR2: STEAM [vol frac] | FS2: AIR [vol frac] | FT2: PILOT GAS [vol frac] | FU2: Net Heating Value of Combustion Zone Gas (NHVCZ) [BTU/scf] | FV2: Unadjusted Lower Flammability Limit of Flare Vent Gas (LFLVG) [vol frac] | FW2: Water and CO2 Full Adjustment Term | FX2: Lower Flammability Limit of Flare Vent Gas Adjusted for Nitrogen Equivalency (LFLVG) [vol frac] | FY2: Net Heating Value of Flare Vent Gas if Diluted to Lower Flammability Limit (NHVVG--LFL) [BTU/scf] | FZ2: Ratio of NHVCZ to NHVVG-LFL (NHVratio) [unitless] | GA2: Lower Flammability Limit of Flare Vent Gas Combustible Only (LFLVG,C) [vol frac] | GB2: Unadjusted Lower Flammability Limit of Combustion Zone Gas (LFLCZ) [vol frac] | GC2: Coefficient of Nitrogen Equivalency of Water Relative to Nitrogen (Ne,H2O) | GD2: Coefficient of Nitrogen Equivalency of Carbon Dioxide Relative to Nitrogen (Ne,CO2) | GE2: Water and CO2 Full Adjustment Term | GF2: Lower Flammability Limit of Combustion Zone Gas Adjusted for Nitrogen Equivalency (LFLCZ) [vol frac] | GG2: Fuel ID | GH2: Theoretical Stoichiometric Mass of Air Needed to Combust the Flare Vent Gas (mStoic) [lb/hr] | GI2: Calculated Ratio of Actual Mass Flow of Total Assist Air to the Theoretical Stoichiometric Mass of Air Needed to Vombust the Flare Vent Gas (mAir / mStoic) (SR) | GJ2: Reported Ratio of Actual Mass Flow of Total Assist Air to the Theoretical Stoichiometric Mass of Air Needed to Vombust the Flare Vent Gas (mAir / mStoic) (SR) | GK2: Flare Vent Gas Flow Rate Including Center Steam (mvg-s) [lb/hr] | GL2: Density of Flare Vent Gas Including Center Steam (pvg-s) [lb/ft3] | GM2: Wind Velocity (Vwind) [ft/s] | GN2: Calculated MFR [unitless] | GO2: Shore Equation Velocity-Jet Periphery (UO/∏/DO) [sec-1] | GP2: Coefficient of Nitrogen Equivalency of Water Relative to Nitrogen (Ne,H2O) | GQ2: Coefficient of Nitrogen Equivalency of Carbon Dioxide Relative to Nitrogen (Ne,CO2) | GR2: Water and CO2 Full Adjustment Term | GS2: Lower Flammability Limit of Flare Vent Gas Including Center Steam Adjusted for Nitrogen Equivalency (LFLvgcs) [vol frac] | GT2: Shore Equation (RAM) [lb flare vent gas including center steam / lb of air] | GU2: Maximum Allowable Flare Vent Gas Velocity Including Center Steam (Vmax) [ft/s] | GV2: Is Vtip > Vmax? | GW2: 1-Butene [scf/hr] | GX2: 1,2-Butadiene [scf/hr] | GY2: 1,3-Butadiene [scf/hr] | GZ2: Acetylene [scf/hr] | HA2: Benzene [scf/hr] | HB2: Carbon Dioxide [scf/hr] | HC2: Carbon Monoxide [scf/hr] | HD2: Cis-2-Butene [scf/hr] | HE2: Cyclopropane [scf/hr] | HF2: Ethane [scf/hr] | HG2: Ethyl Benzene [scf/hr] | HH2: Ethylene [scf/hr] | HI2: Hydrogen [scf/hr] | HJ2: Hydrogen Sulfide [scf/hr] | HK2: Iso-Butane [scf/hr] | HL2: Iso-Butylene [scf/hr] | HM2: Methane [scf/hr] | HN2: Methyl Acetylene [scf/hr] | HO2: n-Butane [scf/hr] | HP2: Nitrogen [scf/hr] | HQ2: Oxygen [scf/hr] | HR2: Pentane Plus (C5+) [scf/hr] | HS2: Propadiene [scf/hr] | HT2: Propane [scf/hr] | HU2: Propylene [scf/hr] | HV2: Toluene [scf/hr] | HW2: Trans-2-Butene [scf/hr] | HX2: Water [scf/hr] | HY2: Xylenes [scf/hr] | HZ2: Center STEAM [scf/hr] | IA2: PILOT GAS [scf/hr] | IB2: 1-Butene [vol frac] | IC2: 1,2-Butadiene [vol frac] | ID2: 1,3-Butadiene [vol frac] | IE2: Acetylene [vol frac] | IF2: Benzene [vol frac] | IG2: Carbon Dioxide [vol frac] | IH2: Carbon Monoxide [vol frac] | II2: Cis-2-Butene [vol frac] | IJ2: Cyclopropane [vol frac] | IK2: Ethane [vol frac] | IL2: Ethyl Benzene [vol frac] | IM2: Ethylene [vol frac] | IN2: Hydrogen [vol frac] | IO2: Hydrogen Sulfide [vol frac] | IP2: Iso-Butane [vol frac] | IQ2: Iso-Butylene [vol frac] | IR2: Methane [vol frac] | IS2: Methyl Acetylene [vol frac] | IT2: n-Butane [vol frac] | IU2: Nitrogen [vol frac] | IV2: Oxygen [vol frac] | IW2: Pentane Plus (C5+) [vol frac] | IX2: Propadiene [vol frac] | IY2: Propane [vol frac] | IZ2: Propylene [vol frac] | JA2: Toluene [vol frac] | JB2: Trans-2-Butene [vol frac] | JC2: Water [vol frac] | JD2: Xylenes [vol frac] | JE2: STEAM [vol frac] | JF2: PILOT GAS [vol frac] | JG2: 1,3-Butadiene Flow [lb/hr] | JH2: Vent Gas Velocity [ft/min] | JI2: Vent Gas Flow Rate [kacf/hr] | JJ2: Total Steam Rate [klb/hr] | JK2: Vent Gas Flow Rate [klb/hr] | JL2: Secondary Field to See if No Assist was Used | JM2: Steam Ratio [lb steam/lb gas] | JN2: Propane Flow Rate [lb/hr] | JO2: Propane in Nitrogen [%] | JP2: Propylene Flow Rate [lb/hr] | JQ2: Propylene Flow Rate [scf/min] | JR2: Nitrogen Flow Rate [lb/hr] | JS2: Nitrogen Flow Rate [scf/min] | JT2: Supplemental NG Flow Rate [lb/hr] | JU2: Methane Flow Rate [scf/min]
A3: EPA-600/2-83-052 | B3: NA | C3: 2 | D3: 99.82% | E3: 3.183333333 | F3: NA | G3: NO | H3: Unknown | I3: NA | J3: =IF(JL3="Air Assist", "Air-Assisted","Steam-Assisted") -> Steam-Assisted | K3: Unknown | L3: Unknown | M3: Unknown | N3: >1000 | O3: 5.86 | P3: =ROUND((O3/12),2) -> 0.49 | Q3: =0.785*((P3)^2) -> 0.19 | R3: Run time < 5 minutes. | S3: 2183 | T3: =JP3+JR3 -> 3078 | U3: =CL3+CQ3 -> 27840 | V3: =JH3/60 -> 41.25 | W3: =IF(BH3="None",V3,((BH3/Q3/60/60)+V3)) -> 41.25 | X3: 42.08 | Y3: 469.6428571 | Z3: 0 | AT3: =(CL3/(CQ3+CL3))*100 -> 0 | AY3: =(CQ3/(CQ3+CL3))*100 -> 100 | BD3: =BE3*379.48/18 -> 32972.59556 | BE3: 1564 | BF3: None | BG3: None | BH3: None | BI3: None | BJ3: None | BK3: None | BL3: =BM3*379.48/18 -> 32972.59556 | BM3: 1564 | BN3: =BE3/T3 -> 0.51 | BO3: =BD3/U3 -> 1.18 | BP3: =BD3/(SUM(BS3:BW3,BY3:CD3,CG3:CK3,CN3:CS3,CU3)) -> 1.18 | CL3: =JS3*60 -> 0 | CQ3: =JQ3*60 -> 27840 | CV3: =BD3 -> 32972.59556 | CX3: =Z3 -> 0 | CY3: =BS3/SUM($BS3:$CX3) -> 0 | CZ3: =BT3/SUM($BS3:$CX3) -> 0 | DA3: =BU3/SUM($BS3:$CX3) -> 0 | DB3: 0 | DC3: 0 | DD3: 0 | DE3: 0 | DF3: 0 | DG3: 0 | DH3: 0 | DI3: 0 | DJ3: 0 | DK3: 0 | DL3: 0 | DM3: 0 | DN3: 0 | DO3: 0 | DP3: 0 | DQ3: =CK3/SUM($BS3:$CX3) -> 0 | DR3: 0 | DS3: 0 | DT3: 0 | DU3: 0 | DV3: 0 | DW3: 0.4577998973 | DX3: 0 | DY3: 0 | DZ3: 0 | EA3: 0 | EB3: 0.5422001027 | ED3: =CX3/SUM($BS3:$CX3) -> 0 | EE3: =AA3+AB3+AC3+AH3+AL3+AP3+AW3+AY3+BA3 -> 100.00 | EF3: =AM3 -> 0 | EG3: =AA3+AB3+AC3+AD3+AE3+AH3+AI3+AK3+AL3+AO3+AP3+AR3+AS3+AV3+AW3+AX3+AY3+AZ3+BA3+BC3 -> 100.00 | EH3: =100*(CY3+CZ3+DA3+DF3+DJ3+DN3+DU3+DW3+DY3) -> 45.78 | EI3: =100*DK3 -> 0.00 | EJ3: =IF(EI3=0,0,(EH3/EI3)) -> 0 | EK3: =CY3+CZ3+DA3+DB3+DC3+DE3+DF3+DG3+DH3+DI3+DJ3+DK3+DL3+DM3+DN3+DO3+DP3+DQ3+DT3+DU3+DV3+DW3+DX3+DY3+EA3+ED3 -> 0.458 | EL3: =EB3 -> 0.5422001027 | EM3: =DD3+DR3+DS3+DZ3+EB3 -> 0.5422001027 | EN3: =COUNTIF(AA3:AE3,">0")+COUNTIF(AG3:AP3,">0")+COUNTIF(AQ3:AS3,">0")+COUNTIF(AV3:BA3,">0")+IF(BC3>0,1,0) -> 1 | EO3: =BS3/(SUM(BS3:BW3,BY3:CK3,CN3:CS3,CU3)) -> 0 | EP3: =BT3/(SUM(BS3:BW3,BY3:CK3,CN3:CS3,CU3)) -> 0 | EQ3: =BU3/(SUM(BS3:BW3,BY3:CK3,CN3:CS3,CU3)) -> 0 | ER3: =BV3/(SUM(BS3:BW3,BY3:CK3,CN3:CS3,CU3)) -> 0 | ES3: =BW3/(SUM(BS3:BW3,BY3:CK3,CN3:CS3,CU3)) -> 0 | EU3: =BY3/(SUM(BS3:BW3,BY3:CK3,CN3:CS3,CU3)) -> 0 | EV3: =BZ3/(SUM(BS3:BW3,BY3:CK3,CN3:CS3,CU3)) -> 0 | EW3: =CA3/(SUM(BS3:BW3,BY3:CK3,CN3:CS3,CU3)) -> 0 | EX3: =CB3/(SUM(BS3:BW3,BY3:CK3,CN3:CS3,CU3)) -> 0 | EY3: =CC3/(SUM(BS3:BW3,BY3:CK3,CN3:CS3,CU3)) -> 0 | EZ3: =CD3/(SUM(BS3:BW3,BY3:CK3,CN3:CS3,CU3)) -> 0 | FA3: =CE3/(SUM(BS3:BW3,BY3:CK3,CN3:CS3,CU3)) -> 0 | FB3: =CF3/(SUM(BS3:BW3,BY3:CK3,CN3:CS3,CU3)) -> 0 | FC3: =CG3/(SUM(BS3:BW3,BY3:CK3,CN3:CS3,CU3)) -> 0 | FD3: =CH3/(SUM(BS3:BW3,BY3:CK3,CN3:CS3,CU3)) -> 0 | FE3: =CI3/(SUM(BS3:BW3,BY3:CK3,CN3:CS3,CU3)) -> 0 | FF3: =CJ3/(SUM(BS3:BW3,BY3:CK3,CN3:CS3,CU3)) -> 0 | FG3: =CK3/(SUM(BS3:BW3,BY3:CK3,CN3:CS3,CU3)) -> 0 | FJ3: =CN3/(SUM(BS3:BW3,BY3:CK3,CN3:CS3,CU3)) -> 0 | FK3: =CO3/(SUM(BS3:BW3,BY3:CK3,CN3:CS3,CU3)) -> 0 | FL3: =CP3/(SUM(BS3:BW3,BY3:CK3,CN3:CS3,CU3)) -> 0 | FM3: =CQ3/(SUM(BS3:BW3,BY3:CK3,CN3:CS3,CU3)) -> 1 | FN3: =CR3/(SUM(BS3:BW3,BY3:CK3,CN3:CS3,CU3)) -> 0 | FO3: =CS3/(SUM(BS3:BW3,BY3:CK3,CN3:CS3,CU3)) -> 0 | FQ3: =CU3/(SUM(BS3:BW3,BY3:CK3,CN3:CS3,CU3)) -> 0 | FU3: =(U3*S3)/(U3+BD3) -> 999.38 | FV3: =1/((AA3/1.8)+(AB3/2)+(AC3/2)+(AD3/2.5)+(AE3/1.3)+(AG3/12.5)+(AH3/1.7)+(AI3/2.4)+(AJ3/3)+(AK3/1)+(AL3/2.7)+(AM3/4)+(AN3/4)+(AO3/1.8)+(AP3/1.8)+(AQ3/5)+(AR3/1.7)+(AS3/1.8)+(AV3/1.4)+(AW3/2.16)+(AX3/2.1)+(AY3/2.4)+(AZ3/1.2)+(BA3/1.7)+(BC3/1.1)) -> 0.024 | FW3: =((BB3/100)*(GC3-1))+((AF3/100)*(GD3-1)) -> 0.000 | FX3: =1/(((AA3/1.8)+(AB3/2)+(AC3/2)+(AD3/2.5)+(AE3/1.3)+(AG3/12.5)+(AH3/1.7)+(AI3/2.4)+(AJ3/3)+(AK3/1)+(AL3/2.7)+(AM3/4)+(AN3/4)+(AO3/1.8)+(AP3/1.8)+(AQ3/5)+(AR3/1.7)+(AS3/1.8)+(AV3/1.4)+(AW3/2.16)+(AX3/2.1)+(AY3/2.4)+(AZ3/1.2)+(BA3/1.7)+(BC3/1.1))-FW3) -> 0.024 | FY3: =FX3*S3 -> 52.39 | FZ3: =FU3/FY3 -> 19.07 | GA3: =1/((100*EO3/1.8)+(100*EP3/2)+(100*EQ3/2)+(100*ER3/2.5)+(100*ES3/1.3)+(100*EU3/12.5)+(100*EV3/1.7)+(100*EW3/2.4)+(100*EX3/3)+(100*EY3/1)+(100*EZ3/2.7)+(100*FA3/4)+(100*FB3/4)+(100*FC3/1.8)+(100*FD3/1.8)+(100*FE3/5)+(100*FF3/1.7)+(100*FG3/1.8)+(100*FJ3/1.4)+(100*FK3/2.16)+(100*FL3/2.1)+(100*FM3/2.4)+(100*FN3/1.2)+(100*FO3/1.7)+(100*FQ3/1.1)) -> 0.024 | GB3: =1/((100*CY3/1.8)+(100*CZ3/2)+(100*DA3/2)+(100*DB3/2.5)+(100*DC3/1.3)+(100*DE3/12.5)+(100*DF3/1.7)+(100*DG3/2.4)+(100*DH3/3)+(100*DI3/1)+(100*DJ3/2.7)+(100*DK3/4)+(100*DL3/4)+(100*DM3/1.8)+(100*DN3/1.8)+(100*DO3/5)+(100*DP3/1.7)+(100*DQ3/1.8)+(100*DT3/1.4)+(100*DU3/2.16)+(100*DV3/2.1)+(100*DW3/2.4)+(100*DX3/1.2)+(100*DY3/1.7)+(100*EA3/1.1)+(100*ED3/5)) -> 0.052 | GC3: =((CI3*1.87)+(CB3*1.4)+(CP3*1.51)+(CD3*1.68)+(CQ3*1.36)+(CE3*1.35)+((BS3+BT3+BU3+BV3+BW3+BY3+BZ3+CA3+CC3+CF3+CG3+CH3+CJ3+CK3+CN3+CO3+CR3+CS3+CU3)*1.5))/(CI3+CB3+CP3+CD3+CQ3+CE3+BS3+BT3+BU3+BV3+BW3+BY3+BZ3+CA3+CC3+CF3+CG3+CH3+CJ3+CK3+CN3+CO3+CR3+CS3+CU3) -> 1.36 | GD3: =((CI3*2.23)+(CB3*1.87)+(CP3*1.93)+(CD3*1.84)+(CQ3*1.92)+(CE3*1.51)+((BS3+BT3+BU3+BV3+BW3+BY3+BZ3+CA3+CC3+CF3+CG3+CH3+CJ3+CK3+CN3+CO3+CR3+CS3+CU3)*1.87))/(CI3+CB3+CP3+CD3+CQ3+CE3+BS3+BT3+BU3+BV3+BW3+BY3+BZ3+CA3+CC3+CF3+CG3+CH3+CJ3+CK3+CN3+CO3+CR3+CS3+CU3) -> 1.92 | GE3: =((DZ3+EB3)*(GC3-1))+(DD3*(GD3-1)) -> 0.195 | GF3: =1/(((100*CY3/1.8)+(100*CZ3/2)+(100*DA3/2)+(100*DB3/2.5)+(100*DC3/1.3)+(100*DE3/12.5)+(100*DF3/1.7)+(100*DG3/2.4)+(100*DH3/3)+(100*DI3/1)+(100*DJ3/2.7)+(100*DK3/4)+(100*DL3/4)+(100*DM3/1.8)+(100*DN3/1.8)+(100*DO3/5)+(100*DP3/1.7)+(100*DQ3/1.8)+(100*DT3/1.4)+(100*DU3/2.16)+(100*DV3/2.1)+(100*DW3/2.4)+(100*DX3/1.2)+(100*DY3/1.7)+(100*EA3/1.1)+(100*ED3/5))-GE3) -> 0.053 | GK3: =IF(BI3="none",T3,T3+BI3) -> 3078.00 | GL3: =IF(BH3="none",GK3/U3,(GK3/(U3+BH3))) -> 0.11 | GM3: NA | GN3: NA | GO3: =W3/(3.14*P3) -> 26.810 | GP3: =((HM3*1.87)+(HF3*1.4)+(HT3*1.51)+(HH3*1.68)+(HU3*1.36)+(HI3*1.35)+((GW3+GX3+GY3+GZ3+HA3+HC3+HD3+HE3+HG3+HJ3+HK3+HL3+HN3+HO3+HR3+HS3+HV3+HW3+HY3+IA3)*1.5))/(HM3+HF3+HT3+HH3+HU3+HI3+GW3+GX3+GY3+GZ3+HA3+HC3+HD3+HE3+HG3+HJ3+HK3+HL3+HN3+HO3+HR3+HS3+HV3+HW3+HY3+IA3) -> 1.36 | GQ3: =((HM3*2.23)+(HF3*1.87)+(HT3*1.93)+(HH3*1.84)+(HU3*1.92)+(HI3*1.51)+((GW3+GX3+GY3+GZ3+HA3+HC3+HD3+HE3+HG3+HJ3+HK3+HL3+HN3+HO3+HR3+HS3+HV3+HW3+HY3+IA3)*1.5))/(HM3+HF3+HT3+HH3+HU3+HI3+GW3+GX3+GY3+GZ3+HA3+HC3+HD3+HE3+HG3+HJ3+HK3+HL3+HN3+HO3+HR3+HS3+HV3+HW3+HY3+IA3) -> 1.92 | GR3: =((JC3+JE3)*(GP3-1))+(IG3*(GQ3-1)) -> 0.00 | GS3: =1/(((100*IB3/1.8)+(100*IC3/2)+(100*ID3/2)+(100*IE3/2.5)+(100*IF3/1.3)+(100*IH3/12.5)+(100*II3/1.7)+(100*IJ3/2.4)+(100*IK3/3)+(100*IL3/1)+(100*IM3/2.7)+(100*IN3/4)+(100*IO3/4)+(100*IP3/1.8)+(100*IQ3/1.8)+(100*IR3/5)+(100*IS3/1.7)+(100*IT3/1.8)+(100*IW3/1.4)+(100*IX3/2.16)+(100*IY3/2.1)+(100*IZ3/2.4)+(100*JA3/1.2)+(100*JB3/1.7)+(100*JD3/1.1)+(100*JF3/5))-GR3) -> 0.024 | GT3: =((100-(GS3*100))/(GS3*100))*(GL3/0.07492) -> 60.012 | GU3: =((2*3.14)*(SQRT(Q3/3.14)))*((GT3/6.85)^5) -> 79409.750 | GV3: =IF(W3>GU3,"Yes","No") -> No | HP3: 0 | HU3: 27840 | HZ3: =IF(BH3="None",0,BH3) -> 0 | IA3: 0 | IB3: =GW3/(SUM(GW3:IA3)) -> 0 | IC3: =GX3/(SUM(GW3:IA3)) -> 0 | ID3: =GY3/(SUM(GW3:IA3)) -> 0 | IE3: =GZ3/(SUM(GW3:IA3)) -> 0 | IF3: =HA3/(SUM(GW3:IA3)) -> 0 | IG3: =HB3/(SUM(GW3:IA3)) -> 0 | IH3: =HC3/(SUM(GW3:IA3)) -> 0 | II3: =HD3/(SUM(GW3:IA3)) -> 0 | IJ3: =HE3/(SUM(GW3:IA3)) -> 0 | IK3: =HF3/(SUM(GW3:IA3)) -> 0 | IL3: =HG3/(SUM(GW3:IA3)) -> 0 | IM3: =HH3/(SUM(GW3:IA3)) -> 0 | IN3: =HI3/(SUM(GW3:IA3)) -> 0 | IO3: =HJ3/(SUM(GW3:IA3)) -> 0 | IP3: =HK3/(SUM(GW3:IA3)) -> 0 | IQ3: =HL3/(SUM(GW3:IA3)) -> 0 | IR3: =HM3/(SUM(GW3:IA3)) -> 0 | IS3: =HN3/(SUM(GW3:IA3)) -> 0 | IT3: =HO3/(SUM(GW3:IA3)) -> 0 | IU3: =HP3/(SUM(GW3:IA3)) -> 0 | IV3: =HQ3/(SUM(GW3:IA3)) -> 0 | IW3: =HR3/(SUM(GW3:IA3)) -> 0 | IX3: =HS3/(SUM(GW3:IA3)) -> 0 | IY3: =HT3/(SUM(GW3:IA3)) -> 0 | IZ3: =HU3/(SUM(GW3:IA3)) -> 1 | JA3: =HV3/(SUM(GW3:IA3)) -> 0 | JB3: =HW3/(SUM(GW3:IA3)) -> 0 | JC3: =HX3/(SUM(GW3:IA3)) -> 0 | JD3: =HY3/(SUM(GW3:IA3)) -> 0 | JE3: =HZ3/(SUM(GW3:IA3)) -> 0 | JF3: =IA3/(SUM(GW3:IA3)) -> 0 | JH3: 2475 | JL3: =IF(CV3>0,"Steam Assist","No Assist") -> Steam Assist | JP3: 3078 | JQ3: 464 | JR3: 0 | JS3: 0
A4: EPA-600/2-83-052 | B4: NA | C4: 3 | D4: 99.52% | E4: 3.383333333 | F4: NA | G4: YES | H4: Unknown | I4: NA | J4: Steam-Assisted | K4: Unknown | L4: Unknown | M4: Unknown | N4: >1000 | O4: 5.86 | P4: 0.49 | Q4: 0.19 | R4: Smoking flare and run time < 5 minutes. | S4: 2183 | T4: 3027 | U4: 27900 | V4: 40.53333333 | W4: 40.53333333 | X4: 42.08 | Y4: 469.6428571 | Z4: 0 | AT4: 0 | AY4: 100 | BD4: 28566.41111 | BE4: 1355 | BF4: None | BG4: None | BH4: None | BI4: None | BJ4: None | BK4: None | BL4: 28566.41111 | BM4: 1355 | BN4: 0.45 | BO4: 1.02 | BP4: 1.02 | CL4: 0 | CQ4: 27900 | CV4: 28566.41111 | CX4: 0 | CY4: 0 | CZ4: 0 | DA4: 0 | DB4: 0 | DC4: 0 | DD4: 0 | DE4: 0 | DF4: 0 | DG4: 0 | DH4: 0 | DI4: 0 | DJ4: 0 | DK4: 0 | DL4: 0 | DM4: 0 | DN4: 0 | DO4: 0 | DP4: 0 | DQ4: 0 | DR4: 0 | DS4: 0 | DT4: 0 | DU4: 0 | DV4: 0 | DW4: 0.4940990485 | DX4: 0 | DY4: 0 | DZ4: 0 | EA4: 0 | EB4: 0.5059009515 | ED4: 0 | EE4: 100.00 | EF4: 0 | EG4: 100.00 | EH4: 49.41 | EI4: 0.00 | EJ4: 0 | EK4: 0.494 | EL4: 0.5059009515 | EM4: 0.5059009515 | EN4: 1 | EO4: 0 | EP4: 0 | EQ4: 0 | ER4: 0 | ES4: 0 | EU4: 0 | EV4: 0 | EW4: 0 | EX4: 0 | EY4: 0 | EZ4: 0 | FA4: 0 | FB4: 0 | FC4: 0 | FD4: 0 | FE4: 0 | FF4: 0 | FG4: 0 | FJ4: 0 | FK4: 0 | FL4: 0 | FM4: 1 | FN4: 0 | FO4: 0 | FQ4: 0 | FU4: =(U4*S4)/(U4+BD4) -> 1078.62 | FV4: 0.024 | FW4: 0.000 | FX4: 0.024 | FY4: =FX4*S4 -> 52.39 | FZ4: 20.59 | GA4: 0.024 | GB4: 0.049 | GC4: 1.36 | GD4: 1.92 | GE4: 0.182 | GF4: 0.049 | GK4: 3027.00 | GL4: 0.11 | GM4: NA | GN4: NA | GO4: 26.344 | GP4: 1.36 | GQ4: 1.92 | GR4: 0.00 | GS4: 0.024 | GT4: 58.891 | GU4: 72263.334 | GV4: No | HP4: 0 | HU4: 27900 | HZ4: 0 | IA4: 0 | IB4: 0 | IC4: 0 | ID4: 0 | IE4: 0 | IF4: 0 | IG4: 0 | IH4: 0 | II4: 0 | IJ4: 0 | IK4: 0 | IL4: 0 | IM4: 0 | IN4: 0 | IO4: 0 | IP4: 0 | IQ4: 0 | IR4: 0 | IS4: 0 | IT4: 0 | IU4: 0 | IV4: 0 | IW4: 0 | IX4: 0 | IY4: 0 | IZ4: 1 | JA4: 0 | JB4: 0 | JC4: 0 | JD4: 0 | JE4: 0 | JF4: 0 | JH4: 2432 | JL4: Steam Assist | JP4: 3027 | JQ4: 465 | JR4: 0 | JS4: 0
A5: EPA-600/2-83-052 | B5: NA | C5: 4 | D5: 95.80% | E5: 6.166666667 | F5: NA | G5: YES | H5: Unknown | I5: NA | J5: Steam-Assisted | K5: Unknown | L5: Unknown | M5: Unknown | N5: >1000 | O5: 5.86 | P5: 0.49 | Q5: 0.19 | R5: Smoking flare. | S5: 2183 | T5: 1675 | U5: 16980 | V5: 25.15 | W5: 25.15 | X5: 42.08 | Y5: 469.6428571 | Z5: 0 | AT5: 0 | AY5: 100 | BD5: 0 | BE5: 0 | BF5: None | BG5: None | BH5: None | BI5: None | BJ5: None | BK5: None | BL5: 0 | BM5: 0 | BN5: 0.00 | BO5: 0.00 | BP5: 0.00 | CL5: 0 | CQ5: 16980 | CV5: 0 | CX5: 0 | CY5: 0 | CZ5: 0 | DA5: 0 | DB5: 0 | DC5: 0 | DD5: 0 | DE5: 0 | DF5: 0 | DG5: 0 | DH5: 0 | DI5: 0 | DJ5: 0 | DK5: 0 | DL5: 0 | DM5: 0 | DN5: 0 | DO5: 0 | DP5: 0 | DQ5: 0 | DR5: 0 | DS5: 0 | DT5: 0 | DU5: 0 | DV5: 0 | DW5: 1 | DX5: 0 | DY5: 0 | DZ5: 0 | EA5: 0 | EB5: 0 | ED5: 0 | EE5: 100.00 | EF5: 0 | EG5: 100.00 | EH5: 100.00 | EI5: 0.00 | EJ5: 0 | EK5: 1.000 | EL5: 0 | EM5: 0 | EN5: 1 | EO5: 0 | EP5: 0 | EQ5: 0 | ER5: 0 | ES5: 0 | EU5: 0 | EV5: 0 | EW5: 0 | EX5: 0 | EY5: 0 | EZ5: 0 | FA5: 0 | FB5: 0 | FC5: 0 | FD5: 0 | FE5: 0 | FF5: 0 | FG5: 0 | FJ5: 0 | FK5: 0 | FL5: 0 | FM5: 1 | FN5: 0 | FO5: 0 | FQ5: 0 | FU5: 2183.00 | FV5: 0.024 | FW5: 0.000 | FX5: 0.024 | FY5: 52.39 | FZ5: 41.67 | GA5: 0.024 | GB5: 0.024 | GC5: 1.36 | GD5: 1.92 | GE5: 0.000 | GF5: 0.024 | GK5: 1675.00 | GL5: 0.10 | GM5: NA | GN5: NA | GO5: 16.346 | GP5: 1.36 | GQ5: 1.92 | GR5: 0.00 | GS5: 0.024 | GT5: 53.545 | GU5: 44901.674 | GV5: No | HP5: 0 | HU5: 16980 | HZ5: 0 | IA5: 0 | IB5: 0 | IC5: 0 | ID5: 0 | IE5: 0 | IF5: 0 | IG5: 0 | IH5: 0 | II5: 0 | IJ5: 0 | IK5: 0 | IL5: 0 | IM5: 0 | IN5: 0 | IO5: 0 | IP5: 0 | IQ5: 0 | IR5: 0 | IS5: 0 | IT5: 0 | IU5: 0 | IV5: 0 | IW5: 0 | IX5: 0 | IY5: 0 | IZ5: 1 | JA5: 0 | JB5: 0 | JC5: 0 | JD5: 0 | JE5: 0 | JF5: 0 | JH5: 1509 | JL5: No Assist | JP5: 1675 | JQ5: 283 | JR5: 0 | JS5: 0
A6: EPA-600/2-83-052 | B6: NA | C6: 7 | D6: 99.84% | E6: 8.566666667 | F6: NA | G6: YES | H6: Unknown | I6: NA | J6: Steam-Assisted | K6: Unknown | L6: Unknown | M6: Unknown | N6: >1000 | O6: 5.86 | P6: 0.49 | Q6: 0.19 | R6: Smoking flare. | S6: 2183 | T6: 1019 | U6: 9240 | V6: 13.71666667 | W6: 13.71666667 | X6: 42.08 | Y6: 469.6428571 | Z6: 0 | AT6: 0 | AY6: 100 | BD6: 15221.36444 | BE6: 722 | BF6: None | BG6: None | BH6: None | BI6: None | BJ6: None | BK6: None | BL6: 15221.36444 | BM6: 722 | BN6: 0.71 | BO6: 1.65 | BP6: 1.65 | CL6: 0 | CQ6: 9240 | CV6: 15221.36444 | CX6: 0 | CY6: 0 | CZ6: 0 | DA6: 0 | DB6: 0 | DC6: 0 | DD6: 0 | DE6: 0 | DF6: 0 | DG6: 0 | DH6: 0 | DI6: 0 | DJ6: 0 | DK6: 0 | DL6: 0 | DM6: 0 | DN6: 0 | DO6: 0 | DP6: 0 | DQ6: 0 | DR6: 0 | DS6: 0 | DT6: 0 | DU6: 0 | DV6: 0 | DW6: 0.3777385363 | DX6: 0 | DY6: 0 | DZ6: 0 | EA6: 0 | EB6: 0.6222614637 | ED6: 0 | EE6: 100.00 | EF6: 0 | EG6: 100.00 | EH6: 37.77 | EI6: 0.00 | EJ6: 0 | EK6: 0.378 | EL6: 0.6222614637 | EM6: 0.6222614637 | EN6: 1 | EO6: 0 | EP6: 0 | EQ6: 0 | ER6: 0 | ES6: 0 | EU6: 0 | EV6: 0 | EW6: 0 | EX6: 0 | EY6: 0 | EZ6: 0 | FA6: 0 | FB6: 0 | FC6: 0 | FD6: 0 | FE6: 0 | FF6: 0 | FG6: 0 | FJ6: 0 | FK6: 0 | FL6: 0 | FM6: 1 | FN6: 0 | FO6: 0 | FQ6: 0 | FU6: 824.60 | FV6: 0.024 | FW6: 0.000 | FX6: 0.024 | FY6: 52.39 | FZ6: 15.74 | GA6: 0.024 | GB6: 0.064 | GC6: 1.36 | GD6: 1.92 | GE6: 0.224 | GF6: 0.064 | GK6: 1019.00 | GL6: 0.11 | GM6: NA | GN6: NA | GO6: 8.915 | GP6: 1.36 | GQ6: 1.92 | GR6: 0.00 | GS6: 0.024 | GT6: 59.861 | GU6: 78412.982 | GV6: No | HP6: 0 | HU6: 9240 | HZ6: 0 | IA6: 0 | IB6: 0 | IC6: 0 | ID6: 0 | IE6: 0 | IF6: 0 | IG6: 0 | IH6: 0 | II6: 0 | IJ6: 0 | IK6: 0 | IL6: 0 | IM6: 0 | IN6: 0 | IO6: 0 | IP6: 0 | IQ6: 0 | IR6: 0 | IS6: 0 | IT6: 0 | IU6: 0 | IV6: 0 | IW6: 0 | IX6: 0 | IY6: 0 | IZ6: 1 | JA6: 0 | JB6: 0 | JC6: 0 | JD6: 0 | JE6: 0 | JF6: 0 | JH6: 823 | JL6: Steam Assist | JP6: 1019 | JQ6: 154 | JR6: 0 | JS6: 0
A7: EPA-600/2-83-052 | B7: NA | C7: 8 | D7: 98.81% | E7: 6.416666667 | F7: NA | G7: YES | H7: Unknown | I7: NA | J7: Steam-Assisted | K7: Unknown | L7: Unknown | M7: Unknown | N7: >1000 | O7: 5.86 | P7: 0.49 | Q7: 0.19 | R7: Smoking flare. | S7: 2183 | T7: 1044 | U7: 9420 | V7: 13.95 | W7: 13.95 | X7: 42.08 | Y7: 469.6428571 | Z7: 0 | AT7: 0 | AY7: 100 | BD7: 0 | BE7: 0 | BF7: None | BG7: None | BH7: None | BI7: None | BJ7: None | BK7: None | BL7: 0 | BM7: 0 | BN7: 0.00 | BO7: 0.00 | BP7: 0.00 | CL7: 0 | CQ7: 9420 | CV7: 0 | CX7: 0 | CY7: 0 | CZ7: 0 | DA7: 0 | DB7: 0 | DC7: 0 | DD7: 0 | DE7: 0 | DF7: 0 | DG7: 0 | DH7: 0 | DI7: 0 | DJ7: 0 | DK7: 0 | DL7: 0 | DM7: 0 | DN7: 0 | DO7: 0 | DP7: 0 | DQ7: 0 | DR7: 0 | DS7: 0 | DT7: 0 | DU7: 0 | DV7: 0 | DW7: 1 | DX7: 0 | DY7: 0 | DZ7: 0 | EA7: 0 | EB7: 0 | ED7: 0 | EE7: 100.00 | EF7: 0 | EG7: 100.00 | EH7: 100.00 | EI7: 0.00 | EJ7: 0 | EK7: 1.000 | EL7: 0 | EM7: 0 | EN7: 1 | EO7: 0 | EP7: 0 | EQ7: 0 | ER7: 0 | ES7: 0 | EU7: 0 | EV7: 0 | EW7: 0 | EX7: 0 | EY7: 0 | EZ7: 0 | FA7: 0 | FB7: 0 | FC7: 0 | FD7: 0 | FE7: 0 | FF7: 0 | FG7: 0 | FJ7: 0 | FK7: 0 | FL7: 0 | FM7: 1 | FN7: 0 | FO7: 0 | FQ7: 0 | FU7: 2183.00 | FV7: 0.024 | FW7: 0.000 | FX7: 0.024 | FY7: 52.39 | FZ7: 41.67 | GA7: 0.024 | GB7: 0.024 | GC7: 1.36 | GD7: 1.92 | GE7: 0.000 | GF7: 0.024 | GK7: 1044.00 | GL7: 0.11 | GM7: NA | GN7: NA | GO7: 9.067 | GP7: 1.36 | GQ7: 1.92 | GR7: 0.00 | GS7: 0.024 | GT7: 60.158 | GU7: 80375.722 | GV7: No | HP7: 0 | HU7: 9420 | HZ7: 0 | IA7: 0 | IB7: 0 | IC7: 0 | ID7: 0 | IE7: 0 | IF7: 0 | IG7: 0 | IH7: 0 | II7: 0 | IJ7: 0 | IK7: 0 | IL7: 0 | IM7: 0 | IN7: 0 | IO7: 0 | IP7: 0 | IQ7: 0 | IR7: 0 | IS7: 0 | IT7: 0 | IU7: 0 | IV7: 0 | IW7: 0 | IX7: 0 | IY7: 0 | IZ7: 1 | JA7: 0 | JB7: 0 | JC7: 0 | JD7: 0 | JE7: 0 | JF7: 0 | JH7: 837 | JL7: No Assist | JP7: 1044 | JQ7: 157 | JR7: 0 | JS7: 0
A8: EPA-600/2-83-052 | B8: NA | C8: 23 | D8: 100.01% | E8: 6.766666667 | F8: NA | G8: NO | H8: Unknown | I8: NA | J8: Steam-Assisted | K8: Unknown | L8: Unknown | M8: Unknown | N8: >1000 | O8: 5.86 | P8: 0.49 | Q8: 0.19 | R8: VG flow < 10 lb/hr. | S8: 267 | T8: 2.581 | U8: 33.3 | V8: 0.04383333333 | W8: 0.04383333333 | X8: 29.75122821 | Y8: 469.6428571 | Z8: 0 | AT8: 87.74774775 | AY8: 12.25225225 | BD8: 0 | BE8: 0 | BF8: None | BG8: None | BH8: None | BI8: None | BJ8: None | BK8: None | BL8: 0 | BM8: 0 | BN8: 0.00 | BO8: 0.00 | BP8: 0.00 | CL8: 29.22 | CQ8: 4.08 | CV8: 0 | CX8: 0 | CY8: 0 | CZ8: 0 | DA8: 0 | DB8: 0 | DC8: 0 | DD8: 0 | DE8: 0 | DF8: 0 | DG8: 0 | DH8: 0 | DI8: 0 | DJ8: 0 | DK8: 0 | DL8: 0 | DM8: 0 | DN8: 0 | DO8: 0 | DP8: 0 | DQ8: 0 | DR8: 0.8774774775 | DS8: 0 | DT8: 0 | DU8: 0 | DV8: 0 | DW8: 0.1225225225 | DX8: 0 | DY8: 0 | DZ8: 0 | EA8: 0 | EB8: 0 | ED8: 0 | EE8: 12.25 | EF8: 0 | EG8: 12.25 | EH8: 12.25 | EI8: 0.00 | EJ8: 0 | EK8: 0.123 | EL8: 0 | EM8: 0.8774774775 | EN8: 1 | EO8: 0 | EP8: 0 | EQ8: 0 | ER8: 0 | ES8: 0 | EU8: 0 | EV8: 0 | EW8: 0 | EX8: 0 | EY8: 0 | EZ8: 0 | FA8: 0 | FB8: 0 | FC8: 0 | FD8: 0 | FE8: 0 | FF8: 0 | FG8: 0 | FJ8: 0 | FK8: 0 | FL8: 0 | FM8: 1 | FN8: 0 | FO8: 0 | FQ8: 0 | FU8: 267.00 | FV8: 0.196 | FW8: 0.000 | FX8: 0.196 | FY8: 52.30 | FZ8: 5.11 | GA8: 0.024 | GB8: 0.196 | GC8: 1.36 | GD8: 1.92 | GE8: 0.000 | GF8: 0.196 | GK8: 2.58 | GL8: 0.08 | GM8: NA | GN8: NA | GO8: 0.028 | GP8: 1.36 | GQ8: 1.92 | GR8: 0.00 | GS8: 0.196 | GT8: 4.247 | GU8: 0.141 | GV8: No | HP8: 29.22 | HU8: 4.08 | HZ8: 0 | IA8: 0 | IB8: 0 | IC8: 0 | ID8: 0 | IE8: 0 | IF8: 0 | IG8: 0 | IH8: 0 | II8: 0 | IJ8: 0 | IK8: 0 | IL8: 0 | IM8: 0 | IN8: 0 | IO8: 0 | IP8: 0 | IQ8: 0 | IR8: 0 | IS8: 0 | IT8: 0 | IU8: 0.8774774775 | IV8: 0 | IW8: 0 | IX8: 0 | IY8: 0 | IZ8: 0.1225225225 | JA8: 0 | JB8: 0 | JC8: 0 | JD8: 0 | JE8: 0 | JF8: 0 | JH8: 2.63 | JL8: No Assist | JP8: 0.451 | JQ8: 0.068 | JR8: 2.13 | JS8: 0.487
A9: EPA-600/2-83-052 | B9: NA | C9: 52 | D9: 99.82% | E9: 6.866666667 | F9: NA | G9: NO | H9: Unknown | I9: NA | J9: Steam-Assisted | K9: Unknown | L9: Unknown | M9: Unknown | N9: >1000 | O9: 5.86 | P9: 0.49 | Q9: 0.19 | R9: VG flow < 10 lb/hr. | S9: 268 | T9: 2.592 | U9: 33.252 | V9: 0.04933333333 | W9: 0.04933333333 | X9: 29.74747108 | Y9: 469.6428571 | Z9: 0 | AT9: 88.05485384 | AY9: 11.94514616 | BD9: 4237.526667 | BE9: 201 | BF9: None | BG9: None | BH9: None | BI9: None | BJ9: None | BK9: None | BL9: 4237.526667 | BM9: 201 | BN9: 77.55 | BO9: 127.44 | BP9: 1066.85 | CL9: 29.28 | CQ9: 3.972 | CV9: 4237.526667 | CX9: 0 | CY9: 0 | CZ9: 0 | DA9: 0 | DB9: 0 | DC9: 0 | DD9: 0 | DE9: 0 | DF9: 0 | DG9: 0 | DH9: 0 | DI9: 0 | DJ9: 0 | DK9: 0 | DL9: 0 | DM9: 0 | DN9: 0 | DO9: 0 | DP9: 0 | DQ9: 0 | DR9: 0.006855892633 | DS9: 0 | DT9: 0 | DU9: 0 | DV9: 0 | DW9: 0.0009300411728 | DX9: 0 | DY9: 0 | DZ9: 0 | EA9: 0 | EB9: 0.9922140662 | ED9: 0 | EE9: 11.95 | EF9: 0 | EG9: 11.95 | EH9: 0.09 | EI9: 0.00 | EJ9: 0 | EK9: 0.001 | EL9: 0.9922140662 | EM9: 0.9990699588 | EN9: 1 | EO9: 0 | EP9: 0 | EQ9: 0 | ER9: 0 | ES9: 0 | EU9: 0 | EV9: 0 | EW9: 0 | EX9: 0 | EY9: 0 | EZ9: 0 | FA9: 0 | FB9: 0 | FC9: 0 | FD9: 0 | FE9: 0 | FF9: 0 | FG9: 0 | FJ9: 0 | FK9: 0 | FL9: 0 | FM9: 1 | FN9: 0 | FO9: 0 | FQ9: 0 | FU9: 2.09 | FV9: 0.201 | FW9: 0.000 | FX9: 0.201 | FY9: 53.85 | FZ9: 0.04 | GA9: 0.024 | GB9: 25.805 | GC9: 1.36 | GD9: 1.92 | GE9: 0.357 | GF9: -3.140 | GK9: 2.59 | GL9: 0.08 | GM9: NA | GN9: NA | GO9: 0.032 | GP9: 1.36 | GQ9: 1.92 | GR9: 0.00 | GS9: 0.201 | GT9: 4.138 | GU9: 0.124 | GV9: No | HP9: 29.28 | HU9: 3.972 | HZ9: 0 | IA9: 0 | IB9: 0 | IC9: 0 | ID9: 0 | IE9: 0 | IF9: 0 | IG9: 0 | IH9: 0 | II9: 0 | IJ9: 0 | IK9: 0 | IL9: 0 | IM9: 0 | IN9: 0 | IO9: 0 | IP9: 0 | IQ9: 0 | IR9: 0 | IS9: 0 | IT9: 0 | IU9: 0.8805485384 | IV9: 0 | IW9: 0 | IX9: 0 | IY9: 0 | IZ9: 0.1194514616 | JA9: 0 | JB9: 0 | JC9: 0 | JD9: 0 | JE9: 0 | JF9: 0 | JH9: 2.96 | JL9: Steam Assist | JP9: 0.452 | JQ9: 0.0662 | JR9: 2.14 | JS9: 0.488
A10: EPA-600/2-83-052 | B10: NA | C10: 53 | D10: 99.40% | E10: 4.866666667 | F10: NA | G10: NO | H10: Unknown | I10: NA | J10: Steam-Assisted | K10: Unknown | L10: Unknown | M10: Unknown | N10: >1000 | O10: 5.86 | P10: 0.49 | Q10: 0.19 | R10: VG flow < 10 lb/hr and run time < 5 minutes. | S10: 209 | T10: 1.636 | U10: 21.366 | V10: 0.03166666667 | W10: 0.03166666667 | X10: 29.36964203 | Y10: 469.6428571 | Z10: 0 | AT10: 90.42403819 | AY10: 9.575961808 | BD10: 4237.526667 | BE10: 201 | BF10: None | BG10: None | BH10: None | BI10: None | BJ10: None | BK10: None | BL10: 4237.526667 | BM10: 201 | BN10: 122.86 | BO10: 198.33 | BP10: 2071.13 | CL10: 19.32 | CQ10: 2.046 | CV10: 4237.526667 | CX10: 0 | CY10: 0 | CZ10: 0 | DA10: 0 | DB10: 0 | DC10: 0 | DD10: 0 | DE10: 0 | DF10: 0 | DG10: 0 | DH10: 0 | DI10: 0 | DJ10: 0 | DK10: 0 | DL10: 0 | DM10: 0 | DN10: 0 | DO10: 0 | DP10: 0 | DQ10: 0 | DR10: 0.004536390445 | DS10: 0 | DT10: 0 | DU10: 0 | DV10: 0 | DW10: 0.0004804065658 | DX10: 0 | DY10: 0 | DZ10: 0 | EA10: 0 | EB10: 0.994983203 | ED10: 0 | EE10: 9.58 | EF10: 0 | EG10: 9.58 | EH10: 0.05 | EI10: 0.00 | EJ10: 0 | EK10: 0.000 | EL10: 0.994983203 | EM10: 0.9995195934 | EN10: 1 | EO10: 0 | EP10: 0 | EQ10: 0 | ER10: 0 | ES10: 0 | EU10: 0 | EV10: 0 | EW10: 0 | EX10: 0 | EY10: 0 | EZ10: 0 | FA10: 0 | FB10: 0 | FC10: 0 | FD10: 0 | FE10: 0 | FF10: 0 | FG10: 0 | FJ10: 0 | FK10: 0 | FL10: 0 | FM10: 1 | FN10: 0 | FO10: 0 | FQ10: 0 | FU10: 1.05 | FV10: 0.251 | FW10: 0.000 | FX10: 0.251 | FY10: 52.38 | FZ10: 0.02 | GA10: 0.024 | GB10: 49.958 | GC10: 1.36 | GD10: 1.92 | GE10: 0.358 | GF10: -2.957 | GK10: 1.64 | GL10: 0.08 | GM10: NA | GN10: NA | GO10: 0.021 | GP10: 1.36 | GQ10: 1.92 | GR10: 0.00 | GS10: 0.251 | GT10: 3.056 | GU10: 0.027 | GV10: Yes | HP10: 19.32 | HU10: 2.046 | HZ10: 0 | IA10: 0 | IB10: 0 | IC10: 0 | ID10: 0 | IE10: 0 | IF10: 0 | IG10: 0 | IH10: 0 | II10: 0 | IJ10: 0 | IK10: 0 | IL10: 0 | IM10: 0 | IN10: 0 | IO10: 0 | IP10: 0 | IQ10: 0 | IR10: 0 | IS10: 0 | IT10: 0 | IU10: 0.9042403819 | IV10: 0 | IW10: 0 | IX10: 0 | IY10: 0 | IZ10: 0.09575961808 | JA10: 0 | JB10: 0 | JC10: 0 | JD10: 0 | JE10: 0 | JF10: 0 | JH10: 1.9 | JL10: Steam Assist | JP10: 0.226 | JQ10: 0.0341 | JR10: 1.41 | JS10: 0.322
A11: EPA-600/2-83-052 | B11: NA | C11: 54 | D11: 99.90% | E11: 16.95 | F11: NA | G11: NO | H11: Unknown | I11: NA | J11: Steam-Assisted | K11: Unknown | L11: Unknown | M11: Unknown | N11: >1000 | O11: 5.86 | P11: 0.49 | Q11: 0.19 | R11: VG flow < 10 lb/hr. | S11: 209 | T11: 1.636 | U11: 21.366 | V11: 0.03166666667 | W11: 0.03166666667 | X11: 29.36964203 | Y11: 469.6428571 | Z11: 0 | AT11: 90.42403819 | AY11: 9.575961808 | BD11: 0 | BE11: 0 | BF11: None | BG11: None | BH11: None | BI11: None | BJ11: None | BK11: None | BL11: 0 | BM11: 0 | BN11: 0.00 | BO11: 0.00 | BP11: 0.00 | CL11: 19.32 | CQ11: 2.046 | CV11: 0 | CX11: 0 | CY11: 0 | CZ11: 0 | DA11: 0 | DB11: 0 | DC11: 0 | DD11: 0 | DE11: 0 | DF11: 0 | DG11: 0 | DH11: 0 | DI11: 0 | DJ11: 0 | DK11: 0 | DL11: 0 | DM11: 0 | DN11: 0 | DO11: 0 | DP11: 0 | DQ11: 0 | DR11: 0.9042403819 | DS11: 0 | DT11: 0 | DU11: 0 | DV11: 0 | DW11: 0.09575961808 | DX11: 0 | DY11: 0 | DZ11: 0 | EA11: 0 | EB11: 0 | ED11: 0 | EE11: 9.58 | EF11: 0 | EG11: 9.58 | EH11: 9.58 | EI11: 0.00 | EJ11: 0 | EK11: 0.096 | EL11: 0 | EM11: 0.9042403819 | EN11: 1 | EO11: 0 | EP11: 0 | EQ11: 0 | ER11: 0 | ES11: 0 | EU11: 0 | EV11: 0 | EW11: 0 | EX11: 0 | EY11: 0 | EZ11: 0 | FA11: 0 | FB11: 0 | FC11: 0 | FD11: 0 | FE11: 0 | FF11: 0 | FG11: 0 | FJ11: 0 | FK11: 0 | FL11: 0 | FM11: 1 | FN11: 0 | FO11: 0 | FQ11: 0 | FU11: 209.00 | FV11: 0.251 | FW11: 0.000 | FX11: 0.251 | FY11: 52.38 | FZ11: 3.99 | GA11: 0.024 | GB11: 0.251 | GC11: 1.36 | GD11: 1.92 | GE11: 0.000 | GF11: 0.251 | GK11: 1.64 | GL11: 0.08 | GM11: NA | GN11: NA | GO11: 0.021 | GP11: 1.36 | GQ11: 1.92 | GR11: 0.00 | GS11: 0.251 | GT11: 3.056 | GU11: 0.027 | GV11: Yes | HP11: 19.32 | HU11: 2.046 | HZ11: 0 | IA11: 0 | IB11: 0 | IC11: 0 | ID11: 0 | IE11: 0 | IF11: 0 | IG11: 0 | IH11: 0 | II11: 0 | IJ11: 0 | IK11: 0 | IL11: 0 | IM11: 0 | IN11: 0 | IO11: 0 | IP11: 0 | IQ11: 0 | IR11: 0 | IS11: 0 | IT11: 0 | IU11: 0.9042403819 | IV11: 0 | IW11: 0 | IX11: 0 | IY11: 0 | IZ11: 0.09575961808 | JA11: 0 | JB11: 0 | JC11: 0 | JD11: 0 | JE11: 0 | JF11: 0 | JH11: 1.9 | JL11: No Assist | JP11: 0.226 | JQ11: 0.0341 | JR11: 1.41 | JS11: 0.322
A12: EPA-600/2-83-052 | B12: NA | C12: 55 | D12: 68.95% | E12: 10.21666667 | F12: NA | G12: NO | H12: Unknown | I12: NA | J12: Steam-Assisted | K12: Unknown | L12: Unknown | M12: Unknown | N12: >1000 | O12: 5.86 | P12: 0.49 | Q12: 0.19 | R12: Probe Uncertainty | S12: 2183 | T12: 164 | U12: 1482 | V12: 2.2 | W12: 2.2 | X12: 42.08 | Y12: 469.6428571 | Z12: 0 | AT12: 0 | AY12: 100 | BD12: 23675.33556 | BE12: 1123 | BF12: None | BG12: None | BH12: None | BI12: None | BJ12: None | BK12: None | BL12: 23675.33556 | BM12: 1123 | BN12: 6.85 | BO12: 15.98 | BP12: 15.98 | CL12: 0 | CQ12: 1482 | CV12: 23675.33556 | CX12: 0 | CY12: 0 | CZ12: 0 | DA12: 0 | DB12: 0 | DC12: 0 | DD12: 0 | DE12: 0 | DF12: 0 | DG12: 0 | DH12: 0 | DI12: 0 | DJ12: 0 | DK12: 0 | DL12: 0 | DM12: 0 | DN12: 0 | DO12: 0 | DP12: 0 | DQ12: 0 | DR12: 0 | DS12: 0 | DT12: 0 | DU12: 0 | DV12: 0 | DW12: 0.05890925916 | DX12: 0 | DY12: 0 | DZ12: 0 | EA12: 0 | EB12: 0.9410907408 | ED12: 0 | EE12: 100.00 | EF12: 0 | EG12: 100.00 | EH12: 5.89 | EI12: 0.00 | EJ12: 0 | EK12: 0.059 | EL12: 0.9410907408 | EM12: 0.9410907408 | EN12: 1 | EO12: 0 | EP12: 0 | EQ12: 0 | ER12: 0 | ES12: 0 | EU12: 0 | EV12: 0 | EW12: 0 | EX12: 0 | EY12: 0 | EZ12: 0 | FA12: 0 | FB12: 0 | FC12: 0 | FD12: 0 | FE12: 0 | FF12: 0 | FG12: 0 | FJ12: 0 | FK12: 0 | FL12: 0 | FM12: 1 | FN12: 0 | FO12: 0 | FQ12: 0 | FU12: 128.60 | FV12: 0.024 | FW12: 0.000 | FX12: 0.024 | FY12: 52.39 | FZ12: 2.45 | GA12: 0.024 | GB12: 0.407 | GC12: 1.36 | GD12: 1.92 | GE12: 0.339 | GF12: 0.473 | GK12: 164.00 | GL12: 0.11 | GM12: NA | GN12: NA | GO12: 1.430 | GP12: 1.36 | GQ12: 1.92 | GR12: 0.00 | GS12: 0.024 | GT12: 60.067 | GU12: 79772.854 | GV12: No | HP12: 0 | HU12: 1482 | HZ12: 0 | IA12: 0 | IB12: 0 | IC12: 0 | ID12: 0 | IE12: 0 | IF12: 0 | IG12: 0 | IH12: 0 | II12: 0 | IJ12: 0 | IK12: 0 | IL12: 0 | IM12: 0 | IN12: 0 | IO12: 0 | IP12: 0 | IQ12: 0 | IR12: 0 | IS12: 0 | IT12: 0 | IU12: 0 | IV12: 0 | IW12: 0 | IX12: 0 | IY12: 0 | IZ12: 1 | JA12: 0 | JB12: 0 | JC12: 0 | JD12: 0 | JE12: 0 | JF12: 0 | JH12: 132 | JL12: Steam Assist | JP12: 164 | JQ12: 24.7 | JR12: 0 | JS12: 0
A13: EPA-600/2-83-052 | B13: NA | C13: 67 | D13: See pg 28 | E13: 19.7 | F13: NA | G13: NO | H13: Unknown | I13: NA | J13: Steam-Assisted | K13: Unknown | L13: Unknown | M13: Unknown | N13: >1000 | O13: 5.86 | P13: 0.49 | Q13: 0.19 | R13: Probe in Flame | S13: 2183 | T13: 980 | U13: 8880 | V13: 13.15 | W13: 13.15 | X13: 42.08 | Y13: 469.6428571 | Z13: 0 | AT13: 0 | AY13: 100 | BD13: 14989.46 | BE13: 711 | BF13: None | BG13: None | BH13: None | BI13: None | BJ13: None | BK13: None | BL13: 14989.46 | BM13: 711 | BN13: 0.73 | BO13: 1.69 | BP13: 1.69 | CL13: 0 | CQ13: 8880 | CV13: 14989.46 | CX13: 0 | CY13: 0 | CZ13: 0 | DA13: =BU13/SUM($BS13:$CX13) -> 0 | DB13: 0 | DC13: 0 | DD13: 0 | DE13: 0 | DF13: 0 | DG13: 0 | DH13: 0 | DI13: 0 | DJ13: 0 | DK13: 0 | DL13: 0 | DM13: 0 | DN13: 0 | DO13: 0 | DP13: =CJ13/SUM($BS13:$CX13) -> 0 | DQ13: 0 | DR13: 0 | DS13: 0 | DT13: 0 | DU13: 0 | DV13: 0 | DW13: 0.3720234978 | DX13: 0 | DY13: 0 | DZ13: 0 | EA13: 0 | EB13: 0.6279765022 | ED13: 0 | EE13: 100.00 | EF13: 0 | EG13: 100.00 | EH13: 37.20 | EI13: 0.00 | EJ13: 0 | EK13: 0.372 | EL13: 0.6279765022 | EM13: 0.6279765022 | EN13: 1 | EO13: 0 | EP13: 0 | EQ13: 0 | ER13: 0 | ES13: 0 | EU13: 0 | EV13: 0 | EW13: 0 | EX13: 0 | EY13: 0 | EZ13: 0 | FA13: 0 | FB13: 0 | FC13: 0 | FD13: 0 | FE13: 0 | FF13: 0 | FG13: 0 | FJ13: 0 | FK13: 0 | FL13: 0 | FM13: 1 | FN13: 0 | FO13: 0 | FQ13: 0 | FU13: 812.13 | FV13: 0.024 | FW13: 0.000 | FX13: 0.024 | FY13: 52.39 | FZ13: 15.50 | GA13: 0.024 | GB13: 0.065 | GC13: 1.36 | GD13: 1.92 | GE13: 0.226 | GF13: 0.065 | GK13: 980.00 | GL13: 0.11 | GM13: NA | GN13: NA | GO13: 8.547 | GP13: 1.36 | GQ13: 1.92 | GR13: 0.00 | GS13: 0.024 | GT13: 59.904 | GU13: 78694.151 | GV13: No | HP13: 0 | HU13: 8880 | HZ13: 0 | IA13: 0 | IB13: 0 | IC13: 0 | ID13: 0 | IE13: 0 | IF13: 0 | IG13: 0 | IH13: 0 | II13: 0 | IJ13: 0 | IK13: 0 | IL13: 0 | IM13: 0 | IN13: 0 | IO13: 0 | IP13: 0 | IQ13: 0 | IR13: 0 | IS13: 0 | IT13: 0 | IU13: 0 | IV13: 0 | IW13: 0 | IX13: 0 | IY13: 0 | IZ13: 1 | JA13: 0 | JB13: 0 | JC13: 0 | JD13: 0 | JE13: 0 | JF13: 0 | JH13: 789 | JL13: Steam Assist | JP13: 980 | JQ13: 148 | JR13: 0 | JS13: 0
A14: EPA-600/2-83-052 | B14: NA | C14: 16c | D14: 99.74% | E14: 9.65 | F14: NA | G14: YES | H14: Unknown | I14: NA | J14: Steam-Assisted | K14: Unknown | L14: Unknown | M14: Unknown | N14: >1000 | O14: 5.86 | P14: 0.49 | Q14: 0.19 | R14: Smoking flare. | S14: 519 | T14: 957 | U14: 11652 | V14: 17.21666667 | W14: 17.21666667 | X14: 31.37827477 | Y14: 469.6428571 | Z14: 0 | AT14: 76.21009269 | AY14: 23.78990731 | BD14: 0 | BE14: 0 | BF14: None | BG14: None | BH14: None | BI14: None | BJ14: None | BK14: None | BL14: 0 | BM14: 0 | BN14: 0.00 | BO14: 0.00 | BP14: 0.00 | CL14: 8880 | CQ14: 2772 | CV14: 0 | CX14: 0 | CY14: 0 | CZ14: 0 | DA14: 0 | DB14: 0 | DC14: 0 | DD14: 0 | DE14: 0 | DF14: 0 | DG14: 0 | DH14: 0 | DI14: 0 | DJ14: 0 | DK14: 0 | DL14: 0 | DM14: 0 | DN14: 0 | DO14: 0 | DP14: 0 | DQ14: 0 | DR14: 0.7621009269 | DS14: 0 | DT14: =CN14/SUM($BS14:$CX14) -> 0 | DU14: 0 | DV14: 0 | DW14: 0.2378990731 | DX14: 0 | DY14: 0 | DZ14: 0 | EA14: 0 | EB14: 0 | ED14: 0 | EE14: 23.79 | EF14: 0 | EG14: 23.79 | EH14: 23.79 | EI14: 0.00 | EJ14: 0 | EK14: 0.238 | EL14: 0 | EM14: 0.7621009269 | EN14: 1 | EO14: 0 | EP14: 0 | EQ14: 0 | ER14: 0 | ES14: 0 | EU14: 0 | EV14: 0 | EW14: 0 | EX14: 0 | EY14: 0 | EZ14: 0 | FA14: 0 | FB14: 0 | FC14: 0 | FD14: 0 | FE14: 0 | FF14: 0 | FG14: 0 | FJ14: 0 | FK14: 0 | FL14: 0 | FM14: 1 | FN14: 0 | FO14: 0 | FQ14: 0 | FU14: 519.00 | FV14: 0.101 | FW14: 0.000 | FX14: 0.101 | FY14: 52.36 | FZ14: 9.91 | GA14: 0.024 | GB14: 0.101 | GC14: 1.36 | GD14: 1.92 | GE14: 0.000 | GF14: 0.101 | GK14: 957.00 | GL14: 0.08 | GM14: NA | GN14: NA | GO14: 11.190 | GP14: 1.36 | GQ14: 1.92 | GR14: 0.00 | GS14: 0.101 | GT14: 9.770 | GU14: 9.083 | GV14: Yes | HP14: 8880 | HU14: 2772 | HZ14: 0 | IA14: 0 | IB14: 0 | IC14: 0 | ID14: 0 | IE14: 0 | IF14: 0 | IG14: 0 | IH14: 0 | II14: 0 | IJ14: 0 | IK14: 0 | IL14: 0 | IM14: 0 | IN14: 0 | IO14: 0 | IP14: 0 | IQ14: 0 | IR14: 0 | IS14: 0 | IT14: 0 | IU14: 0.7621009269 | IV14: 0 | IW14: 0 | IX14: 0 | IY14: 0 | IZ14: 0.2378990731 | JA14: 0 | JB14: 0 | JC14: 0 | JD14: 0 | JE14: 0 | JF14: 0 | JH14: 1033 | JL14: No Assist | JP14: 307 | JQ14: 46.2 | JR14: 650 | JS14: 148
A15: EPA-600/2-83-052 | B15: NA | C15: 16d | D15: 99.78% | E15: 9.65 | F15: NA | G15: YES | H15: Unknown | I15: NA | J15: Steam-Assisted | K15: Unknown | L15: Unknown | M15: Unknown | N15: >1000 | O15: 5.86 | P15: 0.49 | Q15: 0.19 | R15: Smoking flare. | S15: 634 | T15: 803 | U15: 9558 | V15: 10.75 | W15: 10.75 | X15: 32.11815052 | Y15: 469.6428571 | Z15: 0 | AT15: 70.93534212 | AY15: 29.06465788 | BD15: 0 | BE15: 0 | BF15: None | BG15: None | BH15: None | BI15: None | BJ15: None | BK15: None | BL15: 0 | BM15: 0 | BN15: 0.00 | BO15: 0.00 | BP15: 0.00 | CL15: 6780 | CQ15: 2778 | CV15: 0 | CX15: 0 | CY15: 0 | CZ15: 0 | DA15: 0 | DB15: 0 | DC15: 0 | DD15: 0 | DE15: 0 | DF15: 0 | DG15: 0 | DH15: 0 | DI15: 0 | DJ15: 0 | DK15: 0 | DL15: 0 | DM15: 0 | DN15: 0 | DO15: 0 | DP15: 0 | DQ15: 0 | DR15: 0.7093534212 | DS15: 0 | DT15: 0 | DU15: 0 | DV15: 0 | DW15: 0.2906465788 | DX15: 0 | DY15: 0 | DZ15: 0 | EA15: 0 | EB15: 0 | ED15: 0 | EE15: 29.06 | EF15: 0 | EG15: 29.06 | EH15: 29.06 | EI15: 0.00 | EJ15: 0 | EK15: 0.291 | EL15: 0 | EM15: 0.7093534212 | EN15: 1 | EO15: 0 | EP15: 0 | EQ15: 0 | ER15: 0 | ES15: 0 | EU15: 0 | EV15: 0 | EW15: 0 | EX15: 0 | EY15: 0 | EZ15: 0 | FA15: 0 | FB15: 0 | FC15: 0 | FD15: 0 | FE15: 0 | FF15: 0 | FG15: 0 | FJ15: 0 | FK15: 0 | FL15: 0 | FM15: 1 | FN15: 0 | FO15: 0 | FQ15: 0 | FU15: 634.00 | FV15: 0.083 | FW15: 0.000 | FX15: 0.083 | FY15: 52.35 | FZ15: 12.11 | GA15: 0.024 | GB15: 0.083 | GC15: 1.36 | GD15: 1.92 | GE15: 0.000 | GF15: 0.083 | GK15: 803.00 | GL15: 0.08 | GM15: NA | GN15: NA | GO15: 6.987 | GP15: 1.36 | GQ15: 1.92 | GR15: 0.00 | GS15: 0.083 | GT15: 12.459 | GU15: 30.623 | GV15: No | HP15: 6780 | HU15: 2778 | HZ15: 0 | IA15: 0 | IB15: 0 | IC15: 0 | ID15: 0 | IE15: 0 | IF15: 0 | IG15: 0 | IH15: 0 | II15: 0 | IJ15: 0 | IK15: 0 | IL15: 0 | IM15: 0 | IN15: 0 | IO15: 0 | IP15: 0 | IQ15: 0 | IR15: 0 | IS15: 0 | IT15: 0 | IU15: 0.7093534212 | IV15: 0 | IW15: 0 | IX15: 0 | IY15: 0 | IZ15: 0.2906465788 | JA15: 0 | JB15: 0 | JC15: 0 | JD15: 0 | JE15: 0 | JF15: 0 | JH15: 645 | JL15: No Assist | JP15: 307 | JQ15: 46.3 | JR15: 496 | JS15: 113
A16: EPA-600/2-84-095 | B16: NA | C16: 1 | D16: 99.49% | E16: 20 | F16: NA | H16: NA | I16: NA | J16: Steam-Assisted | K16: Unknown | L16: Unknown | M16: Unknown | N16: >1000 | R16: Test 2-84-095 does not provide enough VG flow info. | S16: 1311 | V16: 0.5 | Y16: 0 | Z16: 0 | GK16: NA | GL16: NA | GM16: NA | GN16: NA | HZ16: 0 | JL16: No Assist | JM16: 0 | JO16: 55.8
A17: EPA-600/2-84-095 | B17: NA | C17: 2 | D17: 98.37% | E17: 20 | F17: NA | H17: NA | I17: NA | J17: Steam-Assisted | K17: Unknown | L17: Unknown | M17: Unknown | N17: >1000 | R17: Test 2-84-095 does not provide enough VG flow info. | S17: 1311 | V17: 0.5 | Y17: 0 | Z17: 0 | GK17: NA | GL17: NA | GM17: NA | GN17: NA | HZ17: 0 | JL17: No Assist | JM17: 0 | JO17: 55.8
A18: EPA-600/2-84-095 | B18: NA | C18: 3 | D18: 98.77% | E18: 20 | F18: NA | H18: NA | I18: NA | J18: Steam-Assisted | K18: Unknown | L18: Unknown | M18: Unknown | N18: >1000 | R18: Test 2-84-095 does not provide enough VG flow info. | S18: 1309 | V18: 0.5 | Y18: 0 | Z18: 0 | GK18: NA | GL18: NA | GM18: NA | GN18: NA | HZ18: 0 | JL18: No Assist | JM18: 0 | JO18: 55.7
A19: EPA-600/2-84-095 | B19: NA | C19: 4 | D19: 99.06% | E19: 20 | F19: NA | H19: NA | I19: NA | J19: Steam-Assisted | K19: Unknown | L19: Unknown | M19: Unknown | N19: >1000 | R19: Test 2-84-095 does not provide enough VG flow info. | S19: 1311 | V19: 0.5 | Y19: 0 | Z19: 0 | GK19: NA | GL19: NA | GM19: NA | GN19: NA | HZ19: 0 | JL19: No Assist | JM19: 0 | JO19: 55.8
A20: EPA-600/2-84-095 | B20: NA | C20: 5 | D20: 99.54% | E20: 20 | F20: NA | H20: NA | I20: NA | J20: Steam-Assisted | K20: Unknown | L20: Unknown | M20: Unknown | N20: >1000 | R20: Test 2-84-095 does not provide enough VG flow info. | S20: 1318 | V20: 2 | Y20: 0 | Z20: 0 | GK20: NA | GL20: NA | GM20: NA | GN20: NA | HZ20: 0 | JL20: No Assist | JM20: 0 | JO20: 56.1
A21: EPA-600/2-84-095 | B21: NA | C21: 6 | D21: 94.24% | E21: 20 | F21: NA | H21: NA | I21: NA | J21: Steam-Assisted | K21: Unknown | L21: Unknown | M21: Unknown | N21: >1000 | R21: Test 2-84-095 does not provide enough VG flow info. | S21: 1314 | V21: 2 | Y21: 0 | Z21: 0 | GK21: NA | GL21: NA | GM21: NA | GN21: NA | HZ21: 0 | JL21: No Assist | JM21: 0 | JO21: 55.9
A22: EPA-600/2-84-095 | B22: NA | C22: 7 | D22: 99.64% | E22: 20 | F22: NA | H22: NA | I22: NA | J22: Steam-Assisted | K22: Unknown | L22: Unknown | M22: Unknown | N22: >1000 | R22: Test 2-84-095 does not provide enough VG flow info. | S22: 1314 | V22: 2 | Y22: 0 | Z22: 0 | GK22: NA | GL22: NA | GM22: NA | GN22: NA | HZ22: 0 | JL22: No Assist | JM22: 0 | JO22: 55.9
A23: EPA-600/2-84-095 | B23: NA | C23: 8 | D23: 98.95% | E23: 20 | F23: NA | H23: NA | I23: NA | J23: Steam-Assisted | K23: Unknown | L23: Unknown | M23: Unknown | N23: >1000 | R23: Test 2-84-095 does not provide enough VG flow info. | S23: 1314 | V23: 2 | Y23: 0 | Z23: 0 | GK23: NA | GL23: NA | GM23: NA | GN23: NA | HZ23: 0 | JL23: No Assist | JM23: 0 | JO23: 55.9
A24: EPA-600/2-84-095 | B24: NA | C24: 9 | D24: 99.74% | E24: 20 | F24: NA | H24: NA | I24: NA | J24: Steam-Assisted | K24: Unknown | L24: Unknown | M24: Unknown | N24: >1000 | R24: Test 2-84-095 does not provide enough VG flow info. | S24: 1325 | V24: 9.9 | Y24: 0 | Z24: 0 | GK24: NA | GL24: NA | GM24: NA | GN24: NA | HZ24: 0 | JL24: No Assist | JM24: 0 | JO24: 56.4
A25: EPA-600/2-84-095 | B25: NA | C25: 10 | D25: 98.69% | E25: 20 | F25: NA | H25: NA | I25: NA | J25: Steam-Assisted | K25: Unknown | L25: Unknown | M25: Unknown | N25: >1000 | R25: Test 2-84-095 does not provide enough VG flow info. | S25: 1316 | V25: 10 | Y25: 0 | Z25: 0 | GK25: NA | GL25: NA | GM25: NA | GN25: NA | HZ25: 0 | JL25: No Assist | JM25: 0 | JO25: 56
A26: EPA-600/2-84-095 | B26: NA | C26: 11 | D26: 95.66% | E26: 20 | F26: NA | H26: NA | I26: NA | J26: Steam-Assisted | K26: Unknown | L26: Unknown | M26: Unknown | N26: >1000 | R26: Test 2-84-095 does not provide enough VG flow info. | S26: 1323 | V26: 10 | Y26: 0 | Z26: 0 | GK26: NA | GL26: NA | GM26: NA | GN26: NA | HZ26: 0 | JL26: No Assist | JM26: 0 | JO26: 56.3
A27: EPA-600/2-84-095 | B27: NA | C27: 12 | D27: 98.78% | E27: 20 | F27: NA | H27: NA | I27: NA | J27: Steam-Assisted | K27: Unknown | L27: Unknown | M27: Unknown | N27: >1000 | R27: Test 2-84-095 does not provide enough VG flow info. | S27: 1323 | V27: 10 | Y27: 0 | Z27: 0 | GK27: NA | GL27: NA | GM27: NA | GN27: NA | HZ27: 0 | JL27: No Assist | JM27: 0 | JO27: 56.3
A28: EPA-600/2-84-095 | B28: NA | C28: 13 | D28: 90.19% | E28: 20 | F28: NA | H28: NA | I28: NA | J28: Steam-Assisted | K28: Unknown | L28: Unknown | M28: Unknown | N28: >1000 | R28: Test 2-84-095 does not provide enough VG flow info. | S28: 273 | V28: 0.5 | Y28: 0 | Z28: 0 | GK28: NA | GL28: NA | GM28: NA | GN28: NA | HZ28: 0 | JL28: No Assist | JM28: 0 | JO28: 11.6
A29: EPA-600/2-84-095 | B29: NA | C29: 16 | D29: 99.83% | E29: 20 | F29: NA | H29: NA | I29: NA | J29: Steam-Assisted | K29: Unknown | L29: Unknown | M29: Unknown | N29: >1000 | R29: Test 2-84-095 does not provide enough VG flow info. | S29: 1323 | V29: 10 | Y29: 0 | Z29: 0 | GK29: NA | GL29: NA | GM29: NA | GN29: NA | HZ29: 0 | JL29: No Assist | JM29: 0.142 | JO29: 56.3
A30: EPA-600/2-84-095 | B30: NA | C30: 17 | D30: 99.96% | E30: 20 | F30: NA | H30: NA | I30: NA | J30: Steam-Assisted | K30: Unknown | L30: Unknown | M30: Unknown | N30: >1000 | R30: Test 2-84-095 does not provide enough VG flow info. | S30: 1323 | V30: 10 | Y30: 0 | Z30: 0 | GK30: NA | GL30: NA | GM30: NA | GN30: NA | HZ30: 0 | JL30: No Assist | JM30: 0.3 | JO30: 56.3
A31: EPA-600/2-84-095 | B31: NA | C31: 18 | D31: 99.89% | E31: 20 | F31: NA | H31: NA | I31: NA | J31: Steam-Assisted | K31: Unknown | L31: Unknown | M31: Unknown | N31: >1000 | R31: Test 2-84-095 does not provide enough VG flow info. | S31: 1321 | V31: 10 | Y31: 0 | Z31: 0 | GK31: NA | GL31: NA | GM31: NA | GN31: NA | HZ31: 0 | JL31: No Assist | JM31: 0.5 | JO31: 56.2
A32: EPA-600/2-84-095 | B32: NA | C32: 19 | D32: 98.94% | E32: 20 | F32: NA | H32: NA | I32: NA | J32: Steam-Assisted | K32: Unknown | L32: Unknown | M32: Unknown | N32: >1000 | R32: Test 2-84-095 does not provide enough VG flow info. | S32: 1323 | V32: 10 | Y32: 0 | Z32: 0 | GK32: NA | GL32: NA | GM32: NA | GN32: NA | HZ32: 0 | JL32: No Assist | JM32: 1 | JO32: 56.3
A33: EPA-600/2-84-095 | B33: NA | C33: 20 | D33: 99.12% | E33: 20 | F33: NA | H33: NA | I33: NA | J33: Steam-Assisted | K33: Unknown | L33: Unknown | M33: Unknown | N33: >1000 | R33: Test 2-84-095 does not provide enough VG flow info. | S33: 620 | V33: 12 | Y33: 0 | Z33: 0 | GK33: NA | GL33: NA | GM33: NA | GN33: NA | HZ33: 0 | JL33: No Assist | JM33: 0 | JO33: 26.4
A34: EPA-600/2-84-095 | B34: NA | C34: 21 | D34: 99.29% | E34: 20 | F34: NA | H34: NA | I34: NA | J34: Steam-Assisted | K34: Unknown | L34: Unknown | M34: Unknown | N34: >1000 | R34: Test 2-84-095 does not provide enough VG flow info. | S34: 343 | V34: 2.1 | Y34: 0 | Z34: 0 | GK34: NA | GL34: NA | GM34: NA | GN34: NA | HZ34: 0 | JL34: No Assist | JM34: 0 | JO34: 14.6
A35: EPA-600/2-84-095 | B35: NA | C35: 22 | D35: 99.60% | E35: 20 | F35: NA | H35: NA | I35: NA | J35: Steam-Assisted | K35: Unknown | L35: Unknown | M35: Unknown | N35: >1000 | R35: Test 2-84-095 does not provide enough VG flow info. | S35: 1293 | V35: 1 | Y35: 0 | Z35: 0 | GK35: NA | GL35: NA | GM35: NA | GN35: NA | GU35: =((2*3.14)*(SQRT(Q35/3.14)))*((GT35/6.85)^5) ->  | GV35: =IF(W35>GU35,"Yes","No") ->  | HZ35: 0 | JL35: No Assist | JM35: 0 | JO35: 55
A36: EPA-600/2-84-095 | B36: NA | C36: 23 | D36: 99.81% | E36: 20 | F36: NA | H36: NA | I36: NA | J36: Steam-Assisted | K36: Unknown | L36: Unknown | M36: Unknown | N36: >1000 | R36: Test 2-84-095 does not provide enough VG flow info. | S36: 1314 | V36: 2.8 | Y36: 0 | Z36: 0 | GK36: NA | GL36: NA | GM36: NA | GN36: NA | HZ36: 0 | JL36: No Assist | JM36: 0 | JO36: 55.9
A37: EPA-600/2-84-095 | B37: NA | C37: 24 | D37: 99.81% | E37: 20 | F37: NA | H37: NA | I37: NA | J37: Steam-Assisted | K37: Unknown | L37: Unknown | M37: Unknown | N37: >1000 | R37: Test 2-84-095 does not provide enough VG flow info. | S37: 1314 | V37: 2.8 | Y37: 0 | Z37: 0 | GK37: NA | GL37: NA | GM37: NA | GN37: NA | HZ37: 0 | JL37: No Assist | JM37: 0 | JO37: 55.9
A38: EPA-600/2-84-095 | B38: NA | C38: 25 | D38: 99.75% | E38: 20 | F38: NA | H38: NA | I38: NA | J38: Steam-Assisted | K38: Unknown | L38: Unknown | M38: Unknown | N38: >1000 | R38: Test 2-84-095 does not provide enough VG flow info. | S38: 1314 | V38: 2.8 | Y38: 0 | Z38: 0 | GK38: NA | GL38: NA | GM38: NA | GN38: NA | HZ38: 0 | JL38: No Assist | JM38: 0 | JO38: 55.9
A39: EPA-600/2-84-095 | B39: NA | C39: 26 | D39: 99.76% | E39: 20 | F39: NA | H39: NA | I39: NA | J39: Steam-Assisted | K39: Unknown | L39: Unknown | M39: Unknown | N39: >1000 | R39: Test 2-84-095 does not provide enough VG flow info. | S39: 1314 | V39: 2.8 | Y39: 0 | Z39: 0 | GK39: NA | GL39: NA | GM39: NA | GN39: NA | HZ39: 0 | JL39: No Assist | JM39: 0 | JO39: 55.9
A40: EPA-600/2-84-095 | B40: NA | C40: 27 | D40: 99.92% | E40: 20 | F40: NA | H40: NA | I40: NA | J40: Steam-Assisted | K40: Unknown | L40: Unknown | M40: Unknown | N40: >1000 | R40: Test 2-84-095 does not provide enough VG flow info. | S40: 1314 | V40: 2.8 | Y40: 0 | Z40: 0 | GK40: NA | GL40: NA | GM40: NA | GN40: NA | HZ40: 0 | JL40: No Assist | JM40: 0.316 | JO40: 55.9
A41: EPA-600/2-84-095 | B41: NA | C41: 28 | D41: 94.15% | E41: 20 | F41: NA | H41: NA | I41: NA | J41: Steam-Assisted | K41: Unknown | L41: Unknown | M41: Unknown | N41: >1000 | R41: Test 2-84-095 does not provide enough VG flow info. | S41: 1318 | V41: 2.9 | Y41: 0 | Z41: 0 | GK41: NA | GL41: NA | GM41: NA | GN41: NA | HZ41: 0 | JL41: No Assist | JM41: 0 | JO41: 56.1
A42: EPA-600/2-84-095 | B42: NA | C42: 29 | D42: 99.56% | E42: 20 | F42: NA | H42: NA | I42: NA | J42: Steam-Assisted | K42: Unknown | L42: Unknown | M42: Unknown | N42: >1000 | R42: Test 2-84-095 does not provide enough VG flow info. | S42: 1318 | V42: 2.9 | Y42: 0 | Z42: 0 | GK42: NA | GL42: NA | GM42: NA | GN42: NA | HZ42: 0 | JL42: No Assist | JM42: 0 | JO42: 56.1
A43: EPA-600/2-84-095 | B43: NA | C43: 30 | D43: 98.47% | E43: 20 | F43: NA | H43: NA | I43: NA | J43: Steam-Assisted | K43: Unknown | L43: Unknown | M43: Unknown | N43: >1000 | R43: Test 2-84-095 does not provide enough VG flow info. | S43: 1323 | V43: 2.9 | Y43: 0 | Z43: 0 | GK43: NA | GL43: NA | GM43: NA | GN43: NA | HZ43: 0 | JL43: No Assist | JM43: 0 | JO43: 56.3
A44: EPA-600/2-84-095 | B44: NA | C44: 31 | D44: 98.90% | E44: 20 | F44: NA | H44: NA | I44: NA | J44: Steam-Assisted | K44: Unknown | L44: Unknown | M44: Unknown | N44: >1000 | R44: Test 2-84-095 does not provide enough VG flow info. | S44: 1316 | V44: 10.1 | Y44: 0 | Z44: 0 | GK44: NA | GL44: NA | GM44: NA | GN44: NA | HZ44: 0 | JL44: No Assist | JM44: 0 | JO44: 56
A45: EPA-600/2-84-095 | B45: NA | C45: 32 | D45: 99.89% | E45: 20 | F45: NA | H45: NA | I45: NA | J45: Steam-Assisted | K45: Unknown | L45: Unknown | M45: Unknown | N45: >1000 | R45: Test 2-84-095 does not provide enough VG flow info. | S45: 1316 | V45: 2.9 | Y45: 0 | Z45: 0 | GK45: NA | GL45: NA | GM45: NA | GN45: NA | HZ45: 0 | JL45: No Assist | JM45: 0.563 | JO45: 56
A46: EPA-600/2-84-095 | B46: NA | C46: 33 | D46: 96.35% | E46: 20 | F46: NA | H46: NA | I46: NA | J46: Steam-Assisted | K46: Unknown | L46: Unknown | M46: Unknown | N46: >1000 | R46: Test 2-84-095 does not provide enough VG flow info. | S46: 338 | V46: 1.1 | Y46: 0 | Z46: 0 | GK46: NA | GL46: NA | GM46: NA | GN46: NA | HZ46: 0 | JL46: No Assist | JM46: 0 | JO46: 14.4
A47: EPA-600/2-84-095 | B47: NA | C47: 34 | D47: 98.93% | E47: 20 | F47: NA | H47: NA | I47: NA | J47: Steam-Assisted | K47: Unknown | L47: Unknown | M47: Unknown | N47: >1000 | R47: Test 2-84-095 does not provide enough VG flow info. | S47: 414 | V47: 3.1 | Y47: 0 | Z47: 0 | GK47: NA | GL47: NA | GM47: NA | GN47: NA | HZ47: 0 | JL47: No Assist | JM47: 0 | JO47: 17.6
A48: EPA-600/2-84-095 | B48: NA | C48: 35 | D48: 86.93% | E48: 20 | F48: NA | H48: NA | I48: NA | J48: Steam-Assisted | K48: Unknown | L48: Unknown | M48: Unknown | N48: >1000 | R48: Test 2-84-095 does not provide enough VG flow info. | S48: 451 | V48: 3.1 | Y48: 0 | Z48: 0 | GK48: NA | GL48: NA | GM48: NA | GN48: NA | HZ48: 0 | JL48: No Assist | JM48: 0 | JO48: 19.2
A49: EPA-600/2-84-095 | B49: NA | C49: 36 | D49: 98.06% | E49: 20 | F49: NA | H49: NA | I49: NA | J49: Steam-Assisted | K49: Unknown | L49: Unknown | M49: Unknown | N49: >1000 | R49: Test 2-84-095 does not provide enough VG flow info. | S49: 454 | V49: 3.1 | Y49: 0 | Z49: 0 | GK49: NA | GL49: NA | GM49: NA | GN49: NA | HZ49: 0 | JL49: No Assist | JM49: 0 | JO49: 19.3
A50: EPA-600/2-84-095 | B50: NA | C50: 37 | D50: 92.24% | E50: 20 | F50: NA | H50: NA | I50: NA | J50: Steam-Assisted | K50: Unknown | L50: Unknown | M50: Unknown | N50: >1000 | R50: Test 2-84-095 does not provide enough VG flow info. | S50: 451 | V50: 3.1 | Y50: 0 | Z50: 0 | GK50: NA | GL50: NA | GM50: NA | GN50: NA | HZ50: 0 | JL50: No Assist | JM50: 0 | JO50: 19.2
A51: EPA-600/2-84-095 | B51: NA | C51: 38 | D51: 98.76% | E51: 20 | F51: NA | H51: NA | I51: NA | J51: Steam-Assisted | K51: Unknown | L51: Unknown | M51: Unknown | N51: >1000 | R51: Test 2-84-095 does not provide enough VG flow info. | S51: 613 | V51: 11.7 | Y51: 0 | Z51: 0 | GK51: NA | GL51: NA | GM51: NA | GN51: NA | GR51: =((JC51+JE51)*(GP51-1))+(IG51*(GQ51-1)) ->  | GS51: =1/(((100*IB51/1.8)+(100*IC51/2)+(100*ID51/2)+(100*IE51/2.5)+(100*IF51/1.3)+(100*IH51/12.5)+(100*II51/1.7)+(100*IJ51/2.4)+(100*IK51/3)+(100*IL51/1)+(100*IM51/2.7)+(100*IN51/4)+(100*IO51/4)+(100*IP51/1.8)+(100*IQ51/1.8)+(100*IR51/5)+(100*IS51/1.7)+(100*IT51/1.8)+(100*IW51/1.4)+(100*IX51/2.16)+(100*IY51/2.1)+(100*IZ51/2.4)+(100*JA51/1.2)+(100*JB51/1.7)+(100*JD51/1.1)+(100*JF51/5))-GR51) ->  | HZ51: 0 | JL51: =IF(CV51>0,"Steam Assist","No Assist") -> No Assist | JM51: 0 | JO51: 26.1
A52: EPA-600/2-84-095 | B52: NA | C52: 39 | D52: 99.29% | E52: 20 | F52: NA | H52: NA | I52: NA | J52: =IF(JL52="Air Assist", "Air-Assisted","Steam-Assisted") -> Steam-Assisted | K52: Unknown | L52: Unknown | M52: Unknown | N52: >1000 | R52: Test 2-84-095 does not provide enough VG flow info. | S52: 1309 | V52: 0.2 | Y52: 0 | Z52: 0 | EO52: =BS52/(SUM(BS52:BW52,BY52:CK52,CN52:CS52,CU52)) ->  | EP52: =BT52/(SUM(BS52:BW52,BY52:CK52,CN52:CS52,CU52)) ->  | EQ52: =BU52/(SUM(BS52:BW52,BY52:CK52,CN52:CS52,CU52)) ->  | ER52: =BV52/(SUM(BS52:BW52,BY52:CK52,CN52:CS52,CU52)) ->  | ES52: =BW52/(SUM(BS52:BW52,BY52:CK52,CN52:CS52,CU52)) ->  | EU52: =BY52/(SUM(BS52:BW52,BY52:CK52,CN52:CS52,CU52)) ->  | EV52: =BZ52/(SUM(BS52:BW52,BY52:CK52,CN52:CS52,CU52)) ->  | EW52: =CA52/(SUM(BS52:BW52,BY52:CK52,CN52:CS52,CU52)) ->  | EX52: =CB52/(SUM(BS52:BW52,BY52:CK52,CN52:CS52,CU52)) ->  | EY52: =CC52/(SUM(BS52:BW52,BY52:CK52,CN52:CS52,CU52)) ->  | EZ52: =CD52/(SUM(BS52:BW52,BY52:CK52,CN52:CS52,CU52)) ->  | FA52: =CE52/(SUM(BS52:BW52,BY52:CK52,CN52:CS52,CU52)) ->  | FB52: =CF52/(SUM(BS52:BW52,BY52:CK52,CN52:CS52,CU52)) ->  | FC52: =CG52/(SUM(BS52:BW52,BY52:CK52,CN52:CS52,CU52)) ->  | FD52: =CH52/(SUM(BS52:BW52,BY52:CK52,CN52:CS52,CU52)) ->  | FE52: =CI52/(SUM(BS52:BW52,BY52:CK52,CN52:CS52,CU52)) ->  | FF52: =CJ52/(SUM(BS52:BW52,BY52:CK52,CN52:CS52,CU52)) ->  | FG52: =CK52/(SUM(BS52:BW52,BY52:CK52,CN52:CS52,CU52)) ->  | FJ52: =CN52/(SUM(BS52:BW52,BY52:CK52,CN52:CS52,CU52)) ->  | FK52: =CO52/(SUM(BS52:BW52,BY52:CK52,CN52:CS52,CU52)) ->  | FL52: =CP52/(SUM(BS52:BW52,BY52:CK52,CN52:CS52,CU52)) ->  | FM52: =CQ52/(SUM(BS52:BW52,BY52:CK52,CN52:CS52,CU52)) ->  | FN52: =CR52/(SUM(BS52:BW52,BY52:CK52,CN52:CS52,CU52)) ->  | FO52: =CS52/(SUM(BS52:BW52,BY52:CK52,CN52:CS52,CU52)) ->  | FQ52: =CU52/(SUM(BS52:BW52,BY52:CK52,CN52:CS52,CU52)) ->  | FV52: =1/((AA52/1.8)+(AB52/2)+(AC52/2)+(AD52/2.5)+(AE52/1.3)+(AG52/12.5)+(AH52/1.7)+(AI52/2.4)+(AJ52/3)+(AK52/1)+(AL52/2.7)+(AM52/4)+(AN52/4)+(AO52/1.8)+(AP52/1.8)+(AQ52/5)+(AR52/1.7)+(AS52/1.8)+(AV52/1.4)+(AW52/2.16)+(AX52/2.1)+(AY52/2.4)+(AZ52/1.2)+(BA52/1.7)+(BC52/1.1)) ->  | FZ52: =FU52/FY52 ->  | GA52: =1/((100*EO52/1.8)+(100*EP52/2)+(100*EQ52/2)+(100*ER52/2.5)+(100*ES52/1.3)+(100*EU52/12.5)+(100*EV52/1.7)+(100*EW52/2.4)+(100*EX52/3)+(100*EY52/1)+(100*EZ52/2.7)+(100*FA52/4)+(100*FB52/4)+(100*FC52/1.8)+(100*FD52/1.8)+(100*FE52/5)+(100*FF52/1.7)+(100*FG52/1.8)+(100*FJ52/1.4)+(100*FK52/2.16)+(100*FL52/2.1)+(100*FM52/2.4)+(100*FN52/1.2)+(100*FO52/1.7)+(100*FQ52/1.1)) ->  | GB52: =1/((100*CY52/1.8)+(100*CZ52/2)+(100*DA52/2)+(100*DB52/2.5)+(100*DC52/1.3)+(100*DE52/12.5)+(100*DF52/1.7)+(100*DG52/2.4)+(100*DH52/3)+(100*DI52/1)+(100*DJ52/2.7)+(100*DK52/4)+(100*DL52/4)+(100*DM52/1.8)+(100*DN52/1.8)+(100*DO52/5)+(100*DP52/1.7)+(100*DQ52/1.8)+(100*DT52/1.4)+(100*DU52/2.16)+(100*DV52/2.1)+(100*DW52/2.4)+(100*DX52/1.2)+(100*DY52/1.7)+(100*EA52/1.1)+(100*ED52/5)) ->  | GC52: =((CI52*1.87)+(CB52*1.4)+(CP52*1.51)+(CD52*1.68)+(CQ52*1.36)+(CE52*1.35)+((BS52+BT52+BU52+BV52+BW52+BY52+BZ52+CA52+CC52+CF52+CG52+CH52+CJ52+CK52+CN52+CO52+CR52+CS52+CU52)*1.5))/(CI52+CB52+CP52+CD52+CQ52+CE52+BS52+BT52+BU52+BV52+BW52+BY52+BZ52+CA52+CC52+CF52+CG52+CH52+CJ52+CK52+CN52+CO52+CR52+CS52+CU52) ->  | GD52: =((CI52*2.23)+(CB52*1.87)+(CP52*1.93)+(CD52*1.84)+(CQ52*1.92)+(CE52*1.51)+((BS52+BT52+BU52+BV52+BW52+BY52+BZ52+CA52+CC52+CF52+CG52+CH52+CJ52+CK52+CN52+CO52+CR52+CS52+CU52)*1.87))/(CI52+CB52+CP52+CD52+CQ52+CE52+BS52+BT52+BU52+BV52+BW52+BY52+BZ52+CA52+CC52+CF52+CG52+CH52+CJ52+CK52+CN52+CO52+CR52+CS52+CU52) ->  | GK52: NA | GL52: NA | GM52: NA | GN52: NA | GO52: =W52/(3.14*P52) ->  | GP52: =((HM52*1.87)+(HF52*1.4)+(HT52*1.51)+(HH52*1.68)+(HU52*1.36)+(HI52*1.35)+((GW52+GX52+GY52+GZ52+HA52+HC52+HD52+HE52+HG52+HJ52+HK52+HL52+HN52+HO52+HR52+HS52+HV52+HW52+HY52+IA52)*1.5))/(HM52+HF52+HT52+HH52+HU52+HI52+GW52+GX52+GY52+GZ52+HA52+HC52+HD52+HE52+HG52+HJ52+HK52+HL52+HN52+HO52+HR52+HS52+HV52+HW52+HY52+IA52) ->  | GQ52: =((HM52*2.23)+(HF52*1.87)+(HT52*1.93)+(HH52*1.84)+(HU52*1.92)+(HI52*1.51)+((GW52+GX52+GY52+GZ52+HA52+HC52+HD52+HE52+HG52+HJ52+HK52+HL52+HN52+HO52+HR52+HS52+HV52+HW52+HY52+IA52)*1.5))/(HM52+HF52+HT52+HH52+HU52+HI52+GW52+GX52+GY52+GZ52+HA52+HC52+HD52+HE52+HG52+HJ52+HK52+HL52+HN52+HO52+HR52+HS52+HV52+HW52+HY52+IA52) ->  | GT52: =((100-(GS52*100))/(GS52*100))*(GL52/0.07492) ->  | HZ52: =IF(BH52="None",0,BH52) -> 0 | IB52: =GW52/(SUM(GW52:IA52)) ->  | IC52: =GX52/(SUM(GW52:IA52)) ->  | ID52: =GY52/(SUM(GW52:IA52)) ->  | IE52: =GZ52/(SUM(GW52:IA52)) ->  | IF52: =HA52/(SUM(GW52:IA52)) ->  | IG52: =HB52/(SUM(GW52:IA52)) ->  | IH52: =HC52/(SUM(GW52:IA52)) ->  | II52: =HD52/(SUM(GW52:IA52)) ->  | IJ52: =HE52/(SUM(GW52:IA52)) ->  | IK52: =HF52/(SUM(GW52:IA52)) ->  | IL52: =HG52/(SUM(GW52:IA52)) ->  | IM52: =HH52/(SUM(GW52:IA52)) ->  | IN52: =HI52/(SUM(GW52:IA52)) ->  | IO52: =HJ52/(SUM(GW52:IA52)) ->  | IP52: =HK52/(SUM(GW52:IA52)) ->  | IQ52: =HL52/(SUM(GW52:IA52)) ->  | IR52: =HM52/(SUM(GW52:IA52)) ->  | IS52: =HN52/(SUM(GW52:IA52)) ->  | IT52: =HO52/(SUM(GW52:IA52)) ->  | IU52: =HP52/(SUM(GW52:IA52)) ->  | IV52: =HQ52/(SUM(GW52:IA52)) ->  | IW52: =HR52/(SUM(GW52:IA52)) ->  | IX52: =HS52/(SUM(GW52:IA52)) ->  | IY52: =HT52/(SUM(GW52:IA52)) ->  | IZ52: =HU52/(SUM(GW52:IA52)) ->  | JA52: =HV52/(SUM(GW52:IA52)) ->  | JB52: =HW52/(SUM(GW52:IA52)) ->  | JC52: =HX52/(SUM(GW52:IA52)) ->  | JD52: =HY52/(SUM(GW52:IA52)) ->  | JE52: =HZ52/(SUM(GW52:IA52)) ->  | JF52: =IA52/(SUM(GW52:IA52)) ->  | JL52: No Assist | JM52: 0 | JO52: 55.7
A53: EPA-600/2-84-095 | B53: NA | C53: 40 | D53: 99.24% | E53: 20 | F53: NA | H53: NA | I53: NA | J53: Steam-Assisted | K53: Unknown | L53: Unknown | M53: Unknown | N53: >1000 | R53: Test 2-84-095 does not provide enough VG flow info. | S53: 1323 | V53: 2 | Y53: 0 | Z53: 0 | GK53: NA | GL53: NA | GM53: NA | GN53: NA | HZ53: 0 | JL53: No Assist | JM53: 0 | JO53: 56.3
A54: EPA-600/2-84-095 | B54: NA | C54: 41 | D54: 99.50% | E54: 20 | F54: NA | H54: NA | I54: NA | J54: Steam-Assisted | K54: Unknown | L54: Unknown | M54: Unknown | N54: >1000 | R54: Test 2-84-095 does not provide enough VG flow info. | S54: 1314 | V54: 4.1 | Y54: 0 | Z54: 0 | GK54: NA | GL54: NA | GM54: NA | GN54: NA | HZ54: 0 | JL54: No Assist | JM54: 0 | JO54: 55.9
A55: EPA-600/2-84-095 | B55: NA | C55: 42 | D55: 99.48% | E55: 20 | F55: NA | H55: NA | I55: NA | J55: Steam-Assisted | K55: Unknown | L55: Unknown | M55: Unknown | N55: >1000 | R55: Test 2-84-095 does not provide enough VG flow info. | S55: 1314 | V55: 4 | Y55: 0 | Z55: 0 | GK55: NA | GL55: NA | GM55: NA | GN55: NA | HZ55: 0 | JL55: No Assist | JM55: 0 | JO55: 55.9
A56: EPA-600/2-84-095 | B56: NA | C56: 43 | D56: 99.50% | E56: 20 | F56: NA | H56: NA | I56: NA | J56: Steam-Assisted | K56: Unknown | L56: Unknown | M56: Unknown | N56: >1000 | R56: Test 2-84-095 does not provide enough VG flow info. | S56: 1318 | V56: 4.1 | Y56: 0 | Z56: 0 | GK56: NA | GL56: NA | GM56: NA | GN56: NA | HZ56: 0 | JL56: No Assist | JM56: 0 | JO56: 56.1
A57: EPA-600/2-84-095 | B57: NA | C57: 44 | D57: 99.73% | E57: 20 | F57: NA | H57: NA | I57: NA | J57: Steam-Assisted | K57: Unknown | L57: Unknown | M57: Unknown | N57: >1000 | R57: Test 2-84-095 does not provide enough VG flow info. | S57: 378 | V57: 2.1 | Y57: 0 | Z57: 0 | GK57: NA | GL57: NA | GM57: NA | GN57: NA | HZ57: 0 | JL57: No Assist | JM57: 0 | JO57: 16.1
A58: EPA-600/2-84-095 | B58: NA | C58: 45 | D58: 99.91% | E58: 20 | F58: NA | H58: NA | I58: NA | J58: Steam-Assisted | K58: Unknown | L58: Unknown | M58: Unknown | N58: >1000 | R58: Test 2-84-095 does not provide enough VG flow info. | S58: 980 | V58: 0.2 | Y58: 0 | Z58: 0 | GK58: NA | GL58: NA | GM58: NA | GN58: NA | HZ58: 0 | JL58: No Assist | JM58: 0 | JO58: 0
A59: EPA-600/2-84-095 | B59: NA | C59: 46 | D59: 98.62% | E59: 20 | F59: NA | H59: NA | I59: NA | J59: Steam-Assisted | K59: Unknown | L59: Unknown | M59: Unknown | N59: >1000 | R59: Test 2-84-095 does not provide enough VG flow info. | S59: 451 | V59: 0.2 | Y59: 0 | Z59: 0 | GK59: NA | GL59: NA | GM59: NA | GN59: NA | HZ59: 0 | JL59: No Assist | JM59: 0 | JO59: 19.2
A60: EPA-600/2-84-095 | B60: NA | C60: 47 | D60: 94.89% | E60: 20 | F60: NA | H60: NA | I60: NA | J60: Steam-Assisted | K60: Unknown | L60: Unknown | M60: Unknown | N60: >1000 | R60: Test 2-84-095 does not provide enough VG flow info. | S60: 385 | V60: 4.1 | Y60: 0 | Z60: 0 | GK60: NA | GL60: NA | GM60: NA | GN60: NA | HZ60: 0 | JL60: No Assist | JM60: 0 | JO60: 16.4
A61: EPA-600/2-84-095 | B61: NA | C61: 48 | D61: 96.71% | E61: 20 | F61: NA | H61: NA | I61: NA | J61: Steam-Assisted | K61: Unknown | L61: Unknown | M61: Unknown | N61: >1000 | R61: Test 2-84-095 does not provide enough VG flow info. | S61: 390 | V61: 4.2 | Y61: 0 | Z61: 0 | GK61: NA | GL61: NA | GM61: NA | GN61: NA | HZ61: 0 | JL61: No Assist | JM61: 0 | JO61: 16.6
A62: EPA-600/2-84-095 | B62: NA | C62: 49 | D62: 99.73% | E62: 20 | F62: NA | H62: NA | I62: NA | J62: Steam-Assisted | K62: Unknown | L62: Unknown | M62: Unknown | N62: >1000 | R62: Test 2-84-095 does not provide enough VG flow info. | S62: 385 | V62: 4.2 | Y62: 0 | Z62: 0 | GK62: NA | GL62: NA | GM62: NA | GN62: NA | HZ62: 0 | JL62: No Assist | JM62: 0 | JO62: 16.4
A63: EPA-600/2-84-095 | B63: NA | C63: 50 | D63: 99.32% | E63: 20 | F63: NA | H63: NA | I63: NA | J63: Steam-Assisted | K63: Unknown | L63: Unknown | M63: Unknown | N63: >1000 | R63: Test 2-84-095 does not provide enough VG flow info. | S63: 1323 | V63: 4 | Y63: 0 | Z63: 0 | GK63: NA | GL63: NA | GM63: NA | GN63: NA | HZ63: 0 | JL63: No Assist | JM63: 0.457 | JO63: 56.3
A64: EPA-600/2-84-095 | B64: NA | C64: 51 | D64: 91.81% | E64: 20 | F64: NA | H64: NA | I64: NA | J64: Steam-Assisted | K64: Unknown | L64: Unknown | M64: Unknown | N64: >1000 | R64: Test 2-84-095 does not provide enough VG flow info. | S64: 362 | V64: 2.1 | Y64: 0 | Z64: 0 | GK64: NA | GL64: NA | GM64: NA | GN64: NA | HZ64: 0 | JL64: No Assist | JM64: 0 | JO64: 15.4
A65: EPA-600/2-84-095 | B65: NA | C65: 52 | D65: 98.09% | E65: 20 | F65: NA | H65: NA | I65: NA | J65: Steam-Assisted | K65: Unknown | L65: Unknown | M65: Unknown | N65: >1000 | R65: Test 2-84-095 does not provide enough VG flow info. | S65: 376 | V65: 2.1 | Y65: 0 | Z65: 0 | GK65: NA | GL65: NA | GM65: NA | GN65: NA | HZ65: 0 | JL65: No Assist | JM65: 0 | JO65: 16
A66: EPA-600/2-84-095 | B66: NA | C66: 53 | D66: 99.28% | E66: 20 | F66: NA | H66: NA | I66: NA | J66: Steam-Assisted | K66: Unknown | L66: Unknown | M66: Unknown | N66: >1000 | R66: Test 2-84-095 does not provide enough VG flow info. | S66: 1309 | V66: 0.65 | Y66: 0 | Z66: 0 | GK66: NA | GL66: NA | GM66: NA | GN66: NA | HZ66: 0 | JL66: No Assist | JM66: 0 | JO66: 55.7
A67: EPA-600/2-84-095 | B67: NA | C67: 54 | D67: 99.08% | E67: 20 | F67: NA | H67: NA | I67: NA | J67: Steam-Assisted | K67: Unknown | L67: Unknown | M67: Unknown | N67: >1000 | R67: Test 2-84-095 does not provide enough VG flow info. | S67: 1316 | V67: 6.5 | Y67: 0 | Z67: 0 | FW67: =((BB67/100)*(GC67-1))+((AF67/100)*(GD67-1)) ->  | FX67: =1/(((AA67/1.8)+(AB67/2)+(AC67/2)+(AD67/2.5)+(AE67/1.3)+(AG67/12.5)+(AH67/1.7)+(AI67/2.4)+(AJ67/3)+(AK67/1)+(AL67/2.7)+(AM67/4)+(AN67/4)+(AO67/1.8)+(AP67/1.8)+(AQ67/5)+(AR67/1.7)+(AS67/1.8)+(AV67/1.4)+(AW67/2.16)+(AX67/2.1)+(AY67/2.4)+(AZ67/1.2)+(BA67/1.7)+(BC67/1.1))-FW67) ->  | GE67: =((DZ67+EB67)*(GC67-1))+(DD67*(GD67-1)) ->  | GF67: =1/(((100*CY67/1.8)+(100*CZ67/2)+(100*DA67/2)+(100*DB67/2.5)+(100*DC67/1.3)+(100*DE67/12.5)+(100*DF67/1.7)+(100*DG67/2.4)+(100*DH67/3)+(100*DI67/1)+(100*DJ67/2.7)+(100*DK67/4)+(100*DL67/4)+(100*DM67/1.8)+(100*DN67/1.8)+(100*DO67/5)+(100*DP67/1.7)+(100*DQ67/1.8)+(100*DT67/1.4)+(100*DU67/2.16)+(100*DV67/2.1)+(100*DW67/2.4)+(100*DX67/1.2)+(100*DY67/1.7)+(100*EA67/1.1)+(100*ED67/5))-GE67) ->  | GK67: NA | GL67: NA | GM67: NA | GN67: NA | GU67: =((2*3.14)*(SQRT(Q67/3.14)))*((GT67/6.85)^5) ->  | GV67: =IF(W67>GU67,"Yes","No") ->  | HZ67: 0 | JL67: No Assist | JM67: 0 | JO67: 56
A68: EPA-600/2-84-095 | B68: NA | C68: 55 | D68: 99.65% | E68: 20 | F68: NA | H68: NA | I68: NA | J68: Steam-Assisted | K68: Unknown | L68: Unknown | M68: Unknown | N68: >1000 | R68: Test 2-84-095 does not provide enough VG flow info. | S68: 1328 | V68: 13.3 | Y68: 0 | Z68: 0 | FU68: =(U68*S68)/(U68+BD68) ->  | FY68: =FX68*S68 ->  | GK68: NA | GL68: NA | GM68: NA | GN68: NA | HZ68: 0 | JL68: No Assist | JM68: 0 | JO68: 56.5
A69: EPA-600/2-84-095 | B69: NA | C69: 56 | D69: 99.28% | E69: 20 | F69: NA | H69: NA | I69: NA | J69: Steam-Assisted | K69: Unknown | L69: Unknown | M69: Unknown | N69: >1000 | R69: Test 2-84-095 does not provide enough VG flow info. | S69: 1316 | V69: 13 | Y69: 0 | Z69: 0 | GK69: NA | GL69: NA | GM69: NA | GN69: NA | HZ69: 0 | JL69: No Assist | JM69: 0 | JO69: 56
A70: EPA-600/2-84-095 | B70: NA | C70: 57 | D70: 98.18% | E70: 20 | F70: NA | H70: NA | I70: NA | J70: Steam-Assisted | K70: Unknown | L70: Unknown | M70: Unknown | N70: >1000 | R70: Test 2-84-095 does not provide enough VG flow info. | S70: 1316 | V70: 13 | Y70: 0 | Z70: 0 | GK70: NA | GL70: NA | GM70: NA | GN70: NA | HZ70: 0 | JL70: No Assist | JM70: 0 | JO70: 56
A71: EPA-600/2-84-095 | B71: NA | C71: 58 | D71: 99.52% | E71: 20 | F71: NA | H71: NA | I71: NA | J71: Steam-Assisted | K71: Unknown | L71: Unknown | M71: Unknown | N71: >1000 | R71: Test 2-84-095 does not provide enough VG flow info. | S71: 371 | V71: 6.8 | Y71: 0 | Z71: 0 | GK71: NA | GL71: NA | GM71: NA | GN71: NA | HZ71: 0 | JL71: No Assist | JM71: 0 | JO71: 15.8
A72: EPA-600/2-84-095 | B72: NA | C72: 59 | D72: 99.55% | E72: 20 | F72: NA | H72: NA | I72: NA | J72: Steam-Assisted | K72: Unknown | L72: Unknown | M72: Unknown | N72: >1000 | R72: Test 2-84-095 does not provide enough VG flow info. | S72: 1314 | V72: 13 | Y72: 0 | Z72: 0 | GK72: NA | GL72: NA | GM72: NA | GN72: NA | HZ72: 0 | JL72: No Assist | JM72: 0.456 | JO72: 55.9
A73: EPA-600/2-84-095 | B73: NA | C73: 60 | D73: 91.16% | E73: 20 | F73: NA | H73: NA | I73: NA | J73: Steam-Assisted | K73: Unknown | L73: Unknown | M73: Unknown | N73: >1000 | R73: Test 2-84-095 does not provide enough VG flow info. | S73: 522 | V73: 14.63 | Y73: 0 | Z73: 0 | GK73: NA | GL73: NA | GM73: NA | GN73: NA | HZ73: 0 | JL73: No Assist | JM73: 0 | JO73: 22.2
A74: EPA-600/2-84-095 | B74: NA | C74: 61 | D74: 99.50% | E74: 20 | F74: NA | H74: NA | I74: NA | J74: Steam-Assisted | K74: Unknown | L74: Unknown | M74: Unknown | N74: >1000 | R74: Test 2-84-095 does not provide enough VG flow info. | S74: 458 | V74: 0.65 | Y74: 0 | Z74: 0 | GK74: NA | GL74: NA | GM74: NA | GN74: NA | HZ74: 0 | JL74: No Assist | JM74: 0 | JO74: 19.5
A75: EPA-600/2-84-095 | B75: NA | C75: 62 | D75: 99.12% | E75: 20 | F75: NA | H75: NA | I75: NA | J75: Steam-Assisted | K75: Unknown | L75: Unknown | M75: Unknown | N75: >1000 | R75: Test 2-84-095 does not provide enough VG flow info. | S75: 1269 | V75: 2 | Y75: 0 | Z75: 0 | GK75: NA | GL75: NA | GM75: NA | GN75: NA | HZ75: 0 | JL75: No Assist | JM75: 0 | JO75: 54
A76: EPA-600/2-84-095 | B76: NA | C76: 63 | D76: 99.37% | E76: 20 | F76: NA | H76: NA | I76: NA | J76: Steam-Assisted | K76: Unknown | L76: Unknown | M76: Unknown | N76: >1000 | R76: Test 2-84-095 does not provide enough VG flow info. | S76: 1318 | V76: 4.3 | Y76: 0 | Z76: 0 | GK76: NA | GL76: NA | GM76: NA | GN76: NA | HZ76: 0 | JL76: No Assist | JM76: 0 | JO76: 56.1
A77: EPA-600/2-84-095 | B77: NA | C77: 64 | D77: 98.49% | E77: 20 | F77: NA | H77: NA | I77: NA | J77: Steam-Assisted | K77: Unknown | L77: Unknown | M77: Unknown | N77: >1000 | R77: Test 2-84-095 does not provide enough VG flow info. | S77: 392 | V77: 4.5 | Y77: 0 | Z77: 0 | GK77: NA | GL77: NA | GM77: NA | GN77: NA | HZ77: 0 | JL77: No Assist | JM77: 0 | JO77: 16.7
A78: EPA-600/2-84-095 | B78: NA | C78: 65 | D78: 99.85% | E78: 20 | F78: NA | H78: NA | I78: NA | J78: Steam-Assisted | K78: Unknown | L78: Unknown | M78: Unknown | N78: >1000 | R78: Test 2-84-095 does not provide enough VG flow info. | S78: 1318 | V78: 4.3 | Y78: 0 | Z78: 0 | GK78: NA | GL78: NA | GM78: NA | GN78: NA | HZ78: 0 | JL78: No Assist | JM78: 0.511 | JO78: 56.1
A79: EPA-600/2-84-095 | B79: NA | C79: 66 | D79: 99.63% | E79: 20 | F79: NA | H79: NA | I79: NA | J79: Steam-Assisted | K79: Unknown | L79: Unknown | M79: Unknown | N79: >1000 | R79: Test 2-84-095 does not provide enough VG flow info. | S79: 1316 | V79: 4.3 | Y79: 0 | Z79: 0 | GK79: NA | GL79: NA | GM79: NA | GN79: NA | HZ79: 0 | JL79: No Assist | JM79: 0 | JO79: 56
A80: EPA-600/2-84-095 | B80: NA | C80: 67 | D80: 99.61% | E80: 20 | F80: NA | H80: NA | I80: NA | J80: Steam-Assisted | K80: Unknown | L80: Unknown | M80: Unknown | N80: >1000 | R80: Test 2-84-095 does not provide enough VG flow info. | S80: 1316 | V80: 4.3 | Y80: 0 | Z80: 0 | GK80: NA | GL80: NA | GM80: NA | GN80: NA | HZ80: 0 | JL80: No Assist | JM80: 0 | JO80: 56
A81: EPA-600/2-84-095 | B81: NA | C81: 68 | D81: 99.78% | E81: 20 | F81: NA | H81: NA | I81: NA | J81: Steam-Assisted | K81: Unknown | L81: Unknown | M81: Unknown | N81: >1000 | R81: Test 2-84-095 does not provide enough VG flow info. | S81: 1309 | V81: 0.22 | Y81: 0 | Z81: 0 | GK81: NA | GL81: NA | GM81: NA | GN81: NA | HZ81: 0 | JL81: No Assist | JM81: 0 | JO81: 55.7
A82: EPA-600/2-84-095 | B82: NA | C82: 69 | D82: 97.11% | E82: 20 | F82: NA | H82: NA | I82: NA | J82: Steam-Assisted | K82: Unknown | L82: Unknown | M82: Unknown | N82: >1000 | R82: Test 2-84-095 does not provide enough VG flow info. | S82: 336 | V82: 3 | Y82: 0 | Z82: 0 | GK82: NA | GL82: NA | GM82: NA | GN82: NA | HZ82: 0 | JL82: No Assist | JM82: 0 | JO82: 14.3
A83: EPA-600/2-84-095 | B83: NA | C83: 70 | D83: 99.14% | E83: 20 | F83: NA | H83: NA | I83: NA | J83: Steam-Assisted | K83: Unknown | L83: Unknown | M83: Unknown | N83: >1000 | R83: Test 2-84-095 does not provide enough VG flow info. | S83: 287 | V83: 1 | Y83: 0 | Z83: 0 | GK83: NA | GL83: NA | GM83: NA | GN83: NA | HZ83: 0 | JL83: No Assist | JM83: 0 | JO83: 12.2
A84: EPA-600/2-84-095 | B84: NA | C84: 71 | D84: 99.36% | E84: 20 | F84: NA | H84: NA | I84: NA | J84: Steam-Assisted | K84: Unknown | L84: Unknown | M84: Unknown | N84: >1000 | R84: Test 2-84-095 does not provide enough VG flow info. | S84: 343 | V84: 10.3 | Y84: 0 | Z84: 0 | GK84: NA | GL84: NA | GM84: NA | GN84: NA | HZ84: 0 | JL84: No Assist | JM84: 0 | JO84: 14.6
A85: EPA-600/2-84-095 | B85: NA | C85: 72 | D85: 93.49% | E85: 20 | F85: NA | H85: NA | I85: NA | J85: Steam-Assisted | K85: Unknown | L85: Unknown | M85: Unknown | N85: >1000 | R85: Test 2-84-095 does not provide enough VG flow info. | S85: 345 | V85: 2.9 | Y85: 0 | Z85: 0 | GK85: NA | GL85: NA | GM85: NA | GN85: NA | HZ85: 0 | JL85: No Assist | JM85: 0 | JO85: 14.7
A86: EPA-600/2-84-095 | B86: NA | C86: 73 | D86: 97.97% | E86: 20 | F86: NA | H86: NA | I86: NA | J86: Steam-Assisted | K86: Unknown | L86: Unknown | M86: Unknown | N86: >1000 | R86: Test 2-84-095 does not provide enough VG flow info. | S86: 291 | V86: 1 | Y86: 0 | Z86: 0 | GK86: NA | GL86: NA | GM86: NA | GN86: NA | HZ86: 0 | JL86: No Assist | JM86: 0 | JO86: 12.4
A87: EPA-600/2-84-095 | B87: NA | C87: 74 | D87: 99.02% | E87: 20 | F87: NA | H87: NA | I87: NA | J87: Steam-Assisted | K87: Unknown | L87: Unknown | M87: Unknown | N87: >1000 | R87: Test 2-84-095 does not provide enough VG flow info. | S87: 350 | V87: 2.9 | Y87: 0 | Z87: 0 | GK87: NA | GL87: NA | GM87: NA | GN87: NA | HZ87: 0 | JL87: No Assist | JM87: 0 | JO87: 14.9
A88: EPA-600/2-84-095 | B88: NA | C88: 75 | D88: 99.66% | E88: 20 | F88: NA | H88: NA | I88: NA | J88: Steam-Assisted | K88: Unknown | L88: Unknown | M88: Unknown | N88: >1000 | R88: Test 2-84-095 does not provide enough VG flow info. | S88: 1321 | V88: 2.9 | Y88: 0 | Z88: 0 | GK88: NA | GL88: NA | GM88: NA | GN88: NA | HZ88: 0 | JL88: No Assist | JM88: 0 | JO88: 56.2
A89: EPA-600/2-84-095 | B89: NA | C89: 76 | D89: 99.54% | E89: 20 | F89: NA | H89: NA | I89: NA | J89: Steam-Assisted | K89: Unknown | L89: Unknown | M89: Unknown | N89: >1000 | R89: Test 2-84-095 does not provide enough VG flow info. | S89: 1311 | V89: 1 | Y89: 0 | Z89: 0 | GK89: NA | GL89: NA | GM89: NA | GN89: NA | HZ89: 0 | JL89: No Assist | JM89: 0 | JO89: 55.8
A90: EPA-600/2-84-095 | B90: NA | C90: 77 | D90: 95.11% | E90: 20 | F90: NA | H90: NA | I90: NA | J90: Steam-Assisted | K90: Unknown | L90: Unknown | M90: Unknown | N90: >1000 | R90: Test 2-84-095 does not provide enough VG flow info. | S90: 1316 | V90: 39.6 | Y90: 0 | Z90: 0 | GK90: NA | GL90: NA | GM90: NA | GN90: NA | HZ90: 0 | JL90: No Assist | JM90: 0 | JO90: 56
A91: EPA-600/2-84-095 | B91: NA | C91: 78 | D91: 98.40% | E91: 20 | F91: NA | H91: NA | I91: NA | J91: Steam-Assisted | K91: Unknown | L91: Unknown | M91: Unknown | N91: >1000 | R91: Test 2-84-095 does not provide enough VG flow info. | S91: 1325 | V91: 80 | Y91: 0 | Z91: 0 | GK91: NA | GL91: NA | GM91: NA | GN91: NA | HZ91: 0 | JL91: No Assist | JM91: 0 | JO91: 56.4
A92: EPA-600/2-84-095 | B92: NA | C92: 79 | D92: 99.66% | E92: 20 | F92: NA | H92: NA | I92: NA | J92: Steam-Assisted | K92: Unknown | L92: Unknown | M92: Unknown | N92: >1000 | R92: Test 2-84-095 does not provide enough VG flow info. | S92: 1307 | V92: 118.5 | Y92: 0 | Z92: 0 | GK92: NA | GL92: NA | GM92: NA | GN92: NA | HZ92: 0 | JL92: No Assist | JM92: 0.058 | JO92: 55.6
A93: EPA-600/2-84-095 | B93: NA | C93: 80 | D93: 99.20% | E93: 20 | F93: NA | H93: NA | I93: NA | J93: Steam-Assisted | K93: Unknown | L93: Unknown | M93: Unknown | N93: >1000 | R93: Test 2-84-095 does not provide enough VG flow info. | S93: 1255 | V93: 420.5 | Y93: 0 | Z93: 0 | GK93: NA | GL93: NA | GM93: NA | GN93: NA | HZ93: 0 | JL93: No Assist | JM93: 0.015 | JO93: 53.4
A94: EPA-600/2-84-095 | B94: NA | C94: 81 | D94: 97.27% | E94: 20 | F94: NA | H94: NA | I94: NA | J94: Steam-Assisted | K94: Unknown | L94: Unknown | M94: Unknown | N94: >1000 | R94: Test 2-84-095 does not provide enough VG flow info. | S94: 837 | V94: 67 | Y94: 0 | Z94: 0 | GK94: NA | GL94: NA | GM94: NA | GN94: NA | HZ94: 0 | JL94: No Assist | JM94: 0.149 | JO94: 35.6
A95: EPA-600/2-84-095 | B95: NA | C95: 82 | D95: 99.33% | E95: 20 | F95: NA | H95: NA | I95: NA | J95: Steam-Assisted | K95: Unknown | L95: Unknown | M95: Unknown | N95: >1000 | R95: Test 2-84-095 does not provide enough VG flow info. | S95: 1107 | V95: 248.3 | Y95: 0 | Z95: 0 | GK95: NA | GL95: NA | GM95: NA | GN95: NA | HZ95: 0 | JL95: No Assist | JM95: 0.031 | JO95: 47.1
A96: EPA-600/2-84-095 | B96: NA | C96: 83 | D96: 99.87% | E96: 20 | F96: NA | H96: NA | I96: NA | J96: Steam-Assisted | K96: Unknown | L96: Unknown | M96: Unknown | N96: >1000 | R96: Test 2-84-095 does not provide enough VG flow info. | S96: 2350 | V96: 144.5 | Y96: 0 | Z96: 0 | GK96: NA | GL96: NA | GM96: NA | GN96: NA | HZ96: 0 | JL96: No Assist | JM96: 0.131 | JO96: 100
A97: EPA-600/2-84-095 | B97: NA | C97: 84 | D97: 99.54% | E97: 20 | F97: NA | H97: NA | I97: NA | J97: Steam-Assisted | K97: Unknown | L97: Unknown | M97: Unknown | N97: >1000 | R97: Test 2-84-095 does not provide enough VG flow info. | S97: 1276 | V97: 2.9 | Y97: 0 | Z97: 0 | GK97: NA | GL97: NA | GM97: NA | GN97: NA | HZ97: 0 | JL97: No Assist | JM97: 0 | JO97: 54.3
A98: EPA-600/2-84-095 | B98: NA | C98: 85 | D98: 99.65% | E98: 20 | F98: NA | H98: NA | I98: NA | J98: Steam-Assisted | K98: Unknown | L98: Unknown | M98: Unknown | N98: >1000 | R98: Test 2-84-095 does not provide enough VG flow info. | S98: 1316 | V98: 6 | Y98: 0 | Z98: 0 | GK98: NA | GL98: NA | GM98: NA | GN98: NA | HZ98: 0 | JL98: No Assist | JM98: 0 | JO98: 56
A99: EPA-600/2-84-095 | B99: NA | C99: 86 | D99: 99.48% | E99: 20 | F99: NA | H99: NA | I99: NA | J99: Steam-Assisted | K99: Unknown | L99: Unknown | M99: Unknown | N99: >1000 | R99: Test 2-84-095 does not provide enough VG flow info. | S99: 1314 | V99: 0.3 | Y99: 0 | Z99: 0 | GK99: NA | GL99: NA | GM99: NA | GN99: NA | GU99: =((2*3.14)*(SQRT(Q99/3.14)))*((GT99/6.85)^5) ->  | GV99: =IF(W99>GU99,"Yes","No") ->  | HZ99: 0 | JL99: No Assist | JM99: 0 | JO99: 55.9
A100: EPA-600/2-84-095 | B100: NA | C100: 87 | D100: 99.58% | E100: 20 | F100: NA | H100: NA | I100: NA | J100: Steam-Assisted | K100: Unknown | L100: Unknown | M100: Unknown | N100: >1000 | R100: Test 2-84-095 does not provide enough VG flow info. | S100: 1314 | V100: 6 | Y100: 0 | Z100: 0 | GK100: NA | GL100: NA | GM100: NA | GN100: NA | HZ100: 0 | JL100: No Assist | JM100: 0 | JO100: 55.9
A101: EPA-600/2-84-095 | B101: NA | C101: 88 | D101: 99.21% | E101: 20 | F101: NA | H101: NA | I101: NA | J101: Steam-Assisted | K101: Unknown | L101: Unknown | M101: Unknown | N101: >1000 | R101: Test 2-84-095 does not provide enough VG flow info. | S101: 317 | V101: 3 | Y101: 0 | Z101: 0 | GK101: NA | GL101: NA | GM101: NA | GN101: NA | HZ101: 0 | JL101: No Assist | JM101: 0 | JO101: 13.5
A102: EPA-600/2-84-095 | B102: NA | C102: 89 | D102: 99.72% | E102: 20 | F102: NA | H102: NA | I102: NA | J102: Steam-Assisted | K102: Unknown | L102: Unknown | M102: Unknown | N102: >1000 | R102: Test 2-84-095 does not provide enough VG flow info. | S102: 303 | V102: 6.2 | Y102: 0 | Z102: 0 | GK102: NA | GL102: NA | GM102: NA | GN102: NA | HZ102: 0 | JL102: No Assist | JM102: 0 | JO102: 12.9
A103: EPA-600/2-84-095 | B103: NA | C103: 90 | D103: 99.59% | E103: 20 | F103: NA | H103: NA | I103: NA | J103: Steam-Assisted | K103: Unknown | L103: Unknown | M103: Unknown | N103: >1000 | R103: Test 2-84-095 does not provide enough VG flow info. | S103: 315 | V103: 0.3 | Y103: 0 | Z103: 0 | GK103: NA | GL103: NA | GM103: NA | GN103: NA | HZ103: 0 | JL103: No Assist | JM103: 0 | JO103: 13.4
A104: EPA-600/2-84-095 | B104: NA | C104: 91 | D104: 99.84% | E104: 20 | F104: NA | H104: NA | I104: NA | J104: Steam-Assisted | K104: Unknown | L104: Unknown | M104: Unknown | N104: >1000 | R104: Test 2-84-095 does not provide enough VG flow info. | S104: 1311 | V104: 5.9 | Y104: 0 | Z104: 0 | GK104: NA | GL104: NA | GM104: NA | GN104: NA | HZ104: 0 | JL104: No Assist | JM104: 0.441 | JO104: 55.8
A105: EPA-600/2-84-095 | B105: NA | C105: 92 | D105: 99.60% | E105: 20 | F105: NA | H105: NA | I105: NA | J105: Steam-Assisted | K105: Unknown | L105: Unknown | M105: Unknown | N105: >1000 | R105: Test 2-84-095 does not provide enough VG flow info. | S105: 2350 | V105: 171.4 | Y105: 0 | Z105: 0 | GK105: NA | GL105: NA | GM105: NA | GN105: NA | HZ105: 0 | JL105: No Assist | JM105: 0.06 | JO105: 100
A106: EPA-600/2-84-095 | B106: NA | C106: 93 | D106: 99.74% | E106: 20 | F106: NA | H106: NA | I106: NA | J106: Steam-Assisted | K106: Unknown | L106: Unknown | M106: Unknown | N106: >1000 | R106: Test 2-84-095 does not provide enough VG flow info. | S106: 2348 | V106: 84.7 | Y106: 0 | Z106: 0 | GK106: NA | GL106: NA | GM106: NA | GN106: NA | HZ106: 0 | JL106: No Assist | JM106: 0.122 | JO106: 99.9
A107: EPA-600/2-84-095 | B107: NA | C107: 94 | D107: 99.83% | E107: 20 | F107: NA | H107: NA | I107: NA | J107: Steam-Assisted | K107: Unknown | L107: Unknown | M107: Unknown | N107: >1000 | R107: Test 2-84-095 does not provide enough VG flow info. | S107: 2350 | V107: 171.4 | Y107: 0 | Z107: 0 | GK107: NA | GL107: NA | GM107: NA | GN107: NA | HZ107: 0 | JL107: No Assist | JM107: 0.061 | JO107: 100
A108: EPA-600/2-84-095 | B108: NA | C108: 95 | D108: 99.87% | E108: 20 | F108: NA | H108: NA | I108: NA | J108: Steam-Assisted | K108: Unknown | L108: Unknown | M108: Unknown | N108: >1000 | R108: Test 2-84-095 does not provide enough VG flow info. | S108: 792 | V108: 114.8 | Y108: 0 | Z108: 0 | GK108: NA | GL108: NA | GM108: NA | GN108: NA | HZ108: 0 | JL108: No Assist | JM108: 0.087 | JO108: 33.7
A109: EPA-600/2-84-095 | B109: NA | C109: 96 | D109: 99.85% | E109: 20 | F109: NA | H109: NA | I109: NA | J109: Steam-Assisted | K109: Unknown | L109: Unknown | M109: Unknown | N109: >1000 | R109: Test 2-84-095 does not provide enough VG flow info. | S109: 1043 | V109: 274.1 | Y109: 0 | Z109: 0 | GK109: NA | GL109: NA | GM109: NA | GN109: NA | HZ109: 0 | JL109: No Assist | JM109: 0.028 | JO109: 44.4
A110: EPA-600/2-84-095 | B110: NA | C110: 97 | D110: 99.72% | E110: 20 | F110: NA | H110: NA | I110: NA | J110: Steam-Assisted | K110: Unknown | L110: Unknown | M110: Unknown | N110: >1000 | R110: Test 2-84-095 does not provide enough VG flow info. | S110: 1156 | V110: 85.8 | Y110: 0 | Z110: 0 | GK110: NA | GL110: NA | GM110: NA | GN110: NA | HZ110: 0 | JL110: No Assist | JM110: 0.142 | JO110: 49.2
A111: EPA-600/2-84-095 | B111: NA | C111: 98 | D111: 99.82% | E111: 20 | F111: NA | H111: NA | I111: NA | J111: Steam-Assisted | K111: Unknown | L111: Unknown | M111: Unknown | N111: >1000 | R111: Test 2-84-095 does not provide enough VG flow info. | S111: 1133 | V111: 172.3 | Y111: 0 | Z111: 0 | GK111: NA | GL111: NA | GM111: NA | GN111: NA | HZ111: 0 | JL111: No Assist | JM111: 0.071 | JO111: 48.2
A112: EPA-600/2-84-095 | B112: NA | C112: 99 | D112: 99.88% | E112: 20 | F112: NA | H112: NA | I112: NA | J112: Steam-Assisted | K112: Unknown | L112: Unknown | M112: Unknown | N112: >1000 | R112: Test 2-84-095 does not provide enough VG flow info. | S112: 1027 | V112: 428.2 | Y112: 0 | Z112: 0 | GK112: NA | GL112: NA | GM112: NA | GN112: NA | HZ112: 0 | JL112: No Assist | JM112: 0.018 | JO112: 43.7
A113: EPA-600/2-84-095 | B113: NA | C113: 100 | D113: 99.84% | E113: 20 | F113: NA | H113: NA | I113: NA | J113: Steam-Assisted | K113: Unknown | L113: Unknown | M113: Unknown | N113: >1000 | R113: Test 2-84-095 does not provide enough VG flow info. | S113: 1149 | V113: 343.1 | Y113: 0 | Z113: 0 | GK113: NA | GL113: NA | GM113: NA | GN113: NA | HZ113: 0 | JL113: No Assist | JM113: 0.02 | JO113: 48.9
A114: EPA-600/2-84-095 | B114: NA | C114: 101 | D114: 99.73% | E114: 20 | F114: NA | H114: NA | I114: NA | J114: Steam-Assisted | K114: Unknown | L114: Unknown | M114: Unknown | N114: >1000 | R114: Test 2-84-095 does not provide enough VG flow info. | S114: 1807 | V114: 85.8 | Y114: 0 | Z114: 0 | GK114: NA | GL114: NA | GM114: NA | GN114: NA | HZ114: 0 | JL114: No Assist | JM114: 0.091 | JO114: 76.9
A115: EPA-600/2-84-095 | B115: NA | C115: 102 | D115: 99.74% | E115: 20 | F115: NA | H115: NA | I115: NA | J115: Steam-Assisted | K115: Unknown | L115: Unknown | M115: Unknown | N115: >1000 | R115: Test 2-84-095 does not provide enough VG flow info. | S115: 1805 | V115: 170.1 | Y115: 0 | Z115: 0 | GK115: NA | GL115: NA | GM115: NA | GN115: NA | GR115: =((JC115+JE115)*(GP115-1))+(IG115*(GQ115-1)) ->  | GS115: =1/(((100*IB115/1.8)+(100*IC115/2)+(100*ID115/2)+(100*IE115/2.5)+(100*IF115/1.3)+(100*IH115/12.5)+(100*II115/1.7)+(100*IJ115/2.4)+(100*IK115/3)+(100*IL115/1)+(100*IM115/2.7)+(100*IN115/4)+(100*IO115/4)+(100*IP115/1.8)+(100*IQ115/1.8)+(100*IR115/5)+(100*IS115/1.7)+(100*IT115/1.8)+(100*IW115/1.4)+(100*IX115/2.16)+(100*IY115/2.1)+(100*IZ115/2.4)+(100*JA115/1.2)+(100*JB115/1.7)+(100*JD115/1.1)+(100*JF115/5))-GR115) ->  | HZ115: 0 | JL115: =IF(CV115>0,"Steam Assist","No Assist") -> No Assist | JM115: 0.08 | JO115: 76.8
A116: EPA-600/2-84-095 | B116: NA | C116: 103 | D116: 99.88% | E116: 20 | F116: NA | H116: NA | I116: NA | J116: =IF(JL116="Air Assist", "Air-Assisted","Steam-Assisted") -> Steam-Assisted | K116: Unknown | L116: Unknown | M116: Unknown | N116: >1000 | R116: Test 2-84-095 does not provide enough VG flow info. | S116: 1795 | V116: 260.1 | Y116: 0 | Z116: 0 | EO116: =BS116/(SUM(BS116:BW116,BY116:CK116,CN116:CS116,CU116)) ->  | EP116: =BT116/(SUM(BS116:BW116,BY116:CK116,CN116:CS116,CU116)) ->  | EQ116: =BU116/(SUM(BS116:BW116,BY116:CK116,CN116:CS116,CU116)) ->  | ER116: =BV116/(SUM(BS116:BW116,BY116:CK116,CN116:CS116,CU116)) ->  | ES116: =BW116/(SUM(BS116:BW116,BY116:CK116,CN116:CS116,CU116)) ->  | EU116: =BY116/(SUM(BS116:BW116,BY116:CK116,CN116:CS116,CU116)) ->  | EV116: =BZ116/(SUM(BS116:BW116,BY116:CK116,CN116:CS116,CU116)) ->  | EW116: =CA116/(SUM(BS116:BW116,BY116:CK116,CN116:CS116,CU116)) ->  | EX116: =CB116/(SUM(BS116:BW116,BY116:CK116,CN116:CS116,CU116)) ->  | EY116: =CC116/(SUM(BS116:BW116,BY116:CK116,CN116:CS116,CU116)) ->  | EZ116: =CD116/(SUM(BS116:BW116,BY116:CK116,CN116:CS116,CU116)) ->  | FA116: =CE116/(SUM(BS116:BW116,BY116:CK116,CN116:CS116,CU116)) ->  | FB116: =CF116/(SUM(BS116:BW116,BY116:CK116,CN116:CS116,CU116)) ->  | FC116: =CG116/(SUM(BS116:BW116,BY116:CK116,CN116:CS116,CU116)) ->  | FD116: =CH116/(SUM(BS116:BW116,BY116:CK116,CN116:CS116,CU116)) ->  | FE116: =CI116/(SUM(BS116:BW116,BY116:CK116,CN116:CS116,CU116)) ->  | FF116: =CJ116/(SUM(BS116:BW116,BY116:CK116,CN116:CS116,CU116)) ->  | FG116: =CK116/(SUM(BS116:BW116,BY116:CK116,CN116:CS116,CU116)) ->  | FJ116: =CN116/(SUM(BS116:BW116,BY116:CK116,CN116:CS116,CU116)) ->  | FK116: =CO116/(SUM(BS116:BW116,BY116:CK116,CN116:CS116,CU116)) ->  | FL116: =CP116/(SUM(BS116:BW116,BY116:CK116,CN116:CS116,CU116)) ->  | FM116: =CQ116/(SUM(BS116:BW116,BY116:CK116,CN116:CS116,CU116)) ->  | FN116: =CR116/(SUM(BS116:BW116,BY116:CK116,CN116:CS116,CU116)) ->  | FO116: =CS116/(SUM(BS116:BW116,BY116:CK116,CN116:CS116,CU116)) ->  | FQ116: =CU116/(SUM(BS116:BW116,BY116:CK116,CN116:CS116,CU116)) ->  | FV116: =1/((AA116/1.8)+(AB116/2)+(AC116/2)+(AD116/2.5)+(AE116/1.3)+(AG116/12.5)+(AH116/1.7)+(AI116/2.4)+(AJ116/3)+(AK116/1)+(AL116/2.7)+(AM116/4)+(AN116/4)+(AO116/1.8)+(AP116/1.8)+(AQ116/5)+(AR116/1.7)+(AS116/1.8)+(AV116/1.4)+(AW116/2.16)+(AX116/2.1)+(AY116/2.4)+(AZ116/1.2)+(BA116/1.7)+(BC116/1.1)) ->  | FZ116: =FU116/FY116 ->  | GA116: =1/((100*EO116/1.8)+(100*EP116/2)+(100*EQ116/2)+(100*ER116/2.5)+(100*ES116/1.3)+(100*EU116/12.5)+(100*EV116/1.7)+(100*EW116/2.4)+(100*EX116/3)+(100*EY116/1)+(100*EZ116/2.7)+(100*FA116/4)+(100*FB116/4)+(100*FC116/1.8)+(100*FD116/1.8)+(100*FE116/5)+(100*FF116/1.7)+(100*FG116/1.8)+(100*FJ116/1.4)+(100*FK116/2.16)+(100*FL116/2.1)+(100*FM116/2.4)+(100*FN116/1.2)+(100*FO116/1.7)+(100*FQ116/1.1)) ->  | GB116: =1/((100*CY116/1.8)+(100*CZ116/2)+(100*DA116/2)+(100*DB116/2.5)+(100*DC116/1.3)+(100*DE116/12.5)+(100*DF116/1.7)+(100*DG116/2.4)+(100*DH116/3)+(100*DI116/1)+(100*DJ116/2.7)+(100*DK116/4)+(100*DL116/4)+(100*DM116/1.8)+(100*DN116/1.8)+(100*DO116/5)+(100*DP116/1.7)+(100*DQ116/1.8)+(100*DT116/1.4)+(100*DU116/2.16)+(100*DV116/2.1)+(100*DW116/2.4)+(100*DX116/1.2)+(100*DY116/1.7)+(100*EA116/1.1)+(100*ED116/5)) ->  | GC116: =((CI116*1.87)+(CB116*1.4)+(CP116*1.51)+(CD116*1.68)+(CQ116*1.36)+(CE116*1.35)+((BS116+BT116+BU116+BV116+BW116+BY116+BZ116+CA116+CC116+CF116+CG116+CH116+CJ116+CK116+CN116+CO116+CR116+CS116+CU116)*1.5))/(CI116+CB116+CP116+CD116+CQ116+CE116+BS116+BT116+BU116+BV116+BW116+BY116+BZ116+CA116+CC116+CF116+CG116+CH116+CJ116+CK116+CN116+CO116+CR116+CS116+CU116) ->  | GD116: =((CI116*2.23)+(CB116*1.87)+(CP116*1.93)+(CD116*1.84)+(CQ116*1.92)+(CE116*1.51)+((BS116+BT116+BU116+BV116+BW116+BY116+BZ116+CA116+CC116+CF116+CG116+CH116+CJ116+CK116+CN116+CO116+CR116+CS116+CU116)*1.87))/(CI116+CB116+CP116+CD116+CQ116+CE116+BS116+BT116+BU116+BV116+BW116+BY116+BZ116+CA116+CC116+CF116+CG116+CH116+CJ116+CK116+CN116+CO116+CR116+CS116+CU116) ->  | GK116: NA | GL116: NA | GM116: NA | GN116: NA | GO116: =W116/(3.14*P116) ->  | GP116: =((HM116*1.87)+(HF116*1.4)+(HT116*1.51)+(HH116*1.68)+(HU116*1.36)+(HI116*1.35)+((GW116+GX116+GY116+GZ116+HA116+HC116+HD116+HE116+HG116+HJ116+HK116+HL116+HN116+HO116+HR116+HS116+HV116+HW116+HY116+IA116)*1.5))/(HM116+HF116+HT116+HH116+HU116+HI116+GW116+GX116+GY116+GZ116+HA116+HC116+HD116+HE116+HG116+HJ116+HK116+HL116+HN116+HO116+HR116+HS116+HV116+HW116+HY116+IA116) ->  | GQ116: =((HM116*2.23)+(HF116*1.87)+(HT116*1.93)+(HH116*1.84)+(HU116*1.92)+(HI116*1.51)+((GW116+GX116+GY116+GZ116+HA116+HC116+HD116+HE116+HG116+HJ116+HK116+HL116+HN116+HO116+HR116+HS116+HV116+HW116+HY116+IA116)*1.5))/(HM116+HF116+HT116+HH116+HU116+HI116+GW116+GX116+GY116+GZ116+HA116+HC116+HD116+HE116+HG116+HJ116+HK116+HL116+HN116+HO116+HR116+HS116+HV116+HW116+HY116+IA116) ->  | GT116: =((100-(GS116*100))/(GS116*100))*(GL116/0.07492) ->  | HZ116: =IF(BH116="None",0,BH116) -> 0 | IB116: =GW116/(SUM(GW116:IA116)) ->  | IC116: =GX116/(SUM(GW116:IA116)) ->  | ID116: =GY116/(SUM(GW116:IA116)) ->  | IE116: =GZ116/(SUM(GW116:IA116)) ->  | IF116: =HA116/(SUM(GW116:IA116)) ->  | IG116: =HB116/(SUM(GW116:IA116)) ->  | IH116: =HC116/(SUM(GW116:IA116)) ->  | II116: =HD116/(SUM(GW116:IA116)) ->  | IJ116: =HE116/(SUM(GW116:IA116)) ->  | IK116: =HF116/(SUM(GW116:IA116)) ->  | IL116: =HG116/(SUM(GW116:IA116)) ->  | IM116: =HH116/(SUM(GW116:IA116)) ->  | IN116: =HI116/(SUM(GW116:IA116)) ->  | IO116: =HJ116/(SUM(GW116:IA116)) ->  | IP116: =HK116/(SUM(GW116:IA116)) ->  | IQ116: =HL116/(SUM(GW116:IA116)) ->  | IR116: =HM116/(SUM(GW116:IA116)) ->  | IS116: =HN116/(SUM(GW116:IA116)) ->  | IT116: =HO116/(SUM(GW116:IA116)) ->  | IU116: =HP116/(SUM(GW116:IA116)) ->  | IV116: =HQ116/(SUM(GW116:IA116)) ->  | IW116: =HR116/(SUM(GW116:IA116)) ->  | IX116: =HS116/(SUM(GW116:IA116)) ->  | IY116: =HT116/(SUM(GW116:IA116)) ->  | IZ116: =HU116/(SUM(GW116:IA116)) ->  | JA116: =HV116/(SUM(GW116:IA116)) ->  | JB116: =HW116/(SUM(GW116:IA116)) ->  | JC116: =HX116/(SUM(GW116:IA116)) ->  | JD116: =HY116/(SUM(GW116:IA116)) ->  | JE116: =HZ116/(SUM(GW116:IA116)) ->  | JF116: =IA116/(SUM(GW116:IA116)) ->  | JL116: No Assist | JM116: 0.06 | JO116: 76.4
A117: EPA-600/2-84-095 | B117: NA | C117: 104 | D117: 99.81% | E117: 20 | F117: NA | H117: NA | I117: NA | J117: Steam-Assisted | K117: Unknown | L117: Unknown | M117: Unknown | N117: >1000 | R117: Test 2-84-095 does not provide enough VG flow info. | S117: 921 | V117: 375.5 | Y117: 0 | Z117: 0 | GK117: NA | GL117: NA | GM117: NA | GN117: NA | HZ117: 0 | JL117: No Assist | JM117: 0.023 | JO117: 39.2
A118: EPA-600/2-84-095 | B118: NA | C118: 105 | D118: 99.77% | E118: 20 | F118: NA | H118: NA | I118: NA | J118: Steam-Assisted | K118: Unknown | L118: Unknown | M118: Unknown | N118: >1000 | R118: Test 2-84-095 does not provide enough VG flow info. | S118: 2350 | V118: 243.4 | Y118: 0 | Z118: 0 | GK118: NA | GL118: NA | GM118: NA | GN118: NA | HZ118: 0 | JL118: No Assist | JM118: 0.049 | JO118: 100
A119: EPA-600/2-85-106 | B119: NA | C119: 201 | D119: 99.30% | E119: 20 | F119: NA | G119: NO | H119: 8.0 | I119: NA | J119: Steam-Assisted | K119: Unknown | L119: Unknown | M119: Unknown | N119: >1000 | O119: 12 | P119: =ROUND((O119/12),2) -> 1 | Q119: =0.785*((P119)^2) -> 0.79 | R119: Very low amount of combustible; CE not believable. | S119: 306 | T119: =U119*X119/379.48 -> 42.42424242 | U119: =(BE119/JM119)*379.48/((44.1*(AX119/100))+(28*(AT119/100))) -> 534.979946 | V119: 0.2 | W119: =IF(BH119="None",V119,((BH119/Q119/60/60)+V119)) -> 0.2 | X119: =((44.1*(AX119/100))+(28*(AT119/100))) -> 30.093 | Y119: 0 | Z119: 0 | AT119: =100-AX119 -> 87 | AX119: 13 | BD119: =BE119*379.48/18 -> 2951.511111 | BE119: 140 | BF119: NONE | BG119: NONE | BH119: NONE | BI119: NONE | BJ119: NONE | BK119: NONE | BL119: =BM119*379.48/18 -> 2951.511111 | BM119: 140 | BN119: =BE119/T119 -> 3.30 | BO119: =BD119/U119 -> 5.52 | BP119: =BD119/(SUM(BS119:BW119,BY119:CD119,CG119:CK119,CN119:CS119,CU119)) -> 42.44 | CL119: =U119*(AT119/100) -> 465.432553 | CP119: =U119*(AX119/100) -> 69.54739298 | CV119: =BD119 -> 2951.511111 | CX119: =Z119 -> 0 | CY119: =BS119/SUM($BS119:$CX119) -> 0 | CZ119: 0 | DA119: 0 | DB119: 0 | DC119: 0 | DD119: 0 | DE119: 0 | DF119: 0 | DG119: 0 | DH119: 0 | DI119: =CC119/SUM($BS119:$CX119) -> 0 | DJ119: 0 | DK119: 0 | DL119: 0 | DM119: 0 | DN119: 0 | DO119: 0 | DP119: 0 | DQ119: 0 | DR119: 0.1334959836 | DS119: =CM119/SUM($BS119:$CX119) -> 0 | DT119: 0 | DU119: 0 | DV119: 0.01994767571 | DW119: 0 | DX119: 0 | DY119: 0 | DZ119: 0 | EA119: 0 | EB119: 0.8465563407 | ED119: =CX119/SUM($BS119:$CX119) -> 0 | EE119: =AA119+AB119+AC119+AH119+AL119+AP119+AW119+AY119+BA119 -> 0.00 | EF119: =AM119 -> 0 | EG119: =AA119+AB119+AC119+AD119+AE119+AH119+AI119+AK119+AL119+AO119+AP119+AR119+AS119+AV119+AW119+AX119+AY119+AZ119+BA119+BC119 -> 13.00 | EH119: =100*(CY119+CZ119+DA119+DF119+DJ119+DN119+DU119+DW119+DY119) -> 0.00 | EI119: =100*DK119 -> 0.00 | EJ119: =IF(EI119=0,0,(EH119/EI119)) -> 0 | EK119: =CY119+CZ119+DA119+DB119+DC119+DE119+DF119+DG119+DH119+DI119+DJ119+DK119+DL119+DM119+DN119+DO119+DP119+DQ119+DT119+DU119+DV119+DW119+DX119+DY119+EA119+ED119 -> 0.020 | EL119: =EB119 -> 0.8465563407 | EM119: =DD119+DR119+DS119+DZ119+EB119 -> 0.9800523243 | EN119: =COUNTIF(AA119:AE119,">0")+COUNTIF(AG119:AP119,">0")+COUNTIF(AQ119:AS119,">0")+COUNTIF(AV119:BA119,">0")+IF(BC119>0,1,0) -> 1 | EO119: 0 | EP119: 0 | EQ119: 0 | ER119: 0 | ES119: 0 | EU119: 0 | EV119: 0 | EW119: 0 | EX119: 0 | EY119: 0 | EZ119: 0 | FA119: 0 | FB119: 0 | FC119: 0 | FD119: 0 | FE119: 0 | FF119: 0 | FG119: 0 | FJ119: 0 | FK119: 0 | FL119: 1 | FM119: 0 | FN119: 0 | FO119: 0 | FQ119: 0 | FU119: 46.95 | FV119: 0.162 | FW119: 0.000 | FX119: 0.162 | FY119: 49.43 | FZ119: 0.95 | GA119: 0.021 | GB119: 1.053 | GC119: 1.51 | GD119: 1.93 | GE119: 0.432 | GF119: 1.930 | GK119: =IF(BI119="none",T119,T119+BI119) -> 42.42 | GL119: =IF(BH119="none",GK119/U119,(GK119/(U119+BH119))) -> 0.08 | GM119: =H119*5280/60/60 -> 11.73 | GN119: =(GL119*(W119^2))/(0.07492*(GM119^2)) -> 0.00 | GO119: 0.064 | GP119: 1.51 | GQ119: 1.93 | GR119: 0.00 | GS119: 0.162 | GT119: 5.494 | GU119: 1.042 | GV119: No | HP119: 465.432553 | HT119: 69.54739298 | HZ119: 0 | IA119: 0 | IB119: 0 | IC119: 0 | ID119: 0 | IE119: 0 | IF119: 0 | IG119: 0 | IH119: 0 | II119: 0 | IJ119: 0 | IK119: 0 | IL119: 0 | IM119: 0 | IN119: 0 | IO119: 0 | IP119: 0 | IQ119: 0 | IR119: 0 | IS119: 0 | IT119: 0 | IU119: 0.87 | IV119: 0 | IW119: 0 | IX119: 0 | IY119: 0.13 | IZ119: 0 | JA119: 0 | JB119: 0 | JC119: 0 | JD119: 0 | JE119: 0 | JF119: 0 | JL119: Steam Assist | JM119: 3.3
A120: EPA-600/2-85-106 | B120: NA | C120: 204 | D120: 99.90% | E120: 20 | F120: NA | G120: NO | H120: 3.0 | I120: NA | J120: Steam-Assisted | K120: Unknown | L120: Unknown | M120: Unknown | N120: >1000 | O120: 12 | P120: 1 | Q120: 0.79 | R120: Very low amount of combustible; CE not believable. | S120: 421 | T120: =U120*X120/379.48 -> 45.16129032 | U120: =(BE120/JM120)*379.48/((44.1*(AX120/100))+(28*(AT120/100))) -> 554.9466338 | V120: 0.2 | W120: 0.2 | X120: =((44.1*(AX120/100))+(28*(AT120/100))) -> 30.8819 | Y120: 0 | Z120: 0 | AT120: =100-AX120 -> 82.1 | AX120: 17.9 | BD120: 2951.511111 | BE120: 140 | BF120: NONE | BG120: NONE | BH120: NONE | BI120: NONE | BJ120: NONE | BK120: NONE | BL120: 2951.511111 | BM120: 140 | BN120: 3.10 | BO120: 5.32 | BP120: 29.71 | CL120: 455.6111864 | CP120: 99.33544746 | CV120: 2951.511111 | CX120: 0 | CY120: 0 | CZ120: 0 | DA120: 0 | DB120: 0 | DC120: 0 | DD120: 0 | DE120: 0 | DF120: 0 | DG120: 0 | DH120: 0 | DI120: 0 | DJ120: 0 | DK120: 0 | DL120: 0 | DM120: 0 | DN120: 0 | DO120: 0 | DP120: 0 | DQ120: 0 | DR120: 0.1299348857 | DS120: 0 | DT120: 0 | DU120: 0 | DV120: 0.0283292869 | DW120: 0 | DX120: 0 | DY120: 0 | DZ120: 0 | EA120: 0 | EB120: 0.8417358274 | ED120: 0 | EE120: 0.00 | EF120: 0 | EG120: 17.90 | EH120: 0.00 | EI120: 0.00 | EJ120: 0 | EK120: 0.028 | EL120: 0.8417358274 | EM120: 0.9716707131 | EN120: 1 | EO120: 0 | EP120: 0 | EQ120: 0 | ER120: 0 | ES120: 0 | EU120: 0 | EV120: 0 | EW120: 0 | EX120: 0 | EY120: 0 | EZ120: 0 | FA120: 0 | FB120: 0 | FC120: 0 | FD120: 0 | FE120: 0 | FF120: 0 | FG120: 0 | FJ120: 0 | FK120: 0 | FL120: 1 | FM120: 0 | FN120: 0 | FO120: 0 | FQ120: 0 | FU120: 66.63 | FV120: 0.117 | FW120: 0.000 | FX120: 0.117 | FY120: 49.39 | FZ120: 1.35 | GA120: 0.021 | GB120: 0.741 | GC120: 1.51 | GD120: 1.93 | GE120: 0.429 | GF120: 1.087 | GK120: 45.16 | GL120: 0.08 | GM120: 4.40 | GN120: 0.00 | GO120: 0.064 | GP120: 1.51 | GQ120: 1.93 | GR120: 0.00 | GS120: 0.117 | GT120: 8.173 | GU120: 7.590 | GV120: No | HP120: 455.6111864 | HT120: 99.33544746 | HZ120: 0 | IA120: 0 | IB120: 0 | IC120: 0 | ID120: 0 | IE120: 0 | IF120: 0 | IG120: 0 | IH120: 0 | II120: 0 | IJ120: 0 | IK120: 0 | IL120: 0 | IM120: 0 | IN120: 0 | IO120: 0 | IP120: 0 | IQ120: 0 | IR120: 0 | IS120: 0 | IT120: 0 | IU120: 0.821 | IV120: 0 | IW120: 0 | IX120: 0 | IY120: 0.179 | IZ120: 0 | JA120: 0 | JB120: 0 | JC120: 0 | JD120: 0 | JE120: 0 | JF120: 0 | JL120: Steam Assist | JM120: 3.1
A121: Flint Hills Resources (AU) | B121: AU-A | C121: 1.0 (1) | D121: 99.33% | E121: 3 | F121: 6 | G121: =IF(F121>5,"YES","NO") -> YES | H121: 3.3 | I121: 0.404 | J121: Steam-Assisted | K121: 200000 | L121: =T121/K121*100 -> 0.4849987335 | M121: =K121/T121 -> 206.1861054 | N121: >1000 | O121: 20 | P121: 1.67 | Q121: 2.19 | R121: Smoking flare and run time < 5 minutes. | S121: 731.6977736 | T121: 969.997467 | U121: =JI121*1000 -> 17972.81265 | V121: 2.349849681 | W121: 3.687311187 | X121: 17.01262637 | Y121: 100 | Z121: 0 | AA121: 0.006337440034 | AB121: 0 | AC121: 0.03245134484 | AD121: 0.02422899427 | AE121: 3.590764502 | AF121: 1.149123999 | AH121: 0 | AI121: 0 | AJ121: 1.68087407 | AL121: 0.3775278911 | AM121: 38.44472183 | AO121: 0.0517248165 | AP121: 0.01168047199 | AQ121: 37.3460081 | AR121: 0.009118614993 | AS121: 0.08826600303 | AT121: 13.89122286 | AU121: 0 | AV121: 3.047634378 | AW121: 0 | AX121: 0.2290938366 | AY121: 0.04326172929 | BA121: 0 | BD121: 23351.66104 | BE121: 1091.561432 | BF121: NONE | BG121: NONE | BH121: =BI121/18*379.48 -> 10541.11111 | BI121: 500 | BJ121: =BD121-BH121 -> 12810.54993 | BK121: 591.5614319 | BL121: NONE | BM121: NONE | BN121: 1.13 | BO121: 1.30 | BP121: 2.79 | BS121: =$U121*(AA121/100) -> 1.139016224 | BT121: 0 | BU121: 5.832419412 | BV121: 4.354631748 | BW121: 645.3613767 | BX121: 206.5299035 | BY121: 0 | BZ121: 0 | CA121: 0 | CB121: 302.1003476 | CC121: 0 | CD121: 67.85238058 | CE121: 6909.597829 | CF121: 0 | CG121: 9.296404365 | CH121: 2.099309348 | CI121: =$U121*(AQ121/100) -> 6712.128068 | CJ121: 1.638871589 | CK121: 15.86388336 | CL121: 2496.64346 | CM121: 0 | CN121: 547.7456172 | CO121: 0 | CP121: 41.17460606 | CQ121: 7.775349556 | CR121: 0 | CS121: 0 | CT121: 0 | CU121: 0 | CV121: 23351.66104 | CX121: 0 | CY121: =BS121/SUM($BS121:$CX121) -> 2.755987049e-05 | CZ121: =BT121/SUM($BS121:$CX121) -> 0 | DA121: =BU121/SUM($BS121:$CX121) -> 0.0001411224179 | DB121: 0.0001053655641 | DC121: 0.01561529641 | DD121: 0.00499723996 | DE121: 0 | DF121: 0 | DG121: 0 | DH121: 0.007309682053 | DI121: 0 | DJ121: 0.001641770136 | DK121: 0.1671860481 | DL121: 0 | DM121: 0.0002249377092 | DN121: 5.079532012e-05 | DO121: 0.1624080292 | DP121: 3.965447355e-05 | DQ121: =CK121/SUM($BS121:$CX121) -> 0.0003838457798 | DR121: 0.06040929791 | DS121: 0 | DT121: 0.01325336545 | DU121: 0 | DV121: 0.0009962692243 | DW121: 0.0001881339547 | DX121: 0 | DY121: 0 | DZ121: 0 | EA121: 0 | EB121: 0.5650215864 | ED121: 0 | EE121: 0.47 | EF121: 38.44472183 | EG121: 7.51 | EH121: 0.20 | EI121: 16.72 | EJ121: 0.01225809044 | EK121: 0.370 | EL121: 0.5650215864 | EM121: 0.6304281243 | EN121: 15 | EO121: 7.457242365e-05 | EP121: 0 | EQ121: 0.0003818537805 | ER121: 0.000285101684 | ES121: 0.04225239375 | EU121: 0 | EV121: 0 | EW121: 0 | EX121: 0.01977878333 | EY121: 0 | EZ121: 0.004442356801 | FA121: 0.4523776269 | FB121: 0 | FC121: 0.0006086440122 | FD121: 0.000137443684 | FE121: 0.4394491029 | FF121: 0.000107298407 | FG121: 0.001038622809 | FJ121: 0.03586140157 | FK121: 0 | FL121: 0.002695738745 | FM121: 0.0005090591765 | FN121: 0 | FO121: 0 | FQ121: 0 | FU121: 318.23 | FV121: 0.044 | FW121: 0.010 | FX121: 0.044 | FY121: 31.87 | FZ121: 9.98 | GA121: 0.037 | GB121: 0.100 | GC121: 1.59 | GD121: 1.87 | GE121: 0.340 | GF121: 0.104 | GK121: 1470.00 | GL121: 0.05 | GM121: 4.79 | GN121: 0.41 | GO121: 0.703 | GP121: 1.59 | GQ121: 1.84 | GR121: 0.23 | GS121: 0.070 | GT121: 9.116 | GU121: 21.891 | GV121: No | GW121: 1.139016224 | GX121: 0 | GY121: 5.832419412 | GZ121: 4.354631748 | HA121: 645.3613767 | HB121: 206.5299035 | HC121: 0 | HD121: 0 | HE121: 0 | HF121: 302.1003476 | HG121: 0 | HH121: 67.85238058 | HI121: 6909.597829 | HJ121: 0 | HK121: 9.296404365 | HL121: 2.099309348 | HM121: 6712.128068 | HN121: 1.638871589 | HO121: 15.86388336 | HP121: 2496.64346 | HQ121: 0 | HR121: 547.7456172 | HS121: 0 | HT121: 41.17460606 | HU121: 7.775349556 | HV121: 0 | HW121: 0 | HX121: 0 | HY121: 0 | HZ121: 10541.11111 | IA121: 0 | IB121: 3.993991358e-05 | IC121: 0 | ID121: 0.0002045153724 | IE121: 0.0001526963462 | IF121: 0.02262977214 | IG121: 0.007242027217 | IH121: 0 | II121: 0 | IJ121: 0 | IK121: 0.01059323082 | IL121: 0 | IM121: 0.002379262173 | IN121: 0.2422869265 | IO121: 0 | IP121: 0.0003259809466 | IQ121: 7.361285304e-05 | IR121: 0.2353625956 | IS121: 5.746747785e-05 | IT121: 0.0005562713832 | IU121: 0.08754548173 | IV121: 0 | IW121: 0.01920684899 | IX121: 0 | IY121: 0.001443798756 | IZ121: 0.0002726447462 | JA121: 0 | JB121: 0 | JC121: 0 | JD121: 0 | JE121: 0.369626927 | JF121: 0 | JI121: 17.97281265 | JL121: Steam Assist
A122: Flint Hills Resources (AU) | B122: AU-A | C122: 1.0 (2) | D122: 99.35% | E122: 3 | F122: 6 | G122: YES | H122: 9.1 | I122: 0.040 | J122: Steam-Assisted | K122: 200000 | L122: 0.3998200531 | M122: 250.1125174 | N122: >1000 | O122: 20 | P122: 1.67 | Q122: 2.19 | R122: Smoking flare and run time < 5 minutes. | S122: 731.6977736 | T122: 799.6401062 | U122: 14652.00353 | V122: 1.908750832 | W122: 3.246212339 | X122: 17.01262637 | Y122: 100 | Z122: 0 | AA122: 0.006337440034 | AB122: 0 | AC122: 0.03245134484 | AD122: 0.02422899427 | AE122: 3.590764502 | AF122: 1.149123999 | AH122: 0 | AI122: 0 | AJ122: 1.68087407 | AL122: 0.3775278911 | AM122: 38.44472183 | AO122: 0.0517248165 | AP122: 0.01168047199 | AQ122: 37.3460081 | AR122: 0.009118614993 | AS122: 0.08826600303 | AT122: 13.89122286 | AU122: 0 | AV122: 3.047634378 | AW122: 0 | AX122: 0.2290938366 | AY122: 0.04326172929 | BA122: 0 | BD122: 31831.3717 | BE122: 1487.941162 | BF122: NONE | BG122: NONE | BH122: =BI122/18*379.48 -> 10541.11111 | BI122: 500 | BJ122: 21290.26059 | BK122: 987.9411621 | BL122: NONE | BM122: NONE | BN122: 1.86 | BO122: 2.17 | BP122: 4.67 | BS122: 0.9285619373 | BT122: 0 | BU122: 4.754772191 | BV122: 3.550033095 | BW122: 526.1189414 | BX122: 168.3696889 | BY122: 0 | BZ122: 0 | CA122: 0 | CB122: 246.2817281 | CC122: 0 | CD122: 55.31539992 | CE122: 5632.921998 | CF122: 0 | CG122: 7.578721938 | CH122: 1.711423168 | CI122: 5471.938423 | CJ122: 1.33605979 | CK122: 12.93273788 | CL122: 2035.342464 | CM122: 0 | CN122: 446.5394966 | CO122: 0 | CP122: 33.56683702 | CQ122: 6.338710101 | CR122: 0 | CS122: 0 | CT122: 0 | CU122: 0 | CV122: 31831.3717 | CX122: 0 | CY122: 1.997470219e-05 | CZ122: 0 | DA122: 0.0001022819854 | DB122: 7.636631549e-05 | DC122: 0.01131757479 | DD122: 0.003621874059 | DE122: 0 | DF122: 0 | DG122: 0 | DH122: 0.00529787403 | DI122: 0 | DJ122: 0.001189913775 | DK122: 0.1211722502 | DL122: 0 | DM122: 0.0001630292042 | DN122: 3.681517272e-05 | DO122: 0.1177092621 | DP122: 2.874056684e-05 | DQ122: 0.0002782017841 | DR122: 0.04378314245 | DS122: 0 | DT122: 0.009605706527 | DU122: 0 | DV122: 0.0007220709208 | DW122: 0.000136354767 | DX122: 0 | DY122: 0 | DZ122: 0 | EA122: 0 | EB122: 0.6847385667 | ED122: 0 | EE122: 0.47 | EF122: 38.44472183 | EG122: 7.51 | EH122: 0.15 | EI122: 12.12 | EJ122: 0.01225809044 | EK122: 0.268 | EL122: 0.6847385667 | EM122: 0.7321435832 | EN122: 15 | EO122: 7.457242365e-05 | EP122: 0 | EQ122: 0.0003818537805 | ER122: 0.000285101684 | ES122: 0.04225239375 | EU122: 0 | EV122: 0 | EW122: 0 | EX122: 0.01977878333 | EY122: 0 | EZ122: 0.004442356801 | FA122: 0.4523776269 | FB122: 0 | FC122: 0.0006086440122 | FD122: 0.000137443684 | FE122: 0.4394491029 | FF122: 0.000107298407 | FG122: 0.001038622809 | FJ122: 0.03586140157 | FK122: 0 | FL122: 0.002695738745 | FM122: 0.0005090591765 | FN122: 0 | FO122: 0 | FQ122: 0 | FU122: 230.64 | FV122: 0.044 | FW122: 0.010 | FX122: 0.044 | FY122: 31.87 | FZ122: 7.24 | GA122: 0.037 | GB122: 0.138 | GC122: 1.59 | GD122: 1.87 | GE122: 0.410 | GF122: 0.146 | GK122: 1299.64 | GL122: 0.05 | GM122: 13.38 | GN122: 0.04 | GO122: 0.619 | GP122: 1.59 | GQ122: 1.84 | GR122: 0.25 | GS122: 0.076 | GT122: 8.332 | GU122: 13.963 | GV122: No | GW122: 0.9285619373 | GX122: 0 | GY122: 4.754772191 | GZ122: 3.550033095 | HA122: 526.1189414 | HB122: 168.3696889 | HC122: 0 | HD122: 0 | HE122: 0 | HF122: 246.2817281 | HG122: 0 | HH122: 55.31539992 | HI122: 5632.921998 | HJ122: 0 | HK122: 7.578721938 | HL122: 1.711423168 | HM122: 5471.938423 | HN122: 1.33605979 | HO122: 12.93273788 | HP122: 2035.342464 | HQ122: 0 | HR122: 446.5394966 | HS122: 0 | HT122: 33.56683702 | HU122: 6.338710101 | HV122: 0 | HW122: 0 | HX122: 0 | HY122: 0 | HZ122: 10541.11111 | IA122: 0 | IB122: 3.685261383e-05 | IC122: 0 | ID122: 0.0001887066187 | IE122: 0.0001408931311 | IF122: 0.02088052224 | IG122: 0.00668222859 | IH122: 0 | II122: 0 | IJ122: 0 | IK122: 0.00977438882 | IL122: 0 | IM122: 0.002195348517 | IN122: 0.2235584842 | IO122: 0 | IP122: 0.000300783073 | IQ122: 6.792268192e-05 | IR122: 0.2171693945 | IS122: 5.302532177e-05 | IT122: 0.0005132723792 | IU122: 0.0807783378 | IV122: 0 | IW122: 0.01772218629 | IX122: 0 | IY122: 0.001332195121 | IZ122: 0.0002515696866 | JA122: 0 | JB122: 0 | JC122: 0 | JD122: 0 | JE122: 0.4183538885 | JF122: 0 | JI122: 14.65200353 | JL122: Steam Assist
A123: Flint Hills Resources (AU) | B123: AU-B | C123: Min (1) | D123: 99.06% | E123: 3 | F123: 6 | G123: YES | H123: 12.7 | I123: 0.078 | J123: Steam-Assisted | K123: 200000 | L123: 0.9337186127 | M123: 107.0986469 | N123: >1000 | O123: 20 | P123: 1.67 | Q123: 2.19 | R123: Smoking flare and run time < 5 minutes. | S123: 895.4522494 | T123: 1867.437225 | U123: 43207.21531 | V123: 5.360703551 | W123: 6.698165057 | X123: 17.75587272 | Y123: 100 | Z123: 0 | AA123: 0 | AB123: 0 | AC123: 0.01200211045 | AD123: 0 | AE123: 2.139081895 | AF123: 1.146475648 | AH123: 0 | AI123: 0 | AJ123: 2.505870385 | AL123: 0.02174443597 | AM123: 13.10785431 | AO123: 0.07708388925 | AP123: 0 | AQ123: 74.27930889 | AR123: 0 | AS123: 0.08978882645 | AT123: 4.813491487 | AU123: 0 | AV123: 1.401224016 | AW123: 0 | AX123: 0.3954118067 | AY123: 0.011047992 | BA123: 0 | BD123: 34503.29737 | BE123: 1612.838959 | BF123: NONE | BG123: NONE | BH123: =BI123/18*379.48 -> 10541.11111 | BI123: 500 | BJ123: 23962.18626 | BK123: 1112.838959 | BL123: NONE | BM123: NONE | BN123: 0.86 | BO123: 0.80 | BP123: 0.99 | BS123: =$U123*(AA123/100) -> 0 | BT123: 0 | BU123: 5.185777702 | BV123: 0 | BW123: 924.2377199 | BX123: 495.3602016 | BY123: 0 | BZ123: 0 | CA123: 0 | CB123: 1082.716813 | CC123: 0 | CD123: 9.395165268 | CE123: 5663.538833 | CF123: 0 | CG123: 33.305802 | CH123: =$U123*(AP123/100) -> 0 | CI123: 32094.02092 | CJ123: 0 | CK123: 38.79525157 | CL123: 2079.775631 | CM123: 0 | CN123: 605.4298774 | CO123: 0 | CP123: 170.8464307 | CQ123: =$U123*(AY123/100) -> 4.773529692 | CR123: 0 | CS123: 0 | CT123: 0 | CU123: 0 | CV123: 34503.29737 | CX123: 0 | CY123: 0 | CZ123: 0 | DA123: =BU123/SUM($BS123:$CX123) -> 6.673185394e-05 | DB123: 0 | DC123: 0.0118933167 | DD123: 0.006374416051 | DE123: 0 | DF123: 0 | DG123: 0 | DH123: 0.01393266437 | DI123: 0 | DJ123: 0.0001208992812 | DK123: 0.07287980085 | DL123: 0 | DM123: 0.000428587194 | DN123: 0 | DO123: 0.4129936992 | DP123: =CJ123/SUM($BS123:$CX123) -> 0 | DQ123: 0.0004992267717 | DR123: 0.02676306074 | DS123: 0 | DT123: 0.00779081952 | DU123: 0 | DV123: 0.002198493594 | DW123: 6.142694586e-05 | DX123: 0 | DY123: 0 | DZ123: 0 | EA123: 0 | EB123: 0.4439968569 | ED123: 0 | EE123: 0.04 | EF123: 13.10785431 | EG123: 4.15 | EH123: 0.02 | EI123: 7.29 | EJ123: 0.00341738147 | EK123: 0.523 | EL123: 0.4439968569 | EM123: 0.4771343337 | EN123: 11 | EO123: 0 | EP123: 0 | EQ123: 0.0001276271483 | ER123: 0 | ES123: 0.02274640976 | EU123: 0 | EV123: 0 | EW123: 0 | EX123: 0.0266467379 | EY123: 0 | EZ123: 0.000231224364 | FA123: 0.139385325 | FB123: 0 | FC123: 0.0008196889214 | FD123: 0 | FE123: 0.7898657836 | FF123: 0 | FG123: 0.0009547897365 | FJ123: 0.01490023159 | FK123: 0 | FL123: 0.004204700625 | FM123: 0.0001174813147 | FN123: 0 | FO123: 0 | FQ123: 0 | FU123: 497.87 | FV123: 0.046 | FW123: 0.013 | FX123: 0.046 | FY123: 40.89 | FZ123: 12.18 | GA123: 0.043 | GB123: 0.082 | GC123: 1.77 | GD123: 2.10 | GE123: 0.348 | GF123: 0.084 | GK123: 2367.44 | GL123: 0.04 | GM123: 18.60 | GN123: 0.08 | GO123: 1.277 | GP123: 1.77 | GQ123: 2.09 | GR123: 0.16 | GS123: 0.057 | GT123: 9.674 | GU123: 29.466 | GV123: No | GW123: 0 | GX123: 0 | GY123: 5.185777702 | GZ123: 0 | HA123: 924.2377199 | HB123: 495.3602016 | HC123: 0 | HD123: 0 | HE123: 0 | HF123: 1082.716813 | HG123: 0 | HH123: 9.395165268 | HI123: 5663.538833 | HJ123: 0 | HK123: 33.305802 | HL123: 0 | HM123: 32094.02092 | HN123: 0 | HO123: 38.79525157 | HP123: 2079.775631 | HQ123: 0 | HR123: 605.4298774 | HS123: 0 | HT123: 170.8464307 | HU123: 4.773529692 | HV123: 0 | HW123: 0 | HX123: 0 | HY123: 0 | HZ123: 10541.11111 | IA123: 0 | IB123: 0 | IC123: 0 | ID123: 9.648229013e-05 | IE123: 0 | IF123: 0.01719560247 | IG123: 0.009216262139 | IH123: 0 | II123: 0 | IJ123: 0 | IK123: 0.02014413337 | IL123: 0 | IM123: 0.0001747986731 | IN123: 0.1053711185 | IO123: 0 | IP123: 0.0006196602007 | IQ123: 0 | IR123: 0.5971148044 | IS123: 0 | IT123: 0.0007217923583 | IU123: 0.03869458495 | IV123: 0 | IW123: 0.01126412747 | IX123: 0 | IY123: 0.003178627361 | IZ123: 8.881234467e-05 | JA123: 0 | JB123: 0 | JC123: 0 | JD123: 0 | JE123: 0.1961191935 | JF123: 0 | JI123: 43.20721531 | JL123: Steam Assist
A124: Flint Hills Resources (AU) | B124: AU-B | C124: Min (2) | D124: 99.19% | E124: 4 | F124: 6 | G124: YES | H124: 22.3 | I124: 0.031 | J124: Steam-Assisted | K124: 200000 | L124: 1.128405322 | M124: 88.62063837 | N124: >1000 | O124: 20 | P124: 1.67 | Q124: 2.19 | R124: Smoking flare and run time < 5 minutes. | S124: 935.3896044 | T124: 2256.810645 | U124: 45901.72958 | V124: 5.739878463 | W124: 7.077339969 | X124: 18.72227613 | Y124: 100 | Z124: 0 | AA124: 0 | AB124: 0 | AC124: 0.01630107643 | AD124: 0.005135902168 | AE124: 3.3586053 | AF124: 1.382368726 | AH124: 0 | AI124: 0 | AJ124: 2.278255171 | AL124: 0.0245774946 | AM124: 13.27170571 | AO124: 0.081974717 | AP124: 0.002819710994 | AQ124: 72.63322446 | AR124: 0 | AS124: 0.09494751042 | AT124: 4.673456924 | AU124: 0 | AV124: 1.770437377 | AW124: 0 | AX124: 0.3934697837 | AY124: 0.01367671073 | BA124: 0 | BD124: 42995.9067 | BE124: 2009.821631 | BF124: NONE | BG124: NONE | BH124: 10541.11111 | BI124: 500 | BJ124: 32454.79559 | BK124: 1509.821631 | BL124: NONE | BM124: NONE | BN124: 0.89 | BO124: 0.94 | BP124: 1.16 | BS124: 0 | BT124: 0 | BU124: 7.482476021 | BV124: 2.357467925 | BW124: 1541.657923 | BX124: 634.5311546 | BY124: 0 | BZ124: 0 | CA124: 0 | CB124: 1045.758528 | CC124: 0 | CD124: 11.28149511 | CE124: 6091.942468 | CF124: 0 | CG124: 37.62781292 | CH124: 1.294296116 | CI124: 33339.90628 | CJ124: 0 | CK124: 43.58254948 | CL124: 2145.197559 | CM124: 0 | CN124: 812.6613772 | CO124: 0 | CP124: 180.6094361 | CQ124: 6.277846775 | CR124: 0 | CS124: 0 | CT124: 0 | CU124: 0 | CV124: 42995.9067 | CX124: 0 | CY124: 0 | CZ124: 0 | DA124: 8.416915654e-05 | DB124: 2.651877349e-05 | DC124: 0.01734185939 | DD124: 0.007137737819 | DE124: 0 | DF124: 0 | DG124: 0 | DH124: 0.0117635677 | DI124: 0 | DJ124: 0.0001269037047 | DK124: 0.06852727062 | DL124: 0 | DM124: 0.0004232691514 | DN124: 1.455932662e-05 | DO124: 0.3750351865 | DP124: 0 | DQ124: 0.000490253015 | DR124: 0.02413097866 | DS124: 0 | DT124: 0.009141495739 | DU124: 0 | DV124: 0.00203164619 | DW124: 7.061847795e-05 | DX124: 0 | DY124: 0 | DZ124: 0 | EA124: 0 | EB124: 0.4836539657 | ED124: 0 | EE124: 0.06 | EF124: 13.27170571 | EG124: 5.76 | EH124: 0.03 | EI124: 6.85 | EJ124: 0.004323106162 | EK124: 0.485 | EL124: 0.4836539657 | EM124: 0.5149226822 | EN124: 13 | EO124: 0 | EP124: 0 | EQ124: 0.0001735169909 | ER124: 5.466916824e-05 | ES124: 0.0357507118 | EU124: 0 | EV124: 0 | EW124: 0 | EX124: 0.02425091272 | EY124: 0 | EZ124: 0.000261615417 | FA124: 0.1412708204 | FB124: 0 | FC124: 0.0008725807947 | FD124: 3.001444531e-05 | FE124: 0.7731451725 | FF124: 0 | FG124: 0.00101066984 | FJ124: 0.01884544052 | FK124: 0 | FL124: 0.004188293527 | FM124: 0.0001455819008 | FN124: 0 | FO124: 0 | FQ124: 0 | FU124: 482.98 | FV124: 0.044 | FW124: 0.015 | FX124: 0.044 | FY124: 41.12 | FZ124: 11.75 | GA124: 0.041 | GB124: 0.085 | GC124: 1.76 | GD124: 2.10 | GE124: 0.377 | GF124: 0.088 | GK124: 2756.81 | GL124: 0.05 | GM124: 32.74 | GN124: 0.03 | GO124: 1.350 | GP124: 1.76 | GQ124: 2.08 | GR124: 0.15 | GS124: 0.054 | GT124: 11.316 | GU124: 64.525 | GV124: No | GW124: 0 | GX124: 0 | GY124: 7.482476021 | GZ124: 2.357467925 | HA124: 1541.657923 | HB124: 634.5311546 | HC124: 0 | HD124: 0 | HE124: 0 | HF124: 1045.758528 | HG124: 0 | HH124: 11.28149511 | HI124: 6091.942468 | HJ124: 0 | HK124: 37.62781292 | HL124: 1.294296116 | HM124: 33339.90628 | HN124: 0 | HO124: 43.58254948 | HP124: 2145.197559 | HQ124: 0 | HR124: 812.6613772 | HS124: 0 | HT124: 180.6094361 | HU124: 6.277846775 | HV124: 0 | HW124: 0 | HX124: 0 | HY124: 0 | HZ124: 10541.11111 | IA124: 0 | IB124: 0 | IC124: 0 | ID124: 0.0001325662869 | IE124: 4.176702584e-05 | IF124: 0.02731340079 | IG124: 0.01124192565 | IH124: 0 | II124: 0 | IJ124: 0 | IK124: 0.01852760031 | IL124: 0 | IM124: 0.000199873132 | IN124: 0.1079303416 | IO124: 0 | IP124: 0.0006666482364 | IQ124: 2.293091614e-05 | IR124: 0.5906798189 | IS124: 0 | IT124: 0.0007721477145 | IU124: 0.03800625279 | IV124: 0 | IW124: 0.01439784117 | IX124: 0 | IY124: 0.003199839499 | IZ124: 0.0001112239898 | JA124: 0 | JB124: 0 | JC124: 0 | JD124: 0 | JE124: 0.186755822 | JF124: 0 | JI124: 45.90172958 | JL124: Steam Assist
A125: Flint Hills Resources (AU) | B125: AU-C | C125: Min (1) | D125: 99.06% | E125: 30 | F125: 5.5 | G125: YES | H125: 20.2 | I125: 0.022 | J125: Steam-Assisted | K125: 200000 | L125: 0.7246207472 | M125: 138.003225 | N125: >1000 | O125: 20 | P125: 1.67 | Q125: 2.19 | R125: Smoking flare. | S125: 790.5194387 | T125: 1449.241494 | U125: 38059.48381 | V125: 4.564818112 | W125: 5.902279618 | X125: 15.57026893 | Y125: 100 | Z125: 0 | AA125: 0 | AB125: 0 | AC125: 0.01427011727 | AD125: 0.006308771184 | AE125: 1.528842176 | AF125: 1.029472667 | AH125: 0 | AI125: 0 | AJ125: 2.09096456 | AL125: 0.02707765404 | AM125: 25.77387487 | AO125: 0.05430652688 | AP125: 0 | AQ125: 62.23654206 | AR125: 0 | AS125: 0.06287802028 | AT125: 5.419259753 | AU125: 0 | AV125: 1.473867558 | AW125: 0 | AX125: 0.2706745457 | AY125: 0.01250519505 | BA125: 0 | BD125: 31359.93763 | BE125: 1465.904218 | BF125: NONE | BG125: NONE | BH125: 10541.11111 | BI125: 500 | BJ125: 20818.82652 | BK125: 965.9042181 | BL125: NONE | BM125: NONE | BN125: 1.01 | BO125: 0.82 | BP125: 1.22 | BS125: 0 | BT125: 0 | BU125: 5.43113297 | BV125: 2.401085747 | BW125: 581.8694405 | BX125: 391.8119831 | BY125: 0 | BZ125: 0 | CA125: 0 | CB125: 795.8103181 | CC125: 0 | CD125: 10.30561536 | CE125: 9809.403733 | CF125: 0 | CG125: 20.6687838 | CH125: 0 | CI125: 23686.90665 | CJ125: 0 | CK125: 23.93104994 | CL125: 2062.542288 | CM125: 0 | CN125: 560.9463846 | CO125: 0 | CP125: 103.0173349 | CQ125: 4.759412684 | CR125: 0 | CS125: 0 | CT125: 0 | CU125: 0 | CV125: 31359.93763 | CX125: 0 | CY125: 0 | CZ125: 0 | DA125: 7.823614361e-05 | DB125: 3.45879378e-05 | DC125: 0.008381901412 | DD125: 0.005644100181 | DE125: 0 | DF125: 0 | DG125: 0 | DH125: 0.01146374627 | DI125: 0 | DJ125: 0.0001484536666 | DK125: 0.1413056766 | DL125: 0 | DM125: 0.0002977363925 | DN125: 0 | DO125: 0.3412128262 | DP125: 0 | DQ125: 0.0003447297406 | DR125: 0.02971117731 | DS125: 0 | DT125: 0.008080502198 | DU125: 0 | DV125: 0.001483977478 | DW125: 6.855992962e-05 | DX125: =CR125/SUM($BS125:$CX125) -> 0 | DY125: 0 | DZ125: 0 | EA125: 0 | EB125: 0.4517437885 | ED125: 0 | EE125: 0.05 | EF125: 25.77387487 | EG125: 3.45 | EH125: 0.03 | EI125: 14.13 | EJ125: 0.002089440048 | EK125: 0.513 | EL125: 0.4517437885 | EM125: 0.487099066 | EN125: 12 | EO125: 0 | EP125: 0 | EQ125: 0.0001525365591 | ER125: 6.743590332e-05 | ES125: 0.01634214496 | EU125: 0 | EV125: 0 | EW125: 0 | EX125: 0.02235080015 | EY125: 0 | EZ125: 0.0002894392596 | FA125: 0.2755028647 | FB125: 0 | FC125: 0.0005804949315 | FD125: 0 | FE125: 0.665260684 | FF125: 0 | FG125: 0.0006721175919 | FJ125: 0.01575450864 | FK125: 0 | FL125: 0.00289330235 | FM125: 0.0001336709003 | FN125: 0 | FO125: 0 | FQ125: 0 | FU125: 433.41 | FV125: 0.045 | FW125: 0.010 | FX125: 0.045 | FY125: 35.89 | FZ125: 12.08 | GA125: 0.042 | GB125: 0.083 | GC125: 1.70 | GD125: 2.01 | GE125: 0.323 | GF125: 0.085 | GK125: 1949.24 | GL125: 0.04 | GM125: 29.59 | GN125: 0.02 | GO125: 1.126 | GP125: 1.70 | GQ125: 2.00 | GR125: 0.16 | GS125: 0.058 | GT125: 8.617 | GU125: 16.514 | GV125: No | GW125: 0 | GX125: 0 | GY125: 5.43113297 | GZ125: 2.401085747 | HA125: 581.8694405 | HB125: 391.8119831 | HC125: 0 | HD125: 0 | HE125: 0 | HF125: 795.8103181 | HG125: 0 | HH125: 10.30561536 | HI125: 9809.403733 | HJ125: 0 | HK125: 20.6687838 | HL125: 0 | HM125: 23686.90665 | HN125: 0 | HO125: 23.93104994 | HP125: 2062.542288 | HQ125: 0 | HR125: 560.9463846 | HS125: 0 | HT125: 103.0173349 | HU125: 4.759412684 | HV125: 0 | HW125: 0 | HX125: 0 | HY125: 0 | HZ125: 10541.11111 | IA125: 0 | IB125: 0 | IC125: 0 | ID125: 0.0001117496002 | IE125: 4.940412504e-05 | IF125: 0.0119723965 | IG125: 0.00806182296 | IH125: 0 | II125: 0 | IJ125: 0 | IK125: 0.01637438917 | IL125: 0 | IM125: 0.0002120457007 | IN125: 0.2018357775 | IO125: 0 | IP125: 0.0004252755991 | IQ125: 0 | IR125: 0.4873757213 | IS125: 0 | IT125: 0.0004923991512 | IU125: 0.04243834158 | IV125: 0 | IW125: 0.01154188906 | IX125: 0 | IY125: 0.002119658284 | IZ125: 9.792845575e-05 | JA125: 0 | JB125: 0 | JC125: 0 | JD125: 0 | JE125: 0.216891201 | JF125: 0 | JI125: 38.05948381 | JL125: Steam Assist
A126: Flint Hills Resources (AU) | B126: AU-C | C126: Min (2) | D126: 98.98% | E126: 3 | F126: 6 | G126: YES | H126: 11.8 | I126: 0.086 | J126: Steam-Assisted | K126: 200000 | L126: 0.8556350555 | M126: 116.8722569 | N126: >1000 | O126: 20 | P126: 1.67 | Q126: 2.19 | R126: Smoking flare and run time < 5 minutes. | S126: 779.6011465 | T126: 1711.270111 | U126: 44152.32563 | V126: 5.539611333 | W126: 6.87707284 | X126: 15.19730128 | Y126: 100 | Z126: 0 | AA126: 0 | AB126: 0 | AC126: 0.01109385733 | AD126: 0.009969202144 | AE126: 1.609973089 | AF126: 1.110272286 | AH126: 0 | AI126: 0 | AJ126: 2.015623007 | AL126: 0.01993840429 | AM126: 26.70410111 | AO126: 0.05351422385 | AP126: 0 | AQ126: 62.26131384 | AR126: 0 | AS126: 0.06174343493 | AT126: 4.800103451 | AU126: 0 | AV126: 1.072247809 | AW126: 0 | AX126: 0.2631224682 | AY126: 0.009202184617 | BA126: 0 | BD126: 34383.01978 | BE126: 1607.216644 | BF126: NONE | BG126: NONE | BH126: 10541.11111 | BI126: 500 | BJ126: 23841.90867 | BK126: 1107.216644 | BL126: NONE | BM126: NONE | BN126: 0.94 | BO126: 0.78 | BP126: 1.16 | BS126: 0 | BT126: 0 | BU126: 4.898196012 | BV126: 4.401634594 | BW126: 710.8405606 | BX126: 490.2110352 | BY126: 0 | BZ126: 0 | CA126: 0 | CB126: 889.9444335 | CC126: 0 | CD126: 8.803269187 | CE126: 11790.48168 | CF126: 0 | CG126: 23.62777437 | CH126: 0 | CI126: 27489.81803 | CJ126: 0 | CK126: 27.26116245 | CL126: 2119.357306 | CM126: 0 | CN126: 473.4223444 | CO126: 0 | CP126: 116.174689 | CQ126: 4.062978517 | CR126: 0 | CS126: 0 | CT126: 0 | CU126: 0 | CV126: 34383.01978 | CX126: 0 | CY126: 0 | CZ126: 0 | DA126: 6.236854119e-05 | DB126: 5.604584377e-05 | DC126: 0.009051105483 | DD126: 0.006241838233 | DE126: 0 | DF126: 0 | DG126: 0 | DH126: 0.0113316282 | DI126: 0 | DJ126: 0.0001120916875 | DK126: 0.1501277491 | DL126: 0 | DM126: 0.0003008515412 | DN126: 0 | DO126: 0.3500267943 | DP126: 0 | DQ126: 0.0003471153316 | DR126: 0.02698569496 | DS126: 0 | DT126: 0.006028068479 | DU126: 0 | DV126: 0.001479247841 | DW126: 5.173374899e-05 | DX126: 0 | DY126: 0 | DZ126: 0 | EA126: 0 | EB126: 0.4377976667 | ED126: 0 | EE126: 0.04 | EF126: 26.70410111 | EG126: 3.11 | EH126: 0.02 | EI126: 15.01 | EJ126: 0.001506676674 | EK126: 0.529 | EL126: 0.4377976667 | EM126: 0.4710251999 | EN126: 12 | EO126: 0 | EP126: 0 | EQ126: 0.0001179045603 | ER126: 0.0001059518218 | ES126: 0.01711065533 | EU126: 0 | EV126: 0 | EW126: 0 | EX126: 0.02142186773 | EY126: 0 | EZ126: 0.0002119036436 | FA126: 0.2838088867 | FB126: 0 | FC126: 0.0005687445623 | FD126: 0 | FE126: 0.6617078814 | FF126: 0 | FG126: 0.000656203909 | FJ126: 0.01139575737 | FK126: 0 | FL126: 0.002796442932 | FM126: 9.780002559e-05 | FN126: 0 | FO126: 0 | FQ126: 0 | FU126: 438.29 | FV126: 0.045 | FW126: 0.011 | FX126: 0.045 | FY126: 35.43 | FZ126: 12.37 | GA126: 0.043 | GB126: 0.081 | GC126: 1.70 | GD126: 2.01 | GE126: 0.313 | GF126: 0.083 | GK126: 2211.27 | GL126: 0.04 | GM126: 17.37 | GN126: 0.08 | GO126: 1.311 | GP126: 1.70 | GQ126: 2.00 | GR126: 0.14 | GS126: 0.057 | GT126: 8.973 | GU126: 20.224 | GV126: No | GW126: 0 | GX126: 0 | GY126: 4.898196012 | GZ126: 4.401634594 | HA126: 710.8405606 | HB126: 490.2110352 | HC126: 0 | HD126: 0 | HE126: 0 | HF126: 889.9444335 | HG126: 0 | HH126: 8.803269187 | HI126: 11790.48168 | HJ126: 0 | HK126: 23.62777437 | HL126: 0 | HM126: 27489.81803 | HN126: 0 | HO126: 27.26116245 | HP126: 2119.357306 | HQ126: 0 | HR126: 473.4223444 | HS126: 0 | HT126: 116.174689 | HU126: 4.062978517 | HV126: 0 | HW126: 0 | HX126: 0 | HY126: 0 | HZ126: 10541.11111 | IA126: 0 | IB126: 0 | IC126: 0 | ID126: 8.95556869e-05 | IE126: 8.047685485e-05 | IF126: 0.01299658375 | IG126: 0.008962725435 | IH126: 0 | II126: 0 | IJ126: 0 | IK126: 0.01627121186 | IL126: 0 | IM126: 0.0001609537097 | IN126: 0.2155701166 | IO126: 0 | IP126: 0.0004319960979 | IQ126: 0 | IR126: 0.5026073946 | IS126: 0 | IT126: 0.0004984267927 | IU126: 0.03874906167 | IV126: 0 | IW126: 0.008655771051 | IX126: 0 | IY126: 0.002124068544 | IZ126: 7.428506966e-05 | JA126: 0 | JB126: 0 | JC126: 0 | JD126: 0 | JE126: 0.1927273723 | JF126: 0 | JI126: 44.15232563 | JL126: Steam Assist
A127: Flint Hills Resources (AU) | B127: AU-C | C127: Min (3) | D127: 99.41% | E127: 3 | F127: 6 | G127: YES | H127: 7.5 | I127: 0.219 | J127: Steam-Assisted | K127: 200000 | L127: 0.8380608826 | M127: 119.3230732 | N127: >1000 | O127: 20 | P127: 1.67 | Q127: 2.19 | R127: Smoking flare and run time < 5 minutes. | S127: 753.0853083 | T127: 1676.121765 | U127: 45160.69221 | V127: 5.720136296 | W127: 7.057597802 | X127: 14.70853167 | Y127: 100 | Z127: 0 | AA127: 0 | AB127: 0 | AC127: 0.01853826646 | AD127: 0.01400114227 | AE127: 2.012904676 | AF127: 1.207232733 | AH127: 0 | AI127: 0 | AJ127: 2.110035305 | AL127: 0.0332614699 | AM127: 31.67970121 | AO127: 0.02681620501 | AP127: 0.002717565893 | AQ127: 56.80605067 | AR127: 0 | AS127: 0.03157066424 | AT127: 4.892376448 | AU127: 0 | AV127: 0.9751364737 | AW127: 0 | AX127: 0.1835974714 | AY127: 0.01682352349 | BA127: 0 | BD127: 30835.36613 | BE127: 1441.383392 | BF127: NONE | BG127: NONE | BH127: 10541.11111 | BI127: 500 | BJ127: 20294.25502 | BK127: 941.3833923 | BL127: NONE | BM127: NONE | BN127: 0.86 | BO127: 0.68 | BP127: 1.10 | BS127: =$U127*(AA127/100) -> 0 | BT127: 0 | BU127: 8.372009459 | BV127: 6.323012767 | BW127: 909.0416854 | BX127: 545.194659 | BY127: 0 | BZ127: 0 | CA127: 0 | CB127: 952.9065498 | CC127: 0 | CD127: 15.02111005 | CE127: 14306.77236 | CF127: 0 | CG127: 12.11038381 | CH127: 1.227271569 | CI127: 25654.0057 | CJ127: 0 | CK127: 14.25753051 | CL127: 2209.43107 | CM127: 0 | CN127: 440.3783815 | CO127: 0 | CP127: 82.91388897 | CQ127: 7.597619663 | CR127: 0 | CS127: 0 | CT127: 0 | CU127: 0 | CV127: 30835.36613 | CX127: 0 | CY127: 0 | CZ127: 0 | DA127: =BU127/SUM($BS127:$CX127) -> 0.0001101566866 | DB127: 8.319652999e-05 | DC127: 0.01196093012 | DD127: 0.007173527156 | DE127: 0 | DF127: 0 | DG127: 0 | DH127: 0.0125380924 | DI127: 0 | DJ127: 0.0001976437939 | DK127: 0.1882447275 | DL127: 0 | DM127: 0.0001593452278 | DN127: 1.614811477e-05 | DO127: 0.3375486233 | DP127: 0 | DQ127: 0.0001875968163 | DR127: 0.02907110977 | DS127: 0 | DT127: 0.005794382294 | DU127: 0 | DV127: 0.001090959026 | DW127: 9.996747047e-05 | DX127: 0 | DY127: 0 | DZ127: 0 | EA127: 0 | EB127: 0.4057235938 | ED127: 0 | EE127: 0.07 | EF127: 31.67970121 | EG127: 3.32 | EH127: 0.04 | EI127: 18.82 | EJ127: 0.002251941244 | EK127: 0.558 | EL127: 0.4057235938 | EM127: 0.4419682307 | EN127: 13 | EO127: 0 | EP127: 0 | EQ127: 0.000197402178 | ER127: 0.0001490892357 | ES127: 0.0214341383 | EU127: 0 | EV127: 0 | EW127: 0 | EX127: 0.02246842043 | EY127: 0 | EZ127: 0.0003541801826 | FA127: 0.3373369365 | FB127: 0 | FC127: 0.0002855486669 | FD127: 2.893762624e-05 | FE127: 0.6048914092 | FF127: 0 | FG127: 0.0003361758713 | FJ127: 0.01038360648 | FK127: 0 | FL127: 0.001955012395 | FM127: 0.0001791429735 | FN127: 0 | FO127: 0 | FQ127: 0 | FU127: 447.52 | FV127: 0.045 | FW127: 0.012 | FX127: 0.045 | FY127: 33.66 | FZ127: 13.30 | GA127: 0.042 | GB127: 0.075 | GC127: 1.67 | GD127: 1.97 | GE127: 0.279 | GF127: 0.077 | GK127: 2176.12 | GL127: 0.04 | GM127: 10.94 | GN127: 0.22 | GO127: 1.346 | GP127: 1.67 | GQ127: 1.95 | GR127: 0.14 | GS127: 0.056 | GT127: 8.870 | GU127: 19.095 | GV127: No | GW127: 0 | GX127: 0 | GY127: 8.372009459 | GZ127: 6.323012767 | HA127: 909.0416854 | HB127: 545.194659 | HC127: 0 | HD127: 0 | HE127: 0 | HF127: 952.9065498 | HG127: 0 | HH127: 15.02111005 | HI127: 14306.77236 | HJ127: 0 | HK127: 12.11038381 | HL127: 1.227271569 | HM127: 25654.0057 | HN127: 0 | HO127: 14.25753051 | HP127: 2209.43107 | HQ127: 0 | HR127: 440.3783815 | HS127: 0 | HT127: 82.91388897 | HU127: 7.597619663 | HV127: 0 | HW127: 0 | HX127: 0 | HY127: 0 | HZ127: 10541.11111 | IA127: 0 | IB127: 0 | IC127: 0 | ID127: 0.0001502873948 | IE127: 0.0001135054996 | IF127: 0.01631836507 | IG127: 0.009786883947 | IH127: 0 | II127: 0 | IJ127: 0 | IK127: 0.01710579086 | IL127: 0 | IM127: 0.0002696465535 | IN127: 0.2568233537 | IO127: 0 | IP127: 0.0002173956016 | IQ127: 2.203096493e-05 | IR127: 0.4605195088 | IS127: 0 | IT127: 0.0002559394047 | IU127: 0.0396618806 | IV127: 0 | IW127: 0.007905308758 | IX127: 0 | IY127: 0.001488401611 | IZ127: 0.0001363861892 | JA127: 0 | JB127: 0 | JC127: 0 | JD127: 0 | JE127: 0.1892253151 | JF127: 0 | JI127: 45.16069221 | JL127: Steam Assist
A128: Flint Hills Resources (AU) | B128: AU-D | C128: 1.0 (1) | D128: 94.63% | E128: 30 | F128: 5.5 | G128: YES | H128: 22.7 | I128: 0.039 | J128: Steam-Assisted | K128: 200000 | L128: 0.7308225531 | M128: 136.832121 | N128: >1000 | O128: 20 | P128: 1.67 | Q128: 2.19 | R128: Smoking flare. | S128: 622.9529634 | T128: 1461.645106 | U128: 49460.32616 | V128: 6.360764277 | W128: 7.698225783 | X128: 11.27357624 | Y128: 100 | Z128: 0 | AA128: 0 | AB128: 0 | AC128: 0 | AD128: 0 | AE128: 0.9323190824 | AF128: 0.8293312114 | AH128: 0 | AI128: 0 | AJ128: 1.334719845 | AL128: 0.04168568562 | AM128: 47.619585 | AO128: 0.03676948633 | AP128: 0 | AQ128: 44.61071005 | AR128: 0 | AS128: 0.04186052809 | AT128: 3.695605482 | AU128: 0 | AV128: 0.6784098192 | AW128: 0 | AX128: 0.1807838244 | AY128: 0 | BA128: 0 | BD128: 34134.4595 | BE128: 1595.597822 | BF128: NONE | BG128: NONE | BH128: 10541.11111 | BI128: 500 | BJ128: 23593.34839 | BK128: 1095.597822 | BL128: NONE | BM128: NONE | BN128: 1.09 | BO128: 0.69 | BP128: 1.44 | BS128: 0 | BT128: 0 | BU128: 0 | BV128: 0 | BW128: 461.128059 | BX128: 410.1899221 | BY128: 0 | BZ128: 0 | CA128: 0 | CB128: 660.1567889 | CC128: 0 | CD128: 20.61787607 | CE128: 23552.80206 | CF128: 0 | CG128: 18.18630787 | CH128: 0 | CI128: 22064.60269 | CJ128: 0 | CK128: 20.70435373 | CL128: 1827.858525 | CM128: 0 | CN128: 335.5437093 | CO128: 0 | CP128: 89.41626922 | CQ128: 0 | CR128: 0 | CS128: 0 | CT128: 0 | CU128: 0 | CV128: 34134.4595 | CX128: 0 | CY128: 0 | CZ128: 0 | DA128: 0 | DB128: 0 | DC128: 0.005516171839 | DD128: 0.004906832393 | DE128: 0 | DF128: 0 | DG128: 0 | DH128: 0.007897021699 | DI128: 0 | DJ128: 0.0002466380979 | DK128: 0.2817466882 | DL128: 0 | DM128: 0.0002175508459 | DN128: 0 | DO128: 0.2639443374 | DP128: 0 | DQ128: 0.0002476725733 | DR128: 0.02186546996 | DS128: 0 | DT128: 0.004013888819 | DU128: 0 | DV128: 0.001069628049 | DW128: 0 | DX128: 0 | DY128: 0 | DZ128: 0 | EA128: 0 | EB128: 0.4083281001 | ED128: 0 | EE128: 0.04 | EF128: 47.619585 | EG128: 1.91 | EH128: 0.02 | EI128: 28.17 | EJ128: 0.0008753895192 | EK128: 0.565 | EL128: 0.4083281001 | EM128: 0.4351004025 | EN128: 9 | EO128: 0 | EP128: 0 | EQ128: 0 | ER128: 0 | ES128: 0.009764871251 | EU128: 0 | EV128: 0 | EW128: 0 | EX128: 0.01397951376 | EY128: 0 | EZ128: 0.0004366051932 | FA128: 0.4987553353 | FB128: 0 | FC128: 0.0003851141811 | FD128: 0 | FE128: 0.4672411498 | FF128: 0 | FG128: 0.0004384364485 | FJ128: 0.007105490668 | FK128: 0 | FL128: 0.001893483468 | FM128: 0 | FN128: 0 | FO128: 0 | FQ128: 0 | FU128: 368.58 | FV128: 0.044 | FW128: 0.007 | FX128: 0.044 | FY128: 27.55 | FZ128: 13.38 | GA128: 0.042 | GB128: 0.075 | GC128: 1.60 | GD128: 1.86 | GE128: 0.248 | GF128: 0.076 | GK128: 1961.65 | GL128: 0.03 | GM128: 33.33 | GN128: 0.02 | GO128: 1.468 | GP128: 1.60 | GQ128: 1.85 | GR128: 0.11 | GS128: 0.054 | GT128: 7.652 | GU128: 9.119 | GV128: No | GW128: 0 | GX128: 0 | GY128: 0 | GZ128: 0 | HA128: 461.128059 | HB128: 410.1899221 | HC128: 0 | HD128: 0 | HE128: 0 | HF128: 660.1567889 | HG128: 0 | HH128: 20.61787607 | HI128: 23552.80206 | HJ128: 0 | HK128: 18.18630787 | HL128: 0 | HM128: 22064.60269 | HN128: 0 | HO128: 20.70435373 | HP128: 1827.858525 | HQ128: 0 | HR128: 335.5437093 | HS128: 0 | HT128: 89.41626922 | HU128: 0 | HV128: 0 | HW128: 0 | HX128: 0 | HY128: 0 | HZ128: 10541.11111 | IA128: 0 | IB128: 0 | IC128: 0 | ID128: 0 | IE128: 0 | IF128: 0.007685170789 | IG128: 0.006836234633 | IH128: 0 | II128: 0 | IJ128: 0 | IK128: 0.01100218816 | IL128: 0 | IM128: 0.0003436179946 | IN128: 0.3925315383 | IO128: 0 | IP128: 0.0003030934232 | IQ128: 0 | IR128: 0.3677291736 | IS128: 0 | IT128: 0.0003450592332 | IU128: 0.03046313202 | IV128: 0 | IW128: 0.005592179141 | IX128: 0 | IY128: 0.00149021359 | IZ128: 0 | JA128: 0 | JB128: 0 | JC128: 0 | JD128: 0 | JE128: 0.1756783991 | JF128: 0 | JI128: 49.46032616 | JL128: Steam Assist
A129: Flint Hills Resources (AU) | B129: AU-D | C129: 1.0 (2) | D129: 99.50% | E129: 6 | F129: 6 | G129: YES | H129: 14.7 | I129: 0.046 | J129: Steam-Assisted | K129: 200000 | L129: 0.782585859 | M129: 127.7815065 | N129: >1000 | O129: 20 | P129: 1.67 | Q129: 2.19 | R129: Smoking flare. | S129: 722.3417585 | T129: 1565.171718 | U129: 44788.56059 | V129: 5.612776516 | W129: 6.950238022 | X129: 13.84904763 | Y129: 100 | Z129: 0 | AA129: 0 | AB129: 0 | AC129: 0.009259930104 | AD129: 0 | AE129: 2.37445908 | AF129: 0.9343364582 | AH129: 0 | AI129: 0 | AJ129: 1.425069209 | AL129: 0.01600360083 | AM129: 38.90999148 | AO129: 0.03965811191 | AP129: 0 | AQ129: 50.14783099 | AR129: 0 | AS129: 0.04750906891 | AT129: 4.705458846 | AU129: 0 | AV129: 1.189165815 | AW129: 0 | AX129: 0.1944652098 | AY129: 0.007448192424 | BA129: 0 | BD129: 36911.08937 | BE129: 1725.389962 | BF129: NONE | BG129: NONE | BH129: 10541.11111 | BI129: 500 | BJ129: 26369.97826 | BK129: 1225.389962 | BL129: NONE | BM129: NONE | BN129: 1.10 | BO129: 0.82 | BP129: 1.49 | BS129: 0 | BT129: 0 | BU129: 4.147389406 | BV129: 0 | BW129: 1063.486044 | BX129: 418.4758507 | BY129: 0 | BZ129: 0 | CA129: 0 | CB129: 638.2679861 | CC129: 0 | CD129: 7.167782456 | CE129: 17427.22511 | CF129: 0 | CG129: 17.76229748 | CH129: 0 | CI129: 22460.49167 | CJ129: 0 | CK129: 21.27862812 | CL129: 2107.507287 | CM129: 0 | CN129: 532.6102517 | CO129: 0 | CP129: 87.09816835 | CQ129: 3.335938177 | CR129: 0 | CS129: 0 | CT129: 0 | CU129: 0 | CV129: 36911.08937 | CX129: 0 | CY129: 0 | CZ129: 0 | DA129: 5.076367515e-05 | DB129: 0 | DC129: 0.013016974 | DD129: 0.005122106961 | DE129: 0 | DF129: 0 | DG129: 0 | DH129: 0.007812343027 | DI129: 0 | DJ129: 8.773301577e-05 | DK129: 0.2133076757 | DL129: 0 | DM129: 0.0002174089315 | DN129: 0 | DO129: 0.2749144079 | DP129: 0 | DQ129: 0.0002604485038 | DR129: 0.02579570057 | DS129: 0 | DT129: 0.006519101814 | DU129: 0 | DV129: 0.001066073786 | DW129: 4.083158473e-05 | DX129: 0 | DY129: 0 | DZ129: 0 | EA129: 0 | EB129: 0.4517884305 | ED129: 0 | EE129: 0.03 | EF129: 38.90999148 | EG129: 3.88 | EH129: 0.02 | EI129: 21.33 | EJ129: 0.0008407024035 | EK129: 0.517 | EL129: 0.4517884305 | EM129: 0.482706238 | EN129: 11 | EO129: 0 | EP129: 0 | EQ129: 9.813316704e-05 | ER129: 0 | ES129: 0.02516360134 | EU129: 0 | EV129: 0 | EW129: 0 | EX129: 0.01510233373 | EY129: 0 | EZ129: 0.0001695999879 | FA129: 0.4123530794 | FB129: 0 | FC129: 0.0004202813711 | FD129: 0 | FE129: 0.5314473673 | FF129: 0 | FG129: 0.0005034827847 | FJ129: 0.01260232056 | FK129: 0 | FL129: 0.002060867275 | FM129: 7.893307002e-05 | FN129: 0 | FO129: 0 | FQ129: 0 | FU129: 395.99 | FV129: 0.043 | FW129: 0.009 | FX129: 0.043 | FY129: 31.33 | FZ129: 12.64 | GA129: 0.041 | GB129: 0.079 | GC129: 1.63 | GD129: 1.91 | GE129: 0.291 | GF129: 0.081 | GK129: 2065.17 | GL129: 0.04 | GM129: 21.51 | GN129: 0.05 | GO129: 1.325 | GP129: 1.63 | GQ129: 1.90 | GR129: 0.13 | GS129: 0.054 | GT129: 8.739 | GU129: 17.722 | GV129: No | GW129: 0 | GX129: 0 | GY129: 4.147389406 | GZ129: 0 | HA129: 1063.486044 | HB129: 418.4758507 | HC129: 0 | HD129: 0 | HE129: 0 | HF129: 638.2679861 | HG129: 0 | HH129: 7.167782456 | HI129: 17427.22511 | HJ129: 0 | HK129: 17.76229748 | HL129: 0 | HM129: 22460.49167 | HN129: 0 | HO129: 21.27862812 | HP129: 2107.507287 | HQ129: 0 | HR129: 532.6102517 | HS129: 0 | HT129: 87.09816835 | HU129: 3.335938177 | HV129: 0 | HW129: 0 | HX129: 0 | HY129: 0 | HZ129: 10541.11111 | IA129: 0 | IB129: 0 | IC129: 0 | ID129: 7.49573828e-05 | IE129: 0 | IF129: 0.01922079716 | IG129: 0.007563276912 | IH129: 0 | II129: 0 | IJ129: 0 | IK129: 0.01153566571 | IL129: 0 | IM129: 0.0001295461219 | IN129: 0.3149690218 | IO129: 0 | IP129: 0.0003210249151 | IQ129: 0 | IR129: 0.4059372071 | IS129: 0 | IT129: 0.0003845769271 | IU129: 0.03808979939 | IV129: 0 | IW129: 0.009626072358 | IX129: 0 | IY129: 0.001574159093 | IZ129: 6.029170895e-05 | JA129: 0 | JB129: 0 | JC129: 0 | JD129: 0 | JE129: 0.1905136035 | JF129: 0 | JI129: 44.78856059 | JL129: Steam Assist
A130: Flint Hills Resources (AU) | B130: AU-D | C130: Min (1) | D130: 97.77% | E130: 3 | F130: 6 | G130: YES | H130: 18.4 | I130: 0.036 | J130: Steam-Assisted | K130: 200000 | L130: 0.7378235779 | M130: 135.5337549 | N130: >1000 | O130: 20 | P130: 1.67 | Q130: 2.19 | R130: Smoking flare and run time < 5 minutes. | S130: 611.5236043 | T130: 1475.647156 | U130: 49095.54005 | V130: 6.425472393 | W130: 7.7629339 | X130: 11.22529375 | Y130: 100 | Z130: 0 | AA130: 0.01294529432 | AB130: 0 | AC130: 0.02164996763 | AD130: 0.008477898633 | AE130: 0.9674098637 | AF130: 0.8005147731 | AH130: 0.003350546765 | AI130: 0 | AJ130: 1.256747025 | AL130: 0.02583489864 | AM130: 48.99564812 | AO130: 0.03818125368 | AP130: 0.01979868543 | AQ130: 42.48402247 | AR130: 0.00659956181 | AS130: 0.04901177011 | AT130: 4.386442088 | AU130: 0 | AV130: 0.7218215099 | AW130: 0 | AX130: 0.1728818589 | AY130: 0.01451903598 | BA130: 0.01599124593 | BD130: 32588.02007 | BE130: 1523.310303 | BF130: NONE | BG130: NONE | BH130: 10541.11111 | BI130: 500 | BJ130: 22046.90896 | BK130: 1023.310303 | BL130: NONE | BM130: NONE | BN130: 1.03 | BO130: 0.66 | BP130: 1.45 | BS130: 6.355562157 | BT130: 0 | BU130: 10.62916853 | BV130: 4.162270119 | BW130: 474.9550971 | BX130: 393.017051 | BY130: 0 | BZ130: 1.644969029 | CA130: 0 | CB130: 617.0067389 | CC130: 0 | CD130: 12.68378301 | CE130: 24054.67804 | CF130: 0 | CG130: 18.74529269 | CH130: 9.720271535 | CI130: 20857.76027 | CJ130: 3.240090512 | CK130: 24.06259322 | CL130: 2153.547432 | CM130: 0 | CN130: 354.3821685 | CO130: 0 | CP130: 84.87728226 | CQ130: 7.128199125 | CR130: 0 | CS130: 7.850988547 | CT130: 0 | CU130: 0 | CV130: 32588.02007 | CX130: 0 | CY130: 7.780625086e-05 | CZ130: 0 | DA130: 0.000130124721 | DB130: 5.095546625e-05 | DC130: 0.005814509325 | DD130: 0.004811404956 | DE130: 0 | DF130: 2.013808846e-05 | DG130: 0 | DH130: 0.007553538132 | DI130: 0 | DJ130: 0.0001552777831 | DK130: 0.2944828904 | DL130: 0 | DM130: 0.0002294841761 | DN130: 0.0001189977954 | DO130: 0.2553454891 | DP130: 3.966593181e-05 | DQ130: 0.0002945797899 | DR130: 0.02636422201 | DS130: 0 | DT130: 0.004338427856 | DU130: 0 | DV130: 0.001039087173 | DW130: 8.726504998e-05 | DX130: 0 | DY130: 9.6113604e-05 | DZ130: 0 | EA130: 0 | EB130: 0.3989500224 | ED130: 0 | EE130: 0.11 | EF130: 48.99564812 | EG130: 2.08 | EH130: 0.07 | EI130: 29.45 | EJ130: 0.002328567517 | EK130: 0.570 | EL130: 0.3989500224 | EM130: 0.4301256493 | EN130: 17 | EO130: 0.0001365322913 | EP130: 0 | EQ130: 0.0002283393188 | ER130: 8.941526529e-05 | ES130: 0.01020314271 | EU130: 0 | EV130: 3.533776952e-05 | EW130: 0 | EX130: 0.01325474313 | EY130: 0 | EZ130: 0.0002724772276 | FA130: 0.516750561 | FB130: 0 | FC130: 0.0004026925863 | FD130: 0.0002088140926 | FE130: 0.4480733144 | FF130: 6.960469753e-05 | FG130: 0.0005169205975 | FJ130: 0.00761295512 | FK130: 0 | FL130: 0.00182336189 | FM130: 0.0001531303346 | FN130: 0 | FO130: 0.0001686575363 | FQ130: 0 | FU130: 367.55 | FV130: 0.044 | FW130: 0.007 | FX130: 0.044 | FY130: 27.04 | FZ130: 13.59 | GA130: 0.042 | GB130: 0.074 | GC130: 1.59 | GD130: 1.85 | GE130: 0.238 | GF130: 0.075 | GK130: 1975.65 | GL130: 0.03 | GM130: 27.04 | GN130: 0.04 | GO130: 1.480 | GP130: 1.59 | GQ130: 1.84 | GR130: 0.11 | GS130: 0.054 | GT130: 7.743 | GU130: 9.677 | GV130: No | GW130: 6.355562157 | GX130: 0 | GY130: 10.62916853 | GZ130: 4.162270119 | HA130: 474.9550971 | HB130: 393.017051 | HC130: 0 | HD130: 1.644969029 | HE130: 0 | HF130: 617.0067389 | HG130: 0 | HH130: 12.68378301 | HI130: 24054.67804 | HJ130: 0 | HK130: 18.74529269 | HL130: 9.720271535 | HM130: 20857.76027 | HN130: 3.240090512 | HO130: 24.06259322 | HP130: 2153.547432 | HQ130: 0 | HR130: 354.3821685 | HS130: 0 | HT130: 84.87728226 | HU130: 7.128199125 | HV130: 0 | HW130: 7.850988547 | HX130: 0 | HY130: 0 | HZ130: 10541.11111 | IA130: 0 | IB130: 0.0001065697914 | IC130: 0 | ID130: 0.0001782294382 | IE130: 6.979276536e-05 | IF130: 0.007964026529 | IG130: 0.006590092916 | IH130: 0 | II130: 2.758276954e-05 | IJ130: 0 | IK130: 0.01034594232 | IL130: 0 | IM130: 0.000212681125 | IN130: 0.4033478012 | IO130: 0 | IP130: 0.0003143202572 | IQ130: 0.0001629890928 | IR130: 0.3497420222 | IS130: 5.432969759e-05 | IT130: 0.0004034805226 | IU130: 0.03611059021 | IV130: 0 | IW130: 0.005942264876 | IX130: 0 | IY130: 0.001423218599 | IZ130: 0.0001195253347 | JA130: 0 | JB130: 0.0001316450365 | JC130: 0 | JD130: 0 | JE130: 0.1767528953 | JF130: 0 | JI130: 49.09554005 | JL130: Steam Assist
A131: Flint Hills Resources (LOU) | B131: LOU-A | C131: 8.5 (2) | E131: 30 | F131: 1 | G131: NO | H131: 19.1 | I131: 0.005 | J131: =IF(JL131="Air Assist", "Air-Assisted","Steam-Assisted") -> Steam-Assisted | K131: 1000000 | L131: 0.3166313012 | M131: 315.8247451 | N131: >1000 | O131: 54 | P131: 4.5 | Q131: 15.90 | R131: CE=0, Flare snuffed out. (and not have adequate CO2 signal strength) | S131: 762.9452035 | T131: 3166.313012 | U131: 82787.95537 | V131: 1.445938253 | W131: 2.510613223 | X131: 14.63352092 | Y131: 200 | Z131: 0 | AC131: 0.2290094173 | AE131: 0.03563990396 | AF131: 0.5278411411 | AH131: 0.05512588447 | AJ131: 2.594321743 | AK131: 0 | AL131: 2.192942681 | AM131: 28.58414927 | AO131: 0.04916339464 | AP131: 0.1869124208 | AQ131: 57.03094446 | AS131: 0.09283068175 | AT131: 5.320916914 | AU131: 0.05327354203 | AV131: 0.3499835384 | AX131: 0.3837573038 | AY131: 2.323779421 | AZ131: 0.001975146366 | BD131: 593277.3217 | BE131: =JJ131*1000 -> 27732.44446 | BF131: =BD131-BH131 -> 532349.6995 | BG131: 24842.44446 | BH131: 60927.62222 | BI131: 2890 | BJ131: NONE | BK131: NONE | BL131: NONE | BM131: NONE | BN131: 8.76 | BO131: 7.17 | BP131: 10.94 | BS131: =$U131*(AA131/100) -> 0 | BT131: 0 | BU131: 189.5922142 | BV131: 0 | BW131: 29.50554778 | BX131: 436.9888884 | BY131: 0 | BZ131: 45.63759263 | CA131: 0 | CB131: 2147.785927 | CC131: 0 | CD131: 1815.492408 | CE131: 23664.23274 | CF131: =$U131*(AN131/100) -> 0 | CG131: 40.70136921 | CH131: 154.7409715 | CI131: =$U131*(AQ131/100) -> 47214.75284 | CJ131: 0 | CK131: 76.85262338 | CL131: 4405.07832 | CM131: 44.1040762 | CN131: 289.7442155 | CO131: 0 | CP131: 317.7048254 | CQ131: 1923.80947 | CR131: 1.635183292 | CS131: 0 | CT131: 0 | CU131: 0 | CV131: 593277.3217 | CX131: 0 | CY131: 0 | CZ131: 0 | DA131: =BU131/SUM($BS131:$CX131) -> 0.00028043046 | DB131: 0 | DC131: 4.364237409e-05 | DD131: 0.0006463609041 | DE131: 0 | DF131: 6.75036744e-05 | DG131: 0 | DH131: 0.003176842456 | DI131: 0 | DJ131: 0.002685339022 | DK131: 0.03500234279 | DL131: 0 | DM131: 6.020238615e-05 | DN131: 0.0002288811384 | DO131: 0.06983649046 | DP131: 0 | DQ131: 0.0001136745864 | DR131: 0.006515658593 | DS131: 6.523541291e-05 | DT131: 0.0004285677236 | DU131: 0 | DV131: 0.0004699249424 | DW131: 0.002845553426 | DX131: 2.418639419e-06 | DY131: 0 | DZ131: 0 | EA131: 0 | EB131: 0.877530931 | ED131: 0 | EE131: 4.99 | EF131: 28.58414927 | EG131: 5.90 | EH131: 0.61 | EI131: 3.50 | EJ131: 0.1744942548 | EK131: 0.115 | EL131: 0.877530931 | EM131: 0.8847581859 | EN131: 14 | EO131: =BS131/(SUM(BS131:BW131,BY131:CK131,CN131:CS131,CU131)) -> 0 | EP131: =BT131/(SUM(BS131:BW131,BY131:CK131,CN131:CS131,CU131)) -> 0 | EQ131: =BU131/(SUM(BS131:BW131,BY131:CK131,CN131:CS131,CU131)) -> 0.002433408934 | ER131: =BV131/(SUM(BS131:BW131,BY131:CK131,CN131:CS131,CU131)) -> 0 | ES131: =BW131/(SUM(BS131:BW131,BY131:CK131,CN131:CS131,CU131)) -> 0.0003787025954 | EU131: =BY131/(SUM(BS131:BW131,BY131:CK131,CN131:CS131,CU131)) -> 0 | EV131: =BZ131/(SUM(BS131:BW131,BY131:CK131,CN131:CS131,CU131)) -> 0.000585756784 | EW131: =CA131/(SUM(BS131:BW131,BY131:CK131,CN131:CS131,CU131)) -> 0 | EX131: =CB131/(SUM(BS131:BW131,BY131:CK131,CN131:CS131,CU131)) -> 0.02756675154 | EY131: =CC131/(SUM(BS131:BW131,BY131:CK131,CN131:CS131,CU131)) -> 0 | EZ131: =CD131/(SUM(BS131:BW131,BY131:CK131,CN131:CS131,CU131)) -> 0.02330177673 | FA131: =CE131/(SUM(BS131:BW131,BY131:CK131,CN131:CS131,CU131)) -> 0.3037295366 | FB131: =CF131/(SUM(BS131:BW131,BY131:CK131,CN131:CS131,CU131)) -> 0 | FC131: =CG131/(SUM(BS131:BW131,BY131:CK131,CN131:CS131,CU131)) -> 0.0005224005421 | FD131: =CH131/(SUM(BS131:BW131,BY131:CK131,CN131:CS131,CU131)) -> 0.001986094546 | FE131: =CI131/(SUM(BS131:BW131,BY131:CK131,CN131:CS131,CU131)) -> 0.6059995759 | FF131: =CJ131/(SUM(BS131:BW131,BY131:CK131,CN131:CS131,CU131)) -> 0 | FG131: =CK131/(SUM(BS131:BW131,BY131:CK131,CN131:CS131,CU131)) -> 0.0009864005289 | FJ131: =CN131/(SUM(BS131:BW131,BY131:CK131,CN131:CS131,CU131)) -> 0.003718856102 | FK131: =CO131/(SUM(BS131:BW131,BY131:CK131,CN131:CS131,CU131)) -> 0 | FL131: =CP131/(SUM(BS131:BW131,BY131:CK131,CN131:CS131,CU131)) -> 0.004077729478 | FM131: =CQ131/(SUM(BS131:BW131,BY131:CK131,CN131:CS131,CU131)) -> 0.02469202215 | FN131: =CR131/(SUM(BS131:BW131,BY131:CK131,CN131:CS131,CU131)) -> 2.098751602e-05 | FO131: =CS131/(SUM(BS131:BW131,BY131:CK131,CN131:CS131,CU131)) -> 0 | FQ131: =CU131/(SUM(BS131:BW131,BY131:CK131,CN131:CS131,CU131)) -> 0 | FU131: 93.43 | FV131: =1/((AA131/1.8)+(AB131/2)+(AC131/2)+(AD131/2.5)+(AE131/1.3)+(AG131/12.5)+(AH131/1.7)+(AI131/2.4)+(AJ131/3)+(AK131/1)+(AL131/2.7)+(AM131/4)+(AN131/4)+(AO131/1.8)+(AP131/1.8)+(AQ131/5)+(AR131/1.7)+(AS131/1.8)+(AV131/1.4)+(AW131/2.16)+(AX131/2.1)+(AY131/2.4)+(AZ131/1.2)+(BA131/1.7)+(BC131/1.1)) -> 0.045 | FW131: =((BB131/100)*(GC131-1))+((AF131/100)*(GD131-1)) -> 0.005 | FX131: =1/(((AA131/1.8)+(AB131/2)+(AC131/2)+(AD131/2.5)+(AE131/1.3)+(AG131/12.5)+(AH131/1.7)+(AI131/2.4)+(AJ131/3)+(AK131/1)+(AL131/2.7)+(AM131/4)+(AN131/4)+(AO131/1.8)+(AP131/1.8)+(AQ131/5)+(AR131/1.7)+(AS131/1.8)+(AV131/1.4)+(AW131/2.16)+(AX131/2.1)+(AY131/2.4)+(AZ131/1.2)+(BA131/1.7)+(BC131/1.1))-FW131) -> 0.045 | FY131: 34.71 | FZ131: =FU131/FY131 -> 2.69 | GA131: =1/((100*EO131/1.8)+(100*EP131/2)+(100*EQ131/2)+(100*ER131/2.5)+(100*ES131/1.3)+(100*EU131/12.5)+(100*EV131/1.7)+(100*EW131/2.4)+(100*EX131/3)+(100*EY131/1)+(100*EZ131/2.7)+(100*FA131/4)+(100*FB131/4)+(100*FC131/1.8)+(100*FD131/1.8)+(100*FE131/5)+(100*FF131/1.7)+(100*FG131/1.8)+(100*FJ131/1.4)+(100*FK131/2.16)+(100*FL131/2.1)+(100*FM131/2.4)+(100*FN131/1.2)+(100*FO131/1.7)+(100*FQ131/1.1)) -> 0.043 | GB131: =1/((100*CY131/1.8)+(100*CZ131/2)+(100*DA131/2)+(100*DB131/2.5)+(100*DC131/1.3)+(100*DE131/12.5)+(100*DF131/1.7)+(100*DG131/2.4)+(100*DH131/3)+(100*DI131/1)+(100*DJ131/2.7)+(100*DK131/4)+(100*DL131/4)+(100*DM131/1.8)+(100*DN131/1.8)+(100*DO131/5)+(100*DP131/1.7)+(100*DQ131/1.8)+(100*DT131/1.4)+(100*DU131/2.16)+(100*DV131/2.1)+(100*DW131/2.4)+(100*DX131/1.2)+(100*DY131/1.7)+(100*EA131/1.1)+(100*ED131/5)) -> 0.371 | GC131: =((CI131*1.87)+(CB131*1.4)+(CP131*1.51)+(CD131*1.68)+(CQ131*1.36)+(CE131*1.35)+((BS131+BT131+BU131+BV131+BW131+BY131+BZ131+CA131+CC131+CF131+CG131+CH131+CJ131+CK131+CN131+CO131+CR131+CS131+CU131)*1.5))/(CI131+CB131+CP131+CD131+CQ131+CE131+BS131+BT131+BU131+BV131+BW131+BY131+BZ131+CA131+CC131+CF131+CG131+CH131+CJ131+CK131+CN131+CO131+CR131+CS131+CU131) -> 1.68 | GD131: =((CI131*2.23)+(CB131*1.87)+(CP131*1.93)+(CD131*1.84)+(CQ131*1.92)+(CE131*1.51)+((BS131+BT131+BU131+BV131+BW131+BY131+BZ131+CA131+CC131+CF131+CG131+CH131+CJ131+CK131+CN131+CO131+CR131+CS131+CU131)*1.87))/(CI131+CB131+CP131+CD131+CQ131+CE131+BS131+BT131+BU131+BV131+BW131+BY131+BZ131+CA131+CC131+CF131+CG131+CH131+CJ131+CK131+CN131+CO131+CR131+CS131+CU131) -> 1.98 | GE131: =((DZ131+EB131)*(GC131-1))+(DD131*(GD131-1)) -> 0.594 | GF131: =1/(((100*CY131/1.8)+(100*CZ131/2)+(100*DA131/2)+(100*DB131/2.5)+(100*DC131/1.3)+(100*DE131/12.5)+(100*DF131/1.7)+(100*DG131/2.4)+(100*DH131/3)+(100*DI131/1)+(100*DJ131/2.7)+(100*DK131/4)+(100*DL131/4)+(100*DM131/1.8)+(100*DN131/1.8)+(100*DO131/5)+(100*DP131/1.7)+(100*DQ131/1.8)+(100*DT131/1.4)+(100*DU131/2.16)+(100*DV131/2.1)+(100*DW131/2.4)+(100*DX131/1.2)+(100*DY131/1.7)+(100*EA131/1.1)+(100*ED131/5))-GE131) -> 0.477 | GK131: 6056.31 | GL131: 0.04 | GM131: 27.95 | GN131: 0.00 | GO131: =W131/(3.14*P131) -> 0.178 | GP131: =((HM131*1.87)+(HF131*1.4)+(HT131*1.51)+(HH131*1.68)+(HU131*1.36)+(HI131*1.35)+((GW131+GX131+GY131+GZ131+HA131+HC131+HD131+HE131+HG131+HJ131+HK131+HL131+HN131+HO131+HR131+HS131+HV131+HW131+HY131+IA131)*1.5))/(HM131+HF131+HT131+HH131+HU131+HI131+GW131+GX131+GY131+GZ131+HA131+HC131+HD131+HE131+HG131+HJ131+HK131+HL131+HN131+HO131+HR131+HS131+HV131+HW131+HY131+IA131) -> 1.68 | GQ131: =((HM131*2.23)+(HF131*1.87)+(HT131*1.93)+(HH131*1.84)+(HU131*1.92)+(HI131*1.51)+((GW131+GX131+GY131+GZ131+HA131+HC131+HD131+HE131+HG131+HJ131+HK131+HL131+HN131+HO131+HR131+HS131+HV131+HW131+HY131+IA131)*1.5))/(HM131+HF131+HT131+HH131+HU131+HI131+GW131+GX131+GY131+GZ131+HA131+HC131+HD131+HE131+HG131+HJ131+HK131+HL131+HN131+HO131+HR131+HS131+HV131+HW131+HY131+IA131) -> 1.98 | GR131: =((JC131+JE131)*(GP131-1))+(IG131*(GQ131-1)) -> 0.29 | GS131: =1/(((100*IB131/1.8)+(100*IC131/2)+(100*ID131/2)+(100*IE131/2.5)+(100*IF131/1.3)+(100*IH131/12.5)+(100*II131/1.7)+(100*IJ131/2.4)+(100*IK131/3)+(100*IL131/1)+(100*IM131/2.7)+(100*IN131/4)+(100*IO131/4)+(100*IP131/1.8)+(100*IQ131/1.8)+(100*IR131/5)+(100*IS131/1.7)+(100*IT131/1.8)+(100*IW131/1.4)+(100*IX131/2.16)+(100*IY131/2.1)+(100*IZ131/2.4)+(100*JA131/1.2)+(100*JB131/1.7)+(100*JD131/1.1)+(100*JF131/5))-GR131) -> 0.081 | GT131: =((100-(GS131*100))/(GS131*100))*(GL131/0.07492) -> 6.399 | GU131: =((2*3.14)*(SQRT(Q131/3.14)))*((GT131/6.85)^5) -> 10.050 | GV131: =IF(W131>GU131,"Yes","No") -> No | GW131: 0 | GX131: 0 | GY131: 189.5922142 | GZ131: 0 | HA131: 29.50554778 | HB131: 436.9888884 | HC131: 0 | HD131: 45.63759263 | HE131: 0 | HF131: 2147.785927 | HG131: 0 | HH131: 1815.492408 | HI131: 23664.23274 | HJ131: 0 | HK131: 40.70136921 | HL131: 154.7409715 | HM131: 47214.75284 | HN131: 0 | HO131: 76.85262338 | HP131: 4405.07832 | HQ131: 44.1040762 | HR131: 289.7442155 | HS131: 0 | HT131: 317.7048254 | HU131: 1923.80947 | HV131: 1.635183292 | HW131: 0 | HX131: 0 | HY131: 0 | HZ131: =IF(BH131="None",0,BH131) -> 60927.62222 | IA131: 0 | IB131: =GW131/(SUM(GW131:IA131)) -> 0 | IC131: =GX131/(SUM(GW131:IA131)) -> 0 | ID131: =GY131/(SUM(GW131:IA131)) -> 0.001319122766 | IE131: =GZ131/(SUM(GW131:IA131)) -> 0 | IF131: =HA131/(SUM(GW131:IA131)) -> 0.0002052902856 | IG131: =HB131/(SUM(GW131:IA131)) -> 0.003040430714 | IH131: =HC131/(SUM(GW131:IA131)) -> 0 | II131: =HD131/(SUM(GW131:IA131)) -> 0.0003175319603 | IJ131: =HE131/(SUM(GW131:IA131)) -> 0 | IK131: =HF131/(SUM(GW131:IA131)) -> 0.01494361636 | IL131: =HG131/(SUM(GW131:IA131)) -> 0 | IM131: =HH131/(SUM(GW131:IA131)) -> 0.01263162297 | IN131: =HI131/(SUM(GW131:IA131)) -> 0.1646482599 | IO131: =HJ131/(SUM(GW131:IA131)) -> 0 | IP131: =HK131/(SUM(GW131:IA131)) -> 0.0002831872763 | IQ131: =HL131/(SUM(GW131:IA131)) -> 0.001076638823 | IR131: =HM131/(SUM(GW131:IA131)) -> 0.3285053431 | IS131: =HN131/(SUM(GW131:IA131)) -> 0 | IT131: =HO131/(SUM(GW131:IA131)) -> 0.0005347162887 | IU131: =HP131/(SUM(GW131:IA131)) -> 0.03064914413 | IV131: =HQ131/(SUM(GW131:IA131)) -> 0.0003068622372 | IW131: =HR131/(SUM(GW131:IA131)) -> 0.00201594877 | IX131: =HS131/(SUM(GW131:IA131)) -> 0 | IY131: =HT131/(SUM(GW131:IA131)) -> 0.002210489866 | IZ131: =HU131/(SUM(GW131:IA131)) -> 0.01338525889 | JA131: =HV131/(SUM(GW131:IA131)) -> 1.137708907e-05 | JB131: =HW131/(SUM(GW131:IA131)) -> 0 | JC131: =HX131/(SUM(GW131:IA131)) -> 0 | JD131: =HY131/(SUM(GW131:IA131)) -> 0 | JE131: =HZ131/(SUM(GW131:IA131)) -> 0.4239151586 | JF131: =IA131/(SUM(GW131:IA131)) -> 0 | JJ131: 27.73244446 | JL131: =IF(CV131>0,"Steam Assist","No Assist") -> Steam Assist
A132: Flint Hills Resources (LOU) | B132: LOU-B | C132: 6.4 (1) | E132: 30 | F132: 1 | G132: =IF(F132>5,"YES","NO") -> NO | H132: 8.9 | I132: 0.083 | J132: Steam-Assisted | K132: 1000000 | L132: =T132/K132*100 -> 0.8502454543 | M132: =K132/T132 -> 117.6130957 | N132: >1000 | O132: 54 | P132: =ROUND((O132/12),2) -> 4.5 | Q132: =0.785*((P132)^2) -> 15.90 | R132: CE=0, Flare snuffed out. (and not have adequate CO2 signal strength) | S132: 758.8695757 | T132: 8502.454543 | U132: 239915.6444 | V132: 4.190261809 | W132: =IF(BH132="None",V132,((BH132/Q132/60/60)+V132)) -> 5.25493678 | X132: 13.4720287 | Y132: 200 | Z132: 0 | AC132: 0.1085653267 | AE132: 0.01108664037 | AF132: 0.5179620039 | AG132: 0.1069859966 | AH132: 0.0737031938 | AJ132: 3.090717293 | AK132: 0 | AL132: 0.9702737005 | AM132: 28.21409582 | AO132: 0.04288415827 | AP132: 0.07966615091 | AQ132: 63.90651678 | AS132: 0.06439814837 | AT132: 1.768234191 | AV132: 0.1494785514 | AX132: 0.2007666932 | AY132: 0.727406023 | AZ132: 0.0007048093079 | BD132: 1167589.894 | BE132: 54578.39141 | BF132: 1106662.272 | BG132: 51688.39141 | BH132: =BI132/18*379.48 -> 60927.62222 | BI132: 2890 | BJ132: NONE | BK132: NONE | BL132: NONE | BM132: NONE | BN132: =BE132/T132 -> 6.42 | BO132: =BD132/U132 -> 4.87 | BP132: =BD132/(SUM(BS132:BW132,BY132:CD132,CG132:CK132,CN132:CS132,CU132)) -> 7.00 | BS132: =$U132*(AA132/100) -> 0 | BT132: 0 | BU132: 260.4652031 | BV132: 0 | BW132: 26.59858469 | BX132: 1242.67188 | BY132: 256.6761431 | BZ132: 176.8254924 | CA132: =$U132*(AI132/100) -> 0 | CB132: 7415.11431 | CC132: 0 | CD132: 2327.838401 | CE132: 67690.02982 | CF132: 0 | CG132: 102.8858047 | CH132: 191.1315594 | CI132: 153321.7316 | CJ132: 0 | CK132: =$U132*(AS132/100) -> 154.5012327 | CL132: 4242.270455 | CM132: 0 | CN132: 358.6224298 | CO132: 0 | CP132: 481.6707058 | CQ132: 1745.160848 | CR132: 1.690947793 | CS132: 0 | CT132: 0 | CU132: 0 | CV132: =BD132 -> 1167589.894 | CX132: =Z132 -> 0 | CY132: =BS132/SUM($BS132:$CX132) -> 0 | CZ132: =BT132/SUM($BS132:$CX132) -> 0 | DA132: =BU132/SUM($BS132:$CX132) -> 0.000185043929 | DB132: 0 | DC132: 1.889659947e-05 | DD132: 0.0008828391831 | DE132: 0.0001823520434 | DF132: 0.0001256232444 | DG132: 0 | DH132: 0.005267966201 | DI132: 0 | DJ132: =CD132/SUM($BS132:$CX132) -> 0.001653780846 | DK132: 0.04808945274 | DL132: 0 | DM132: 7.309380798e-05 | DN132: 0.0001357867934 | DO132: 0.1089253201 | DP132: 0 | DQ132: =CK132/SUM($BS132:$CX132) -> 0.0001097632805 | DR132: 0.003013862826 | DS132: 0 | DT132: 0.0002547783837 | DU132: 0 | DV132: 0.0003421963427 | DW132: 0.001239825575 | DX132: 1.201310654e-06 | DY132: 0 | DZ132: 0 | EA132: 0 | EB132: 0.8294982168 | ED132: =CX132/SUM($BS132:$CX132) -> 0 | EE132: =AA132+AB132+AC132+AH132+AL132+AP132+AW132+AY132+BA132 -> 1.96 | EF132: =AM132 -> 28.21409582 | EG132: =AA132+AB132+AC132+AD132+AE132+AH132+AI132+AK132+AL132+AO132+AP132+AR132+AS132+AV132+AW132+AX132+AY132+AZ132+BA132+BC132 -> 2.43 | EH132: =100*(CY132+CZ132+DA132+DF132+DJ132+DN132+DU132+DW132+DY132) -> 0.33 | EI132: =100*DK132 -> 4.81 | EJ132: =IF(EI132=0,0,(EH132/EI132)) -> 0.06945515487 | EK132: =CY132+CZ132+DA132+DB132+DC132+DE132+DF132+DG132+DH132+DI132+DJ132+DK132+DL132+DM132+DN132+DO132+DP132+DQ132+DT132+DU132+DV132+DW132+DX132+DY132+EA132+ED132 -> 0.167 | EL132: =EB132 -> 0.8294982168 | EM132: =DD132+DR132+DS132+DZ132+EB132 -> 0.8333949188 | EN132: =COUNTIF(AA132:AE132,">0")+COUNTIF(AG132:AP132,">0")+COUNTIF(AQ132:AS132,">0")+COUNTIF(AV132:BA132,">0")+IF(BC132>0,1,0) -> 15 | EO132: 0 | EP132: 0 | EQ132: 0.001110673983 | ER132: 0 | ES132: 0.0001134215075 | EU132: 0.001094516698 | EV132: 0.0007540180858 | EW132: 0 | EX132: 0.03161948101 | EY132: 0 | EZ132: 0.009926352992 | FA132: 0.2886433739 | FB132: 0 | FC132: 0.0004387249624 | FD132: 0.0008150219213 | FE132: 0.6537935057 | FF132: 0 | FG132: 0.0006588231263 | FJ132: 0.001529235374 | FK132: 0 | FL132: 0.002053937013 | FM132: 0.007441703253 | FN132: 7.210528307e-06 | FO132: 0 | FQ132: 0 | FU132: =(U132*S132)/(U132+BD132) -> 129.35 | FV132: 0.046 | FW132: 0.005 | FX132: 0.046 | FY132: =FX132*S132 -> 34.58 | FZ132: 3.74 | GA132: 0.045 | GB132: 0.267 | GC132: 1.70 | GD132: 2.00 | GE132: 0.578 | GF132: 0.316 | GK132: =IF(BI132="none",T132,T132+BI132) -> 11392.45 | GL132: 0.04 | GM132: =H132*5280/60/60 -> 13.00 | GN132: 0.08 | GO132: 0.372 | GP132: 1.70 | GQ132: 2.00 | GR132: 0.15 | GS132: 0.058 | GT132: 8.266 | GU132: 36.159 | GV132: No | GW132: 0 | GX132: 0 | GY132: 260.4652031 | GZ132: 0 | HA132: 26.59858469 | HB132: 1242.67188 | HC132: 256.6761431 | HD132: 176.8254924 | HE132: 0 | HF132: 7415.11431 | HG132: 0 | HH132: 2327.838401 | HI132: 67690.02982 | HJ132: 0 | HK132: 102.8858047 | HL132: 191.1315594 | HM132: 153321.7316 | HN132: 0 | HO132: 154.5012327 | HP132: 4242.270455 | HQ132: 0 | HR132: 358.6224298 | HS132: 0 | HT132: 481.6707058 | HU132: 1745.160848 | HV132: 1.690947793 | HW132: 0 | HX132: 0 | HY132: 0 | HZ132: 60927.62222 | IA132: 0 | IB132: 0 | IC132: 0 | ID132: 0.0008655528614 | IE132: 0 | IF132: 8.838985328e-05 | IG132: 0.004129527432 | IH132: 0.0008529614225 | II132: 0.0005876094353 | IJ132: 0 | IK132: 0.02464119327 | IL132: 0 | IM132: 0.007735648237 | IN132: 0.2249409837 | IO132: 0 | IP132: 0.0003419001908 | IQ132: 0.0006351499784 | IR132: 0.5095040025 | IS132: 0 | IT132: 0.0005134236068 | IU132: 0.01409750434 | IV132: 0 | IW132: 0.001191739498 | IX132: 0 | IY132: 0.00160064167 | IZ132: 0.005799350345 | JA132: 5.619194747e-06 | JB132: 0 | JC132: 0 | JD132: 0 | JE132: 0.2024688025 | JF132: 0 | JJ132: 54.57839141 | JL132: Steam Assist
A133: Flint Hills Resources (LOU) | B133: LOU-B | C133: MIN (1) | D133: 98.05% | E133: 3 | F133: 6 | G133: YES | H133: 8.7 | I133: 0.087 | J133: Steam-Assisted | K133: 1000000 | L133: 0.8556224121 | M133: 116.8739839 | N133: >1000 | O133: 54 | P133: 4.5 | Q133: 15.90 | R133: Smoking flare and run time < 5 minutes. | S133: 767.341773 | T133: 8556.224121 | U133: 238705.7642 | V133: 4.16913057 | W133: 5.233805541 | X133: 13.70528984 | Y133: 200 | Z133: 0 | AC133: 0.1057404932 | AE133: 0.0110230532 | AF133: 0.5289759487 | AG133: 0.06883957051 | AH133: 0.08060149848 | AJ133: 3.18840003 | AK133: 0 | AL133: 0.8987725824 | AM133: 27.25200081 | AO133: 0.04925983865 | AP133: 0.08460645378 | AQ133: 64.44400024 | AS133: 0.06398698501 | AT133: 1.948400021 | AV133: 0.1437000036 | AX133: 0.217198994 | AY133: 0.9090499878 | AZ133: 0.0006776452501 | BD133: 142438.0839 | BE133: 6658.195257 | BF133: 81510.46166 | BG133: 3768.195257 | BH133: 60927.62222 | BI133: 2890 | BJ133: NONE | BK133: NONE | BL133: NONE | BM133: NONE | BN133: 0.78 | BO133: 0.60 | BP133: 0.85 | BS133: 0 | BT133: 0 | BU133: 252.4086523 | BV133: 0 | BW133: 26.31266338 | BX133: 1262.696081 | BY133: 164.3240229 | BZ133: 192.4004229 | CA133: 0 | CB133: 7610.894658 | CC133: 0 | CD133: 2145.421961 | CE133: 65052.0968 | CF133: 0 | CG133: 117.5860743 | CH133: 201.9604821 | CI133: 153831.5433 | CJ133: 0 | CK133: 152.7406216 | CL133: 4650.943159 | CM133: 0 | CN133: 343.0201918 | CO133: 0 | CP133: 518.4665185 | CQ133: 2169.95472 | CR133: 1.617578273 | CS133: 0 | CT133: 0 | CU133: 0 | CV133: 142438.0839 | CX133: 0 | CY133: 0 | CZ133: 0 | DA133: 0.0006622596367 | DB133: 0 | DC133: 6.903810442e-05 | DD133: 0.003313011025 | DE133: 0.0004311467404 | DF133: 0.000504812466 | DG133: 0 | DH133: 0.01996915829 | DI133: 0 | DJ133: 0.005629071571 | DK133: 0.1706810666 | DL133: 0 | DM133: 0.0003085175969 | DN133: 0.0005298957634 | DO133: 0.4036169959 | DP133: 0 | DQ133: 0.0004007546795 | DR133: 0.01220295699 | DS133: 0 | DT133: 0.0009000025378 | DU133: 0 | DV133: 0.00136033153 | DW133: 0.005693439634 | DX133: 4.2441366e-06 | DY133: 0 | DZ133: 0 | EA133: 0 | EB133: 0.3737232969 | ED133: 0 | EE133: 2.08 | EF133: 27.25200081 | EG133: 2.56 | EH133: 1.30 | EI133: 17.07 | EJ133: 0.07627957412 | EK133: 0.611 | EL133: 0.3737232969 | EM133: 0.3892392649 | EN133: 15 | EO133: 0 | EP133: 0 | EQ133: 0.001084319274 | ER133: 0 | ES133: 0.0001130362521 | EU133: 0.0007059175805 | EV133: 0.0008265306476 | EW133: 0 | EX133: 0.03269555022 | EY133: 0 | EZ133: 0.009216492231 | FA133: 0.2794565151 | FB133: 0 | FC133: 0.0005051365931 | FD133: 0.0008675995899 | FE133: 0.6608430645 | FF133: 0 | FG133: 0.0006561565871 | FJ133: 0.001473576289 | FK133: 0 | FL133: 0.00222727404 | FM133: 0.009321882214 | FN133: 6.94893492e-06 | FO133: 0 | FQ133: 0 | FU133: 480.58 | FV133: 0.046 | FW133: 0.005 | FX133: 0.046 | FY133: 35.04 | FZ133: 13.72 | GA133: 0.045 | GB133: 0.073 | GC133: 1.70 | GD133: 2.01 | GE133: 0.265 | GF133: 0.074 | GK133: 11446.22 | GL133: 0.04 | GM133: 12.70 | GN133: 0.09 | GO133: 0.370 | GP133: 1.70 | GQ133: 2.01 | GR133: 0.15 | GS133: 0.058 | GT133: 8.315 | GU133: 37.229 | GV133: No | GW133: 0 | GX133: 0 | GY133: 252.4086523 | GZ133: 0 | HA133: 26.31266338 | HB133: 1262.696081 | HC133: 164.3240229 | HD133: 192.4004229 | HE133: 0 | HF133: 7610.894658 | HG133: 0 | HH133: 2145.421961 | HI133: 65052.0968 | HJ133: 0 | HK133: 117.5860743 | HL133: 201.9604821 | HM133: 153831.5433 | HN133: 0 | HO133: 152.7406216 | HP133: 4650.943159 | HQ133: 0 | HR133: 343.0201918 | HS133: 0 | HT133: 518.4665185 | HU133: 2169.95472 | HV133: 1.617578273 | HW133: 0 | HX133: 0 | HY133: 0 | HZ133: 60927.62222 | IA133: 0 | IB133: 0 | IC133: 0 | ID133: 0.0008424235997 | IE133: 0 | IF133: 8.781952759e-05 | IG133: 0.004214296808 | IH133: 0.000548437756 | II133: 0.0006421438227 | IJ133: 0 | IK133: 0.02540165409 | IL133: 0 | IM133: 0.007160428437 | IN133: 0.2171138788 | IO133: 0 | IP133: 0.0003924480523 | IQ133: 0.0006740508883 | IR133: 0.5134187012 | IS133: 0 | IT133: 0.000509777708 | IU133: 0.01552270195 | IV133: 0 | IW133: 0.001144843103 | IX133: 0 | IY133: 0.001730401977 | IZ133: 0.007242307465 | JA133: 5.398729794e-06 | JB133: 0 | JC133: 0 | JD133: 0 | JE133: 0.2033482861 | JF133: 0 | JJ133: 6.658195257 | JL133: Steam Assist
A134: Flint Hills Resources (LOU) | B134: LOU-B | C134: MIN (2) | D134: 99.53% | E134: 3 | F134: 6 | G134: YES | H134: 12.9 | I134: 0.037 | J134: Steam-Assisted | K134: 1000000 | L134: 0.8425341064 | M134: 118.6895572 | N134: >1000 | O134: 54 | P134: 4.5 | Q134: 15.90 | R134: Smoking flare and run time < 5 minutes. | S134: 804.951722 | T134: 8425.341064 | U134: 225285.1996 | V134: 3.934732852 | W134: 4.999407823 | X134: 14.28644788 | Y134: 200 | Z134: 0 | AC134: 0.09945583902 | AE134: 0.01188066159 | AF134: 0.5054836273 | AG134: 0.08716784604 | AH134: 0.04439025745 | AJ134: 3.380175352 | AK134: 0 | AL134: 0.6147809625 | AM134: 23.9772954 | AO134: 0.04348890204 | AP134: 0.0838745404 | AQ134: 67.62114906 | AS134: 0.0634691976 | AT134: 1.246517599 | AV134: 0.1025009453 | AX134: 0.2782211304 | AY134: 1.841346473 | AZ134: 0.000730111642 | BD134: 161548.2833 | BE134: 7551.491737 | BF134: 100620.6611 | BG134: 4661.491737 | BH134: 60927.62222 | BI134: 2890 | BJ134: NONE | BK134: NONE | BL134: NONE | BM134: NONE | BN134: 0.90 | BO134: 0.72 | BP134: 0.97 | BS134: 0 | BT134: 0 | BU134: 224.0592854 | BV134: 0 | BW134: 26.76537218 | BX134: 1138.779799 | BY134: 196.3762559 | BZ134: 100.0046801 | CA134: 0 | CB134: 7615.034788 | CC134: 0 | CD134: 1385.010518 | CE134: 54017.29779 | CF134: 0 | CG134: 97.97405975 | CH134: 188.9569257 | CI134: 152340.4406 | CJ134: 0 | CK134: 142.9867085 | CL134: 2808.21966 | CM134: 0 | CN134: 230.9194593 | CO134: 0 | CP134: 626.7910288 | CQ134: 4148.281075 | CR134: 1.64483347 | CS134: 0 | CT134: 0 | CU134: 0 | CV134: 161548.2833 | CX134: 0 | CY134: 0 | CZ134: 0 | DA134: 0.0005792072809 | DB134: 0 | DC134: 6.919016284e-05 | DD134: 0.002943817077 | DE134: 0.0005076449164 | DF134: 0.0002585183592 | DG134: 0 | DH134: 0.01968534169 | DI134: 0 | DJ134: 0.003580338903 | DK134: 0.1396380967 | DL134: 0 | DM134: 0.0002532690785 | DN134: 0.0004884654834 | DO134: 0.3938095768 | DP134: 0 | DQ134: 0.0003696295936 | DR134: 0.00725942364 | DS134: 0 | DT134: 0.0005969412597 | DU134: 0 | DV134: 0.001620294052 | DW134: 0.0107235663 | DX134: 4.251997501e-06 | DY134: 0 | DZ134: 0 | EA134: 0 | EB134: 0.4176124266 | ED134: 0 | EE134: 2.68 | EF134: 23.9772954 | EG134: 3.18 | EH134: 1.56 | EI134: 13.96 | EJ134: 0.1119328943 | EK134: 0.572 | EL134: 0.4176124266 | EM134: 0.4278156673 | EN134: 15 | EO134: 0 | EP134: 0 | EQ134: 0.001012273926 | ER134: 0 | ES134: 0.0001209228546 | EU134: 0.0008872052019 | EV134: 0.0004518095733 | EW134: 0 | EX134: 0.03440384605 | EY134: 0 | EZ134: 0.006257317265 | FA134: 0.2440439012 | FB134: 0 | FC134: 0.0004426354656 | FD134: 0.0008536855267 | FE134: 0.6882564837 | FF134: 0 | FG134: 0.0006459974042 | FJ134: 0.001043267398 | FK134: 0 | FL134: 0.002831769343 | FM134: 0.01874145391 | FN134: 7.431167297e-06 | FO134: 0 | FQ134: 0 | FU134: 468.79 | FV134: 0.045 | FW134: 0.005 | FX134: 0.045 | FY134: 36.52 | FZ134: 12.84 | GA134: 0.045 | GB134: 0.078 | GC134: 1.71 | GD134: 2.03 | GE134: 0.301 | GF134: 0.080 | GK134: 11315.34 | GL134: 0.04 | GM134: 18.95 | GN134: 0.04 | GO134: 0.354 | GP134: 1.71 | GQ134: 2.03 | GR134: 0.16 | GS134: 0.058 | GT134: 8.546 | GU134: 42.715 | GV134: No | GW134: 0 | GX134: 0 | GY134: 224.0592854 | GZ134: 0 | HA134: 26.76537218 | HB134: 1138.779799 | HC134: 196.3762559 | HD134: 100.0046801 | HE134: 0 | HF134: 7615.034788 | HG134: 0 | HH134: 1385.010518 | HI134: 54017.29779 | HJ134: 0 | HK134: 97.97405975 | HL134: 188.9569257 | HM134: 152340.4406 | HN134: 0 | HO134: 142.9867085 | HP134: 2808.21966 | HQ134: 0 | HR134: 230.9194593 | HS134: 0 | HT134: 626.7910288 | HU134: 4148.281075 | HV134: 1.64483347 | HW134: 0 | HX134: 0 | HY134: 0 | HZ134: 60927.62222 | IA134: 0 | IB134: 0 | IC134: 0 | ID134: 0.0007828296579 | IE134: 0 | IF134: 9.351421035e-05 | IG134: 0.003978726427 | IH134: 0.00068610929 | II134: 0.0003494014066 | IJ134: 0 | IK134: 0.02660579349 | IL134: 0 | IM134: 0.004839019763 | IN134: 0.1887283657 | IO134: 0 | IP134: 0.0003423067227 | IQ134: 0.0006601872592 | IR134: 0.5322547324 | IS134: 0 | IT134: 0.0004995741903 | IU134: 0.009811499806 | IV134: 0 | IW134: 0.00080679808 | IX134: 0 | IY134: 0.002189914182 | IZ134: 0.01449347412 | JA134: 5.746802325e-06 | JB134: 0 | JC134: 0 | JD134: 0 | JE134: 0.2128720065 | JF134: 0 | JJ134: 7.551491737 | JL134: Steam Assist
A135: Flint Hills Resources (LOU) | B135: LOU-C | C135: MIN (1) | D135: 99.65% | E135: 11 | F135: 6 | G135: YES | H135: 19.2 | I135: 0.033 | J135: Steam-Assisted | K135: 1000000 | L135: 1.257665739 | M135: 79.51238306 | N135: >1000 | O135: 54 | P135: 4.5 | Q135: 15.90 | R135: Smoking flare. | S135: 775.2874305 | T135: 12576.65739 | U135: 353807.2824 | V135: 6.179443391 | W135: 7.244118362 | X135: 13.60761445 | Y135: 200 | Z135: 0 | AC135: 0.1084042676 | AE135: 0.01048013079 | AF135: 0.5413261702 | AH135: 0.06407511824 | AJ135: 2.671868742 | AK135: 0 | AL135: 0.7712187469 | AM135: 27.43093459 | AO135: 0.08583039977 | AP135: 0.06950353831 | AQ135: 65.39156342 | AS135: 0.1073728502 | AT135: 1.113653814 | AU135: 0.02316453837 | AV135: 0.1587333704 | AX135: 0.2746311302 | AY135: 1.182333608 | AZ135: 0.0006275898825 | BD135: 131642.4527 | BE135: 6153.559009 | BF135: 70714.8305 | BG135: 3263.559009 | BH135: 60927.62222 | BI135: 2890 | BJ135: NONE | BK135: NONE | BL135: NONE | BM135: NONE | BN135: 0.49 | BO135: 0.37 | BP135: 0.52 | BS135: 0 | BT135: 0 | BU135: 383.5421932 | BV135: 0 | BW135: 37.07946594 | BX135: 1915.251412 | BY135: 0 | BZ135: 226.7024346 | CA135: 0 | CB135: 9453.266185 | CC135: 0 | CD135: 2728.62809 | CE135: 97052.64421 | CF135: 0 | CG135: 303.6742049 | CH135: 245.9085801 | CI135: 231360.1135 | CJ135: 0 | CK135: 379.8929633 | CL135: 3940.188294 | CM135: 81.95782369 | CN135: 561.6102242 | CO135: 0 | CP135: 971.6649385 | CQ135: 4183.18241 | CR135: 2.220458708 | CS135: 0 | CT135: 0 | CU135: 0 | CV135: 131642.4527 | CX135: 0 | CY135: 0 | CZ135: 0 | DA135: 0.0007900430694 | DB135: 0 | DC135: 7.637849396e-05 | DD135: 0.003945149011 | DE135: 0 | DF135: 0.0004669751867 | DG135: 0 | DH135: 0.01947240112 | DI135: 0 | DJ135: 0.005620590772 | DK135: 0.1999148211 | DL135: 0 | DM135: 0.0006255262269 | DN135: 0.00050653715 | DO135: 0.4765693513 | DP135: 0 | DQ135: 0.0007825261682 | DR135: 0.008116234692 | DS135: 0.0001688216101 | DT135: 0.001156838213 | DU135: 0 | DV135: 0.002001493354 | DW135: 0.008616768454 | DX135: =CR135/SUM($BS135:$CX135) -> 4.573833191e-06 | DY135: 0 | DZ135: 0 | EA135: 0 | EB135: 0.2711649703 | ED135: 0 | EE135: 2.20 | EF135: 27.43093459 | EG135: 2.83 | EH135: 1.60 | EI135: 19.99 | EJ135: 0.08003866119 | EK135: 0.717 | EL135: 0.2711649703 | EM135: 0.2833951756 | EN135: 14 | EO135: 0 | EP135: 0 | EQ135: 0.001102480813 | ER135: 0 | ES135: 0.00010658384 | EU135: 0 | EV135: 0.0006516495156 | EW135: 0 | EX135: 0.02717313707 | EY135: 0 | EZ135: 0.007843361614 | FA135: 0.2789749863 | FB135: 0 | FC135: 0.0008729026175 | FD135: 0.000706857019 | FE135: 0.6650378773 | FF135: 0 | FG135: 0.001091991209 | FJ135: 0.001614332158 | FK135: 0 | FL135: 0.002793022438 | FM135: 0.01202443545 | FN135: 6.382643593e-06 | FO135: 0 | FQ135: 0 | FU135: 565.05 | FV135: 0.045 | FW135: 0.005 | FX135: 0.045 | FY135: 35.10 | FZ135: 16.10 | GA135: 0.045 | GB135: 0.062 | GC135: 1.70 | GD135: 2.01 | GE135: 0.194 | GF135: 0.063 | GK135: 15466.66 | GL135: 0.04 | GM135: 28.19 | GN135: 0.03 | GO135: 0.513 | GP135: 1.70 | GQ135: 2.01 | GR135: 0.11 | GS135: 0.053 | GT135: 8.831 | GU135: 50.317 | GV135: No | GW135: 0 | GX135: 0 | GY135: 383.5421932 | GZ135: 0 | HA135: 37.07946594 | HB135: 1915.251412 | HC135: 0 | HD135: 226.7024346 | HE135: 0 | HF135: 9453.266185 | HG135: 0 | HH135: 2728.62809 | HI135: 97052.64421 | HJ135: 0 | HK135: 303.6742049 | HL135: 245.9085801 | HM135: 231360.1135 | HN135: 0 | HO135: 379.8929633 | HP135: 3940.188294 | HQ135: 81.95782369 | HR135: 561.6102242 | HS135: 0 | HT135: 971.6649385 | HU135: 4183.18241 | HV135: 2.220458708 | HW135: 0 | HX135: 0 | HY135: 0 | HZ135: 60927.62222 | IA135: 0 | IB135: 0 | IC135: 0 | ID135: 0.0009247436555 | IE135: 0 | IF135: 8.94008573e-05 | IG135: 0.004617788143 | IH135: 0 | II135: 0.0005465934173 | IJ135: 0 | IK135: 0.0227924022 | IL135: 0 | IM135: 0.006578888997 | IN135: 0.2339998534 | IO135: 0 | IP135: 0.0007321770573 | IQ135: 0.0005929006074 | IR135: 0.5578233657 | IS135: 0 | IT135: 0.0009159451394 | IU135: 0.009500034655 | IV135: 0.0001976053191 | IW135: 0.001354076555 | IX135: 0 | IY135: 0.002342743519 | IZ135: 0.01008590831 | JA135: 5.353661577e-06 | JB135: 0 | JC135: 0 | JD135: 0 | JE135: 0.1469002188 | JF135: 0 | JJ135: 6.153559009 | JL135: Steam Assist
